Workbook

Sheet Instructions
B1: Project: | D1: NYISO ICAP Demand Curve | H1: Preliminary - Values subject to change
B2: Date: | D2: 2020-06-01
B3: Worksheet: | D3: Instructions
B5: Instructions for Using NYISO ICAP Demand Curve Workbook
B8: Steps:
B10: 1 | C10: Collect index information from BLS and BEA websites and update Escalation Factor in "Escalation Factor" Worksheet
B11: 2 | C11: Update Net EAS Revenues in "Net EAS" Worksheet
B12: 3 | C12: Update Winter-Summer Ratio in "Winter-Summer Ratio" Worksheet
B13: 4 | C13: Save Previous DCR values in "Demand Curve Results" Worksheet
B14: 5 | C14: Update and run DCR model, using "Multiple Scenario Output" Worksheet

Sheet Glossary
B1: Project: | C1: NYISO ICAP Demand Curve | D1: Preliminary - Values subject to change
B2: Date: | C2: 2020-06-01
B3: Worksheet: | C3: Glossary
B5: Glossary of Named Ranges
B8: Named Range | C8: Name
B9: Annual_Reference_Value | C9: Annual Reference Value ($/kW-Year)
B10: ATWACC | C10: After Tax Weighted Average Cost of Capital (%)
B11: ATWACC_Real | C11: After Tax Weighted Average Cost of Capital (Real, %)
B12: Capability_Year | C12: Capability Year
B13: Capacity_at_LOE | C13: Capacity at LOE Conditions (%)
B14: Capital_Costs | C14: Overnight Capital Costs ($/kW-Year)
B15: CC_Adder | C15: Estimated additional CC Ancillary Services revenues ($/kW-Year)
B16: CC_Flag | C16: CC Plant Flag
B17: Debt_Fraction | C17: Debt Fraction (%)
B18: Debt_Rate | C18: Debt Rate (%)
B19: Debt_Rate_Real | C19: Debt Rate (Real, %)
B20: DMNC_ICAP | C20: DMNC ICAP (MW)
B21: DMNC_Summer | C21: DMNC Summer (MW)
B22: DMNC_Winter | C22: DMNC Winter (MW)
B23: EAS | C23: Net Energy and Ancillary Services ($/kW-Year)
B24: EAS_Fuel_Type | C24: EAS Fuel Type
B25: Effective_Tax_Rate | C25: Effective Tax Rate (%)
B26: Equity_Rate | C26: Equity Rate (%)
B27: Equity_Rate_Real | C27: Equity Rate (Real, %)
B28: Escalation_Factor | C28: Escalation Factor (%)
B29: Escalation_Factor_Table | C29: Table of all Escalation Factors for all units
B30: FixedOM_Site_Lease | C30: Fixed O&M + Site Lease (Includes Property Taxes and Insurance, $/kW-Year)
B31: Fuel_Type | C31: Fuel Type
B32: Gross CONE | C32: Gross CONE ($/kW-Year)
B33: Inflation_Factor | C33: Inflation Factor (%)
B34: Insurance_Rate | C34: Insurance Rate (%)
B35: IRM | C35: Installed Reserve Margin (or Locational Capacity Requirement, %)
B36: Levelized_Charge | C36: Levelized Fixed Charge (%)
B37: Maximum_Price_Multiple | C37: Maximum price (Multiple of Annualized Capital Cost)
B38: Multiple_Scenario_Lookup | C38: Array of Values Used to Lookup Model Results from the Multiple Scenario Output
B39: Multiple_Scenario_Output | C39: Output from the Multiple Scenario Output
B40: Multiple_Scenario_Vars | C40: Variables Included in Multiple Scenario Output
B41: Peak_Load | C41: Peak Load (Average of Gold Book Peak Load Values for 2017 - 2021, MW)
B42: Plant_Life | C42: Plant Life (Years)
B43: Property_Tax_Rate | C43: Property Tax Rate (%)
B44: PropTax_Abate | C44: Property Tax Abatement Flag
B45: Region | C45: Region (Zone)
B46: Total_EPC_Capital_Costs | C46: Total EPC Costs ($/kW-Year)
B47: Unit | C47: Unit/Technology
B48: VSS_Adder | C48: Estimated Voltage Support Services revenues for all non-CC resources ($/kW-Year)
B49: WSR | C49: Winter-to-Summer Ratio
B50: ZCP | C50: Zero Crossing Point (Margin Over 100%)

Sheet Demand Curve Results
D1: Project: | F1: NYISO ICAP Demand Curve | H1: Preliminary - Values subject to change
D2: Date: | F2: 2020-06-01
D3: Worksheet: | F3: Demand Curve Results
D5: Instructions: | F5: Current ICAP Demand Curve Parameters are linked to "Multiple Scenario Output" Table.
F6: Before completing an annual update, copy values from "Current Parameters" section and paste values into "Historical Values" section to save results from previous years.
D8: Current ICAP Demand Curve Parameters
E11: ="Current Year ("&Capability_Year&")" -> Current Year (2021-2022)
F12: C - Central | G12: F - Capital | H12: G - Hudson Valley (Dutchess) | I12: G - Hudson Valley (Rockland) | J12: J - New York City | K12: K - Long Island
E13: Source | F13: C - Central | G13: F - Capital | H13: G - Hudson Valley (Dutchess) | I13: G - Hudson Valley (Rockland) | J13: J - New York City | K13: K - Long Island
A14: Gross CONE ($/kW-Year) | D14: Gross Cost of New Entry ($/kW-Year) | E14: [1] | F14: =INDEX('Multiple Scenario Output'!$A$31:$AL$38, MATCH(F$12,'Multiple Scenario Output'!$C$31:$C$38,0), MATCH($A14, 'Multiple Scenario Output'!$A$31:$AL$31, 0)) -> 122.2988 | G14: =INDEX('Multiple Scenario Output'!$A$31:$AL$38, MATCH(G$12,'Multiple Scenario Output'!$C$31:$C$38,0), MATCH($A14, 'Multiple Scenario Output'!$A$31:$AL$31, 0)) -> 123.4028 | H14: =INDEX('Multiple Scenario Output'!$A$31:$AL$38, MATCH(H$12,'Multiple Scenario Output'!$C$31:$C$38,0), MATCH($A14, 'Multiple Scenario Output'!$A$31:$AL$31, 0)) -> 139.817 | I14: =INDEX('Multiple Scenario Output'!$A$31:$AL$38, MATCH(I$12,'Multiple Scenario Output'!$C$31:$C$38,0), MATCH($A14, 'Multiple Scenario Output'!$A$31:$AL$31, 0)) -> 157.2409 | J14: =INDEX('Multiple Scenario Output'!$A$31:$AL$38, MATCH(J$12,'Multiple Scenario Output'!$C$31:$C$38,0), MATCH($A14, 'Multiple Scenario Output'!$A$31:$AL$31, 0)) -> 201.2607 | K14: =INDEX('Multiple Scenario Output'!$A$31:$AL$38, MATCH(K$12,'Multiple Scenario Output'!$C$31:$C$38,0), MATCH($A14, 'Multiple Scenario Output'!$A$31:$AL$31, 0)) -> 167.3551
A15: Net EAS ($/kW-Year) | D15: Net EAS Revenue ($/kW-Year) | E15: [2] | F15: =INDEX('Multiple Scenario Output'!$A$31:$AL$38, MATCH(F$12,'Multiple Scenario Output'!$C$31:$C$38,0), MATCH($A15, 'Multiple Scenario Output'!$A$31:$AL$31, 0)) -> 45.5802 | G15: =INDEX('Multiple Scenario Output'!$A$31:$AL$38, MATCH(G$12,'Multiple Scenario Output'!$C$31:$C$38,0), MATCH($A15, 'Multiple Scenario Output'!$A$31:$AL$31, 0)) -> 36.4637 | H15: =INDEX('Multiple Scenario Output'!$A$31:$AL$38, MATCH(H$12,'Multiple Scenario Output'!$C$31:$C$38,0), MATCH($A15, 'Multiple Scenario Output'!$A$31:$AL$31, 0)) -> 35.3784 | I15: =INDEX('Multiple Scenario Output'!$A$31:$AL$38, MATCH(I$12,'Multiple Scenario Output'!$C$31:$C$38,0), MATCH($A15, 'Multiple Scenario Output'!$A$31:$AL$31, 0)) -> 55.9581 | J15: =INDEX('Multiple Scenario Output'!$A$31:$AL$38, MATCH(J$12,'Multiple Scenario Output'!$C$31:$C$38,0), MATCH($A15, 'Multiple Scenario Output'!$A$31:$AL$31, 0)) -> 42.6222 | K15: =INDEX('Multiple Scenario Output'!$A$31:$AL$38, MATCH(K$12,'Multiple Scenario Output'!$C$31:$C$38,0), MATCH($A15, 'Multiple Scenario Output'!$A$31:$AL$31, 0)) -> 59.8702
A16: Annual Reference Value ($/kW-Year) | D16: Annual ICAP Reference Value ($/kW-Year) | E16: [3] = [1] - [2] | F16: =INDEX('Multiple Scenario Output'!$A$31:$AL$38, MATCH(F$12,'Multiple Scenario Output'!$C$31:$C$38,0), MATCH($A16, 'Multiple Scenario Output'!$A$31:$AL$31, 0)) -> 76.7187 | G16: =INDEX('Multiple Scenario Output'!$A$31:$AL$38, MATCH(G$12,'Multiple Scenario Output'!$C$31:$C$38,0), MATCH($A16, 'Multiple Scenario Output'!$A$31:$AL$31, 0)) -> 86.9392 | H16: =INDEX('Multiple Scenario Output'!$A$31:$AL$38, MATCH(H$12,'Multiple Scenario Output'!$C$31:$C$38,0), MATCH($A16, 'Multiple Scenario Output'!$A$31:$AL$31, 0)) -> 104.4387 | I16: =INDEX('Multiple Scenario Output'!$A$31:$AL$38, MATCH(I$12,'Multiple Scenario Output'!$C$31:$C$38,0), MATCH($A16, 'Multiple Scenario Output'!$A$31:$AL$31, 0)) -> 101.2828 | J16: =INDEX('Multiple Scenario Output'!$A$31:$AL$38, MATCH(J$12,'Multiple Scenario Output'!$C$31:$C$38,0), MATCH($A16, 'Multiple Scenario Output'!$A$31:$AL$31, 0)) -> 158.6384 | K16: =INDEX('Multiple Scenario Output'!$A$31:$AL$38, MATCH(K$12,'Multiple Scenario Output'!$C$31:$C$38,0), MATCH($A16, 'Multiple Scenario Output'!$A$31:$AL$31, 0)) -> 107.485
A18: DMNC ICAP (MW) | D18: ICAP DMNC (MW) | E18: [4] | F18: =INDEX('Multiple Scenario Output'!$A$31:$AL$38, MATCH(F$12,'Multiple Scenario Output'!$C$31:$C$38,0), MATCH($A18, 'Multiple Scenario Output'!$A$31:$AL$31, 0)) -> 326.7 | G18: =INDEX('Multiple Scenario Output'!$A$31:$AL$38, MATCH(G$12,'Multiple Scenario Output'!$C$31:$C$38,0), MATCH($A18, 'Multiple Scenario Output'!$A$31:$AL$31, 0)) -> 328.5 | H18: =INDEX('Multiple Scenario Output'!$A$31:$AL$38, MATCH(H$12,'Multiple Scenario Output'!$C$31:$C$38,0), MATCH($A18, 'Multiple Scenario Output'!$A$31:$AL$31, 0)) -> 329.9 | I18: =INDEX('Multiple Scenario Output'!$A$31:$AL$38, MATCH(I$12,'Multiple Scenario Output'!$C$31:$C$38,0), MATCH($A18, 'Multiple Scenario Output'!$A$31:$AL$31, 0)) -> 347 | J18: =INDEX('Multiple Scenario Output'!$A$31:$AL$38, MATCH(J$12,'Multiple Scenario Output'!$C$31:$C$38,0), MATCH($A18, 'Multiple Scenario Output'!$A$31:$AL$31, 0)) -> 348.8 | K18: =INDEX('Multiple Scenario Output'!$A$31:$AL$38, MATCH(K$12,'Multiple Scenario Output'!$C$31:$C$38,0), MATCH($A18, 'Multiple Scenario Output'!$A$31:$AL$31, 0)) -> 348.8
D19: Total Annual Reference Value | E19: [5] = [3] * [4] | F19: =F16*1000*F18 -> 25063999.29 | G19: =G16*1000*G18 -> 28559527.2 | H19: =H16*1000*H18 -> 34454327.13 | I19: =I16*1000*I18 -> 35145131.6 | J19: =J16*1000*J18 -> 55333073.92 | K19: 37490768
A20: Capacity at LOE Conditions | D20: Level of Excess (%) | E20: [6] | F20: =INDEX('Multiple Scenario Output'!$A$31:$AL$38, MATCH(F$12,'Multiple Scenario Output'!$C$31:$C$38,0), MATCH($A20, 'Multiple Scenario Output'!$A$31:$AL$31, 0)) -> 1.008507825 | G20: =INDEX('Multiple Scenario Output'!$A$31:$AL$38, MATCH(G$12,'Multiple Scenario Output'!$C$31:$C$38,0), MATCH($A20, 'Multiple Scenario Output'!$A$31:$AL$31, 0)) -> 1.0085547 | H20: =INDEX('Multiple Scenario Output'!$A$31:$AL$38, MATCH(H$12,'Multiple Scenario Output'!$C$31:$C$38,0), MATCH($A20, 'Multiple Scenario Output'!$A$31:$AL$31, 0)) -> 1.023354925 | I20: =INDEX('Multiple Scenario Output'!$A$31:$AL$38, MATCH(I$12,'Multiple Scenario Output'!$C$31:$C$38,0), MATCH($A20, 'Multiple Scenario Output'!$A$31:$AL$31, 0)) -> 1.024565502 | J20: =INDEX('Multiple Scenario Output'!$A$31:$AL$38, MATCH(J$12,'Multiple Scenario Output'!$C$31:$C$38,0), MATCH($A20, 'Multiple Scenario Output'!$A$31:$AL$31, 0)) -> 1.035093784 | K20: =INDEX('Multiple Scenario Output'!$A$31:$AL$38, MATCH(K$12,'Multiple Scenario Output'!$C$31:$C$38,0), MATCH($A20, 'Multiple Scenario Output'!$A$31:$AL$31, 0)) -> 1.064536207
A21: Winter-Summer Ratio | D21: Ratio of Summer to Winter DMNCs | E21: [7] | F21: =INDEX('Multiple Scenario Output'!$A$31:$AL$38, MATCH(F$12,'Multiple Scenario Output'!$C$31:$C$38,0), MATCH($A21, 'Multiple Scenario Output'!$A$31:$AL$31, 0)) -> 1.04 | G21: =INDEX('Multiple Scenario Output'!$A$31:$AL$38, MATCH(G$12,'Multiple Scenario Output'!$C$31:$C$38,0), MATCH($A21, 'Multiple Scenario Output'!$A$31:$AL$31, 0)) -> 1.04 | H21: =INDEX('Multiple Scenario Output'!$A$31:$AL$38, MATCH(H$12,'Multiple Scenario Output'!$C$31:$C$38,0), MATCH($A21, 'Multiple Scenario Output'!$A$31:$AL$31, 0)) -> 1.058 | I21: =INDEX('Multiple Scenario Output'!$A$31:$AL$38, MATCH(I$12,'Multiple Scenario Output'!$C$31:$C$38,0), MATCH($A21, 'Multiple Scenario Output'!$A$31:$AL$31, 0)) -> 1.058 | J21: =INDEX('Multiple Scenario Output'!$A$31:$AL$38, MATCH(J$12,'Multiple Scenario Output'!$C$31:$C$38,0), MATCH($A21, 'Multiple Scenario Output'!$A$31:$AL$31, 0)) -> 1.078 | K21: =INDEX('Multiple Scenario Output'!$A$31:$AL$38, MATCH(K$12,'Multiple Scenario Output'!$C$31:$C$38,0), MATCH($A21, 'Multiple Scenario Output'!$A$31:$AL$31, 0)) -> 1.076
A22: DMNC summer (MW) | D22: Summer DMNC (MW) | E22: [8] | F22: =INDEX('Multiple Scenario Output'!$A$31:$AL$38, MATCH(F$12,'Multiple Scenario Output'!$C$31:$C$38,0), MATCH($A22, 'Multiple Scenario Output'!$A$31:$AL$31, 0)) -> 332 | G22: =INDEX('Multiple Scenario Output'!$A$31:$AL$38, MATCH(G$12,'Multiple Scenario Output'!$C$31:$C$38,0), MATCH($A22, 'Multiple Scenario Output'!$A$31:$AL$31, 0)) -> 333.2 | H22: =INDEX('Multiple Scenario Output'!$A$31:$AL$38, MATCH(H$12,'Multiple Scenario Output'!$C$31:$C$38,0), MATCH($A22, 'Multiple Scenario Output'!$A$31:$AL$31, 0)) -> 334.9 | I22: =INDEX('Multiple Scenario Output'!$A$31:$AL$38, MATCH(I$12,'Multiple Scenario Output'!$C$31:$C$38,0), MATCH($A22, 'Multiple Scenario Output'!$A$31:$AL$31, 0)) -> 350.2 | J22: =INDEX('Multiple Scenario Output'!$A$31:$AL$38, MATCH(J$12,'Multiple Scenario Output'!$C$31:$C$38,0), MATCH($A22, 'Multiple Scenario Output'!$A$31:$AL$31, 0)) -> 354.5 | K22: =INDEX('Multiple Scenario Output'!$A$31:$AL$38, MATCH(K$12,'Multiple Scenario Output'!$C$31:$C$38,0), MATCH($A22, 'Multiple Scenario Output'!$A$31:$AL$31, 0)) -> 352.6
A23: DMNC winter (MW) | D23: Winter DMNC (MW) | E23: [9] | F23: =INDEX('Multiple Scenario Output'!$A$31:$AL$38, MATCH(F$12,'Multiple Scenario Output'!$C$31:$C$38,0), MATCH($A23, 'Multiple Scenario Output'!$A$31:$AL$31, 0)) -> 344.8 | G23: =INDEX('Multiple Scenario Output'!$A$31:$AL$38, MATCH(G$12,'Multiple Scenario Output'!$C$31:$C$38,0), MATCH($A23, 'Multiple Scenario Output'!$A$31:$AL$31, 0)) -> 346.6 | H23: =INDEX('Multiple Scenario Output'!$A$31:$AL$38, MATCH(H$12,'Multiple Scenario Output'!$C$31:$C$38,0), MATCH($A23, 'Multiple Scenario Output'!$A$31:$AL$31, 0)) -> 348.6 | I23: =INDEX('Multiple Scenario Output'!$A$31:$AL$38, MATCH(I$12,'Multiple Scenario Output'!$C$31:$C$38,0), MATCH($A23, 'Multiple Scenario Output'!$A$31:$AL$31, 0)) -> 370.5 | J23: =INDEX('Multiple Scenario Output'!$A$31:$AL$38, MATCH(J$12,'Multiple Scenario Output'!$C$31:$C$38,0), MATCH($A23, 'Multiple Scenario Output'!$A$31:$AL$31, 0)) -> 374.3 | K23: =INDEX('Multiple Scenario Output'!$A$31:$AL$38, MATCH(K$12,'Multiple Scenario Output'!$C$31:$C$38,0), MATCH($A23, 'Multiple Scenario Output'!$A$31:$AL$31, 0)) -> 373.3
D25: Assumed Capacity Prices at Tariff Prescribed Level of Excess Conditions
A26: Level of Excess Clearing Price (Summer) | D26: Summer ($/kW-Month) | E26: [10] | F26: =INDEX('Multiple Scenario Output'!$A$31:$AL$38, MATCH(F$12,'Multiple Scenario Output'!$C$31:$C$38,0), MATCH($A26, 'Multiple Scenario Output'!$A$31:$AL$31, 0)) -> 7.5526 | G26: =INDEX('Multiple Scenario Output'!$A$31:$AL$38, MATCH(G$12,'Multiple Scenario Output'!$C$31:$C$38,0), MATCH($A26, 'Multiple Scenario Output'!$A$31:$AL$31, 0)) -> 8.5703 | H26: =INDEX('Multiple Scenario Output'!$A$31:$AL$38, MATCH(H$12,'Multiple Scenario Output'!$C$31:$C$38,0), MATCH($A26, 'Multiple Scenario Output'!$A$31:$AL$31, 0)) -> 10.9619 | I26: =INDEX('Multiple Scenario Output'!$A$31:$AL$38, MATCH(I$12,'Multiple Scenario Output'!$C$31:$C$38,0), MATCH($A26, 'Multiple Scenario Output'!$A$31:$AL$31, 0)) -> 10.662 | J26: =INDEX('Multiple Scenario Output'!$A$31:$AL$38, MATCH(J$12,'Multiple Scenario Output'!$C$31:$C$38,0), MATCH($A26, 'Multiple Scenario Output'!$A$31:$AL$31, 0)) -> 17.4887 | K26: =INDEX('Multiple Scenario Output'!$A$31:$AL$38, MATCH(K$12,'Multiple Scenario Output'!$C$31:$C$38,0), MATCH($A26, 'Multiple Scenario Output'!$A$31:$AL$31, 0)) -> 13.0125
A27: Level of Excess Clearing Price (Winter) | D27: Winter ($/kW-Month) | E27: [11] | F27: =INDEX('Multiple Scenario Output'!$A$31:$AL$38, MATCH(F$12,'Multiple Scenario Output'!$C$31:$C$38,0), MATCH($A27, 'Multiple Scenario Output'!$A$31:$AL$31, 0)) -> 4.843 | G27: =INDEX('Multiple Scenario Output'!$A$31:$AL$38, MATCH(G$12,'Multiple Scenario Output'!$C$31:$C$38,0), MATCH($A27, 'Multiple Scenario Output'!$A$31:$AL$31, 0)) -> 5.4942 | H27: =INDEX('Multiple Scenario Output'!$A$31:$AL$38, MATCH(H$12,'Multiple Scenario Output'!$C$31:$C$38,0), MATCH($A27, 'Multiple Scenario Output'!$A$31:$AL$31, 0)) -> 5.9416 | I27: =INDEX('Multiple Scenario Output'!$A$31:$AL$38, MATCH(I$12,'Multiple Scenario Output'!$C$31:$C$38,0), MATCH($A27, 'Multiple Scenario Output'!$A$31:$AL$31, 0)) -> 5.732 | J27: =INDEX('Multiple Scenario Output'!$A$31:$AL$38, MATCH(J$12,'Multiple Scenario Output'!$C$31:$C$38,0), MATCH($A27, 'Multiple Scenario Output'!$A$31:$AL$31, 0)) -> 8.0749 | K27: =INDEX('Multiple Scenario Output'!$A$31:$AL$38, MATCH(K$12,'Multiple Scenario Output'!$C$31:$C$38,0), MATCH($A27, 'Multiple Scenario Output'!$A$31:$AL$31, 0)) -> 4.4475
D29: Monthly Revenue (Summer) | E29: [12] = [10]*[8] | F29: =F26*F22*1000 -> 2507463.2 | G29: =G26*G22*1000 -> 2855623.96 | H29: =H26*H22*1000 -> 3671140.31 | I29: =I26*I22*1000 -> 3733832.4 | J29: 6199744.15 | K29: 4588207.5
D30: Monthly Revenue (Winter) | E30: [13] = [11]*[9] | F30: =F27*F23*1000 -> 1669866.4 | G30: 1904289.72 | H30: =H27*H23*1000 -> 2071241.76 | I30: =I27*I23*1000 -> 2123706 | J30: 3022435.07 | K30: 1660251.75
D32: Seasonal Revenue (Summer) | E32: [14] = 6 * [12] | F32: =F29*6 -> 15044779.2 | G32: =G29*6 -> 17133743.76 | H32: =H29*6 -> 22026841.86 | I32: =I29*6 -> 22402994.4 | J32: 37198464.9 | K32: 27529245
D33: Seasonal Revenue (Winter) | E33: [15] = 6 * [13] | F33: =F30*6 -> 10019198.4 | G33: 11425738.32 | H33: =H30*6 -> 12427450.56 | I33: =I30*6 -> 12742236 | J33: 18134610.42 | K33: 9961510.5
D34: Total Annual Reference Value | E34: [16] = [14]+[15] | F34: =SUM(F32:F33) -> 25063977.6 | G34: =SUM(G32:G33) -> 28559482.08 | H34: =SUM(H32:H33) -> 34454292.42 | I34: =SUM(I32:I33) -> 35145230.4 | J34: =SUM(J32:J33) -> 55333075.32 | K34: 37490755.5
D36: ICAP Demand Curve Parameters
A37: Monthly Reference Point Price ($/kW-month) | D37: ICAP Monthly Reference Point Price ($/kW-Month) | F37: =INDEX('Multiple Scenario Output'!$A$31:$AL$38, MATCH(F$12,'Multiple Scenario Output'!$C$31:$C$38,0), MATCH($A37, 'Multiple Scenario Output'!$A$31:$AL$31, 0)) -> 8.129 | G37: =INDEX('Multiple Scenario Output'!$A$31:$AL$38, MATCH(G$12,'Multiple Scenario Output'!$C$31:$C$38,0), MATCH($A37, 'Multiple Scenario Output'!$A$31:$AL$31, 0)) -> 9.2281 | H37: =INDEX('Multiple Scenario Output'!$A$31:$AL$38, MATCH(H$12,'Multiple Scenario Output'!$C$31:$C$38,0), MATCH($A37, 'Multiple Scenario Output'!$A$31:$AL$31, 0)) -> 12.9834 | I37: =INDEX('Multiple Scenario Output'!$A$31:$AL$38, MATCH(I$12,'Multiple Scenario Output'!$C$31:$C$38,0), MATCH($A37, 'Multiple Scenario Output'!$A$31:$AL$31, 0)) -> 12.7501 | J37: =INDEX('Multiple Scenario Output'!$A$31:$AL$38, MATCH(J$12,'Multiple Scenario Output'!$C$31:$C$38,0), MATCH($A37, 'Multiple Scenario Output'!$A$31:$AL$31, 0)) -> 21.7242 | K37: =INDEX('Multiple Scenario Output'!$A$31:$AL$38, MATCH(K$12,'Multiple Scenario Output'!$C$31:$C$38,0), MATCH($A37, 'Multiple Scenario Output'!$A$31:$AL$31, 0)) -> 20.2856
A38: Maximum Clearing Price ($/kW-month) | D38: ICAP Max Clearing Price ($/kW-Month) | F38: =INDEX('Multiple Scenario Output'!$A$31:$AL$38, MATCH(F$12,'Multiple Scenario Output'!$C$31:$C$38,0), MATCH($A38, 'Multiple Scenario Output'!$A$31:$AL$31, 0)) -> 15.2874 | G38: =INDEX('Multiple Scenario Output'!$A$31:$AL$38, MATCH(G$12,'Multiple Scenario Output'!$C$31:$C$38,0), MATCH($A38, 'Multiple Scenario Output'!$A$31:$AL$31, 0)) -> 15.4254 | H38: =INDEX('Multiple Scenario Output'!$A$31:$AL$38, MATCH(H$12,'Multiple Scenario Output'!$C$31:$C$38,0), MATCH($A38, 'Multiple Scenario Output'!$A$31:$AL$31, 0)) -> 17.4771 | I38: =INDEX('Multiple Scenario Output'!$A$31:$AL$38, MATCH(I$12,'Multiple Scenario Output'!$C$31:$C$38,0), MATCH($A38, 'Multiple Scenario Output'!$A$31:$AL$31, 0)) -> 19.6551 | J38: =INDEX('Multiple Scenario Output'!$A$31:$AL$38, MATCH(J$12,'Multiple Scenario Output'!$C$31:$C$38,0), MATCH($A38, 'Multiple Scenario Output'!$A$31:$AL$31, 0)) -> 25.1576 | K38: =INDEX('Multiple Scenario Output'!$A$31:$AL$38, MATCH(K$12,'Multiple Scenario Output'!$C$31:$C$38,0), MATCH($A38, 'Multiple Scenario Output'!$A$31:$AL$31, 0)) -> 20.9194
A39: Zero Crossing Point (margin over 100%) | D39: Demand Curve Length | F39: =INDEX('Multiple Scenario Output'!$A$31:$AL$38, MATCH(F$12,'Multiple Scenario Output'!$C$31:$C$38,0), MATCH($A39, 'Multiple Scenario Output'!$A$31:$AL$31, 0)) -> 0.12 | G39: =INDEX('Multiple Scenario Output'!$A$31:$AL$38, MATCH(G$12,'Multiple Scenario Output'!$C$31:$C$38,0), MATCH($A39, 'Multiple Scenario Output'!$A$31:$AL$31, 0)) -> 0.12 | H39: =INDEX('Multiple Scenario Output'!$A$31:$AL$38, MATCH(H$12,'Multiple Scenario Output'!$C$31:$C$38,0), MATCH($A39, 'Multiple Scenario Output'!$A$31:$AL$31, 0)) -> 0.15 | I39: =INDEX('Multiple Scenario Output'!$A$31:$AL$38, MATCH(I$12,'Multiple Scenario Output'!$C$31:$C$38,0), MATCH($A39, 'Multiple Scenario Output'!$A$31:$AL$31, 0)) -> 0.15 | J39: =INDEX('Multiple Scenario Output'!$A$31:$AL$38, MATCH(J$12,'Multiple Scenario Output'!$C$31:$C$38,0), MATCH($A39, 'Multiple Scenario Output'!$A$31:$AL$31, 0)) -> 0.18 | K39: =INDEX('Multiple Scenario Output'!$A$31:$AL$38, MATCH(K$12,'Multiple Scenario Output'!$C$31:$C$38,0), MATCH($A39, 'Multiple Scenario Output'!$A$31:$AL$31, 0)) -> 0.18
D44: Save Historical Values Below
D47: 2021-2022 | N47: 2022-2023
E48: Source | F48: C - Central | G48: F - Capital | H48: G - Hudson Valley (Dutchess) | I48: G - Hudson Valley (Rockland) | J48: J - New York City | K48: K - Long Island | O48: Source | P48: C - Central | Q48: F - Capital | R48: G - Hudson Valley (Dutchess) | S48: G - Hudson Valley (Rockland) | T48: J - New York City | U48: K - Long Island
D49: Gross Cost of New Entry ($/kW-Year) | E49: [1] | N49: Gross Cost of New Entry ($/kW-Year) | O49: [1]
D50: Net EAS Revenue ($/kW-Year) | E50: [2] | N50: Net EAS Revenue ($/kW-Year) | O50: [2]
D51: Annual ICAP Reference Value ($/kW-Year) | E51: [3] = [1] - [2] | N51: Annual ICAP Reference Value ($/kW-Year) | O51: [3] = [1] - [2]
D53: ICAP DMNC (MW) | E53: [4] | N53: ICAP DMNC (MW) | O53: [4]
D54: Total Annual Reference Value | E54: [5] = [3] * [4] | N54: Total Annual Reference Value | O54: [5] = [3] * [4]
D55: Level of Excess (%) | E55: [6] | N55: Level of Excess (%) | O55: [6]
D56: Ratio of Summer to Winter DMNCs | E56: [7] | N56: Ratio of Summer to Winter DMNCs | O56: [7]
D57: Summer DMNC (MW) | E57: [8] | N57: Summer DMNC (MW) | O57: [8]
D58: Winter DMNC (MW) | E58: [9] | N58: Winter DMNC (MW) | O58: [9]
D60: Assumed Capacity Prices at Tariff Prescribed Level of Excess Conditions | N60: Assumed Capacity Prices at Tariff Prescribed Level of Excess Conditions
D61: Summer ($/kW-Month) | E61: [10] | N61: Summer ($/kW-Month) | O61: [10]
D62: Winter ($/kW-Month) | E62: [11] | N62: Winter ($/kW-Month) | O62: [11]
D64: Monthly Revenue (Summer) | E64: [12] = [10]*[8] | N64: Monthly Revenue (Summer) | O64: [12] = [10]*[8]
D65: Monthly Revenue (Winter) | E65: [13] = [11]*[9] | N65: Monthly Revenue (Winter) | O65: [13] = [11]*[9]
D67: Seasonal Revenue (Summer) | E67: [14] = 6 * [12] | N67: Seasonal Revenue (Summer) | O67: [14] = 6 * [12]
D68: Seasonal Revenue (Winter) | E68: [15] = 6 * [13] | N68: Seasonal Revenue (Winter) | O68: [15] = 6 * [13]
D69: Total Annual Reference Value | E69: [16] = [14]+[15] | N69: Total Annual Reference Value | O69: [16] = [14]+[15]
D71: Demand Curve Parameters | N71: Demand Curve Parameters
D72: ICAP Monthly Reference Point Price ($/kW-Month) | N72: ICAP Monthly Reference Point Price ($/kW-Month)
D73: ICAP Max Clearing Price ($/kW-Month) | N73: ICAP Max Clearing Price ($/kW-Month)
D74: Demand Curve Length | N74: Demand Curve Length
D76: 2023-2024 | N76: 2024-2025
E77: Source | F77: C - Central | G77: F - Capital | H77: G - Hudson Valley (Dutchess) | I77: G - Hudson Valley (Rockland) | J77: J - New York City | K77: K - Long Island | O77: Source | P77: C - Central | Q77: F - Capital | R77: G - Hudson Valley (Dutchess) | S77: G - Hudson Valley (Rockland) | T77: J - New York City | U77: K - Long Island
D78: Gross Cost of New Entry ($/kW-Year) | E78: [1] | N78: Gross Cost of New Entry ($/kW-Year) | O78: [1]
D79: Net EAS Revenue ($/kW-Year) | E79: [2] | N79: Net EAS Revenue ($/kW-Year) | O79: [2]
D80: Annual ICAP Reference Value ($/kW-Year) | E80: [3] = [1] - [2] | N80: Annual ICAP Reference Value ($/kW-Year) | O80: [3] = [1] - [2]
D82: ICAP DMNC (MW) | E82: [4] | N82: ICAP DMNC (MW) | O82: [4]
D83: Total Annual Reference Value | E83: [5] = [3] * [4] | N83: Total Annual Reference Value | O83: [5] = [3] * [4]
D84: Level of Excess (%) | E84: [6] | N84: Level of Excess (%) | O84: [6]
D85: Ratio of Summer to Winter DMNCs | E85: [7] | N85: Ratio of Summer to Winter DMNCs | O85: [7]
D86: Summer DMNC (MW) | E86: [8] | N86: Summer DMNC (MW) | O86: [8]
D87: Winter DMNC (MW) | E87: [9] | N87: Winter DMNC (MW) | O87: [9]
D89: Assumed Capacity Prices at Tariff Prescribed Level of Excess Conditions | N89: Assumed Capacity Prices at Tariff Prescribed Level of Excess Conditions
D90: Summer ($/kW-Month) | E90: [10] | N90: Summer ($/kW-Month) | O90: [10]
D91: Winter ($/kW-Month) | E91: [11] | N91: Winter ($/kW-Month) | O91: [11]
D93: Monthly Revenue (Summer) | E93: [12] = [10]*[8] | N93: Monthly Revenue (Summer) | O93: [12] = [10]*[8]
D94: Monthly Revenue (Winter) | E94: [13] = [11]*[9] | N94: Monthly Revenue (Winter) | O94: [13] = [11]*[9]
D96: Seasonal Revenue (Summer) | E96: [14] = 6 * [12] | N96: Seasonal Revenue (Summer) | O96: [14] = 6 * [12]
D97: Seasonal Revenue (Winter) | E97: [15] = 6 * [13] | N97: Seasonal Revenue (Winter) | O97: [15] = 6 * [13]
D98: Total Annual Reference Value | E98: [16] = [14]+[15] | N98: Total Annual Reference Value | O98: [16] = [14]+[15]
D100: Demand Curve Parameters | N100: Demand Curve Parameters
D101: ICAP Monthly Reference Point Price ($/kW-Month) | N101: ICAP Monthly Reference Point Price ($/kW-Month)
D102: ICAP Max Clearing Price ($/kW-Month) | N102: ICAP Max Clearing Price ($/kW-Month)
D103: Demand Curve Length | N103: Demand Curve Length

Sheet Model-->

Sheet Model
A1: Project: | B1: NYISO ICAP Demand Curve | D1: Preliminary - Values subject to change
A2: Worksheet: | B2: Model
A3: Date: | B3: 2020-06-01
A5: Instructions: | B5: Values highlighted in yellow can be toggled to the values on their right, in grey, to view the reference point price for different zones, peaking plant technologies, and fuel assumptions.
A7: Notes: | B7: 1. Long Island and New York load zones cannot be modeled as gas-only plants. Setting the model to Long Island or New York and gas-only will result in errors.
B8: 2. The 1x0 GE 7HA.02 15ppm and GE 7F.05 without SCR are only available in load zones F, G (Dutchess) and C.
B9: 3. "CC gas only" or "CC dual fuel" must be selected for net EAS (cell B 62) if the CC technology is selected in cell B21. Setting the net EAS fuel type to "Duel fuel with SCR", "Gas only with SCR", or another non-CC EAS fuel type will result in errors.
B10: 4. Changing toggle selections on this page will not interfere with or edit the data on the "Multiple Scenario Output" tab.
A12: NYISO ICAP Demand Curve Model
A14: Inputs
A16: Timing
A17: Capability Year | B17: 2021-2022 | C17: 2021-2022 | D17: 2022-2023 | E17: 2023-2024 | F17: 2024-2025
A19: Plant
A20: Region | B20: G - Hudson Valley (Dutchess) | C20: F - Capital | D20: J - New York City | E20: K - Long Island | F20: G - Hudson Valley (Rockland) | G20: G - Hudson Valley (Dutchess) | H20: C - Central
A21: Technology | B21: GE 7F.05 | C21: SGT-A65 WLE | D21: GE 7F.05 | E21: 1x0 GE 7HA.02 25ppm | F21: 1x0 GE 7HA.02 15ppm | G21: 8000J CC | H21: BESS 4h | I21: BESS 6h | J21: BESS 8h
A22: Service Life (Years) | B22: =IF(OR(Unit="BESS 4h",Unit="BESS 6h",Unit="BESS 8h"),15,17) -> 17 | C22: Maximum 30
A23: Maximum Price (Multiple of Monthly Gross CONE) | B23: 1.5
A24: Fuel and SCR Specification | B24: Gas only with SCR | C24: Dual with SCR | D24: Dual without SCR | E24: Gas only with SCR | F24: Gas only without SCR | G24: Battery
A25: CC Plant | B25: =IF(Unit="8000J CC", TRUE, FALSE) -> FALSE | C25: TRUE | D25: FALSE
A26: Overnight Capital Costs ($/kW) | B26: =IFERROR(INDEX('Capital Costs'!$C$14:$CK$86, MATCH("Overnight Capital Costs"&Capability_Year, 'Capital Costs'!$C$14:$C$86, 0), MATCH(Region&Unit&Fuel_Type, 'Capital Costs'!$C$14:$CK$14, 0)), "-") -> 1254.48708
A27: Total EPC Capital Costs | B27: =IFERROR(INDEX('Capital Costs'!$C$14:$CK$88, MATCH("Total EPC Costs"&Capability_Year, 'Capital Costs'!$C$14:$C$88, 0), MATCH(Region&Unit&Fuel_Type, 'Capital Costs'!$C$14:$CK$14, 0)), "-") -> 850.263565
A28: Fixed O&M + Site Lease ($/kW-Year) | B28: =IFERROR(INDEX('Performance and O&M'!$C$12:$BE$35, MATCH("FO&M Costs "&Capability_Year, 'Performance and O&M'!$C$12:$C$35, 0), MATCH(Region&Unit, 'Performance and O&M'!$C$12:$BE$12, 0)), "-") -> 13.59425788
A29: DMNC Summer (MW) | B29: =IFERROR(INDEX('Performance and O&M'!$C$12:$BE$28, MATCH($A29, 'Performance and O&M'!$C$12:$C$28, 0), MATCH(Region&Unit, 'Performance and O&M'!$C$12:$BE$12, 0)), "-") -> 213.1
A30: DMNC Winter (MW) | B30: =IFERROR(INDEX('Performance and O&M'!$C$12:$BE$28, MATCH($A30, 'Performance and O&M'!$C$12:$C$28, 0), MATCH(Region&Unit, 'Performance and O&M'!$C$12:$BE$12, 0)), "-") -> 228
A31: DMNC ICAP (MW) | B31: =IFERROR(INDEX('Performance and O&M'!$C$12:$BE$28, MATCH($A31, 'Performance and O&M'!$C$12:$C$28, 0), MATCH(Region&Unit, 'Performance and O&M'!$C$12:$BE$12, 0)), "-") -> 209.1
A32: Winter-to-Summer Ratio | B32: =IFERROR(INDEX('Winter-to-Summer Ratio'!$D$11:$E$35, MATCH(Region&Capability_Year, 'Winter-to-Summer Ratio'!$D$11:$D$35, 0), MATCH("Winter-to-Summer Ratio", 'Winter-to-Summer Ratio'!$D$11:$E$11, 0)), "-") -> 1.058
A33: Escalation Factor (%) | B33: ='Escalation Factor'!E26 -> 0.03594771368
A35: Finance
A36: Inflation Factor (%) | B36: 0.021
A37: Debt Fraction (%) | B37: 0.55
A38: Debt Rate (%)
A39: Nominal | B39: 0.077
A40: Real | B40: =(Debt_Rate-Inflation_Factor)/(1+Inflation_Factor) -> 0.05484818805
A41: Equity Rate (%)
A42: Nominal | B42: 0.13
A43: Real | B43: =(Equity_Rate-Inflation_Factor)/(1+Inflation_Factor) -> 0.1067580803
A44: Composite Tax Rate (%) | B44: =IF(Region="J - New York City", D44, F44) -> 0.275 | C44: NYC: | D44: 0.3635 | E44: Non-NYC: | F44: 0.275
A45: ATWACC Nominal (%) | B45: =(1-Debt_Fraction)*Equity_Rate+Debt_Fraction*Debt_Rate*(1-Effective_Tax_Rate) -> 0.08920375
A46: ATWACC Real (%) | B46: =(ATWACC-Inflation_Factor)/(1+Inflation_Factor) -> 0.06680093046 | C46: Discount rate
A48: Fixed Property Tax Rate (%) | B48: =IF(Region="J - New York City", D48, F48) -> 0.009 | C48: NYC: | D48: 0.0474165 | E48: Non-NYC: | F48: 0.009
A49: Insurance Rate (%) | B49: 0.006
A51: Levelized Fixed Charge
A52: Property Tax Abatement (NYC or Battery Unit) | B52: FALSE | C52: TRUE | D52: FALSE
A54: Levelized Fixed Charge (%) | B54: =IFERROR('Levelized Factor'!C55, "-") -> 0.1276627662
A55: Levelized Fixed Charge ($/kW-Year) | B55: =IFERROR(Levelized_Charge*Capital_Costs, "-") -> 160.1512908
A57: ICAP Demand Curve
A58: Zero Crossing Point (Margin Over 100%) | B58: =IF(Region=C58,D58, IF(Region=E58, F58, IF(Region=G58,H58, IF(Region=I58, J58, IF(Region=K58, N58, Q58))))) -> 0.15 | C58: F - Capital | D58: 0.12 | E58: C - Central | F58: 0.12 | G58: J - New York City | H58: 0.18 | I58: K - Long Island | J58: 0.18 | K58: G - Hudson Valley (Rockland) | N58: 0.15 | O58: G - Hudson Valley (Dutchess) | Q58: 0.15
A59: Capacity at LOE Conditions (%) | B59: =IFERROR(( (Peak_Load*IRM) + DMNC_ICAP ) / (Peak_Load*IRM), "-") -> 1.014803016
A60: Peak Load (2020) | B60: =INDEX('Peak Load and IRM'!$B$8:$E$13, MATCH(IF(OR(LEFT(Region,1)="F", LEFT(Region,1)="C"), "NYCA", LEFT(Region,1)), 'Peak Load and IRM'!$B$8:$B$13, 0), MATCH("Peak Load (2020)", 'Peak Load and IRM'!$B$8:$E$8, 0)) -> 15695
A61: IRM/LCR | B61: =INDEX('Peak Load and IRM'!$B$8:$E$13, MATCH(IF(OR(LEFT(Region,1)="F", LEFT(Region,1)="C"), "NYCA", LEFT(Region,1)), 'Peak Load and IRM'!$B$8:$B$13, 0), MATCH("Installed Reserve Margin / Locational Capacity Requirement", 'Peak Load and IRM'!$B$8:$E$8, 0)) -> 0.9
A62: Net EAS ($/kW-Year) | B62: CC gas only | C62: Dual fuel with SCR | D62: Dual fuel without SCR | E62: Gas only with SCR | F62: Gas only without SCR | G62: CC dual fuel | H62: CC gas only | I62: Battery
A63: ="Not escalated ($"&VALUE(LEFT(Capability_Year,4))-2&")" -> Not escalated ($2019) | B63: =IFERROR(INDEX('Net EAS'!$J$16:$T$189, MATCH(Region&Unit&Capability_Year, 'Net EAS'!$J$16:$J$189, 0), MATCH($B$62, 'Net EAS'!$J$16:$T$16, 0)), "-") -> -
A64: ="Escalated ($"&VALUE(LEFT(Capability_Year,4))&")" -> Escalated ($2021) | B64: =IFERROR(B63*(1+D64)^2, "-") -> - | C64: EAS Inflation rate: | D64: =IFERROR(H64/F64-1, "-") -> 0.01729218995 | E64: ="GDP Deflator ("&VALUE(LEFT(Capability_Year,4))-2&")" -> GDP Deflator (2019) | F64: =INDEX('Escalation Factor'!$C$211:$S$225, MATCH(VALUE(LEFT(Capability_Year,4))-3, 'Escalation Factor'!$C$211:$C$225, 0), MATCH("GDP Deflator", 'Escalation Factor'!$C$211:$S$211, 0)) -> 110.281 | G64: ="GDP Deflator ("&VALUE(LEFT(Capability_Year,4)-1)&")" -> GDP Deflator (2020) | H64: =INDEX('Escalation Factor'!$C$211:$S$225, MATCH(VALUE(LEFT(Capability_Year,4))-2, 'Escalation Factor'!$C$211:$C$225, 0), MATCH("GDP Deflator", 'Escalation Factor'!$C$211:$S$211, 0)) -> 112.188
A65: Calculations and Output
A67: Summary of Cash Flows ($/kW-Year)
A69: Project Year | B69: NPV | C69: 1 | D69: 2 | E69: 3 | F69: 4 | G69: 5 | H69: 6 | I69: 7 | J69: 8 | K69: 9 | L69: 10 | M69: 11 | N69: 12 | O69: 13 | P69: 14 | Q69: 15 | R69: 16 | S69: 17 | T69: 18 | U69: 19 | V69: 20 | W69: 21 | X69: 22 | Y69: 23 | Z69: 24 | AA69: 25 | AB69: 26 | AC69: 27 | AD69: 28 | AE69: 29 | AF69: 30
A71: Discount Rate Adjustment (%) | B71: - | C71: =IF(C69<=Plant_Life, 1/(1+ATWACC_Real)^C69,0) -> 0.9373820096 | D71: 0.8786850319 | E71: 0.8236635409 | F71: 0.7720873852 | G71: 0.7237408247 | H71: 0.6784216287 | I71: 0.6359402296 | J71: 0.5961189304 | K71: 0.5587911609 | L71: 0.5238007813 | M71: 0.491001429 | N71: 0.4602559062 | O71: 0.4314356063 | P71: 0.4044199756 | Q71: 0.3790960095 | R71: 0.3553577792 | S71: 0.3331059892 | T71: 0 | U71: 0 | V71: 0 | W71: 0 | X71: 0 | Y71: 0 | Z71: 0 | AA71: 0 | AB71: 0 | AC71: 0 | AD71: 0 | AE71: 0 | AF71: 0
A73: Energy and Ancillary Services Revenue | B73: =SUMPRODUCT($C$71:$AF$71, C73:AF73) -> 0 | C73: =IF(C69<=Plant_Life, EAS, 0) -> - | D73: =IF(D69<=Plant_Life, EAS, 0) -> - | E73: - | F73: - | G73: - | H73: - | I73: - | J73: - | K73: - | L73: - | M73: - | N73: - | O73: - | P73: - | Q73: - | R73: - | S73: - | T73: 0 | U73: 0 | V73: 0 | W73: 0 | X73: 0 | Y73: 0 | Z73: 0 | AA73: 0 | AB73: 0 | AC73: 0 | AD73: 0 | AE73: 0 | AF73: 0
A75: Fixed O&M (Excludes Property Tax and Insurance) | B75: =SUMPRODUCT($C$71:$AF$71, C75:AF75) -> 135.715612 | C75: =IF(C69<=Plant_Life, FixedOM_Site_Lease, 0) -> 13.59425788 | D75: 13.59425788 | E75: 13.59425788 | F75: 13.59425788 | G75: 13.59425788 | H75: 13.59425788 | I75: 13.59425788 | J75: 13.59425788 | K75: 13.59425788 | L75: 13.59425788 | M75: 13.59425788 | N75: 13.59425788 | O75: 13.59425788 | P75: 13.59425788 | Q75: 13.59425788 | R75: 13.59425788 | S75: 13.59425788 | T75: 0 | U75: 0 | V75: 0 | W75: 0 | X75: 0 | Y75: 0 | Z75: 0 | AA75: 0 | AB75: 0 | AC75: 0 | AD75: 0 | AE75: 0 | AF75: 0
A76: Insurance | B76: =IFERROR(SUMPRODUCT($C$71:$AF$71, C76:AF76), "-") -> 50.93063901 | C76: =IFERROR(IF(C69<=Plant_Life, Insurance_Rate*Total_EPC_Capital_Costs, 0), "-") -> 5.10158139 | D76: 5.10158139 | E76: 5.10158139 | F76: 5.10158139 | G76: 5.10158139 | H76: 5.10158139 | I76: 5.10158139 | J76: 5.10158139 | K76: 5.10158139 | L76: 5.10158139 | M76: 5.10158139 | N76: 5.10158139 | O76: 5.10158139 | P76: 5.10158139 | Q76: 5.10158139 | R76: 5.10158139 | S76: 5.10158139 | T76: 0 | U76: 0 | V76: 0 | W76: 0 | X76: 0 | Y76: 0 | Z76: 0 | AA76: 0 | AB76: 0 | AC76: 0 | AD76: 0 | AE76: 0 | AF76: 0
A77: Levelized Fixed Charge | B77: =IFERROR(SUMPRODUCT($C$71:$AF$71, C77:AF77), "-") -> 1598.839057 | C77: =IFERROR(IF(C69<=Plant_Life, Capital_Costs*Levelized_Charge, 0), "-") -> 160.1512908 | D77: 160.1512908 | E77: 160.1512908 | F77: 160.1512908 | G77: 160.1512908 | H77: 160.1512908 | I77: 160.1512908 | J77: 160.1512908 | K77: 160.1512908 | L77: 160.1512908 | M77: 160.1512908 | N77: 160.1512908 | O77: 160.1512908 | P77: 160.1512908 | Q77: 160.1512908 | R77: 160.1512908 | S77: 160.1512908 | T77: 0 | U77: 0 | V77: 0 | W77: 0 | X77: 0 | Y77: 0 | Z77: 0 | AA77: 0 | AB77: 0 | AC77: 0 | AD77: 0 | AE77: 0 | AF77: 0
A78: Total Costs | B78: =IFERROR(SUMPRODUCT($C$71:$AF$71, C78:AF78), "-") -> 1785.485308 | C78: =SUM(C75:C77) -> 178.84713 | D78: =SUM(D75:D77) -> 178.84713 | E78: 178.84713 | F78: 178.84713 | G78: 178.84713 | H78: 178.84713 | I78: 178.84713 | J78: 178.84713 | K78: 178.84713 | L78: 178.84713 | M78: 178.84713 | N78: 178.84713 | O78: 178.84713 | P78: 178.84713 | Q78: 178.84713 | R78: 178.84713 | S78: 178.84713 | T78: 0 | U78: 0 | V78: 0 | W78: 0 | X78: 0 | Y78: 0 | Z78: 0 | AA78: 0 | AB78: 0 | AC78: 0 | AD78: 0 | AE78: 0 | AF78: 0
A80: Annual Reference Value | B80: =IFERROR(SUMPRODUCT($C$71:$AF$71, C80:AF80), "-") -> 0 | C80: =IFERROR(C78-C73, "-") -> - | D80: =IFERROR(D78-D73, "-") -> - | E80: - | F80: - | G80: - | H80: - | I80: - | J80: - | K80: - | L80: - | M80: - | N80: - | O80: - | P80: - | Q80: - | R80: - | S80: - | T80: 0 | U80: 0 | V80: 0 | W80: 0 | X80: 0 | Y80: 0 | Z80: 0 | AA80: 0 | AB80: 0 | AC80: 0 | AD80: 0 | AE80: 0 | AF80: 0
A82: Annual Reference Value ($/kW - Year) | B82: =-PMT(ATWACC_Real,Plant_Life,B80) -> 0
A83: Reference Point Price
A84: Monthly Reference Point Price ($/kW-Month) | B84: =IFERROR(IF(Unit="BESS 4h",(B82*DMNC_ICAP) /(6*( DMNC_Summer*(1 - (Capacity_at_LOE-1)/ZCP) + DMNC_Winter*(1 - ((WSR-1+Capacity_at_LOE-1) / ZCP ) )))/0.9, (B82*DMNC_ICAP) /(6*( DMNC_Summer*(1 - (Capacity_at_LOE-1)/ZCP) + DMNC_Winter*(1 - ((WSR-1+Capacity_at_LOE-1) / ZCP ) )))), "-") -> 0
A86: Other Outputs
A87: Gross CONE ($/kW-Year) | B87: =IFERROR(B64+B82, "-") -> -
A88: ICAP Demand Curve Slope | B88: =IFERROR((B84-0)/(1-ZCP-1), "-") -> 0
A89: Level of Excess Clearing Price (Summer, $/kW-Year) | B89: =IFERROR(B88*(Capacity_at_LOE-1)+B84, "-") -> 0
A90: Level of Excess Clearing Price (Winter, $/kW-Year) | B90: =IFERROR(B84*(1-(Capacity_at_LOE-1+WSR-1)/ZCP), "-") -> 0
A91: Maximum Clearing Price ($/kW-Month) | B91: =Maximum_Price_Multiple*Gross_CONE/12 -> 

Sheet Multiple Scenario Output
A1: Project: | B1: NYISO ICAP Demand Curve | D1: Preliminary - Values subject to change
A2: Date: | B2: 2020-06-01
A3: Worksheet: | B3: Multiple Scenario Output
A5: Instructions: | B5: After updating the escalation factor, winter-summer ratios, and net EAS and after saving the previous year's demand curve results, update this sheet by completing the following steps:
B6: In rows 33 - 38, update "Capability Year" to the current year (e.g. 2021-2022).
B7: Click the "Perform Runs" button.
B8: The values in the blue, green and purple sections should update here and flow through to the "Demand Curve Results" tab automatically.
B10: Note: Additional sensitivities (below row 39) provided for informational purposes only.
A16: Inputs (Current Parameters from "Model")
A19: =COLUMN() -> 1 | B19: =COLUMN() -> 2 | C19: =COLUMN() -> 3 | D19: =COLUMN() -> 4 | E19: =COLUMN() -> 5 | F19: =COLUMN() -> 6 | G19: =COLUMN() -> 7 | H19: =COLUMN() -> 8 | I19: =COLUMN() -> 9 | J19: =COLUMN() -> 10 | K19: =COLUMN() -> 11 | L19: =COLUMN() -> 12 | M19: =COLUMN() -> 13 | N19: =COLUMN() -> 14 | O19: =COLUMN() -> 15 | P19: =COLUMN() -> 16 | Q19: =COLUMN() -> 17 | R19: =COLUMN() -> 18 | S19: =COLUMN() -> 19 | T19: =COLUMN() -> 20 | U19: =COLUMN() -> 21 | V19: =COLUMN() -> 22 | W19: =COLUMN() -> 23 | X19: =COLUMN() -> 24 | Y19: =COLUMN() -> 25 | Z19: =COLUMN() -> 26 | AA19: =COLUMN() -> 27 | AB19: =COLUMN() -> 28 | AC19: =COLUMN() -> 29 | AD19: =COLUMN() -> 30 | AE19: =COLUMN() -> 31 | AF19: =COLUMN() -> 32 | AH19: =COLUMN() -> 34 | AI19: =COLUMN() -> 35 | AJ19: =COLUMN() -> 36 | AK19: =COLUMN() -> 37 | AL19: =COLUMN() -> 38
B20: Adjustable Inputs | N20: Linked Inputs | AH20: Results
A21: Value: | B21: Capability Year | C21: Region | D21: Unit | E21: Equity Rate (Nominal) | F21: Debt Rate (Nominal) | G21: Debt Fraction | H21: Service life (Years) | I21: NYC/Battery Property Tax Abatement? | J21: Insurance Rate | K21: Fuel Type | L21: EAS Fuel Type | N21: Overnight Capital Costs ($/kW) | O21: DMNC Summer (MW) | P21: DMNC Winter (MW) | Q21: DMNC ICAP (MW) | R21: Winter-Summer Ratio | S21: Escalation Factor (%) | T21: ATWACC (Real, %) | U21: Levelized Fixed Charge (%) | V21: Levelized Fixed Charge ($/kW-Year) | W21: Net EAS ($/kW-Year) | X21: Zero Crossing Point (Margin Over 100%) | Y21: Fixed Property Tax Rate (%) | Z21: Fixed O&M + Site Lease ($/kW-Year) | AA21: Peak Load | AB21: IRM | AC21: Capacity at LOE Conditions | AD21: CC Plant | AE21: Gross CONE ($/kW-Year) | AF21: Insurance ($/kW-Year) | AH21: Annual Reference Value ($/kW-Year) | AI21: Monthly Reference Point Price ($/kW-Month) | AJ21: Maximum Clearing Price ($/kW-Month) | AK21: Level of Excess Clearing Price (Summer) | AL21: Level of Excess Clearing Price (Winter)
A22: Named Range: | B22: Capability_Year | C22: Region | D22: Unit | E22: Equity_Rate | F22: Debt_Rate | G22: Debt_Fraction | H22: Plant_life | I22: PropTax_Abate | J22: Insurance_Rate | K22: Fuel_Type | L22: EAS_Fuel_Type | N22: Capital_Costs | O22: DMNC_Summer | P22: DMNC_Winter | Q22: DMNC_ICAP | R22: WSR | S22: Escalation_Factor | T22: ATWACC_Real | U22: Levelized_Charge | W22: EAS | X22: ZCP | Y22: Property_Tax_Rate | Z22: FixedOM_Site_Lease | AA22: Peak_Load | AB22: IRM | AC22: Capacity_at_LOE | AD22: CC_Plant
A24: Value: | B24: =Capability_Year -> 2021-2022 | C24: =Region -> G - Hudson Valley (Dutchess) | D24: =Unit -> GE 7F.05 | E24: =Equity_Rate -> 0.13 | F24: =Debt_Rate -> 0.077 | G24: =Debt_Fraction -> 0.55 | H24: =Plant_Life -> 17 | I24: =PropTax_Abate -> FALSE | J24: =Insurance_Rate -> 0.006 | K24: =Fuel_Type -> Gas only with SCR | L24: =EAS_Fuel_Type -> CC gas only | N24: =Capital_Costs -> 1254.48708 | O24: =DMNC_Summer -> 213.1 | P24: =DMNC_Winter -> 228 | Q24: =DMNC_ICAP -> 209.1 | R24: =WSR -> 1.058 | S24: =Escalation_Factor -> 0.03594771368 | T24: =ATWACC_Real -> 0.06680093046 | U24: =Levelized_Charge -> 0.1276627662 | V24: =Model!B55 -> 160.1512908 | W24: =EAS -> - | X24: =ZCP -> 0.15 | Y24: =Property_Tax_Rate -> 0.009 | Z24: =FixedOM_Site_Lease -> 13.59425788 | AA24: =Peak_Load -> 15695 | AB24: =IRM -> 0.9 | AC24: =Capacity_at_LOE -> 1.014803016 | AD24: =CC_Flag -> FALSE | AE24: =Gross_CONE -> - | AF24: =Model!C76 -> 5.10158139 | AH24: =Annual_Reference_Value -> 0 | AI24: =Model!B84 -> 0 | AJ24: =Model!B91 ->  | AK24: =Model!B89 -> 0 | AL24: =Model!B90 -> 0
A28: Output from Multiple Scenarios
A31: Scenario | B31: Capability Year | C31: Region | D31: Unit | E31: Equity Rate (Nominal) | F31: Debt Rate (Nominal) | G31: Debt Fraction | H31: Service life (Years) | I31: Property Tax Abatement? | J31: Insurance Rate | K31: Fuel Type | L31: EAS Fuel Type | N31: Overnight Capital Costs ($/kW) | O31: DMNC Summer (MW) | P31: DMNC Winter (MW) | Q31: DMNC ICAP (MW) | R31: Winter-Summer Ratio | S31: Escalation Factor (%) | T31: ATWACC (Real, %) | U31: Levelized Fixed Charge (%) | V31: Levelized Fixed Charge ($/kW-Year) | W31: Net EAS ($/kW-Year) | X31: Zero Crossing Point (Margin Over 100%) | Y31: Fixed Property Tax Rate (%) | Z31: Fixed O&M + Site Lease ($/kW-Year) | AA31: Peak Load | AB31: IRM | AC31: Capacity at LOE Conditions | AD31: CC Plant | AE31: Gross CONE ($/kW-Year) | AF31: Insurance ($/kW-Year) | AH31: Annual Reference Value ($/kW-Year) | AI31: Monthly Reference Point Price ($/kW-Month) | AJ31: Maximum Clearing Price ($/kW-Month) | AK31: Level of Excess Clearing Price (Summer) | AL31: Level of Excess Clearing Price (Winter)
A32: Demand Curve
A33: =C33&" "&D33&" "&E33&F33&G33&H33&L33&K33 -> F - Capital 1x0 GE 7HA.02 15ppm 0.130.0770.5517Gas only without SCRGas only without SCR | B33: 2021-2022 | C33: F - Capital | D33: 1x0 GE 7HA.02 15ppm | E33: 0.13 | F33: 0.077 | G33: 0.55 | H33: 17 | I33: FALSE | J33: 0.006 | K33: Gas only without SCR | L33: Gas only without SCR | N33: 869.0628 | O33: 333.2 | P33: 346.6 | Q33: 328.5 | R33: 1.04 | S33: 0.03874871751 | T33: 0.06680093046 | U33: 0.1276627662 | V33: 110.947 | W33: 36.4637 | X33: 0.12 | Y33: 0.009 | Z33: 8.963 | AA33: 32296 | AB33: 1.189 | AC33: 1.0085547 | AD33: FALSE | AE33: 123.4028 | AF33: 3.4929 | AH33: 86.9392 | AI33: 9.2281 | AJ33: 15.4254 | AK33: 8.5703 | AL33: 5.4942
A34: J - New York City 1x0 GE 7HA.02 25ppm 0.130.0770.5517Dual fuel with SCRDual with SCR | B34: 2021-2022 | C34: J - New York City | D34: 1x0 GE 7HA.02 25ppm | E34: 0.13 | F34: 0.077 | G34: 0.55 | H34: 17 | I34: TRUE | J34: 0.006 | K34: Dual with SCR | L34: Dual fuel with SCR | N34: 1371.1158 | O34: 354.5 | P34: 374.3 | Q34: 348.8 | R34: 1.078 | S34: 0.03874871751 | T34: 0.06313004407 | U34: 0.1270905168 | V34: 174.2558 | W34: 42.6222 | X34: 0.18 | Y34: 0.0474165 | Z34: 21.6254 | AA34: 11477 | AB34: 0.866 | AC34: 1.035093784 | AD34: FALSE | AE34: 201.2607 | AF34: 5.3794 | AH34: 158.6384 | AI34: 21.7242 | AJ34: 25.1576 | AK34: 17.4887 | AL34: 8.0749
A35: K - Long Island 1x0 GE 7HA.02 25ppm 0.130.0770.5517Dual fuel with SCRDual with SCR | B35: 2021-2022 | C35: K - Long Island | D35: 1x0 GE 7HA.02 25ppm | E35: 0.13 | F35: 0.077 | G35: 0.55 | H35: 17 | I35: FALSE | J35: 0.006 | K35: Dual with SCR | L35: Dual fuel with SCR | N35: 1189.9919 | O35: 352.6 | P35: 373.3 | Q35: 348.8 | R35: 1.076 | S35: 0.03874871751 | T35: 0.06680093046 | U35: 0.1276627662 | V35: 151.9177 | W35: 59.8702 | X35: 0.18 | Y35: 0.009 | Z35: 10.1117 | AA35: 5227 | AB35: 1.034 | AC35: 1.064536207 | AD35: FALSE | AE35: 167.3551 | AF35: 5.3258 | AH35: 107.485 | AI35: 20.2856 | AJ35: 20.9194 | AK35: 13.0125 | AL35: 4.4475
A36: C - Central 1x0 GE 7HA.02 15ppm 0.130.0770.5517Gas only without SCRGas only without SCR | B36: 2021-2022 | C36: C - Central | D36: 1x0 GE 7HA.02 15ppm | E36: 0.13 | F36: 0.077 | G36: 0.55 | H36: 17 | I36: FALSE | J36: 0.006 | K36: Gas only without SCR | L36: Gas only without SCR | N36: 862.831 | O36: 332 | P36: 344.8 | Q36: 326.7 | R36: 1.04 | S36: 0.03874871751 | T36: 0.06680093046 | U36: 0.1276627662 | V36: 110.1514 | W36: 45.5802 | X36: 0.12 | Y36: 0.009 | Z36: 8.6939 | AA36: 32296 | AB36: 1.189 | AC36: 1.008507825 | AD36: FALSE | AE36: 122.2988 | AF36: 3.4535 | AH36: 76.7187 | AI36: 8.129 | AJ36: 15.2874 | AK36: 7.5526 | AL36: 4.843
A37: G - Hudson Valley (Rockland) 1x0 GE 7HA.02 25ppm 0.130.0770.5517Dual fuel with SCRDual with SCR | B37: 2021-2022 | C37: G - Hudson Valley (Rockland) | D37: 1x0 GE 7HA.02 25ppm | E37: 0.13 | F37: 0.077 | G37: 0.55 | H37: 17 | I37: FALSE | J37: 0.006 | K37: Dual with SCR | L37: Dual fuel with SCR | N37: 1120.5804 | O37: 350.2 | P37: 370.5 | Q37: 347 | R37: 1.058 | S37: 0.03874871751 | T37: 0.06680093046 | U37: 0.1276627662 | V37: 143.0564 | W37: 55.9581 | X37: 0.15 | Y37: 0.009 | Z37: 9.3846 | AA37: 15695 | AB37: 0.9 | AC37: 1.024565502 | AD37: FALSE | AE37: 157.2409 | AF37: 4.7998 | AH37: 101.2828 | AI37: 12.7501 | AJ37: 19.6551 | AK37: 10.662 | AL37: 5.732
A38: G - Hudson Valley (Dutchess) 1x0 GE 7HA.02 15ppm 0.130.0770.5517Dual fuel without SCRDual without SCR | B38: 2021-2022 | C38: G - Hudson Valley (Dutchess) | D38: 1x0 GE 7HA.02 15ppm | E38: 0.13 | F38: 0.077 | G38: 0.55 | H38: 17 | I38: FALSE | J38: 0.006 | K38: Dual without SCR | L38: Dual fuel without SCR | N38: 986.3049 | O38: 334.9 | P38: 348.6 | Q38: 329.9 | R38: 1.058 | S38: 0.03874871751 | T38: 0.06680093046 | U38: 0.1276627662 | V38: 125.9144 | W38: 35.3784 | X38: 0.15 | Y38: 0.009 | Z38: 9.8711 | AA38: 15695 | AB38: 0.9 | AC38: 1.023354925 | AD38: FALSE | AE38: 139.817 | AF38: 4.0315 | AH38: 104.4387 | AI38: 12.9834 | AJ38: 17.4771 | AK38: 10.9619 | AL38: 5.9416
A39: Dual Fuel with SCR
A40: SGT-A65 WLE
A41: =C41&" "&D41&" "&E41&F41&G41&H41&L41&K41 -> F - Capital SGT-A65 WLE 0.130.0770.5517Dual fuel with SCRDual with SCR | B41: 2021-2022 | C41: F - Capital | D41: SGT-A65 WLE | E41: 0.13 | F41: 0.077 | G41: 0.55 | H41: 17 | I41: FALSE | J41: 0.006 | K41: Dual with SCR | L41: Dual fuel with SCR | N41: 2129.1349 | O41: 163.1 | P41: 188.2 | Q41: 158.6 | R41: 1.04 | S41: 0.03746801977 | T41: 0.06680093046 | U41: 0.1276627662 | V41: 271.8112 | W41: 36.1143 | X41: 0.12 | Y41: 0.009 | Z41: 16.0177 | AA41: 32296 | AB41: 1.189 | AC41: 1.004130214 | AD41: FALSE | AE41: 296.8056 | AF41: 8.9766 | AH41: 260.6912 | AI41: 24.9242 | AJ41: 37.1007 | AK41: 24.0664 | AL41: 15.7583
A42: J - New York City SGT-A65 WLE 0.130.0770.5517Dual fuel with SCRDual with SCR | B42: 2021-2022 | C42: J - New York City | D42: SGT-A65 WLE | E42: 0.13 | F42: 0.077 | G42: 0.55 | H42: 17 | I42: TRUE | J42: 0.006 | K42: Dual with SCR | L42: Dual fuel with SCR | N42: 2666.1851 | O42: 164.2 | P42: 188.2 | Q42: 158.7 | R42: 1.078 | S42: 0.03746801977 | T42: 0.06313004407 | U42: 0.1270905168 | V42: 338.8468 | W42: 33.0357 | X42: 0.18 | Y42: 0.0474165 | Z42: 45.1243 | AA42: 11477 | AB42: 0.866 | AC42: 1.015967269 | AD42: FALSE | AE42: 394.2307 | AF42: 10.2595 | AH42: 361.1949 | AI42: 39.8754 | AJ42: 49.2788 | AK42: 36.3382 | AL42: 19.0588
A43: K - Long Island SGT-A65 WLE 0.130.0770.5517Dual fuel with SCRDual with SCR | B43: 2021-2022 | C43: K - Long Island | D43: SGT-A65 WLE | E43: 0.13 | F43: 0.077 | G43: 0.55 | H43: 17 | I43: FALSE | J43: 0.006 | K43: Dual with SCR | L43: Dual fuel with SCR | N43: 2276.6785 | O43: 162.3 | P43: 188.2 | Q43: 158.7 | R43: 1.076 | S43: 0.03746801977 | T43: 0.06680093046 | U43: 0.1276627662 | V43: 290.6471 | W43: 49.4049 | X43: 0.18 | Y43: 0.009 | Z43: 19.6966 | AA43: 5227 | AB43: 1.034 | AC43: 1.029363234 | AD43: FALSE | AE43: 320.4846 | AF43: 10.1409 | AH43: 271.0797 | AI43: 33.5267 | AJ43: 40.0606 | AK43: 28.0575 | AL43: 13.9018
A44: C - Central SGT-A65 WLE 0.130.0770.5517Dual fuel with SCRDual with SCR | B44: 2021-2022 | C44: C - Central | D44: SGT-A65 WLE | E44: 0.13 | F44: 0.077 | G44: 0.55 | H44: 17 | I44: FALSE | J44: 0.006 | K44: Dual with SCR | L44: Dual fuel with SCR | N44: 2111.6433 | O44: 163.6 | P44: 188.2 | Q44: 158.6 | R44: 1.04 | S44: 0.03746801977 | T44: 0.06680093046 | U44: 0.1276627662 | V44: 269.5782 | W44: 43.9022 | X44: 0.12 | Y44: 0.009 | Z44: 15.3585 | AA44: 32296 | AB44: 1.189 | AC44: 1.004130214 | AD44: FALSE | AE44: 293.8205 | AF44: 8.8837 | AH44: 249.9182 | AI44: 23.8526 | AJ44: 36.7276 | AK44: 23.0316 | AL44: 15.0808
A45: G - Hudson Valley (Rockland) SGT-A65 WLE 0.130.0770.5517Dual fuel with SCRDual with SCR | B45: 2021-2022 | C45: G - Hudson Valley (Rockland) | D45: SGT-A65 WLE | E45: 0.13 | F45: 0.077 | G45: 0.55 | H45: 17 | I45: FALSE | J45: 0.006 | K45: Dual with SCR | L45: Dual fuel with SCR | N45: 2232.9771 | O45: 163.9 | P45: 188.2 | Q45: 158.7 | R45: 1.058 | S45: 0.03746801977 | T45: 0.06680093046 | U45: 0.1276627662 | V45: 285.068 | W45: 45.4643 | X45: 0.15 | Y45: 0.009 | Z45: 17.9839 | AA45: 15695 | AB45: 0.9 | AC45: 1.011235001 | AD45: FALSE | AE45: 312.5047 | AF45: 9.4528 | AH45: 267.0404 | AI45: 27.9226 | AJ45: 39.0631 | AK45: 25.8312 | AL45: 15.0345
A46: G - Hudson Valley (Dutchess) SGT-A65 WLE 0.130.0770.5517Dual fuel with SCRDual with SCR | B46: 2021-2022 | C46: G - Hudson Valley (Dutchess) | D46: SGT-A65 WLE | E46: 0.13 | F46: 0.077 | G46: 0.55 | H46: 17 | I46: FALSE | J46: 0.006 | K46: Dual with SCR | L46: Dual fuel with SCR | N46: 2156.4811 | O46: 163.5 | P46: 188.2 | Q46: 158.7 | R46: 1.058 | S46: 0.03746801977 | T46: 0.06680093046 | U46: 0.1276627662 | V46: 275.3023 | W46: 34.6702 | X46: 0.15 | Y46: 0.009 | Z46: 17.9839 | AA46: 15695 | AB46: 0.9 | AC46: 1.011235001 | AD46: FALSE | AE46: 302.4097 | AF46: 9.1235 | AH46: 267.7396 | AI46: 28.0367 | AJ46: 37.8012 | AK46: 25.9368 | AL46: 15.0959
A47: GE 7F.05
A48: =C48&" "&D48&" "&E48&F48&G48&H48&L48&K48 -> F - Capital GE 7F.05 0.130.0770.5517Dual fuel with SCRDual with SCR | B48: 2021-2022 | C48: F - Capital | D48: GE 7F.05 | E48: 0.13 | F48: 0.077 | G48: 0.55 | H48: 17 | I48: FALSE | J48: 0.006 | K48: Dual with SCR | L48: Dual fuel with SCR | N48: 1352.2979 | O48: 211.9 | P48: 227.1 | Q48: 208.2 | R48: 1.04 | S48: 0.03594771368 | T48: 0.06680093046 | U48: 0.1276627662 | V48: 172.6381 | W48: 34.0803 | X48: 0.12 | Y48: 0.009 | Z48: 12.1527 | AA48: 32296 | AB48: 1.189 | AC48: 1.005421883 | AD48: FALSE | AE48: 190.309 | AF48: 5.5182 | AH48: 156.2287 | AI48: 15.7837 | AJ48: 23.7886 | AK48: 15.0705 | AL48: 9.8093
A49: =C49&" "&D49&" "&E49&F49&G49&H49&L49&K49 -> J - New York City GE 7F.05 0.130.0770.5517Dual fuel with SCRDual with SCR | B49: 2021-2022 | C49: J - New York City | D49: GE 7F.05 | E49: 0.13 | F49: 0.077 | G49: 0.55 | H49: 17 | I49: TRUE | J49: 0.006 | K49: Dual with SCR | L49: Dual fuel with SCR | N49: 1815.0243 | O49: 214.7 | P49: 229.2 | Q49: 210.2 | R49: 1.078 | S49: 0.03594771368 | T49: 0.06313004407 | U49: 0.1270905168 | V49: 230.6724 | W49: 35.7349 | X49: 0.18 | Y49: 0.0474165 | Z49: 33.9316 | AA49: 11477 | AB49: 0.866 | AC49: 1.021148834 | AD49: FALSE | AE49: 271.3335 | AF49: 6.7295 | AH49: 235.5986 | AI49: 28.2254 | AJ49: 33.9167 | AK49: 24.9091 | AL49: 12.6781
A50: K - Long Island GE 7F.05 0.130.0770.5517Dual fuel with SCRDual with SCR | B50: 2021-2022 | C50: K - Long Island | D50: GE 7F.05 | E50: 0.13 | F50: 0.077 | G50: 0.55 | H50: 17 | I50: FALSE | J50: 0.006 | K50: Dual with SCR | L50: Dual fuel with SCR | N50: 1514.34 | O50: 213 | P50: 229.2 | Q50: 210.2 | R50: 1.076 | S50: 0.03594771368 | T50: 0.06680093046 | U50: 0.1276627662 | V50: 193.3248 | W50: 52.2994 | X50: 0.18 | Y50: 0.009 | Z50: 14.811 | AA50: 5227 | AB50: 1.034 | AC50: 1.038891946 | AD50: FALSE | AE50: 214.7762 | AF50: 6.6403 | AH50: 162.4768 | AI50: 22.7792 | AJ50: 26.847 | AK50: 17.8573 | AL50: 8.2395
A51: C - Central GE 7F.05 0.130.0770.5517Dual fuel with SCRDual with SCR | B51: 2021-2022 | C51: C - Central | D51: GE 7F.05 | E51: 0.13 | F51: 0.077 | G51: 0.55 | H51: 17 | I51: FALSE | J51: 0.006 | K51: Dual with SCR | L51: Dual fuel with SCR | N51: 1342.8038 | O51: 211.3 | P51: 225.9 | Q51: 207.1 | R51: 1.04 | S51: 0.03594771368 | T51: 0.06680093046 | U51: 0.1276627662 | V51: 171.426 | W51: 46.0217 | X51: 0.12 | Y51: 0.009 | Z51: 11.7145 | AA51: 32296 | AB51: 1.189 | AC51: 1.005393237 | AD51: FALSE | AE51: 188.5994 | AF51: 5.4588 | AH51: 142.5776 | AI51: 14.3792 | AJ51: 23.5749 | AK51: 13.733 | AL51: 8.9399
A52: G - Hudson Valley (Rockland) GE 7F.05 0.130.0770.5517Dual fuel with SCRDual with SCR | B52: 2021-2022 | C52: G - Hudson Valley (Rockland) | D52: GE 7F.05 | E52: 0.13 | F52: 0.077 | G52: 0.55 | H52: 17 | I52: FALSE | J52: 0.006 | K52: Dual with SCR | L52: Dual fuel with SCR | N52: 1431.5147 | O52: 211.9 | P52: 228 | Q52: 209.1 | R52: 1.058 | S52: 0.03594771368 | T52: 0.06680093046 | U52: 0.1276627662 | V52: 182.7511 | W52: 50.0509 | X52: 0.15 | Y52: 0.009 | Z52: 13.5943 | AA52: 15695 | AB52: 0.9 | AC52: 1.014803016 | AD52: FALSE | AE52: 202.2862 | AF52: 5.9408 | AH52: 152.2353 | AI52: 17.207 | AJ52: 25.2858 | AK52: 15.5089 | AL52: 8.8555
A53: G - Hudson Valley (Dutchess) GE 7F.05 0.130.0770.5517Dual fuel with SCRDual with SCR | B53: 2021-2022 | C53: G - Hudson Valley (Dutchess) | D53: GE 7F.05 | E53: 0.13 | F53: 0.077 | G53: 0.55 | H53: 17 | I53: FALSE | J53: 0.006 | K53: Dual with SCR | L53: Dual fuel with SCR | N53: 1367.5236 | O53: 213.1 | P53: 228 | Q53: 209.1 | R53: 1.058 | S53: 0.03594771368 | T53: 0.06680093046 | U53: 0.1276627662 | V53: 174.5818 | W53: 33.6602 | X53: 0.15 | Y53: 0.009 | Z53: 13.5943 | AA53: 15695 | AB53: 0.9 | AC53: 1.014803016 | AD53: FALSE | AE53: 193.7826 | AF53: 5.6065 | AH53: 160.1224 | AI53: 18.0352 | AJ53: 24.2228 | AK53: 16.2554 | AL53: 9.2818
A54: 1x0 GE 7HA.02 25ppm
A55: =C55&" "&D55&" "&E55&F55&G55&H55&L55&K55 -> F - Capital 1x0 GE 7HA.02 25ppm 0.130.0770.5517Dual fuel with SCRDual with SCR | B55: 2021-2022 | C55: F - Capital | D55: 1x0 GE 7HA.02 25ppm | E55: 0.13 | F55: 0.077 | G55: 0.55 | H55: 17 | I55: FALSE | J55: 0.006 | K55: Dual with SCR | L55: Dual fuel with SCR | N55: 1075.997 | O55: 350.2 | P55: 367.9 | Q55: 345.6 | R55: 1.04 | S55: 0.03874871751 | T55: 0.06680093046 | U55: 0.1276627662 | V55: 137.3648 | W55: 37.6504 | X55: 0.12 | Y55: 0.009 | Z55: 8.5195 | AA55: 32296 | AB55: 1.189 | AC55: 1.009000013 | AD55: FALSE | AE55: 150.4476 | AF55: 4.5633 | AH55: 112.7972 | AI55: 11.996 | AJ55: 18.806 | AK55: 11.0963 | AL55: 7.0976
A56: C - Central 1x0 GE 7HA.02 25ppm 0.130.0770.5517Dual fuel with SCRDual with SCR | B56: 2021-2022 | C56: C - Central | D56: 1x0 GE 7HA.02 25ppm | E56: 0.13 | F56: 0.077 | G56: 0.55 | H56: 17 | I56: FALSE | J56: 0.006 | K56: Dual with SCR | L56: Dual fuel with SCR | N56: 1071.451 | O56: 348.9 | P56: 366 | Q56: 343.7 | R56: 1.04 | S56: 0.03874871751 | T56: 0.06680093046 | U56: 0.1276627662 | V56: 136.7844 | W56: 48.9483 | X56: 0.12 | Y56: 0.009 | Z56: 8.2639 | AA56: 32296 | AB56: 1.189 | AC56: 1.008950534 | AD56: FALSE | AE56: 149.5813 | AF56: 4.533 | AH56: 100.633 | AI56: 10.6835 | AJ56: 18.6977 | AK56: 9.8867 | AL56: 6.3255
A57: G - Hudson Valley (Dutchess) 1x0 GE 7HA.02 25ppm 0.130.0770.5517Dual fuel with SCRDual with SCR | B57: 2021-2022 | C57: G - Hudson Valley (Dutchess) | D57: 1x0 GE 7HA.02 25ppm | E57: 0.13 | F57: 0.077 | G57: 0.55 | H57: 17 | I57: FALSE | J57: 0.006 | K57: Dual with SCR | L57: Dual fuel with SCR | N57: 1084.6489 | O57: 352 | P57: 370.1 | Q57: 347 | R57: 1.058 | S57: 0.03874871751 | T57: 0.06680093046 | U57: 0.1276627662 | V57: 138.4693 | W57: 37.0406 | X57: 0.15 | Y57: 0.009 | Z57: 9.3846 | AA57: 15695 | AB57: 0.9 | AC57: 1.024565502 | AD57: FALSE | AE57: 152.4681 | AF57: 4.6142 | AH57: 115.4275 | AI57: 14.4889 | AJ57: 19.0585 | AK57: 12.116 | AL57: 6.5137
A58: Battery
A59: BESS 4h
A60: =C60&" "&D60&" "&E60&F60&G60&H60&L60&K60 -> F - Capital BESS 4h 0.130.0770.5515BatteryBattery | B60: 2021-2022 | C60: F - Capital | D60: BESS 4h | E60: 0.13 | F60: 0.077 | G60: 0.55 | H60: 15 | I60: TRUE | J60: 0.006 | K60: Battery | L60: Battery | N60: 1664.1468 | O60: 200 | P60: 200 | Q60: 200 | R60: 1.04 | S60: 0.01196932001 | T60: 0.06680093046 | U60: 0.1199899148 | V60: 199.6808 | W60: 54.6527 | X60: 0.12 | Y60: 0.009 | Z60: 6.371 | AA60: 32296 | AB60: 1.189 | AC60: 1.005208341 | AD60: FALSE | AE60: 214.1198 | AF60: 8.068 | AH60: 159.4671 | AI60: 18.6921 | AJ60: 26.765 | AK60: 17.8808 | AL60: 11.6501
A61: J - New York City BESS 4h 0.130.0770.5515BatteryBattery | B61: 2021-2022 | C61: J - New York City | D61: BESS 4h | E61: 0.13 | F61: 0.077 | G61: 0.55 | H61: 15 | I61: TRUE | J61: 0.006 | K61: Battery | L61: Battery | N61: 2089.6421 | O61: 200 | P61: 200 | Q61: 200 | R61: 1.078 | S61: 0.01196932001 | T61: 0.06313004407 | U61: 0.1225560753 | V61: 256.0983 | W61: 59.0342 | X61: 0.18 | Y61: 0.0474165 | Z61: 18.2106 | AA61: 11477 | AB61: 0.866 | AC61: 1.020122583 | AD61: FALSE | AE61: 283.2659 | AF61: 8.957 | AH61: 224.2318 | AI61: 30.9172 | AJ61: 35.4082 | AK61: 27.4609 | AL61: 14.0635
A62: K - Long Island BESS 4h 0.130.0770.5515BatteryBattery | B62: 2021-2022 | C62: K - Long Island | D62: BESS 4h | E62: 0.13 | F62: 0.077 | G62: 0.55 | H62: 15 | I62: TRUE | J62: 0.006 | K62: Battery | L62: Battery | N62: 1767.6518 | O62: 200 | P62: 200 | Q62: 200 | R62: 1.076 | S62: 0.01196932001 | T62: 0.06680093046 | U62: 0.1199899148 | V62: 212.1004 | W62: 69.3278 | X62: 0.18 | Y62: 0.009 | Z62: 6.5303 | AA62: 5227 | AB62: 1.034 | AC62: 1.037004706 | AD62: FALSE | AE62: 227.5304 | AF62: 8.8997 | AH62: 158.2026 | AI62: 25.1126 | AJ62: 28.4413 | AK62: 19.9499 | AL62: 9.3468
A63: C - Central BESS 4h 0.130.0770.5515BatteryBattery | B63: 2021-2022 | C63: C - Central | D63: BESS 4h | E63: 0.13 | F63: 0.077 | G63: 0.55 | H63: 15 | I63: TRUE | J63: 0.006 | K63: Battery | L63: Battery | N63: 1649.6038 | O63: 200 | P63: 200 | Q63: 200 | R63: 1.04 | S63: 0.01196932001 | T63: 0.06680093046 | U63: 0.1199899148 | V63: 197.9358 | W63: 51.18 | X63: 0.12 | Y63: 0.009 | Z63: 6.371 | AA63: 32296 | AB63: 1.189 | AC63: 1.005208341 | AD63: FALSE | AE63: 212.2974 | AF63: 7.9906 | AH63: 161.1174 | AI63: 18.8856 | AJ63: 26.5372 | AK63: 18.0659 | AL63: 11.7707
A64: G - Hudson Valley (Rockland) BESS 4h 0.130.0770.5515BatteryBattery | B64: 2021-2022 | C64: G - Hudson Valley (Rockland) | D64: BESS 4h | E64: 0.13 | F64: 0.077 | G64: 0.55 | H64: 15 | I64: TRUE | J64: 0.006 | K64: Battery | L64: Battery | N64: 1736.9184 | O64: 200 | P64: 200 | Q64: 200 | R64: 1.058 | S64: 0.01196932001 | T64: 0.06680093046 | U64: 0.1199899148 | V64: 208.4127 | W64: 56.9843 | X64: 0.15 | Y64: 0.009 | Z64: 6.371 | AA64: 15695 | AB64: 0.9 | AC64: 1.014158791 | AD64: FALSE | AE64: 223.2387 | AF64: 8.455 | AH64: 166.2544 | AI64: 21.6123 | AJ64: 27.9048 | AK64: 19.5723 | AL64: 11.2155
A65: G - Hudson Valley (Dutchess) BESS 4h 0.130.0770.5515BatteryBattery | B65: 2021-2022 | C65: G - Hudson Valley (Dutchess) | D65: BESS 4h | E65: 0.13 | F65: 0.077 | G65: 0.55 | H65: 15 | I65: TRUE | J65: 0.006 | K65: Battery | L65: Battery | N65: 1677.8376 | O65: 200 | P65: 200 | Q65: 200 | R65: 1.058 | S65: 0.01196932001 | T65: 0.06680093046 | U65: 0.1199899148 | V65: 201.3236 | W65: 58.473 | X65: 0.15 | Y65: 0.009 | Z65: 6.371 | AA65: 15695 | AB65: 0.9 | AC65: 1.014158791 | AD65: FALSE | AE65: 215.8355 | AF65: 8.1409 | AH65: 157.3625 | AI65: 20.4564 | AJ65: 26.9794 | AK65: 18.5255 | AL65: 10.6157
A66: BESS 6h
A67: =C67&" "&D67&" "&E67&F67&G67&H67&L67&K67 -> F - Capital BESS 6h 0.130.0770.5515BatteryBattery | B67: 2021-2022 | C67: F - Capital | D67: BESS 6h | E67: 0.13 | F67: 0.077 | G67: 0.55 | H67: 15 | I67: TRUE | J67: 0.006 | K67: Battery | L67: Battery | N67: 2321.5703 | O67: 200 | P67: 200 | Q67: 200 | R67: 1.04 | S67: 0.01111129312 | T67: 0.06680093046 | U67: 0.1199899148 | V67: 278.565 | W67: 53.1433 | X67: 0.12 | Y67: 0.009 | Z67: 7.9633 | AA67: 32296 | AB67: 1.189 | AC67: 1.005208341 | AD67: FALSE | AE67: 298.0711 | AF67: 11.5427 | AH67: 244.9277 | AI67: 25.8385 | AJ67: 37.2589 | AK67: 24.7171 | AL67: 16.1042
A68: =C68&" "&D68&" "&E68&F68&G68&H68&L68&K68 -> J - New York City BESS 6h 0.130.0770.5515BatteryBattery | B68: 2021-2022 | C68: J - New York City | D68: BESS 6h | E68: 0.13 | F68: 0.077 | G68: 0.55 | H68: 15 | I68: TRUE | J68: 0.006 | K68: Battery | L68: Battery | N68: 2819.922 | O68: 200 | P68: 200 | Q68: 200 | R68: 1.078 | S68: 0.01111129312 | T68: 0.06313004407 | U68: 0.1225560753 | V68: 345.5986 | W68: 59.4682 | X68: 0.18 | Y68: 0.0474165 | Z68: 23.7838 | AA68: 11477 | AB68: 0.866 | AC68: 1.020122583 | AD68: FALSE | AE68: 382.1996 | AF68: 12.8172 | AH68: 322.7313 | AI68: 40.0486 | AJ68: 47.7749 | AK68: 35.5715 | AL68: 18.2171
A69: K - Long Island BESS 6h 0.130.0770.5515BatteryBattery | B69: 2021-2022 | C69: K - Long Island | D69: BESS 6h | E69: 0.13 | F69: 0.077 | G69: 0.55 | H69: 15 | I69: TRUE | J69: 0.006 | K69: Battery | L69: Battery | N69: 2493.9739 | O69: 200 | P69: 200 | Q69: 200 | R69: 1.076 | S69: 0.01111129312 | T69: 0.06680093046 | U69: 0.1199899148 | V69: 299.2517 | W69: 73.9639 | X69: 0.18 | Y69: 0.009 | Z69: 8.2288 | AA69: 5227 | AB69: 1.034 | AC69: 1.037004706 | AD69: FALSE | AE69: 320.2212 | AF69: 12.7407 | AH69: 246.2573 | AI69: 35.1812 | AJ69: 40.0277 | AK69: 27.9486 | AL69: 13.0943
A70: C - Central BESS 6h 0.130.0770.5515BatteryBattery | B70: 2021-2022 | C70: C - Central | D70: BESS 6h | E70: 0.13 | F70: 0.077 | G70: 0.55 | H70: 15 | I70: TRUE | J70: 0.006 | K70: Battery | L70: Battery | N70: 2300.5524 | O70: 200 | P70: 200 | Q70: 200 | R70: 1.04 | S70: 0.01111129312 | T70: 0.06680093046 | U70: 0.1199899148 | V70: 276.0431 | W70: 51.4619 | X70: 0.12 | Y70: 0.009 | Z70: 7.9633 | AA70: 32296 | AB70: 1.189 | AC70: 1.005208341 | AD70: FALSE | AE70: 295.4373 | AF70: 11.4309 | AH70: 243.9754 | AI70: 25.7381 | AJ70: 36.9297 | AK70: 24.621 | AL70: 16.0416
A71: G - Hudson Valley (Rockland) BESS 6h 0.130.0770.5515BatteryBattery | B71: 2021-2022 | C71: G - Hudson Valley (Rockland) | D71: BESS 6h | E71: 0.13 | F71: 0.077 | G71: 0.55 | H71: 15 | I71: TRUE | J71: 0.006 | K71: Battery | L71: Battery | N71: 2426.2054 | O71: 200 | P71: 200 | Q71: 200 | R71: 1.058 | S71: 0.01111129312 | T71: 0.06680093046 | U71: 0.1199899148 | V71: 291.1202 | W71: 57.0284 | X71: 0.15 | Y71: 0.009 | Z71: 7.9633 | AA71: 15695 | AB71: 0.9 | AC71: 1.014158791 | AD71: FALSE | AE71: 311.1824 | AF71: 12.0989 | AH71: 254.154 | AI71: 29.735 | AJ71: 38.8978 | AK71: 26.9283 | AL71: 15.4307
A72: G - Hudson Valley (Dutchess) BESS 6h 0.130.0770.5515BatteryBattery | B72: 2021-2022 | C72: G - Hudson Valley (Dutchess) | D72: BESS 6h | E72: 0.13 | F72: 0.077 | G72: 0.55 | H72: 15 | I72: TRUE | J72: 0.006 | K72: Battery | L72: Battery | N72: 2340.9408 | O72: 200 | P72: 200 | Q72: 200 | R72: 1.058 | S72: 0.01111129312 | T72: 0.06680093046 | U72: 0.1199899148 | V72: 280.8893 | W72: 59.9534 | X72: 0.15 | Y72: 0.009 | Z72: 7.9633 | AA72: 15695 | AB72: 0.9 | AC72: 1.014158791 | AD72: FALSE | AE72: 300.4982 | AF72: 11.6456 | AH72: 240.5448 | AI72: 28.1428 | AJ72: 37.5623 | AK72: 25.4863 | AL72: 14.6045
A73: BESS 8h
A74: =C74&" "&D74&" "&E74&F74&G74&H74&L74&K74 -> F - Capital BESS 8h 0.130.0770.5515BatteryBattery | B74: 2021-2022 | C74: F - Capital | D74: BESS 8h | E74: 0.13 | F74: 0.077 | G74: 0.55 | H74: 15 | I74: TRUE | J74: 0.006 | K74: Battery | L74: Battery | N74: 2978.4318 | O74: 200 | P74: 200 | Q74: 200 | R74: 1.04 | S74: 0.01064772859 | T74: 0.06680093046 | U74: 0.1199899148 | V74: 357.3818 | W74: 50.9146 | X74: 0.12 | Y74: 0.009 | Z74: 9.6619 | AA74: 32296 | AB74: 1.189 | AC74: 1.005208341 | AD74: FALSE | AE74: 382.0595 | AF74: 15.0159 | AH74: 331.1449 | AI74: 34.934 | AJ74: 47.7574 | AK74: 33.4177 | AL74: 21.7731
A75: =C75&" "&D75&" "&E75&F75&G75&H75&L75&K75 -> J - New York City BESS 8h 0.130.0770.5515BatteryBattery | B75: 2021-2022 | C75: J - New York City | D75: BESS 8h | E75: 0.13 | F75: 0.077 | G75: 0.55 | H75: 15 | I75: TRUE | J75: 0.006 | K75: Battery | L75: Battery | N75: 3549.6472 | O75: 200 | P75: 200 | Q75: 200 | R75: 1.078 | S75: 0.01064772859 | T75: 0.06313004407 | U75: 0.1225560753 | V75: 435.0308 | W75: 58.1552 | X75: 0.18 | Y75: 0.0474165 | Z75: 29.4104 | AA75: 11477 | AB75: 0.866 | AC75: 1.020122583 | AD75: FALSE | AE75: 481.1163 | AF75: 16.675 | AH75: 422.961 | AI75: 52.4864 | AJ75: 60.1395 | AK75: 46.6188 | AL75: 23.8747
A76: K - Long Island BESS 8h 0.130.0770.5515BatteryBattery | B76: 2021-2022 | C76: K - Long Island | D76: BESS 8h | E76: 0.13 | F76: 0.077 | G76: 0.55 | H76: 15 | I76: TRUE | J76: 0.006 | K76: Battery | L76: Battery | N76: 3219.8464 | O76: 200 | P76: 200 | Q76: 200 | R76: 1.076 | S76: 0.01064772859 | T76: 0.06680093046 | U76: 0.1199899148 | V76: 386.3491 | W76: 74.4951 | X76: 0.18 | Y76: 0.009 | Z76: 9.9804 | AA76: 5227 | AB76: 1.034 | AC76: 1.037004706 | AD76: FALSE | AE76: 412.909 | AF76: 16.5795 | AH76: 338.4139 | AI76: 48.347 | AJ76: 51.6136 | AK76: 38.4078 | AL76: 17.9946
A77: C - Central BESS 8h 0.130.0770.5515BatteryBattery | B77: 2021-2022 | C77: C - Central | D77: BESS 8h | E77: 0.13 | F77: 0.077 | G77: 0.55 | H77: 15 | I77: TRUE | J77: 0.006 | K77: Battery | L77: Battery | N77: 2950.8253 | O77: 200 | P77: 200 | Q77: 200 | R77: 1.04 | S77: 0.01064772859 | T77: 0.06680093046 | U77: 0.1199899148 | V77: 354.0693 | W77: 49.6242 | X77: 0.12 | Y77: 0.009 | Z77: 9.6619 | AA77: 32296 | AB77: 1.189 | AC77: 1.005208341 | AD77: FALSE | AE77: 378.6002 | AF77: 14.869 | AH77: 328.976 | AI77: 34.7052 | AJ77: 47.325 | AK77: 33.1989 | AL77: 21.6305
A78: G - Hudson Valley (Rockland) BESS 8h 0.130.0770.5515BatteryBattery | B78: 2021-2022 | C78: G - Hudson Valley (Rockland) | D78: BESS 8h | E78: 0.13 | F78: 0.077 | G78: 0.55 | H78: 15 | I78: TRUE | J78: 0.006 | K78: Battery | L78: Battery | N78: 3114.8168 | O78: 200 | P78: 200 | Q78: 200 | R78: 1.058 | S78: 0.01064772859 | T78: 0.06680093046 | U78: 0.1199899148 | V78: 373.7466 | W78: 55.1242 | X78: 0.15 | Y78: 0.009 | Z78: 9.6619 | AA78: 15695 | AB78: 0.9 | AC78: 1.014158791 | AD78: FALSE | AE78: 399.1496 | AF78: 15.7411 | AH78: 344.0255 | AI78: 40.2496 | AJ78: 49.8937 | AK78: 36.4504 | AL78: 20.8872
A79: G - Hudson Valley (Dutchess) BESS 8h 0.130.0770.5515BatteryBattery | B79: 2021-2022 | C79: G - Hudson Valley (Dutchess) | D79: BESS 8h | E79: 0.13 | F79: 0.077 | G79: 0.55 | H79: 15 | I79: TRUE | J79: 0.006 | K79: Battery | L79: Battery | N79: 3003.4253 | O79: 200 | P79: 200 | Q79: 200 | R79: 1.058 | S79: 0.01064772859 | T79: 0.06680093046 | U79: 0.1199899148 | V79: 360.3807 | W79: 58.0196 | X79: 0.15 | Y79: 0.009 | Z79: 9.6619 | AA79: 15695 | AB79: 0.9 | AC79: 1.014158791 | AD79: FALSE | AE79: 385.1913 | AF79: 15.1487 | AH79: 327.1717 | AI79: 38.2778 | AJ79: 48.1489 | AK79: 34.6647 | AL79: 19.8639
A80: Dual Fuel without SCR
A81: GE 7F.05
A82: =C82&" "&D82&" "&E82&F82&G82&H82&L82&K82 -> F - Capital GE 7F.05 0.130.0770.5517Dual fuel without SCRDual without SCR | B82: 2021-2022 | C82: F - Capital | D82: GE 7F.05 | E82: 0.13 | F82: 0.077 | G82: 0.55 | H82: 17 | I82: FALSE | J82: 0.006 | K82: Dual without SCR | L82: Dual fuel without SCR | N82: 1243.7739 | O82: 211.9 | P82: 227.1 | Q82: 208.2 | R82: 1.04 | S82: 0.03594771368 | T82: 0.06680093046 | U82: 0.1276627662 | V82: 158.7836 | W82: 34.5376 | X82: 0.12 | Y82: 0.009 | Z82: 12.1527 | AA82: 32296 | AB82: 1.189 | AC82: 1.005421883 | AD82: FALSE | AE82: 175.8364 | AF82: 4.9001 | AH82: 141.2988 | AI82: 14.2753 | AJ82: 21.9795 | AK82: 13.6303 | AL82: 8.8719
A83: =C83&" "&D83&" "&E83&F83&G83&H83&L83&K83 -> C - Central GE 7F.05 0.130.0770.5517Dual fuel without SCRDual without SCR | B83: 2021-2022 | C83: C - Central | D83: GE 7F.05 | E83: 0.13 | F83: 0.077 | G83: 0.55 | H83: 17 | I83: FALSE | J83: 0.006 | K83: Dual without SCR | L83: Dual fuel without SCR | N83: 1233.7033 | O83: 211.3 | P83: 225.9 | Q83: 207.1 | R83: 1.04 | S83: 0.03594771368 | T83: 0.06680093046 | U83: 0.1276627662 | V83: 157.498 | W83: 46.3425 | X83: 0.12 | Y83: 0.009 | Z83: 11.7145 | AA83: 32296 | AB83: 1.189 | AC83: 1.005393237 | AD83: FALSE | AE83: 174.0499 | AF83: 4.8374 | AH83: 127.7074 | AI83: 12.8795 | AJ83: 21.7562 | AK83: 12.3007 | AL83: 8.0075
A84: 1x0 GE 7HA.02 15ppm
A85: =C85&" "&D85&" "&E85&F85&G85&H85&L85&K85 -> F - Capital 1x0 GE 7HA.02 15ppm 0.130.0770.5517Dual fuel without SCRDual without SCR | B85: 2021-2022 | C85: F - Capital | D85: 1x0 GE 7HA.02 15ppm | E85: 0.13 | F85: 0.077 | G85: 0.55 | H85: 17 | I85: FALSE | J85: 0.006 | K85: Dual without SCR | L85: Dual fuel without SCR | N85: 976.7455 | O85: 333.2 | P85: 346.6 | Q85: 328.5 | R85: 1.04 | S85: 0.03874871751 | T85: 0.06680093046 | U85: 0.1276627662 | V85: 124.694 | W85: 37.5093 | X85: 0.12 | Y85: 0.009 | Z85: 8.963 | AA85: 32296 | AB85: 1.189 | AC85: 1.0085547 | AD85: FALSE | AE85: 137.6326 | AF85: 3.9755 | AH85: 100.1233 | AI85: 10.6276 | AJ85: 17.2041 | AK85: 9.8699 | AL85: 6.3274
A86: C - Central 1x0 GE 7HA.02 15ppm 0.130.0770.5517Dual fuel without SCRDual without SCR | B86: 2021-2022 | C86: C - Central | D86: 1x0 GE 7HA.02 15ppm | E86: 0.13 | F86: 0.077 | G86: 0.55 | H86: 17 | I86: FALSE | J86: 0.006 | K86: Dual without SCR | L86: Dual fuel without SCR | N86: 971.107 | O86: 332 | P86: 344.8 | Q86: 326.7 | R86: 1.04 | S86: 0.03874871751 | T86: 0.06680093046 | U86: 0.1276627662 | V86: 123.9742 | W86: 45.5802 | X86: 0.12 | Y86: 0.009 | Z86: 8.6939 | AA86: 32296 | AB86: 1.189 | AC86: 1.008507825 | AD86: FALSE | AE86: 136.607 | AF86: 3.9389 | AH86: 91.0268 | AI86: 9.645 | AJ86: 17.0759 | AK86: 8.9612 | AL86: 5.7462
A87: G - Hudson Valley (Dutchess) 1x0 GE 7HA.02 15ppm 0.130.0770.5517Dual fuel without SCRDual without SCR | B87: 2021-2022 | C87: G - Hudson Valley (Dutchess) | D87: 1x0 GE 7HA.02 15ppm | E87: 0.13 | F87: 0.077 | G87: 0.55 | H87: 17 | I87: FALSE | J87: 0.006 | K87: Dual without SCR | L87: Dual fuel without SCR | N87: 986.3049 | O87: 334.9 | P87: 348.6 | Q87: 329.9 | R87: 1.058 | S87: 0.03874871751 | T87: 0.06680093046 | U87: 0.1276627662 | V87: 125.9144 | W87: 35.3784 | X87: 0.15 | Y87: 0.009 | Z87: 9.8711 | AA87: 15695 | AB87: 0.9 | AC87: 1.023354925 | AD87: FALSE | AE87: 139.817 | AF87: 4.0315 | AH87: 104.4387 | AI87: 12.9834 | AJ87: 17.4771 | AK87: 10.9619 | AL87: 5.9416
A88: Gas only with SCR
A89: SGT-A65 WLE
A90: =C90&" "&D90&" "&E90&F90&G90&H90&L90&K90 -> F - Capital SGT-A65 WLE 0.130.0770.5517Gas only with SCRGas only with SCR | B90: 2021-2022 | C90: F - Capital | D90: SGT-A65 WLE | E90: 0.13 | F90: 0.077 | G90: 0.55 | H90: 17 | I90: FALSE | J90: 0.006 | K90: Gas only with SCR | L90: Gas only with SCR | N90: 2023.0093 | O90: 163.1 | P90: 188.2 | Q90: 158.6 | R90: 1.04 | S90: 0.03746801977 | T90: 0.06680093046 | U90: 0.1276627662 | V90: 258.263 | W90: 34.2322 | X90: 0.12 | Y90: 0.009 | Z90: 16.0177 | AA90: 32296 | AB90: 1.189 | AC90: 1.004130214 | AD90: FALSE | AE90: 282.8104 | AF90: 8.5297 | AH90: 248.5782 | AI90: 23.7661 | AJ90: 35.3513 | AK90: 22.9481 | AL90: 15.0261
A91: C - Central SGT-A65 WLE 0.130.0770.5517Gas only with SCRGas only with SCR | B91: 2021-2022 | C91: C - Central | D91: SGT-A65 WLE | E91: 0.13 | F91: 0.077 | G91: 0.55 | H91: 17 | I91: FALSE | J91: 0.006 | K91: Gas only with SCR | L91: Gas only with SCR | N91: 2005.5178 | O91: 163.6 | P91: 188.2 | Q91: 158.6 | R91: 1.04 | S91: 0.03746801977 | T91: 0.06680093046 | U91: 0.1276627662 | V91: 256.0299 | W91: 43.9022 | X91: 0.12 | Y91: 0.009 | Z91: 15.3585 | AA91: 32296 | AB91: 1.189 | AC91: 1.004130214 | AD91: FALSE | AE91: 279.8253 | AF91: 8.4368 | AH91: 235.923 | AI91: 22.5169 | AJ91: 34.9782 | AK91: 21.7419 | AL91: 14.2362
A92: GE 7F.05
A93: =C93&" "&D93&" "&E93&F93&G93&H93&L93&K93 -> F - Capital GE 7F.05 0.130.0770.5517Gas only with SCRGas only with SCR | B93: 2021-2022 | C93: F - Capital | D93: GE 7F.05 | E93: 0.13 | F93: 0.077 | G93: 0.55 | H93: 17 | I93: FALSE | J93: 0.006 | K93: Gas only with SCR | L93: Gas only with SCR | N93: 1238.7728 | O93: 211.9 | P93: 227.1 | Q93: 208.2 | R93: 1.04 | S93: 0.03594771368 | T93: 0.06680093046 | U93: 0.1276627662 | V93: 158.1452 | W93: 32.6023 | X93: 0.12 | Y93: 0.009 | Z93: 12.1527 | AA93: 32296 | AB93: 1.189 | AC93: 1.005421883 | AD93: FALSE | AE93: 175.309 | AF93: 5.0111 | AH93: 142.7066 | AI93: 14.4175 | AJ93: 21.9136 | AK93: 13.7661 | AL93: 8.9603
A94: C - Central GE 7F.05 0.130.0770.5517Gas only with SCRGas only with SCR | B94: 2021-2022 | C94: C - Central | D94: GE 7F.05 | E94: 0.13 | F94: 0.077 | G94: 0.55 | H94: 17 | I94: FALSE | J94: 0.006 | K94: Gas only with SCR | L94: Gas only with SCR | N94: 1228.6756 | O94: 211.3 | P94: 225.9 | Q94: 207.1 | R94: 1.04 | S94: 0.03594771368 | T94: 0.06680093046 | U94: 0.1276627662 | V94: 156.8561 | W94: 46.0217 | X94: 0.12 | Y94: 0.009 | Z94: 11.7145 | AA94: 32296 | AB94: 1.189 | AC94: 1.005393237 | AD94: FALSE | AE94: 173.5196 | AF94: 4.949 | AH94: 127.4979 | AI94: 12.8584 | AJ94: 21.69 | AK94: 12.2805 | AL94: 7.9944
A95: G - Hudson Valley (Rockland) GE 7F.05 0.130.0770.5517Gas only with SCRGas only with SCR | B95: 2021-2022 | C95: G - Hudson Valley (Rockland) | D95: GE 7F.05 | E95: 0.13 | F95: 0.077 | G95: 0.55 | H95: 17 | I95: FALSE | J95: 0.006 | K95: Gas only with SCR | L95: Gas only with SCR | N95: 1318.4782 | O95: 211.9 | P95: 228 | Q95: 209.1 | R95: 1.058 | S95: 0.03594771368 | T95: 0.06680093046 | U95: 0.1276627662 | V95: 168.3206 | W95: 48.501 | X95: 0.15 | Y95: 0.009 | Z95: 13.5943 | AA95: 15695 | AB95: 0.9 | AC95: 1.014803016 | AD95: FALSE | AE95: 187.3507 | AF95: 5.4359 | AH95: 138.8497 | AI95: 15.6941 | AJ95: 23.4188 | AK95: 14.1453 | AL95: 8.0769
A96: G - Hudson Valley (Dutchess) GE 7F.05 0.130.0770.5517Gas only with SCRGas only with SCR | B96: 2021-2022 | C96: G - Hudson Valley (Dutchess) | D96: GE 7F.05 | E96: 0.13 | F96: 0.077 | G96: 0.55 | H96: 17 | I96: FALSE | J96: 0.006 | K96: Gas only with SCR | L96: Gas only with SCR | N96: 1254.4871 | O96: 213.1 | P96: 228 | Q96: 209.1 | R96: 1.058 | S96: 0.03594771368 | T96: 0.06680093046 | U96: 0.1276627662 | V96: 160.1513 | W96: 32.1739 | X96: 0.15 | Y96: 0.009 | Z96: 13.5943 | AA96: 15695 | AB96: 0.9 | AC96: 1.014803016 | AD96: FALSE | AE96: 178.8471 | AF96: 5.1016 | AH96: 146.6732 | AI96: 16.5204 | AJ96: 22.3559 | AK96: 14.89 | AL96: 8.5022
A97: 1x0 GE 7HA.02 25ppm
A98: =C98&" "&D98&" "&E98&F98&G98&H98&L98&K98 -> F - Capital 1x0 GE 7HA.02 25ppm 0.130.0770.5517Gas only with SCRGas only with SCR | B98: 2021-2022 | C98: F - Capital | D98: 1x0 GE 7HA.02 25ppm | E98: 0.13 | F98: 0.077 | G98: 0.55 | H98: 17 | I98: FALSE | J98: 0.006 | K98: Gas only with SCR | L98: Gas only with SCR | N98: 973.6423 | O98: 350.2 | P98: 367.9 | Q98: 345.6 | R98: 1.04 | S98: 0.03874871751 | T98: 0.06680093046 | U98: 0.1276627662 | V98: 124.2979 | W98: 35.9829 | X98: 0.12 | Y98: 0.009 | Z98: 8.5195 | AA98: 32296 | AB98: 1.189 | AC98: 1.009000013 | AD98: FALSE | AE98: 136.9219 | AF98: 4.1045 | AH98: 100.939 | AI98: 10.7348 | AJ98: 17.1152 | AK98: 9.9297 | AL98: 6.3514
A99: C - Central 1x0 GE 7HA.02 25ppm 0.130.0770.5517Gas only with SCRGas only with SCR | B99: 2021-2022 | C99: C - Central | D99: 1x0 GE 7HA.02 25ppm | E99: 0.13 | F99: 0.077 | G99: 0.55 | H99: 17 | I99: FALSE | J99: 0.006 | K99: Gas only with SCR | L99: Gas only with SCR | N99: 968.5305 | O99: 348.9 | P99: 366 | Q99: 343.7 | R99: 1.04 | S99: 0.03874871751 | T99: 0.06680093046 | U99: 0.1276627662 | V99: 123.6453 | W99: 48.9483 | X99: 0.12 | Y99: 0.009 | Z99: 8.2639 | AA99: 32296 | AB99: 1.189 | AC99: 1.008950534 | AD99: FALSE | AE99: 135.9808 | AF99: 4.0717 | AH99: 87.0326 | AI99: 9.2397 | AJ99: 16.9976 | AK99: 8.5505 | AL99: 5.4706
A100: G - Hudson Valley (Rockland) 1x0 GE 7HA.02 25ppm 0.130.0770.5517Gas only with SCRGas only with SCR | B100: 2021-2022 | C100: G - Hudson Valley (Rockland) | D100: 1x0 GE 7HA.02 25ppm | E100: 0.13 | F100: 0.077 | G100: 0.55 | H100: 17 | I100: FALSE | J100: 0.006 | K100: Gas only with SCR | L100: Gas only with SCR | N100: 1018.6386 | O100: 350.2 | P100: 370.5 | Q100: 347 | R100: 1.058 | S100: 0.03874871751 | T100: 0.06680093046 | U100: 0.1276627662 | V100: 130.0422 | W100: 54.4574 | X100: 0.15 | Y100: 0.009 | Z100: 9.3846 | AA100: 15695 | AB100: 0.9 | AC100: 1.024565502 | AD100: FALSE | AE100: 143.7698 | AF100: 4.3429 | AH100: 89.3124 | AI100: 11.2432 | AJ100: 17.9712 | AK100: 9.4019 | AL100: 5.0545
A101: G - Hudson Valley (Dutchess) 1x0 GE 7HA.02 25ppm 0.130.0770.5517Gas only with SCRGas only with SCR | B101: 2021-2022 | C101: G - Hudson Valley (Dutchess) | D101: 1x0 GE 7HA.02 25ppm | E101: 0.13 | F101: 0.077 | G101: 0.55 | H101: 17 | I101: FALSE | J101: 0.006 | K101: Gas only with SCR | L101: Gas only with SCR | N101: 982.7072 | O101: 352 | P101: 370.1 | Q101: 347 | R101: 1.058 | S101: 0.03874871751 | T101: 0.06680093046 | U101: 0.1276627662 | V101: 125.4551 | W101: 35.4318 | X101: 0.15 | Y101: 0.009 | Z101: 9.3846 | AA101: 15695 | AB101: 0.9 | AC101: 1.024565502 | AD101: FALSE | AE101: 138.997 | AF101: 4.1572 | AH101: 103.5652 | AI101: 12.9999 | AJ101: 17.3746 | AK101: 10.8709 | AL101: 5.8443
A102: Gas only without SCR
A103: GE 7F.05
A104: =C104&" "&D104&" "&E104&F104&G104&H104&L104&K104 -> F - Capital GE 7F.05 0.130.0770.5517Gas only without SCRGas only without SCR | B104: 2021-2022 | C104: F - Capital | D104: GE 7F.05 | E104: 0.13 | F104: 0.077 | G104: 0.55 | H104: 17 | I104: FALSE | J104: 0.006 | K104: Gas only without SCR | L104: Gas only without SCR | N104: 1130.2487 | O104: 211.9 | P104: 227.1 | Q104: 208.2 | R104: 1.04 | S104: 0.03594771368 | T104: 0.06680093046 | U104: 0.1276627662 | V104: 144.2907 | W104: 33.0199 | X104: 0.12 | Y104: 0.009 | Z104: 12.1527 | AA104: 32296 | AB104: 1.189 | AC104: 1.005421883 | AD104: FALSE | AE104: 160.8363 | AF104: 4.393 | AH104: 127.8164 | AI104: 12.9132 | AJ104: 20.1045 | AK104: 12.3297 | AL104: 8.0253
A105: =C105&" "&D105&" "&E105&F105&G105&H105&L105&K105 -> C - Central GE 7F.05 0.130.0770.5517Gas only without SCRGas only without SCR | B105: 2021-2022 | C105: C - Central | D105: GE 7F.05 | E105: 0.13 | F105: 0.077 | G105: 0.55 | H105: 17 | I105: FALSE | J105: 0.006 | K105: Gas only without SCR | L105: Gas only without SCR | N105: 1119.5752 | O105: 211.3 | P105: 225.9 | Q105: 207.1 | R105: 1.04 | S105: 0.03594771368 | T105: 0.06680093046 | U105: 0.1276627662 | V105: 142.9281 | W105: 46.3425 | X105: 0.12 | Y105: 0.009 | Z105: 11.7145 | AA105: 32296 | AB105: 1.189 | AC105: 1.005393237 | AD105: FALSE | AE105: 158.9702 | AF105: 4.3276 | AH105: 112.6277 | AI105: 11.3587 | AJ105: 19.8713 | AK105: 10.8482 | AL105: 7.062
A106: G - Hudson Valley (Dutchess) GE 7F.05 0.130.0770.5517Gas only without SCRGas only without SCR | B106: 2021-2022 | C106: G - Hudson Valley (Dutchess) | D106: GE 7F.05 | E106: 0.13 | F106: 0.077 | G106: 0.55 | H106: 17 | I106: FALSE | J106: 0.006 | K106: Gas only without SCR | L106: Gas only without SCR | N106: 1146.4302 | O106: 213.1 | P106: 228 | Q106: 209.1 | R106: 1.058 | S106: 0.03594771368 | T106: 0.06680093046 | U106: 0.1276627662 | V106: 146.3564 | W106: 32.6092 | X106: 0.15 | Y106: 0.009 | Z106: 13.5943 | AA106: 15695 | AB106: 0.9 | AC106: 1.014803016 | AD106: FALSE | AE106: 164.4368 | AF106: 4.4861 | AH106: 131.8276 | AI106: 14.8483 | AJ106: 20.5546 | AK106: 13.3829 | AL106: 7.6416
A107: 1x0 GE 7HA.02 15ppm
A108: =C108&" "&D108&" "&E108&F108&G108&H108&L108&K108 -> G - Hudson Valley (Dutchess) 1x0 GE 7HA.02 15ppm 0.130.0770.5517Gas only without SCRGas only without SCR | B108: 2021-2022 | C108: G - Hudson Valley (Dutchess) | D108: 1x0 GE 7HA.02 15ppm | E108: 0.13 | F108: 0.077 | G108: 0.55 | H108: 17 | I108: FALSE | J108: 0.006 | K108: Gas only without SCR | L108: Gas only without SCR | N108: 879.0791 | O108: 334.9 | P108: 348.6 | Q108: 329.9 | R108: 1.058 | S108: 0.03874871751 | T108: 0.06680093046 | U108: 0.1276627662 | V108: 112.2257 | W108: 34.5733 | X108: 0.15 | Y108: 0.009 | Z108: 9.8711 | AA108: 15695 | AB108: 0.9 | AC108: 1.023354925 | AD108: FALSE | AE108: 125.6477 | AF108: 3.5509 | AH108: 91.0744 | AI108: 11.322 | AJ108: 15.706 | AK108: 9.5592 | AL108: 5.1813
A109: CC dual fuel
A110: 8000J CC
A111: =C111&" "&D111&" "&E111&F111&G111&H111&L111&K111 -> F - Capital 8000J CC 0.130.0770.5517CC dual fuelDual with SCR | B111: 2021-2022 | C111: F - Capital | D111: 8000J CC | E111: 0.13 | F111: 0.077 | G111: 0.55 | H111: 17 | I111: FALSE | J111: 0.006 | K111: Dual with SCR | L111: CC dual fuel | N111: 1498.196 | O111: 488.3 | P111: 532.5 | Q111: 498.5 | R111: 1.04 | S111: 0.03543301652 | T111: 0.06680093046 | U111: 0.1320511449 | V111: 197.8385 | W111: 74.6878 | X111: 0.12 | Y111: 0.009 | Z111: 12.4168 | AA111: 32296 | AB111: 1.189 | AC111: 1.01298179 | AD111: TRUE | AE111: 217.1446 | AF111: 6.8894 | AH111: 142.4569 | AI111: 16.15 | AJ111: 27.1431 | AK111: 14.4028 | AL111: 9.0195
A112: =C112&" "&D112&" "&E112&F112&G112&H112&L112&K112 -> J - New York City 8000J CC 0.130.0770.5517CC dual fuelDual with SCR | B112: 2021-2022 | C112: J - New York City | D112: 8000J CC | E112: 0.13 | F112: 0.077 | G112: 0.55 | H112: 17 | I112: FALSE | J112: 0.006 | K112: Dual with SCR | L112: CC dual fuel | N112: 1631.0693 | O112: 484.7 | P112: 544.9 | Q112: 502.2 | R112: 1.078 | S112: 0.03543301652 | T112: 0.06313004407 | U112: 0.1776793224 | V112: 289.8073 | W112: 104.7102 | X112: 0.18 | Y112: 0.0474165 | Z112: 32.3183 | AA112: 11477 | AB112: 0.866 | AC112: 1.050527805 | AD112: TRUE | AE112: 330.747 | AF112: 8.6214 | AH112: 226.0368 | AI112: 37.5042 | AJ112: 41.3434 | AK112: 26.9764 | AL112: 10.7246
A113: K - Long Island 8000J CC 0.130.0770.5517CC dual fuelDual with SCR | B113: 2021-2022 | C113: K - Long Island | D113: 8000J CC | E113: 0.13 | F113: 0.077 | G113: 0.55 | H113: 17 | I113: FALSE | J113: 0.006 | K113: Dual with SCR | L113: CC dual fuel | N113: 1813.886 | O113: 501.6 | P113: 542.6 | Q113: 502.5 | R113: 1.076 | S113: 0.03543301652 | T113: 0.06680093046 | U113: 0.1320511449 | V113: 239.5257 | W113: 136.8074 | X113: 0.18 | Y113: 0.009 | Z113: 15.8238 | AA113: 5227 | AB113: 1.034 | AC113: 1.092974324 | AD113: TRUE | AE113: 263.8912 | AF113: 8.5417 | AH113: 127.0838 | AI113: 38.5978 | AJ113: 32.9864 | AK113: 18.6611 | AL113: 2.3643
A114: C - Central 8000J CC 0.130.0770.5517CC dual fuelDual with SCR | B114: 2021-2022 | C114: C - Central | D114: 8000J CC | E114: 0.13 | F114: 0.077 | G114: 0.55 | H114: 17 | I114: FALSE | J114: 0.006 | K114: Dual with SCR | L114: CC dual fuel | N114: 1478.7043 | O114: 486 | P114: 530 | Q114: 495.1 | R114: 1.04 | S114: 0.03543301652 | T114: 0.06680093046 | U114: 0.1320511449 | V114: 195.2646 | W114: 80.2459 | X114: 0.12 | Y114: 0.009 | Z114: 11.8409 | AA114: 32296 | AB114: 1.189 | AC114: 1.012893248 | AD114: TRUE | AE114: 213.8837 | AF114: 6.7783 | AH114: 133.6378 | AI114: 15.1024 | AJ114: 26.7355 | AK114: 13.4798 | AL114: 8.4456
A115: G - Hudson Valley (Rockland) 8000J CC 0.130.0770.5517CC dual fuelDual with SCR | B115: 2021-2022 | C115: G - Hudson Valley (Rockland) | D115: 8000J CC | E115: 0.13 | F115: 0.077 | G115: 0.55 | H115: 17 | I115: FALSE | J115: 0.006 | K115: Dual with SCR | L115: CC dual fuel | N115: 1636.2825 | O115: 486.5 | P115: 536.3 | Q115: 500.6 | R115: 1.058 | S115: 0.03543301652 | T115: 0.06680093046 | U115: 0.1320511449 | V115: 216.073 | W115: 109.7985 | X115: 0.15 | Y115: 0.009 | Z115: 14.3264 | AA115: 15695 | AB115: 0.9 | AC115: 1.035439453 | AD115: TRUE | AE115: 238.0161 | AF115: 7.6167 | AH115: 128.2176 | AI115: 18.6441 | AJ115: 29.752 | AK115: 14.2392 | AL115: 7.0301
A116: G - Hudson Valley (Dutchess) 8000J CC 0.130.0770.5517CC dual fuelDual with SCR | B116: 2021-2022 | C116: G - Hudson Valley (Dutchess) | D116: 8000J CC | E116: 0.13 | F116: 0.077 | G116: 0.55 | H116: 17 | I116: FALSE | J116: 0.006 | K116: Dual with SCR | L116: CC dual fuel | N116: 1534.2987 | O116: 486.5 | P116: 536.3 | Q116: 500.6 | R116: 1.058 | S116: 0.03543301652 | T116: 0.06680093046 | U116: 0.1320511449 | V116: 202.6059 | W116: 75.3923 | X116: 0.15 | Y116: 0.009 | Z116: 14.3264 | AA116: 15695 | AB116: 0.9 | AC116: 1.035439453 | AD116: TRUE | AE116: 224.0181 | AF116: 7.0858 | AH116: 148.6258 | AI116: 21.6116 | AJ116: 28.0023 | AK116: 16.5056 | AL116: 8.1491
A117: CC gas only
A118: 8000J CC
A119: =C119&" "&D119&" "&E119&F119&G119&H119&L119&K119 -> F - Capital 8000J CC 0.130.0770.5517CC gas onlyGas only with SCR | B119: 2021-2022 | C119: F - Capital | D119: 8000J CC | E119: 0.13 | F119: 0.077 | G119: 0.55 | H119: 17 | I119: FALSE | J119: 0.006 | K119: Gas only with SCR | L119: CC gas only | N119: 1436.9778 | O119: 488.3 | P119: 532.5 | Q119: 498.5 | R119: 1.04 | S119: 0.03543301652 | T119: 0.06680093046 | U119: 0.1320511449 | V119: 189.7546 | W119: 70.8864 | X119: 0.12 | Y119: 0.009 | Z119: 12.4168 | AA119: 32296 | AB119: 1.189 | AC119: 1.01298179 | AD119: TRUE | AE119: 208.7423 | AF119: 6.5709 | AH119: 137.8559 | AI119: 15.6284 | AJ119: 26.0928 | AK119: 13.9377 | AL119: 8.7282
A120: C - Central 8000J CC 0.130.0770.5517CC gas onlyGas only with SCR | B120: 2021-2022 | C120: C - Central | D120: 8000J CC | E120: 0.13 | F120: 0.077 | G120: 0.55 | H120: 17 | I120: FALSE | J120: 0.006 | K120: Gas only with SCR | L120: CC gas only | N120: 1417.2761 | O120: 486 | P120: 530 | Q120: 495.1 | R120: 1.04 | S120: 0.03543301652 | T120: 0.06680093046 | U120: 0.1320511449 | V120: 187.1529 | W120: 80.2459 | X120: 0.12 | Y120: 0.009 | Z120: 11.8409 | AA120: 32296 | AB120: 1.189 | AC120: 1.012893248 | AD120: TRUE | AE120: 205.4515 | AF120: 6.4577 | AH120: 125.2055 | AI120: 14.1495 | AJ120: 25.6814 | AK120: 12.6292 | AL120: 7.9127
A121: G - Hudson Valley (Rockland) 8000J CC 0.130.0770.5517CC gas onlyGas only with SCR | B121: 2021-2022 | C121: G - Hudson Valley (Rockland) | D121: 8000J CC | E121: 0.13 | F121: 0.077 | G121: 0.55 | H121: 17 | I121: FALSE | J121: 0.006 | K121: Gas only with SCR | L121: CC gas only | N121: 1574.905 | O121: 486.5 | P121: 536.3 | Q121: 500.6 | R121: 1.058 | S121: 0.03543301652 | T121: 0.06680093046 | U121: 0.1320511449 | V121: 207.968 | W121: 106.4825 | X121: 0.15 | Y121: 0.009 | Z121: 14.3264 | AA121: 15695 | AB121: 0.9 | AC121: 1.035439453 | AD121: TRUE | AE121: 229.594 | AF121: 7.2996 | AH121: 123.1115 | AI121: 17.9016 | AJ121: 28.6993 | AK121: 13.6721 | AL121: 6.7502
A122: G - Hudson Valley (Dutchess) 8000J CC 0.130.0770.5517CC gas onlyGas only with SCR | B122: 2021-2022 | C122: G - Hudson Valley (Dutchess) | D122: 8000J CC | E122: 0.13 | F122: 0.077 | G122: 0.55 | H122: 17 | I122: FALSE | J122: 0.006 | K122: Gas only with SCR | L122: CC gas only | N122: 1473.3373 | O122: 486.5 | P122: 536.3 | Q122: 500.6 | R122: 1.058 | S122: 0.03543301652 | T122: 0.06680093046 | U122: 0.1320511449 | V122: 194.5559 | W122: 72.2496 | X122: 0.15 | Y122: 0.009 | Z122: 14.3264 | AA122: 15695 | AB122: 0.9 | AC122: 1.035439453 | AD122: TRUE | AE122: 215.651 | AF122: 6.7687 | AH122: 143.4013 | AI122: 20.852 | AJ122: 26.9564 | AK122: 15.9254 | AL122: 7.8627

Sheet Data Updated Annually-->

Sheet Escalation Factor
C1: Project: | D1: NYISO ICAP Demand Curve | G1: Preliminary - Values subject to change
C2: Date: | D2: 2020-06-01
C3: Worksheet: | D3: Cost Index Data
C5: Instructions: | D5: To update the escalation factor for each annual update, access updated data through the source links provided.
D6: If the source is the BLS, ensure that the Series ID provided on this worksheet matches the Series ID of the source of the index.
D7: If the source is the BEA (for the GDP Deflator), ensure that the table and line number match the information provided in this worksheet.
D8: Enter all currently available data from the index in the yellow cells.
D9: The current escalation factors are calculated using the two most recent years of final index data. These calculations will be updated as new data are available, and they are subject to change.
C12: Calculation of Escalation Factor
C15: Escalation Factor for Currently Selected Zone, Technology, and Capability Year
C16: Zone: | D16: =Region -> G - Hudson Valley (Dutchess)
C17: Technology: | D17: =Unit -> GE 7F.05
C18: Capability Year: | D18: =Capability_Year -> 2021-2022 | I18: Linked to model. Values will update based on selected capability year.
A19: Base year: | E19: Construction Labor Cost | F19: Materials Cost | G19: Gas and Steam Turbine or Battery Cost | H19: GDP Deflator
A20: 2019 | C20: Base Year | D20: [A] | E20: =INDEX($C$121:$S$136, MATCH(A20-2, $C$121:$C$136, 0), MATCH("Construction Labor Cost", $C$121:$S$121, 0)) -> 101108 | F20: =INDEX($C$90:$S$104, MATCH(A20-1, $C$90:$C$104, 0), MATCH("Materials Index", $C$90:$S$90, 0)) -> 243.6333333 | G20: =IF(LEFT(Unit,4)="BESS",INDEX($C$152:$S$166, MATCH($A$20-1, $C$152:$C$166, 0), MATCH("Battery Index",$C$152:$S$152, 0)),INDEX($C$181:$S$195, MATCH($A$20-1, $C$181:$C$195, 0), MATCH("Turbine Index", $C$181:$S$181, 0))) -> 219.0333333 | H20: =INDEX($C$211:$S$225, MATCH(A20-1, $C$211:$C$225, 0), MATCH("GDP Deflator", $C$211:$S$211, 0)) -> 110.281
A21: Lookup year: | C21: Escalaction Year | D21: [B] | E21: =INDEX($C$121:$S$136, MATCH(A22-2, $C$121:$C$136, 0), MATCH("Construction Labor Cost", $C$121:$S$121, 0)) -> 105039 | F21: =INDEX($C$90:$S$104, MATCH(A22-1, $C$90:$C$104, 0), MATCH("Materials Index", $C$90:$S$90, 0)) -> 251.5333333 | G21: =IF(LEFT(Unit,4)="BESS",INDEX($C$152:$S$166, MATCH($A$22-1, $C$152:$C$166, 0), MATCH("Battery Index",$C$152:$S$152, 0)),INDEX($C$181:$S$195, MATCH($A$22-1, $C$181:$C$195, 0), MATCH("Turbine Index", $C$181:$S$181, 0))) -> 231.2333333 | H21: =INDEX($C$211:$S$225, MATCH(A22-1, $C$211:$C$225, 0), MATCH("GDP Deflator", $C$211:$S$211, 0)) -> 112.188
A22: =VALUE(LEFT(Capability_Year,4))-1 -> 2020 | C22: Growth Rate | D22: [B]/[A]-1 | E22: =E21/E20-1 -> 0.03887921826 | F22: =F21/F20-1 -> 0.03242577644 | G22: 0.05569928474 | H22: 0.01729218995
C23: Weights (By Technology) | E23: =INDEX($C$62:$G$71, MATCH(Unit, $C$62:$C$71, 0), MATCH(E$19, $C$62:$G$62, 0)) -> 0.2992959416 | F23: =INDEX($C$62:$G$71, MATCH(Unit, $C$62:$C$71, 0), MATCH(F$19, $C$62:$G$62, 0)) -> 0.1819768163 | G23: =INDEX($C$62:$G$71, MATCH(Unit, $C$62:$C$71, 0), MATCH(G$19, $C$62:$G$62, 0)) -> 0.2458048943 | H23: =INDEX($C$62:$G$71, MATCH(Unit, $C$62:$C$71, 0), MATCH(H$19, $C$62:$G$62, 0)) -> 0.2729223478
C25: Escalation Factor: | E25: =TEXT(E23,"0%")&"*"&TEXT(E22,"0.00%")&" + "&TEXT(F23,"0%")& "*"&TEXT(F22,"0.00%")&" + "&TEXT(G23,"0%")&"*"&TEXT(G22,"0.00%")&" + "&TEXT(H23,"0%")&"*"&TEXT(H22,"0.00%")&" =" -> 30%*3.89% + 18%*3.24% + 25%*5.57% + 27%*1.73% =
E26: =IFERROR(E22*E23+F22*F23+G22*G23+H22*H23, "-") -> 0.03594771368
C31: Escalation Factors by Year and Technology
C34: Capability Year | D34: SGT-A65 WLE | E34: GE 7F.05 | F34: 1x0 GE 7HA.02 25ppm | G34: 1x0 GE 7HA.02 15ppm | H34: 8000J CC | I34: BESS 4h | J34: BESS 6h | K34: BESS 8h
C35: 2020-2021 | D35: =IFERROR(($D49/$D$48-1)*$D$64+($E49/$E48-1)*$E$64+($F49/$F48-1)*$F$64+($H49/$H48-1)*$G$64, "-") -> 0.00767942401 | E35: =IFERROR(($D49/$D48-1)*$D$65+($E49/$E48-1)*$E$65+($F49/$F48-1)*$F$65+($H49/$H48-1)*$G$65, "-") -> 0.005099492147 | F35: =IFERROR(($D49/$D48-1)*$D$66+($E49/$E48-1)*$E$66+($F49/$F48-1)*$F$66+($H49/$H48-1)*$G$66, "-") -> 0.001594787251 | G35: =IFERROR(($D49/$D48-1)*$D$67+($E49/$E48-1)*$E$67+($F49/$F48-1)*$F$67+($H49/$H48-1)*$G$67, "-") -> 0.001594787251 | H35: =IFERROR(($D49/$D48-1)*$D$68+($E49/$E48-1)*$E$68+($F49/$F48-1)*$F$68+($H49/$H48-1)*$G$68, "-") -> 0.005902751625 | I35: =IFERROR(($D49/$D48-1)*$D$69+($E49/$E48-1)*$E$69+($G49/$G48-1)*$F$69+($H49/$H48-1)*$G$69, "-") -> 0.04928102566 | J35: =IFERROR(($D49/$D48-1)*$D$70+($E49/$E48-1)*$E$70+($G49/$G48-1)*$F$70+($H49/$H48-1)*$G$70, "-") -> 0.05011069053 | K35: =IFERROR(($D49/$D48-1)*$D$71+($E49/$E48-1)*$E$71+($G49/$G48-1)*$F$71+($H49/$H48-1)*$G$71, "-") -> 0.0505605227 | M35: Note: The model currently uses indexes from the 2018-2019 to the 2020-21 capability years to calculate the two years of escalation factors
C36: 2021-2022 | D36: =IFERROR(($D50/$D$49-1)*$D$64+($E50/$E$49-1)*$E$64+($F50/$F$49-1)*$F$64+($H50/$H$49-1)*$G$64, "-") -> 0.03746801977 | E36: =IFERROR(($D50/$D$49-1)*$D$65+($E50/$E$49-1)*$E$65+($F50/F49-1)*$F$65+($H50/$H$49-1)*$G$65, "-") -> 0.03594771368 | F36: =IFERROR(($D50/$D$49-1)*$D$66+($E50/$E$49-1)*$E$66+($F50/$F$49-1)*$F$66+($H50/$H$49-1)*$G$66, "-") -> 0.03874871751 | G36: =IFERROR(($D50/$D$49-1)*$D$67+($E50/$E$49-1)*$E$67+($F50/$F$49-1)*$F$67+($H50/$H$49-1)*$G$67, "-") -> 0.03874871751 | H36: =IFERROR(($D50/$D$49-1)*$D$68+($E50/$E$49-1)*$E$68+($F50/$F$49-1)*$F$68+($H50/$H$49-1)*$G$68, "-") -> 0.03543301652 | I36: =IFERROR(($D50/$D$49-1)*$D$69+($E50/$E$49-1)*$E$69+($G50/$G$49-1)*$F$69+($H50/$H$49-1)*$G$69, "-") -> 0.01196932001 | J36: =IFERROR(($D50/$D$49-1)*$D$70+($E50/$E$49-1)*$E$70+($G50/$G$49-1)*$F$70+($H50/$H$49-1)*$G$70, "-") -> 0.01111129312 | K36: =IFERROR(($D50/$D$49-1)*$D$71+($E50/$E$49-1)*$E$71+($G50/$G$49-1)*$F$71+($H50/$H$49-1)*$G$71, "-") -> 0.01064772859
C37: 2022-2023 | D37: =IFERROR(($D51/$D$49-1)*$D$64+($E51/$E$49-1)*$E$64+($F51/$F$49-1)*$F$64+($H51/$H$49-1)*$G$64, "-") -> - | E37: =IFERROR(($D51/$D$49-1)*$D$65+($E51/$E$49-1)*$E$65+($F51/F50-1)*$F$65+($H51/$H$49-1)*$G$65, "-") -> - | F37: =IFERROR(($D51/$D$49-1)*$D$66+($E51/$E$49-1)*$E$66+($F51/$F$49-1)*$F$66+($H51/$H$49-1)*$G$66, "-") -> - | G37: =IFERROR(($D51/$D$49-1)*$D$67+($E51/$E$49-1)*$E$67+($F51/$F$49-1)*$F$67+($H51/$H$49-1)*$G$67, "-") -> - | H37: =IFERROR(($D51/$D$49-1)*$D$68+($E51/$E$49-1)*$E$68+($F51/$F$49-1)*$F$68+($H51/$H$49-1)*$G$68, "-") -> - | I37: =IFERROR(($D51/$D$49-1)*$D$69+($E51/$E$49-1)*$E$69+($G51/$G$49-1)*$F$69+($H51/$H$49-1)*$G$69, "-") -> - | J37: =IFERROR(($D51/$D$49-1)*$D$70+($E51/$E$49-1)*$E$70+($G51/$G$49-1)*$F$70+($H51/$H$49-1)*$G$70, "-") -> - | K37: =IFERROR(($D51/$D$49-1)*$D$71+($E51/$E$49-1)*$E$71+($G51/$G$49-1)*$F$71+($H51/$H$49-1)*$G$71, "-") -> -
C38: 2023-2024 | D38: - | E38: - | F38: - | G38: - | H38: - | I38: - | J38: - | K38: -
C39: 2024-2025 | D39: - | E39: - | F39: - | G39: - | H39: - | I39: - | J39: - | K39: -
C40: Note: Years with missing data or missing escalation factors will automatically update when indices below are updated with new data.
C44: Indices Over Time
A47: Lookup | C47: Capability Year | D47: Construction Labor Cost | E47: Materials Cost | F47: Gas and Steam Turbine Cost | G47: Storage Battery Cost | H47: GDP Deflator
A48: 2017 | C48: 2018-2019 | D48: =INDEX($C$121:$S$136, MATCH(A48-1, $C$121:$C$136, 0), MATCH("Construction Labor Cost", $C$121:$S$121, 0)) -> 102788 | E48: =INDEX($C$90:$S$104, MATCH(A48, $C$90:$C$104, 0), MATCH("Materials Index", $C$90:$S$90, 0)) -> 233.3666667 | F48: =INDEX($C$181:$S$197, MATCH(A48, $C$181:$C$197, 0), MATCH("Turbine Index", $C$181:$S$181, 0)) -> 223.8666667 | G48: =INDEX($C$152:$S$167, MATCH(A48,$C$152:$C$167, 0), MATCH("Battery Index", $C$152:$S$152, 0)) -> 190.2 | H48: =INDEX($C$211:$S$226, MATCH(A48, $C$211:$C$226, 0), MATCH("GDP Deflator", $C$211:$S$211, 0)) -> 107.411
A49: =+A48+1 -> 2018 | C49: 2019-2020 | D49: 101108 | E49: 243.6333333 | F49: =INDEX($C$181:$S$197, MATCH(A49, $C$181:$C$197, 0), MATCH("Turbine Index", $C$181:$S$181, 0)) -> 219.0333333 | G49: =INDEX($C$152:$S$167, MATCH(A49,$C$152:$C$167, 0), MATCH("Battery Index", $C$152:$S$152, 0)) -> 204.6333333 | H49: =INDEX($C$211:$S$226, MATCH(A49, $C$211:$C$226, 0), MATCH("GDP Deflator", $C$211:$S$211, 0)) -> 110.281
A50: =+A49+1 -> 2019 | C50: 2020-2021 | D50: 105039 | E50: 251.5333333 | F50: =INDEX($C$181:$S$197, MATCH(A50, $C$181:$C$197, 0), MATCH("Turbine Index", $C$181:$S$181, 0)) -> 231.2333333 | G50: =INDEX($C$152:$S$167, MATCH(A50,$C$152:$C$167, 0), MATCH("Battery Index", $C$152:$S$152, 0)) -> 203.9333333 | H50: =INDEX($C$211:$S$226, MATCH(A50, $C$211:$C$226, 0), MATCH("GDP Deflator", $C$211:$S$211, 0)) -> 112.188
A51: 2020 | C51: 2021-2022 | D51: - | E51: 253.25 | F51: =INDEX($C$181:$S$197, MATCH(A51, $C$181:$C$197, 0), MATCH("Turbine Index", $C$181:$S$181, 0)) -> 238.45 | G51: =INDEX($C$152:$S$167, MATCH(A51,$C$152:$C$167, 0), MATCH("Battery Index", $C$152:$S$152, 0)) -> 205.3 | H51: =INDEX($C$211:$S$226, MATCH(A51, $C$211:$C$226, 0), MATCH("GDP Deflator", $C$211:$S$211, 0)) -> -
A52: 2021 | C52: 2022-2023 | D52: - | E52: - | F52: =INDEX($C$181:$S$197, MATCH(A52, $C$181:$C$197, 0), MATCH("Turbine Index", $C$181:$S$181, 0)) -> - | G52: =INDEX($C$152:$S$167, MATCH(A52,$C$152:$C$167, 0), MATCH("Battery Index", $C$152:$S$152, 0)) -> - | H52: =INDEX($C$211:$S$226, MATCH(A52, $C$211:$C$226, 0), MATCH("GDP Deflator", $C$211:$S$211, 0)) -> -
A53: 2022 | C53: 2023-2024 | D53: - | E53: - | F53: =INDEX($C$181:$S$195, MATCH(A53, $C$181:$C$195, 0), MATCH("Turbine Index", $C$181:$S$181, 0)) -> - | G53: =INDEX($C$152:$S$166, MATCH(A53,$C$152:$C$166, 0), MATCH("Battery Index", $C$152:$S$152, 0)) -> - | H53: =INDEX($C$211:$S$225, MATCH(A53, $C$211:$C$225, 0), MATCH("GDP Deflator", $C$211:$S$211, 0)) -> -
A54: 2023 | C54: 2024-2025 | D54: - | E54: - | F54: =INDEX($C$181:$S$195, MATCH(A54, $C$181:$C$195, 0), MATCH("Turbine Index", $C$181:$S$181, 0)) -> - | G54: =INDEX($C$152:$S$166, MATCH(A54,$C$152:$C$166, 0), MATCH("Battery Index", $C$152:$S$152, 0)) -> - | H54: =INDEX($C$211:$S$225, MATCH(A54, $C$211:$C$225, 0), MATCH("GDP Deflator", $C$211:$S$211, 0)) -> -
C55: Note: Years with missing data or missing escalation factors will automatically update when indices below are updated with new data.
C59: Weights by Technology
C62: Technology | D62: Construction Labor Cost | E62: Materials Cost | F62: Gas and Steam Turbine or Battery Cost | G62: GDP Deflator
C64: SGT-A65 WLE | D64: 0.204136744 | E64: 0.2639979428 | F64: 0.3065550391 | G64: 0.2253102741
C65: GE 7F.05 | D65: 0.2992959416 | E65: 0.1819768163 | F65: 0.2458048943 | G65: 0.2729223478
C66: 1x0 GE 7HA.02 25ppm | D66: 0.2501908976 | E66: 0.1609685768 | F66: 0.3546120258 | G66: 0.2342284998
C67: 1x0 GE 7HA.02 15ppm | D67: 0.2501908976 | E67: 0.1609685768 | F67: 0.3546120258 | G67: 0.2342284998
C68: 8000J CC | D68: 0.3744586315 | E68: 0.219205855 | F68: 0.1754885851 | G68: 0.2308469284
C69: BESS 4h | D69: 0.1474025967 | E69: 0.1639504104 | F69: 0.5303935776 | G69: 0.1582534153
C70: BESS 6h | D70: 0.1482345104 | E70: 0.1411329641 | F70: 0.5560140627 | G70: 0.1546184628
C71: BESS 8h | D71: 0.1486472984 | E71: 0.1288409654 | F71: 0.569843743 | G71: 0.1526679933
C72: Updated 4/28/2020
C75: Index Inputs
C78: Materials Cost Index
C80: Source: | D80: BLS Producer Price Index - Commodities
C81: Seasonal: | D81: Not Seasonally Adjusted
C82: Series Id: | D82: WPUID612
C83: Group: | D83: (ID6) Intermediate demand by commodity type
C84: Item: | D84: (12) Materials and components for construction
C85: Base Date: | D85: 198200
C86: Years: | D86: 2007 to 2020
C87: Access: | D87: http://data.bls.gov/cgi-bin/dsrv?wp
C88: Date Updated: | D88: 2020-04-27
C90: Year | D90: Jan | E90: Feb | F90: Mar | G90: Apr | H90: May | I90: Jun | J90: Jul | K90: Aug | L90: Sep | M90: Oct | N90: Nov | O90: Dec | S90: Materials Index | U90: Note: Italicized values are preliminary and are subject to revision up to four months after original publication.
C91: 2010 | D91: 202.3 | E91: 203.5 | F91: 204.6 | G91: 206.1 | H91: 207.4 | I91: 206.6 | J91: 206.3 | K91: 206.2 | L91: 205.9 | M91: 205.9 | N91: 206.3 | O91: 207 | S91: =IFERROR(AVERAGE(E91:G91), "-") -> 204.7333333
C92: 2011 | D92: 208.3 | E92: 209.5 | F92: 210.9 | G92: 212.1 | H92: 212.8 | I92: 213.7 | J92: 214.7 | K92: 214.6 | L92: 214.5 | M92: 214.4 | N92: 214.2 | O92: 214.2 | S92: 210.8333333
C93: 2012 | D93: 215.3 | E93: 216.9 | F93: 217.4 | G93: 218.3 | H93: 219.1 | I93: 219.2 | J93: 218.5 | K93: 218.7 | L93: 219.2 | M93: 219.1 | N93: 219.5 | O93: 219.9 | S93: 217.5333333
C94: 2013 | D94: 221.2 | E94: 222.2 | F94: 222.7 | G94: 223.4 | H94: 222.9 | I94: 222.6 | J94: 222.4 | K94: 223 | L94: 222.9 | M94: 222.9 | N94: 223 | O94: 223.1 | S94: 222.7666667
C95: 2014 | D95: 224.8 | E95: 225.8 | F95: 226.6 | G95: 226.9 | H95: 227.4 | I95: 227.4 | J95: 227.7 | K95: 228.2 | L95: 228.5 | M95: 228.6 | N95: 228.5 | O95: 228.4 | S95: 226.4333333
C96: 2015 | D96: 229 | E96: 229.1 | F96: 229.1 | G96: 229.4 | H96: 229.1 | I96: 229 | J96: 228.8 | K96: 228 | L96: 227.5 | M96: 227.7 | N96: 227.6 | O96: 227.2 | S96: 229.2
C97: 2016 | D97: 227.5 | E97: 227.5 | F97: 227.8 | G97: 228.3 | H97: 228.7 | I97: 229.1 | J97: 229.7 | K97: 230.3 | L97: 230 | M97: 229.7 | N97: 229.7 | O97: 230.1 | S97: 227.8666667
C98: 2017 | D98: 231.5 | E98: 232.5 | F98: 233.2 | G98: 234.4 | H98: 234.6 | I98: 234.8 | J98: 234.7 | K98: 235.6 | L98: 236 | M98: 237 | N98: 237.5 | O98: 237.7 | S98: 233.3666667
C99: 2018 | D99: 239.7 | E99: 241.2 | F99: 244.3 | G99: 245.4 | H99: 248.1 | I99: 249 | J99: 249.4 | K99: 249.2 | L99: 249.6 | M99: 249.6 | N99: 249.1 | O99: 249.7 | S99: =IFERROR(AVERAGE(E99:G99), "-") -> 243.6333333
C100: 2019 | D100: 250.7 | E100: 251.5 | F100: 251.2 | G100: 251.9 | H100: 251.7 | I100: 251.2 | J100: 252.3 | K100: 251.3 | L100: 251.1 | M100: 250.8 | N100: 250.8 | O100: 250.8 | S100: 251.5333333
C101: 2020 | D101: 252 | E101: 252.6 | F101: 253.9 | S101: 253.25
C102: 2021 | S102: -
C103: 2022 | S103: =IFERROR(AVERAGE(E103:G103), "-") -> -
C104: 2023 | S104: -
C107: Construction Labor Cost Index
C109: Source: | D109: BLS Quarterly Census of Employment and Wages
C110: Series Id: | D110: ENU360005052371
C111: State: | D111: New York
C112: Area: | D112: New York -- Statewide
C113: Industry: | D113: NAICS 2371 Utility system construction
C114: Owner: | D114: Private
C115: Size | D115: All establishment sizes
C116: Type | D116: Average Annual Pay
C117: Years: | D117: 2007 to 2018
C118: Access: | D118: http://data.bls.gov/cgi-bin/dsrv?en
C119: Date Updated: | D119: 2020-04-27
C121: Year | D121: Annual | S121: Construction Labor Cost | U121: Note: Italicized values are preliminary and are subject to revision.
C122: 2010 | D122: 78635 | S122: =IF(D122="", "-", D122) -> 78635
C123: 2011 | D123: 79665 | S123: 79665
C124: 2012 | D124: 87406 | S124: 87406
C125: 2013 | D125: 88850 | S125: 88850
C126: 2014 | D126: 92531 | S126: 92531
C127: 2015 | D127: 97529 | S127: 97529
C128: 2016 | D128: 102788 | S128: 102788
C129: 2017 | D129: 101108 | S129: 101108
C130: 2018 | D130: 105039 | S130: 105039
C131: 2019 | S131: -
C132: 2020 | S132: -
C133: 2021 | S133: -
C134: 2022 | S134: -
C135: 2023 | S135: -
C140: Storage Battery Index
C142: Source: | D142: BLS Producer Price Index - Commodities
C143: Seasonal: | D143: Not Seasonally Adjusted
C144: Group: | D144: (11) Machinery and Equipment
C145: Item: | D145: (7901) Storage Batteries
C146: Series ID: | D146: WPU117901
C147: Base Date: | D147: 198200
C148: Years: | D148: 2007 to 2020
C149: Access: | D149: http://data.bls.gov/cgi-bin/dsrv?wp
C150: Date Updated: | D150: 2020-04-27
C152: Year | D152: Jan | E152: Feb | F152: Mar | G152: Apr | H152: May | I152: Jun | J152: Jul | K152: Aug | L152: Sep | M152: Oct | N152: Nov | O152: Dec | S152: Battery Index | U152: Note: Italicized values are preliminary and are subject to revision up to four months after original publication.
C153: 2010 | D153: 167.6 | E153: 168.4 | F153: 168.6 | G153: 169.2 | H153: 169.4 | I153: 169.4 | J153: 166.6 | K153: 167.6 | L153: 167.7 | M153: 168.2 | N153: 168.2 | O153: 171.7 | S153: =IFERROR(AVERAGE(E153:G153), "-") -> 168.7333333
C154: 2011 | D154: 173.1 | E154: 173.6 | F154: 174.6 | G154: 175 | H154: 175.5 | I154: 176.8 | J154: 178.7 | K154: 179.5 | L154: 179.3 | M154: 179.9 | N154: 178.8 | O154: 178.2 | S154: 174.4
C155: 2012 | D155: 179.2 | E155: 179.1 | F155: 179.3 | G155: 179.7 | H155: 183.8 | I155: 183.4 | J155: 183.2 | K155: 183.4 | L155: 183.6 | M155: 183.2 | N155: 183.4 | O155: 183 | S155: 179.3666667
C156: 2013 | D156: 183 | E156: 184.3 | F156: 185.4 | G156: 185.5 | H156: 184.6 | I156: 183.7 | J156: 183.7 | K156: 183.7 | L156: 185.4 | M156: 185.6 | N156: 185.1 | O156: 185.1 | S156: 185.0666667
C157: 2014 | D157: 184 | E157: 184.4 | F157: 184.1 | G157: 184.5 | H157: 184.5 | I157: 184.6 | J157: 184.1 | K157: 184.6 | L157: 184.9 | M157: 184.5 | N157: 184.5 | O157: 184.6 | S157: 184.3333333
C158: 2015 | D158: 184.5 | E158: 184.4 | F158: 184.5 | G158: 184 | H158: 184.2 | I158: 185.1 | J158: 185.2 | K158: 185.2 | L158: 185.1 | M158: 185.1 | N158: 185.1 | O158: 185 | S158: 184.3
C159: 2016 | D159: 184.9 | E159: 182.3 | F159: 182.6 | G159: 182.6 | H159: 182.6 | I159: 182.9 | J159: 182.9 | K159: 182.9 | L159: 182.9 | M159: 183.9 | N159: 183.9 | O159: 184.2 | S159: 182.5
C160: 2017 | D160: 188 | E160: 188.9 | F160: 188.9 | G160: 192.8 | H160: 192.8 | I160: 193.2 | J160: 193.5 | K160: 194.4 | L160: 195 | M160: 196.3 | N160: 198.5 | O160: 198.5 | S160: 190.2
C161: 2018 | D161: 202.9 | E161: 203.2 | F161: 203.5 | G161: 207.2 | H161: 208.3 | I161: 208.5 | J161: 207.2 | K161: 207.5 | L161: 207.8 | M161: 206.7 | N161: 206.3 | O161: 206.3 | S161: 204.6333333
C162: 2019 | D162: 204.9 | E162: 205.1 | F162: 203.5 | G162: 203.2 | H162: 203.2 | I162: 204.7 | J162: 204.3 | K162: 204.3 | L162: 204.3 | M162: 205.1 | N162: 204.6 | O162: 204.7 | S162: 203.9333333
C163: 2020 | D163: 205.1 | E163: 205.3 | F163: 205.3 | S163: 205.3
C164: 2021 | S164: -
C165: 2022 | S165: -
C166: 2023 | S166: -
C169: Gas and Steam Turbine Index
C171: Source: | D171: BLS Producer Price Index - Commodities
C172: Seasonal: | D172: Not Seasonally Adjusted
C173: Group: | D173: (11) Machinery and Equipment
C174: Item: | D174: (97) Turbines and Turbine Generator Sets
C175: Series ID: | D175: WPU1197
C176: Base Date: | D176: 198706
C177: Years: | D177: 2007 to 2020
C178: Access: | D178: http://data.bls.gov/cgi-bin/dsrv?wp
C179: Date Updated: | D179: 2020-04-27
C181: Year | D181: Jan | E181: Feb | F181: Mar | G181: Apr | H181: May | I181: Jun | J181: Jul | K181: Aug | L181: Sep | M181: Oct | N181: Nov | O181: Dec | S181: Turbine Index | U181: Note: Italicized values are preliminary and are subject to revision up to four months after original publication.
C182: 2010 | D182: 222.9 | E182: 221.2 | F182: 220.2 | G182: 220.5 | H182: 221.6 | I182: 221.5 | J182: 221.8 | K182: 222.1 | L182: 221.9 | M182: 223 | N182: 223 | O182: 223.8 | S182: =IFERROR(AVERAGE(E182:G182), "-") -> 220.6333333
C183: 2011 | D183: 225.5 | E183: 224.9 | F183: 224.5 | G183: 225.7 | H183: 227.7 | I183: 228.8 | J183: 225.9 | K183: 224.2 | L183: 226 | M183: 223.7 | N183: 221.7 | O183: 223.5 | S183: 225.0333333
C184: 2012 | D184: 218.9 | E184: 220 | F184: 222.1 | G184: 222.3 | H184: 224.3 | I184: 225.2 | J184: 225.4 | K184: 224.4 | L184: 222.9 | M184: 225.1 | N184: 226.2 | O184: 225.7 | S184: 221.4666667
C185: 2013 | D185: 225.4 | E185: 225.4 | F185: 226.3 | G185: 226.4 | H185: 227.2 | I185: 226.6 | J185: 228.8 | K185: 227.8 | L185: 229.1 | M185: 229 | N185: 232 | O185: 231.7 | S185: 226.0333333
C186: 2014 | D186: 230.8 | E186: 231.2 | F186: 232.7 | G186: 232.2 | H186: 231.7 | I186: 232.2 | J186: 231.6 | K186: 233.6 | L186: 236.1 | M186: 237.2 | N186: 237.5 | O186: 238.5 | S186: 232.0333333
C187: 2015 | D187: 229.7 | E187: 230.9 | F187: 234.4 | G187: 230.9 | H187: 231.7 | I187: 227.9 | J187: 233.5 | K187: 230 | L187: 232.9 | M187: 232.8 | N187: 232.4 | O187: 233.1 | S187: 232.0666667
C188: 2016 | D188: 231.9 | E188: 232.2 | F188: 232.5 | G188: 231.2 | H188: 231.4 | I188: 233.2 | J188: 233.5 | K188: 232.7 | L188: 232.5 | M188: NA | N188: NA | O188: NA | S188: 231.9666667
C189: 2017 | D189: NA | E189: 224.3 | F189: 223.9 | G189: 223.4 | H189: 223.5 | I189: 227.7 | J189: 225.6 | K189: 225.8 | L189: 225.8 | M189: 224.5 | N189: 217.5 | O189: 211.6 | S189: 223.8666667
C190: 2018 | D190: 210.1 | E190: 215.1 | F190: 221 | G190: 221 | H190: 219.4 | I190: 219.7 | J190: 219.8 | K190: 221.4 | L190: 221 | M190: 224.4 | N190: 225.9 | O190: 228.8 | S190: 219.0333333
C191: 2019 | D191: 229.4 | E191: 231 | F191: 231.1 | G191: 231.6 | H191: 232.7 | I191: 233.3 | J191: 233.7 | K191: 234.4 | L191: 234.8 | M191: 234.3 | N191: 234.9 | O191: 234.4 | S191: 231.2333333
C192: 2020 | D192: 235.2 | E192: 237.9 | F192: 239 | S192: 238.45
C193: 2021 | S193: -
C194: 2022 | S194: -
C195: 2023 | S195: -
D196: Note: BLS has not released data in months with the value "NA".
C200: Non-EPC Cost Index
C202: Source: | D202: Bureau of Economic Analysis: Gross Domestic Product Implicit Price Deflator, Index 2009 = 100. Choose most recent four quarters available.
C203: Seasonal: | D203: Seasonally Adjusted
C204: Timing: | D204: Quarterly
C205: Table: | D205: 1.1.9
C206: Table Location: | D206: Line 1
C207: Access: | D207: http://www.bea.gov/iTable/iTable.cfm?reqid=9&step=3&isuri=1&903=13#reqid=9&step=3&isuri=1&904=2005&903=13&906=q&905=1000&910=x&911=0
C208: Date Updated: | D208: 2020-04-27
D210: Quarter
C211: Year | D211: I | E211: II | F211: III | G211: IV | S211: GDP Deflator | U211: Note: Italicized values are preliminary and are subject to revision.
C212: 2010 | D212: 95.499 | E212: 95.943 | F212: 96.222 | G212: 96.763 | S212: =IF(E212="", "-", E212) -> 95.943
C213: 2011 | D213: 97.283 | E213: 97.922 | F213: 98.553 | G213: 98.703 | S213: 97.922
C214: 2012 | D214: 99.32 | E214: 99.713 | F214: 100.225 | G214: 100.737 | S214: 99.713
C215: 2013 | D215: 101.139 | E215: 101.431 | F215: 101.918 | G215: 102.517 | S215: 101.431
C216: 2014 | D216: 102.937 | E216: 103.512 | F216: 103.957 | G216: 104.123 | S216: 103.512
C217: 2015 | D217: 104.09 | E217: 104.675 | F217: 105.048 | G217: 105.049 | S217: 104.675
C218: 2016 | D218: 104.941 | E218: 105.657 | F218: 106.043 | G218: 106.551 | S218: 105.657
C219: 2017 | D219: 107.058 | E219: 107.411 | F219: 107.973 | G219: 108.713 | S219: 107.411
C220: 2018 | D220: 109.355 | E220: 110.281 | F220: 110.767 | G220: 111.256 | S220: 110.281
C221: 2019 | D221: 111.473 | E221: 112.188 | F221: 112.664 | G221: 113.043 | S221: 112.188
C222: 2020 | D222: 113.43 | S222: -
C223: 2021 | S223: -
C224: 2022 | S224: -
C225: 2023 | S225: -

Sheet Winter-to-Summer Ratio
B1: Project: | C1: NYISO ICAP Demand Curve | E1: Preliminary - Values subject to change
B2: Date: | C2: 2020-06-01
B3: Worksheet: | C3: Winter-to-Summer Ratio
B5: Instructions: | C5: Update WSR annually for each zone.
C6: Paste updated WSR values into yellow cells next to the correct zone.
C7: The values listed for the 2021-2022 capability year will be revised prior to posting final results for the demand curve model. The current WSR values listed for the 2021-2022 Capability Year are the same as those used to calculate the demand curve for the 2020-2021 Capability Year.
B8: Annual Winter-to-Summmer Ratios
B11: Zone | C11: Capability Year | D11: Lookup | E11: Winter-to-Summer Ratio | F11: Updated 4/01/2020
B12: C - Central | C12: 2021-2022 | D12: =B12&C12 -> C - Central2021-2022 | E12: 1.04
B13: F - Capital | C13: 2021-2022 | D13: F - Capital2021-2022 | E13: 1.04
B14: G - Hudson Valley (Dutchess) | C14: 2021-2022 | D14: G - Hudson Valley (Dutchess)2021-2022 | E14: 1.058
B15: G - Hudson Valley (Rockland) | C15: 2021-2022 | D15: G - Hudson Valley (Rockland)2021-2022 | E15: 1.058
B16: J - New York City | C16: 2021-2022 | D16: J - New York City2021-2022 | E16: 1.078
B17: K - Long Island | C17: 2021-2022 | D17: K - Long Island2021-2022 | E17: 1.076
B18: C - Central | C18: 2022-2023 | D18: C - Central2022-2023
B19: F - Capital | C19: 2022-2023 | D19: F - Capital2022-2023
B20: G - Hudson Valley (Dutchess) | C20: 2022-2023 | D20: G - Hudson Valley (Dutchess)2022-2023
B21: G - Hudson Valley (Rockland) | C21: 2022-2023 | D21: G - Hudson Valley (Rockland)2022-2023
B22: J - New York City | C22: 2022-2023 | D22: J - New York City2022-2023
B23: K - Long Island | C23: 2022-2023 | D23: K - Long Island2022-2023
B24: C - Central | C24: 2023-2024 | D24: C - Central2023-2024
B25: F - Capital | C25: 2023-2024 | D25: F - Capital2023-2024
B26: G - Hudson Valley (Dutchess) | C26: 2023-2024 | D26: G - Hudson Valley (Dutchess)2023-2024
B27: G - Hudson Valley (Rockland) | C27: 2023-2024 | D27: G - Hudson Valley (Rockland)2023-2024
B28: J - New York City | C28: 2023-2024 | D28: J - New York City2023-2024
B29: K - Long Island | C29: 2023-2024 | D29: K - Long Island2023-2024
B30: C - Central | C30: 2024-2025 | D30: C - Central2024-2025
B31: F - Capital | C31: 2024-2025 | D31: F - Capital2024-2025
B32: G - Hudson Valley (Dutchess) | C32: 2024-2025 | D32: G - Hudson Valley (Dutchess)2024-2025
B33: G - Hudson Valley (Rockland) | C33: 2024-2025 | D33: G - Hudson Valley (Rockland)2024-2025
B34: J - New York City | C34: 2024-2025 | D34: J - New York City2024-2025
B35: K - Long Island | C35: 2024-2025 | D35: K - Long Island2024-2025

Sheet Net EAS
K1: Project: | L1: NYISO ICAP Demand Curve | N1: Preliminary - Values subject to change
K2: Date: | L2: 2020-06-01
K3: Worksheet: | L3: Net EAS Revenues
K5: Instructions: | L5: Current data reflect the most recent net EAS results including the appropriate VSS or CC Adder.
L6: To update net EAS results for a future capability year, run Net EAS Model and copy and paste in net EAS values that correspond to capability year, fuel type, and load zone.
L7: Then add the VSS adder from the AS Adder worksheet to the output from the net EAS model for all units except for the CC unit. For the CC unit add the CC adder from the AS Adder worksheet.
L8: The VSS Adder can be added using the named range VSS_Adder (linked to cell C8 of the AS Adder worksheet) and the CC Adder can be added using the named range CC_Adder (linked to cell C9 of the AS Adder worksheet).
L9: As an example for the SGT-A65 WLE in the Zone C one would paste the net EAS revenue output of 40.38 then add the VSS Adder using the formula = 40.38 + VSS_Adder.
K12: Annual Net EAS Revenue Estimates
N15: Net EAS Revenues ($/kW-Year)
B16: Unit Type | C16: Lookups | H16: Gas Matrix | I16: zone | K16: Zone | L16: Technology | M16: Capability Year | N16: Dual fuel with SCR | O16: Gas only with SCR | P16: CC dual fuel | Q16: CC gas only | R16: Dual fuel without SCR | S16: Gas only without SCR | T16: Battery
B17: aero | C17: =$B17&"_"&$I17&"_"&"Yes_No_"&$H17 -> aero_C_Yes_No_1 | D17: =$B17&"_"&$I17&"_"&"Yes_Yes_"&$H17 -> aero_C_Yes_Yes_1 | E17: =$B17&"_"&$I17&"_"&"No_No_"&$H17 -> aero_C_No_No_1 | F17: =$B17&"_"&$I17&"_"&"No_Yes_"&$H17 -> aero_C_No_Yes_1 | G17: =$B17&"_"&$I17&"_"&"Bat_Bat_Yes_Bat" -> aero_C_Bat_Bat_Yes_Bat | H17: 1 | I17: =LEFT(K17,1) -> C | J17: =K17&L17&M17 -> C - CentralSGT-A65 WLE2021-2022 | K17: C - Central | L17: SGT-A65 WLE | M17: 2021-2022 | N17: 42.42237726 | O17: 42.42237726 | P17: - | Q17: - | R17: - | S17: - | T17: -
B18: aero | C18: =$B18&"_"&$I18&"_"&"Yes_No_"&$H18 -> aero_F_Yes_No_1 | D18: =$B18&"_"&$I18&"_"&"Yes_Yes_"&$H18 -> aero_F_Yes_Yes_1 | E18: =$B18&"_"&$I18&"_"&"No_No_"&$H18 -> aero_F_No_No_1 | F18: =$B18&"_"&$I18&"_"&"No_Yes_"&$H18 -> aero_F_No_Yes_1 | G18: =$B18&"_"&$I18&"_"&"Bat_Bat_Yes_Bat" -> aero_F_Bat_Bat_Yes_Bat | H18: 1 | I18: =LEFT(K18,1) -> F | J18: =K18&L18&M18 -> F - CapitalSGT-A65 WLE2021-2022 | K18: F - Capital | L18: SGT-A65 WLE | M18: 2021-2022 | N18: 34.89701904 | O18: 33.07833176 | P18: - | Q18: - | R18: - | S18: - | T18: -
B19: aero | C19: aero_G1_Yes_No_1 | D19: aero_G1_Yes_Yes_1 | E19: aero_G1_No_No_1 | F19: aero_G1_No_Yes_1 | G19: aero_G1_Bat_Bat_Yes_Bat | H19: 1 | I19: G1 | J19: =K19&L19&M19 -> G - Hudson Valley (Dutchess)SGT-A65 WLE2021-2022 | K19: G - Hudson Valley (Dutchess) | L19: SGT-A65 WLE | M19: 2021-2022 | N19: 33.50153062 | O19: 31.78770039 | P19: - | Q19: - | R19: - | S19: - | T19: -
B20: aero | C20: aero_G2_Yes_No_1 | D20: aero_G2_Yes_Yes_1 | E20: aero_G2_No_No_1 | F20: aero_G2_No_Yes_1 | G20: aero_G2_Bat_Bat_Yes_Bat | H20: 1 | I20: G2 | J20: =K20&L20&M20 -> G - Hudson Valley (Rockland)SGT-A65 WLE2021-2022 | K20: G - Hudson Valley (Rockland) | L20: SGT-A65 WLE | M20: 2021-2022 | N20: 43.93180975 | O20: 42.46667818 | P20: - | Q20: - | R20: - | S20: - | T20: -
B21: aero | C21: aero_J_Yes_No_1 | D21: aero_J_Yes_Yes_1 | E21: aero_J_No_No_1 | F21: aero_J_No_Yes_1 | G21: aero_J_Bat_Bat_Yes_Bat | H21: 1 | I21: =LEFT(K21,1) -> J | J21: J - New York CitySGT-A65 WLE2021-2022 | K21: J - New York City | L21: SGT-A65 WLE | M21: 2021-2022 | N21: 31.92219449 | O21: - | P21: - | Q21: - | R21: - | S21: - | T21: -
B22: aero | C22: aero_K_Yes_No_1 | D22: aero_K_Yes_Yes_1 | E22: aero_K_No_No_1 | F22: aero_K_No_Yes_1 | G22: aero_K_Bat_Bat_Yes_Bat | H22: 1 | I22: =LEFT(K22,1) -> K | J22: K - Long IslandSGT-A65 WLE2021-2022 | K22: K - Long Island | L22: SGT-A65 WLE | M22: 2021-2022 | N22: 47.73955291 | O22: - | P22: - | Q22: - | R22: - | S22: - | T22: -
B23: f | C23: f_C_Yes_No_1 | D23: f_C_Yes_Yes_1 | E23: f_C_No_No_1 | F23: f_C_No_Yes_1 | G23: f_C_Bat_Bat_Yes_Bat | H23: 1 | I23: =LEFT(K23,1) -> C | J23: C - CentralGE 7F.052021-2022 | K23: C - Central | L23: GE 7F.05 | M23: 2021-2022 | N23: 44.47045236 | O23: 44.47045236 | P23: - | Q23: - | R23: 44.78040095 | S23: 44.78040095 | T23: -
B24: f | C24: f_F_Yes_No_1 | D24: f_F_Yes_Yes_1 | E24: f_F_No_No_1 | F24: f_F_No_Yes_1 | G24: f_F_Bat_Bat_Yes_Bat | H24: 1 | I24: =LEFT(K24,1) -> F | J24: F - CapitalGE 7F.052021-2022 | K24: F - Capital | L24: GE 7F.05 | M24: 2021-2022 | N24: 32.93157769 | O24: 31.50338835 | P24: - | Q24: - | R24: 33.37344935 | S24: 31.9069077 | T24: -
B25: f | C25: f_G1_Yes_No_1 | D25: f_G1_Yes_Yes_1 | E25: f_G1_No_No_1 | F25: f_G1_No_Yes_1 | G25: f_G1_Bat_Bat_Yes_Bat | H25: 1 | I25: G1 | J25: G - Hudson Valley (Dutchess)GE 7F.052021-2022 | K25: G - Hudson Valley (Dutchess) | L25: GE 7F.05 | M25: 2021-2022 | N25: 32.52558097 | O25: 31.08939756 | P25: - | Q25: - | R25: 32.96300092 | S25: 31.51002917 | T25: -
B26: f | C26: f_G2_Yes_No_1 | D26: f_G2_Yes_Yes_1 | E26: f_G2_No_No_1 | F26: f_G2_No_Yes_1 | G26: f_G2_Bat_Bat_Yes_Bat | H26: 1 | I26: G2 | J26: =K26&L26&M26 -> G - Hudson Valley (Rockland)GE 7F.052021-2022 | K26: G - Hudson Valley (Rockland) | L26: GE 7F.05 | M26: 2021-2022 | N26: 48.36382702 | O26: 46.86615472 | P26: - | Q26: - | R26: - | S26: - | T26: -
B27: f | C27: f_J_Yes_No_1 | D27: f_J_Yes_Yes_1 | E27: f_J_No_No_1 | F27: f_J_No_Yes_1 | G27: f_J_Bat_Bat_Yes_Bat | H27: 1 | I27: =LEFT(K27,1) -> J | J27: J - New York CityGE 7F.052021-2022 | K27: J - New York City | L27: GE 7F.05 | M27: 2021-2022 | N27: 34.53035205 | O27: - | P27: - | Q27: - | R27: - | S27: - | T27: -
B28: f | C28: f_K_Yes_No_1 | D28: f_K_Yes_Yes_1 | E28: f_K_No_No_1 | F28: f_K_No_Yes_1 | G28: f_K_Bat_Bat_Yes_Bat | H28: 1 | I28: =LEFT(K28,1) -> K | J28: K - Long IslandGE 7F.052021-2022 | K28: K - Long Island | L28: GE 7F.05 | M28: 2021-2022 | N28: 50.53651748 | O28: - | P28: - | Q28: - | R28: - | S28: - | T28: -
B29: j25 | C29: j25_C_Yes_No_1 | D29: j25_C_Yes_Yes_1 | E29: j25_C_No_No_1 | F29: j25_C_No_Yes_1 | G29: j25_C_Bat_Bat_Yes_Bat | H29: 1 | I29: C | J29: C - Central1x0 GE 7HA.02 25ppm2021-2022 | K29: C - Central | L29: 1x0 GE 7HA.02 25ppm | M29: 2021-2022 | N29: 47.29835161 | O29: 47.29835161 | P29: - | Q29: - | R29: - | S29: - | T29: -
B30: j25 | C30: j25_F_Yes_No_1 | D30: j25_F_Yes_Yes_1 | E30: j25_F_No_No_1 | F30: j25_F_No_Yes_1 | G30: j25_F_Bat_Bat_Yes_Bat | H30: 1 | I30: F | J30: F - Capital1x0 GE 7HA.02 25ppm2021-2022 | K30: F - Capital | L30: 1x0 GE 7HA.02 25ppm | M30: 2021-2022 | N30: 36.38128361 | O30: 34.77002521 | P30: - | Q30: - | R30: - | S30: - | T30: -
B31: j25 | C31: j25_G1_Yes_No_1 | D31: j25_G1_Yes_Yes_1 | E31: j25_G1_No_No_1 | F31: j25_G1_No_Yes_1 | G31: j25_G1_Bat_Bat_Yes_Bat | H31: 1 | I31: G1 | J31: G - Hudson Valley (Dutchess)1x0 GE 7HA.02 25ppm2021-2022 | K31: G - Hudson Valley (Dutchess) | L31: 1x0 GE 7HA.02 25ppm | M31: 2021-2022 | N31: 35.79206664 | O31: 34.23751936 | P31: - | Q31: - | R31: - | S31: - | T31: -
B32: j25 | C32: j25_G2_Yes_No_1 | D32: j25_G2_Yes_Yes_1 | E32: j25_G2_No_No_1 | F32: j25_G2_No_Yes_1 | G32: j25_G2_Bat_Bat_Yes_Bat | H32: 1 | I32: G2 | J32: =K32&L32&M32 -> G - Hudson Valley (Rockland)1x0 GE 7HA.02 25ppm2021-2022 | K32: G - Hudson Valley (Rockland) | L32: 1x0 GE 7HA.02 25ppm | M32: 2021-2022 | N32: 54.07187673 | O32: 52.62175541 | P32: - | Q32: - | R32: - | S32: - | T32: -
B33: j25 | C33: j25_J_Yes_No_1 | D33: j25_J_Yes_Yes_1 | E33: j25_J_No_No_1 | F33: j25_J_No_Yes_1 | G33: j25_J_Bat_Bat_Yes_Bat | H33: 1 | I33: J | J33: J - New York City1x0 GE 7HA.02 25ppm2021-2022 | K33: J - New York City | L33: 1x0 GE 7HA.02 25ppm | M33: 2021-2022 | N33: 41.18555489 | O33: - | P33: - | Q33: - | R33: - | S33: - | T33: -
B34: j25 | C34: j25_K_Yes_No_1 | D34: j25_K_Yes_Yes_1 | E34: j25_K_No_No_1 | F34: j25_K_No_Yes_1 | G34: j25_K_Bat_Bat_Yes_Bat | H34: 1 | I34: K | J34: K - Long Island1x0 GE 7HA.02 25ppm2021-2022 | K34: K - Long Island | L34: 1x0 GE 7HA.02 25ppm | M34: 2021-2022 | N34: 57.85209542 | O34: - | P34: - | Q34: - | R34: - | S34: - | T34: -
B35: j15 | C35: j15_C_Yes_No_1 | D35: j15_C_Yes_Yes_1 | E35: j15_C_No_No_1 | F35: j15_C_No_Yes_1 | G35: j15_C_Bat_Bat_Yes_Bat | H35: 1 | I35: C | J35: =K35&L35&M35 -> C - Central1x0 GE 7HA.02 15ppm2021-2022 | K35: C - Central | L35: 1x0 GE 7HA.02 15ppm | M35: 2021-2022 | N35: - | O35: - | P35: - | Q35: - | R35: 44.04375635 | S35: 44.04375635 | T35: -
B36: j15 | C36: j15_F_Yes_No_1 | D36: j15_F_Yes_Yes_1 | E36: j15_F_No_No_1 | F36: j15_F_No_Yes_1 | G36: j15_F_Bat_Bat_Yes_Bat | H36: 1 | I36: F | J36: F - Capital1x0 GE 7HA.02 15ppm2021-2022 | K36: F - Capital | L36: 1x0 GE 7HA.02 15ppm | M36: 2021-2022 | N36: - | O36: - | P36: - | Q36: - | R36: 36.24497637 | S36: 35.23457692 | T36: -
B37: j15 | C37: j15_G1_Yes_No_1 | D37: j15_G1_Yes_Yes_1 | E37: j15_G1_No_No_1 | F37: j15_G1_No_Yes_1 | G37: j15_G1_Bat_Bat_Yes_Bat | H37: 1 | I37: G1 | J37: =K37&L37&M37 -> G - Hudson Valley (Dutchess)1x0 GE 7HA.02 15ppm2021-2022 | K37: G - Hudson Valley (Dutchess) | L37: 1x0 GE 7HA.02 15ppm | M37: 2021-2022 | N37: - | O37: - | P37: - | Q37: - | R37: 34.18584846 | S37: 33.4078727 | T37: -
B38: j15 | C38: j15_G2_Yes_No_1 | D38: j15_G2_Yes_Yes_1 | E38: j15_G2_No_No_1 | F38: j15_G2_No_Yes_1 | G38: j15_G2_Bat_Bat_Yes_Bat | H38: 1 | I38: G2 | J38: =K38&L38&M38 -> G - Hudson Valley (Rockland)1x0 GE 7HA.02 15ppm2021-2022 | K38: G - Hudson Valley (Rockland) | L38: 1x0 GE 7HA.02 15ppm | M38: 2021-2022 | N38: - | O38: - | P38: - | Q38: - | R38: - | S38: - | T38: -
B39: j15 | C39: j15_J_Yes_No_1 | D39: j15_J_Yes_Yes_1 | E39: j15_J_No_No_1 | F39: j15_J_No_Yes_1 | G39: j15_J_Bat_Bat_Yes_Bat | H39: 1 | I39: J | J39: =K39&L39&M39 -> J - New York City1x0 GE 7HA.02 15ppm2021-2022 | K39: J - New York City | L39: 1x0 GE 7HA.02 15ppm | M39: 2021-2022 | N39: - | O39: - | P39: - | Q39: - | R39: - | S39: - | T39: -
B40: j15 | C40: j15_K_Yes_No_1 | D40: j15_K_Yes_Yes_1 | E40: j15_K_No_No_1 | F40: j15_K_No_Yes_1 | G40: j15_K_Bat_Bat_Yes_Bat | H40: 1 | I40: K | J40: K - Long Island1x0 GE 7HA.02 15ppm2021-2022 | K40: K - Long Island | L40: 1x0 GE 7HA.02 15ppm | M40: 2021-2022 | N40: - | O40: - | P40: - | Q40: - | R40: - | S40: - | T40: -
B41: ccj | C41: ccj_C_Yes_No_1 | D41: ccj_C_Yes_Yes_1 | E41: ccj_C_No_No_1 | F41: ccj_C_No_Yes_1 | G41: ccj_C_Bat_Bat_Yes_Bat | H41: 1 | I41: =LEFT(K41,1) -> C | J41: =K41&L41&M41 -> C - Central8000J CC2021-2022 | K41: C - Central | L41: 8000J CC | M41: 2021-2022 | N41: - | O41: - | P41: 77.54103162 | Q41: 77.54103162 | R41: - | S41: - | T41: -
B42: ccj | C42: ccj_F_Yes_No_1 | D42: ccj_F_Yes_Yes_1 | E42: ccj_F_No_No_1 | F42: ccj_F_No_Yes_1 | G42: ccj_F_Bat_Bat_Yes_Bat | H42: 1 | I42: =LEFT(K42,1) -> F | J42: F - Capital8000J CC2021-2022 | K42: F - Capital | L42: 8000J CC | M42: 2021-2022 | N42: - | O42: - | P42: 72.170222 | Q42: 68.49694855 | R42: - | S42: - | T42: -
B43: ccj | C43: ccj_G1_Yes_No_1 | D43: ccj_G1_Yes_Yes_1 | E43: ccj_G1_No_No_1 | F43: ccj_G1_No_Yes_1 | G43: ccj_G1_Bat_Bat_Yes_Bat | H43: 1 | I43: G1 | J43: G - Hudson Valley (Dutchess)8000J CC2021-2022 | K43: G - Hudson Valley (Dutchess) | L43: 8000J CC | M43: 2021-2022 | N43: - | O43: - | P43: 72.85096533 | Q43: 69.81426067 | R43: - | S43: - | T43: -
B44: ccj | C44: ccj_G2_Yes_No_1 | D44: ccj_G2_Yes_Yes_1 | E44: ccj_G2_No_No_1 | F44: ccj_G2_No_Yes_1 | G44: ccj_G2_Bat_Bat_Yes_Bat | H44: 1 | I44: G2 | J44: =K44&L44&M44 -> G - Hudson Valley (Rockland)8000J CC2021-2022 | K44: G - Hudson Valley (Rockland) | L44: 8000J CC | M44: 2021-2022 | N44: - | O44: - | P44: 106.0974362 | Q44: 102.8932797 | R44: - | S44: - | T44: -
B45: ccj | C45: ccj_J_Yes_No_1 | D45: ccj_J_Yes_Yes_1 | E45: ccj_J_No_No_1 | F45: ccj_J_No_Yes_1 | G45: ccj_J_Bat_Bat_Yes_Bat | H45: 1 | I45: =LEFT(K45,1) -> J | J45: =K45&L45&M45 -> J - New York City8000J CC2021-2022 | K45: J - New York City | L45: 8000J CC | M45: 2021-2022 | N45: - | O45: - | P45: 101.180692 | Q45: - | R45: - | S45: - | T45: -
B46: ccj | C46: ccj_K_Yes_No_1 | D46: ccj_K_Yes_Yes_1 | E46: ccj_K_No_No_1 | F46: ccj_K_No_Yes_1 | G46: ccj_K_Bat_Bat_Yes_Bat | H46: 1 | I46: =LEFT(K46,1) -> K | J46: K - Long Island8000J CC2021-2022 | K46: K - Long Island | L46: 8000J CC | M46: 2021-2022 | N46: - | O46: - | P46: 132.1959703 | Q46: - | R46: - | S46: - | T46: -
B47: bat4 | C47: bat4_C_Yes_No_1 | D47: bat4_C_Yes_Yes_1 | E47: bat4_C_No_No_1 | F47: bat4_C_No_Yes_1 | G47: bat4_C_Bat_Bat_Yes_Bat | H47: 1 | I47: C | J47: C - CentralBESS 4h2021-2022 | K47: C - Central | L47: BESS 4h | M47: 2021-2022 | N47: - | O47: - | P47: - | Q47: - | R47: - | S47: - | T47: 49.4548771
B48: bat4 | C48: bat4_F_Yes_No_1 | D48: bat4_F_Yes_Yes_1 | E48: bat4_F_No_No_1 | F48: bat4_F_No_Yes_1 | G48: bat4_F_Bat_Bat_Yes_Bat | H48: 1 | I48: F | J48: F - CapitalBESS 4h2021-2022 | K48: F - Capital | L48: BESS 4h | M48: 2021-2022 | N48: - | O48: - | P48: - | Q48: - | R48: - | S48: - | T48: 52.81049617
B49: bat4 | C49: bat4_G1_Yes_No_1 | D49: bat4_G1_Yes_Yes_1 | E49: bat4_G1_No_No_1 | F49: bat4_G1_No_Yes_1 | G49: bat4_G1_Bat_Bat_Yes_Bat | H49: 1 | I49: G1 | J49: G - Hudson Valley (Dutchess)BESS 4h2021-2022 | K49: G - Hudson Valley (Dutchess) | L49: BESS 4h | M49: 2021-2022 | N49: - | O49: - | P49: - | Q49: - | R49: - | S49: - | T49: 56.50204722
B50: bat4 | C50: bat4_G2_Yes_No_1 | D50: bat4_G2_Yes_Yes_1 | E50: bat4_G2_No_No_1 | F50: bat4_G2_No_Yes_1 | G50: bat4_G2_Bat_Bat_Yes_Bat | H50: 1 | I50: G2 | J50: =K50&L50&M50 -> G - Hudson Valley (Rockland)BESS 4h2021-2022 | K50: G - Hudson Valley (Rockland) | L50: BESS 4h | M50: 2021-2022 | N50: - | O50: - | P50: - | Q50: - | R50: - | S50: - | T50: 55.06353459
B51: bat4 | C51: bat4_J_Yes_No_1 | D51: bat4_J_Yes_Yes_1 | E51: bat4_J_No_No_1 | F51: bat4_J_No_Yes_1 | G51: bat4_J_Bat_Bat_Yes_Bat | H51: 1 | I51: J | J51: =K51&L51&M51 -> J - New York CityBESS 4h2021-2022 | K51: J - New York City | L51: BESS 4h | M51: 2021-2022 | N51: - | O51: - | P51: - | Q51: - | R51: - | S51: - | T51: 57.04427937
B52: bat4 | C52: bat4_K_Yes_No_1 | D52: bat4_K_Yes_Yes_1 | E52: bat4_K_No_No_1 | F52: bat4_K_No_Yes_1 | G52: bat4_K_Bat_Bat_Yes_Bat | H52: 1 | I52: K | J52: K - Long IslandBESS 4h2021-2022 | K52: K - Long Island | L52: BESS 4h | M52: 2021-2022 | N52: - | O52: - | P52: - | Q52: - | R52: - | S52: - | T52: 66.9909387
B53: bat6 | C53: bat6_C_Yes_No_1 | D53: bat6_C_Yes_Yes_1 | E53: bat6_C_No_No_1 | F53: bat6_C_No_Yes_1 | G53: bat6_C_Bat_Bat_Yes_Bat | H53: 1 | I53: =LEFT(K53,1) -> C | J53: =K53&L53&M53 -> C - CentralBESS 6h2021-2022 | K53: C - Central | L53: BESS 6h | M53: 2021-2022 | N53: - | O53: - | P53: - | Q53: - | R53: - | S53: - | T53: 49.72729142
B54: bat6 | C54: bat6_F_Yes_No_1 | D54: bat6_F_Yes_Yes_1 | E54: bat6_F_No_No_1 | F54: bat6_F_No_Yes_1 | G54: bat6_F_Bat_Bat_Yes_Bat | H54: 1 | I54: =LEFT(K54,1) -> F | J54: F - CapitalBESS 6h2021-2022 | K54: F - Capital | L54: BESS 6h | M54: 2021-2022 | N54: - | O54: - | P54: - | Q54: - | R54: - | S54: - | T54: 51.3519993
B55: bat6 | C55: bat6_G1_Yes_No_1 | D55: bat6_G1_Yes_Yes_1 | E55: bat6_G1_No_No_1 | F55: bat6_G1_No_Yes_1 | G55: bat6_G1_Bat_Bat_Yes_Bat | H55: 1 | I55: G1 | J55: G - Hudson Valley (Dutchess)BESS 6h2021-2022 | K55: G - Hudson Valley (Dutchess) | L55: BESS 6h | M55: 2021-2022 | N55: - | O55: - | P55: - | Q55: - | R55: - | S55: - | T55: 57.93256454
B56: bat6 | C56: bat6_G2_Yes_No_1 | D56: bat6_G2_Yes_Yes_1 | E56: bat6_G2_No_No_1 | F56: bat6_G2_No_Yes_1 | G56: bat6_G2_Bat_Bat_Yes_Bat | H56: 1 | I56: G2 | J56: =K56&L56&M56 -> G - Hudson Valley (Rockland)BESS 6h2021-2022 | K56: G - Hudson Valley (Rockland) | L56: BESS 6h | M56: 2021-2022 | N56: - | O56: - | P56: - | Q56: - | R56: - | S56: - | T56: 55.10610295
B57: bat6 | C57: bat6_J_Yes_No_1 | D57: bat6_J_Yes_Yes_1 | E57: bat6_J_No_No_1 | F57: bat6_J_No_Yes_1 | G57: bat6_J_Bat_Bat_Yes_Bat | H57: 1 | I57: =LEFT(K57,1) -> J | J57: =K57&L57&M57 -> J - New York CityBESS 6h2021-2022 | K57: J - New York City | L57: BESS 6h | M57: 2021-2022 | N57: - | O57: - | P57: - | Q57: - | R57: - | S57: - | T57: 57.4636991
B58: bat6 | C58: bat6_K_Yes_No_1 | D58: bat6_K_Yes_Yes_1 | E58: bat6_K_No_No_1 | F58: bat6_K_No_Yes_1 | G58: bat6_K_Bat_Bat_Yes_Bat | H58: 1 | I58: =LEFT(K58,1) -> K | J58: K - Long IslandBESS 6h2021-2022 | K58: K - Long Island | L58: BESS 6h | M58: 2021-2022 | N58: - | O58: - | P58: - | Q58: - | R58: - | S58: - | T58: 71.47075055
B59: bat8 | C59: bat8_C_Yes_No_1 | D59: bat8_C_Yes_Yes_1 | E59: bat8_C_No_No_1 | F59: bat8_C_No_Yes_1 | G59: bat8_C_Bat_Bat_Yes_Bat | H59: 1 | I59: =LEFT(K59,1) -> C | J59: C - CentralBESS 8h2021-2022 | K59: C - Central | L59: BESS 8h | M59: 2021-2022 | N59: - | O59: - | P59: - | Q59: - | R59: - | S59: - | T59: 47.95150303
B60: bat8 | C60: bat8_F_Yes_No_1 | D60: bat8_F_Yes_Yes_1 | E60: bat8_F_No_No_1 | F60: bat8_F_No_Yes_1 | G60: bat8_F_Bat_Bat_Yes_Bat | H60: 1 | I60: =LEFT(K60,1) -> F | J60: F - CapitalBESS 8h2021-2022 | K60: F - Capital | L60: BESS 8h | M60: 2021-2022 | N60: - | O60: - | P60: - | Q60: - | R60: - | S60: - | T60: 49.19842103
B61: bat8 | C61: bat8_G1_Yes_No_1 | D61: bat8_G1_Yes_Yes_1 | E61: bat8_G1_No_No_1 | F61: bat8_G1_No_Yes_1 | G61: bat8_G1_Bat_Bat_Yes_Bat | H61: 1 | I61: G1 | J61: G - Hudson Valley (Dutchess)BESS 8h2021-2022 | K61: G - Hudson Valley (Dutchess) | L61: BESS 8h | M61: 2021-2022 | N61: - | O61: - | P61: - | Q61: - | R61: - | S61: - | T61: 56.0639011
B62: bat8 | C62: bat8_G2_Yes_No_1 | D62: bat8_G2_Yes_Yes_1 | E62: bat8_G2_No_No_1 | F62: bat8_G2_No_Yes_1 | G62: bat8_G2_Bat_Bat_Yes_Bat | H62: 1 | I62: G2 | J62: =K62&L62&M62 -> G - Hudson Valley (Rockland)BESS 8h2021-2022 | K62: G - Hudson Valley (Rockland) | L62: BESS 8h | M62: 2021-2022 | N62: - | O62: - | P62: - | Q62: - | R62: - | S62: - | T62: 53.26606941
B63: bat8 | C63: bat8_J_Yes_No_1 | D63: bat8_J_Yes_Yes_1 | E63: bat8_J_No_No_1 | F63: bat8_J_No_Yes_1 | G63: bat8_J_Bat_Bat_Yes_Bat | H63: 1 | I63: =LEFT(K63,1) -> J | J63: =K63&L63&M63 -> J - New York CityBESS 8h2021-2022 | K63: J - New York City | L63: BESS 8h | M63: 2021-2022 | N63: - | O63: - | P63: - | Q63: - | R63: - | S63: - | T63: 56.1949376
B64: bat8 | C64: bat8_K_Yes_No_1 | D64: bat8_K_Yes_Yes_1 | E64: bat8_K_No_No_1 | F64: bat8_K_No_Yes_1 | G64: bat8_K_Bat_Bat_Yes_Bat | H64: 1 | I64: =LEFT(K64,1) -> K | J64: K - Long IslandBESS 8h2021-2022 | K64: K - Long Island | L64: BESS 8h | M64: 2021-2022 | N64: - | O64: - | P64: - | Q64: - | R64: - | S64: - | T64: 71.98403231
B65: aero | C65: aero_C_Yes_No_1 | D65: aero_C_Yes_Yes_1 | E65: aero_C_No_No_1 | F65: aero_C_No_Yes_1 | G65: =$B65&"_"&$I65&"_"&"Bat_Bat_Yes_Bat" -> aero_C_Bat_Bat_Yes_Bat | H65: 1 | I65: =LEFT(K65,1) -> C | J65: C - CentralSGT-A65 WLE2022-2023 | K65: C - Central | L65: SGT-A65 WLE | M65: 2022-2023
B66: aero | C66: aero_F_Yes_No_1 | D66: aero_F_Yes_Yes_1 | E66: aero_F_No_No_1 | F66: aero_F_No_Yes_1 | G66: aero_F_Bat_Bat_Yes_Bat | H66: 1 | I66: =LEFT(K66,1) -> F | J66: F - CapitalSGT-A65 WLE2022-2023 | K66: F - Capital | L66: SGT-A65 WLE | M66: 2022-2023
B67: aero | C67: aero_G1_Yes_No_1 | D67: aero_G1_Yes_Yes_1 | E67: aero_G1_No_No_1 | F67: aero_G1_No_Yes_1 | G67: aero_G1_Bat_Bat_Yes_Bat | H67: 1 | I67: G1 | J67: G - Hudson Valley (Dutchess)SGT-A65 WLE2022-2023 | K67: G - Hudson Valley (Dutchess) | L67: SGT-A65 WLE | M67: 2022-2023
B68: aero | C68: aero_G2_Yes_No_1 | D68: aero_G2_Yes_Yes_1 | E68: aero_G2_No_No_1 | F68: aero_G2_No_Yes_1 | G68: aero_G2_Bat_Bat_Yes_Bat | H68: 1 | I68: G2 | J68: =K68&L68&M68 -> G - Hudson Valley (Rockland)SGT-A65 WLE2022-2023 | K68: G - Hudson Valley (Rockland) | L68: SGT-A65 WLE | M68: 2022-2023
B69: aero | C69: aero_J_Yes_No_1 | D69: aero_J_Yes_Yes_1 | E69: aero_J_No_No_1 | F69: aero_J_No_Yes_1 | G69: aero_J_Bat_Bat_Yes_Bat | H69: 1 | I69: =LEFT(K69,1) -> J | J69: J - New York CitySGT-A65 WLE2022-2023 | K69: J - New York City | L69: SGT-A65 WLE | M69: 2022-2023
B70: aero | C70: aero_K_Yes_No_1 | D70: aero_K_Yes_Yes_1 | E70: aero_K_No_No_1 | F70: aero_K_No_Yes_1 | G70: aero_K_Bat_Bat_Yes_Bat | H70: 1 | I70: =LEFT(K70,1) -> K | J70: K - Long IslandSGT-A65 WLE2022-2023 | K70: K - Long Island | L70: SGT-A65 WLE | M70: 2022-2023
B71: f | C71: f_C_Yes_No_1 | D71: f_C_Yes_Yes_1 | E71: f_C_No_No_1 | F71: f_C_No_Yes_1 | G71: f_C_Bat_Bat_Yes_Bat | H71: 1 | I71: =LEFT(K71,1) -> C | J71: C - CentralGE 7F.052022-2023 | K71: C - Central | L71: GE 7F.05 | M71: 2022-2023
B72: f | C72: f_F_Yes_No_1 | D72: f_F_Yes_Yes_1 | E72: f_F_No_No_1 | F72: f_F_No_Yes_1 | G72: f_F_Bat_Bat_Yes_Bat | H72: 1 | I72: =LEFT(K72,1) -> F | J72: F - CapitalGE 7F.052022-2023 | K72: F - Capital | L72: GE 7F.05 | M72: 2022-2023
B73: f | C73: f_G1_Yes_No_1 | D73: f_G1_Yes_Yes_1 | E73: f_G1_No_No_1 | F73: f_G1_No_Yes_1 | G73: f_G1_Bat_Bat_Yes_Bat | H73: 1 | I73: G1 | J73: G - Hudson Valley (Dutchess)GE 7F.052022-2023 | K73: G - Hudson Valley (Dutchess) | L73: GE 7F.05 | M73: 2022-2023
B74: f | C74: f_G2_Yes_No_1 | D74: f_G2_Yes_Yes_1 | E74: f_G2_No_No_1 | F74: f_G2_No_Yes_1 | G74: f_G2_Bat_Bat_Yes_Bat | H74: 1 | I74: G2 | J74: =K74&L74&M74 -> G - Hudson Valley (Rockland)GE 7F.052022-2023 | K74: G - Hudson Valley (Rockland) | L74: GE 7F.05 | M74: 2022-2023
B75: f | C75: f_J_Yes_No_1 | D75: f_J_Yes_Yes_1 | E75: f_J_No_No_1 | F75: f_J_No_Yes_1 | G75: f_J_Bat_Bat_Yes_Bat | H75: 1 | I75: =LEFT(K75,1) -> J | J75: J - New York CityGE 7F.052022-2023 | K75: J - New York City | L75: GE 7F.05 | M75: 2022-2023
B76: f | C76: f_K_Yes_No_1 | D76: f_K_Yes_Yes_1 | E76: f_K_No_No_1 | F76: f_K_No_Yes_1 | G76: f_K_Bat_Bat_Yes_Bat | H76: 1 | I76: =LEFT(K76,1) -> K | J76: K - Long IslandGE 7F.052022-2023 | K76: K - Long Island | L76: GE 7F.05 | M76: 2022-2023
B77: j25 | C77: j25_C_Yes_No_1 | D77: j25_C_Yes_Yes_1 | E77: j25_C_No_No_1 | F77: j25_C_No_Yes_1 | G77: j25_C_Bat_Bat_Yes_Bat | H77: 1 | I77: C | J77: =K77&L77&M77 -> C - Central1x0 GE 7HA.022022-2023 | K77: C - Central | L77: 1x0 GE 7HA.02 | M77: 2022-2023
B78: j25 | C78: j25_F_Yes_No_1 | D78: j25_F_Yes_Yes_1 | E78: j25_F_No_No_1 | F78: j25_F_No_Yes_1 | G78: j25_F_Bat_Bat_Yes_Bat | H78: 1 | I78: F | J78: F - Capital1x0 GE 7HA.022022-2023 | K78: F - Capital | L78: 1x0 GE 7HA.02 | M78: 2022-2023
B79: j25 | C79: j25_G1_Yes_No_1 | D79: j25_G1_Yes_Yes_1 | E79: j25_G1_No_No_1 | F79: j25_G1_No_Yes_1 | G79: j25_G1_Bat_Bat_Yes_Bat | H79: 1 | I79: G1 | J79: G - Hudson Valley (Dutchess)1x0 GE 7HA.022022-2023 | K79: G - Hudson Valley (Dutchess) | L79: 1x0 GE 7HA.02 | M79: 2022-2023
B80: j25 | C80: j25_G2_Yes_No_1 | D80: j25_G2_Yes_Yes_1 | E80: j25_G2_No_No_1 | F80: j25_G2_No_Yes_1 | G80: j25_G2_Bat_Bat_Yes_Bat | H80: 1 | I80: G2 | J80: G - Hudson Valley (Rockland)1x0 GE 7HA.022022-2023 | K80: G - Hudson Valley (Rockland) | L80: 1x0 GE 7HA.02 | M80: 2022-2023
B81: j25 | C81: j25_J_Yes_No_1 | D81: j25_J_Yes_Yes_1 | E81: j25_J_No_No_1 | F81: j25_J_No_Yes_1 | G81: j25_J_Bat_Bat_Yes_Bat | H81: 1 | I81: J | J81: J - New York City1x0 GE 7HA.022022-2023 | K81: J - New York City | L81: 1x0 GE 7HA.02 | M81: 2022-2023
B82: j25 | C82: =$B82&"_"&$I82&"_"&"Yes_No_"&$H82 -> j25_K_Yes_No_1 | D82: =$B82&"_"&$I82&"_"&"Yes_Yes_"&$H82 -> j25_K_Yes_Yes_1 | E82: =$B82&"_"&$I82&"_"&"No_No_"&$H82 -> j25_K_No_No_1 | F82: =$B82&"_"&$I82&"_"&"No_Yes_"&$H82 -> j25_K_No_Yes_1 | G82: j25_K_Bat_Bat_Yes_Bat | H82: 1 | I82: K | J82: K - Long Island1x0 GE 7HA.022022-2023 | K82: K - Long Island | L82: 1x0 GE 7HA.02 | M82: 2022-2023
B83: j15 | C83: j15_C_Yes_No_1 | D83: j15_C_Yes_Yes_1 | E83: j15_C_No_No_1 | F83: j15_C_No_Yes_1 | G83: j15_C_Bat_Bat_Yes_Bat | H83: 1 | I83: C | J83: C - Central1x0 GE 7HA.02 15ppm2022-2023 | K83: C - Central | L83: 1x0 GE 7HA.02 15ppm | M83: 2022-2023
B84: j15 | C84: j15_F_Yes_No_1 | D84: j15_F_Yes_Yes_1 | E84: j15_F_No_No_1 | F84: j15_F_No_Yes_1 | G84: j15_F_Bat_Bat_Yes_Bat | H84: 1 | I84: F | J84: F - Capital1x0 GE 7HA.02 15ppm2022-2023 | K84: F - Capital | L84: 1x0 GE 7HA.02 15ppm | M84: 2022-2023
B85: j15 | C85: j15_G1_Yes_No_1 | D85: j15_G1_Yes_Yes_1 | E85: j15_G1_No_No_1 | F85: j15_G1_No_Yes_1 | G85: j15_G1_Bat_Bat_Yes_Bat | H85: 1 | I85: G1 | J85: =K85&L85&M85 -> G - Hudson Valley (Dutchess)1x0 GE 7HA.02 15ppm2022-2023 | K85: G - Hudson Valley (Dutchess) | L85: 1x0 GE 7HA.02 15ppm | M85: 2022-2023
B86: j15 | C86: j15_G2_Yes_No_1 | D86: j15_G2_Yes_Yes_1 | E86: j15_G2_No_No_1 | F86: j15_G2_No_Yes_1 | G86: j15_G2_Bat_Bat_Yes_Bat | H86: 1 | I86: G2 | J86: =K86&L86&M86 -> G - Hudson Valley (Rockland)1x0 GE 7HA.02 15ppm2022-2023 | K86: G - Hudson Valley (Rockland) | L86: 1x0 GE 7HA.02 15ppm | M86: 2022-2023
B87: j15 | C87: j15_J_Yes_No_1 | D87: j15_J_Yes_Yes_1 | E87: j15_J_No_No_1 | F87: j15_J_No_Yes_1 | G87: j15_J_Bat_Bat_Yes_Bat | H87: 1 | I87: J | J87: =K87&L87&M87 -> J - New York City1x0 GE 7HA.02 15ppm2022-2023 | K87: J - New York City | L87: 1x0 GE 7HA.02 15ppm | M87: 2022-2023
B88: j15 | C88: j15_K_Yes_No_1 | D88: j15_K_Yes_Yes_1 | E88: j15_K_No_No_1 | F88: j15_K_No_Yes_1 | G88: =$B88&"_"&$I88&"_"&"Bat_Bat_Yes_Bat" -> j15_K_Bat_Bat_Yes_Bat | H88: 1 | I88: K | J88: K - Long Island1x0 GE 7HA.02 15ppm2022-2023 | K88: K - Long Island | L88: 1x0 GE 7HA.02 15ppm | M88: 2022-2023
B89: ccj | C89: ccj_C_Yes_No_1 | D89: ccj_C_Yes_Yes_1 | E89: ccj_C_No_No_1 | F89: ccj_C_No_Yes_1 | G89: ccj_C_Bat_Bat_Yes_Bat | H89: 1 | I89: =LEFT(K89,1) -> C | J89: C - Central8000J CC2022-2023 | K89: C - Central | L89: 8000J CC | M89: 2022-2023
B90: ccj | C90: ccj_F_Yes_No_1 | D90: ccj_F_Yes_Yes_1 | E90: ccj_F_No_No_1 | F90: ccj_F_No_Yes_1 | G90: ccj_F_Bat_Bat_Yes_Bat | H90: 1 | I90: =LEFT(K90,1) -> F | J90: F - Capital8000J CC2022-2023 | K90: F - Capital | L90: 8000J CC | M90: 2022-2023
B91: ccj | C91: ccj_G1_Yes_No_1 | D91: ccj_G1_Yes_Yes_1 | E91: ccj_G1_No_No_1 | F91: ccj_G1_No_Yes_1 | G91: ccj_G1_Bat_Bat_Yes_Bat | H91: 1 | I91: G1 | J91: G - Hudson Valley (Dutchess)8000J CC2022-2023 | K91: G - Hudson Valley (Dutchess) | L91: 8000J CC | M91: 2022-2023
B92: ccj | C92: ccj_G2_Yes_No_1 | D92: ccj_G2_Yes_Yes_1 | E92: ccj_G2_No_No_1 | F92: ccj_G2_No_Yes_1 | G92: ccj_G2_Bat_Bat_Yes_Bat | H92: 1 | I92: G2 | J92: =K92&L92&M92 -> G - Hudson Valley (Rockland)8000J CC2022-2023 | K92: G - Hudson Valley (Rockland) | L92: 8000J CC | M92: 2022-2023
B93: ccj | C93: ccj_J_Yes_No_1 | D93: ccj_J_Yes_Yes_1 | E93: ccj_J_No_No_1 | F93: ccj_J_No_Yes_1 | G93: ccj_J_Bat_Bat_Yes_Bat | H93: 1 | I93: =LEFT(K93,1) -> J | J93: =K93&L93&M93 -> J - New York City8000J CC2022-2023 | K93: J - New York City | L93: 8000J CC | M93: 2022-2023
B94: ccj | C94: ccj_K_Yes_No_1 | D94: ccj_K_Yes_Yes_1 | E94: ccj_K_No_No_1 | F94: ccj_K_No_Yes_1 | G94: ccj_K_Bat_Bat_Yes_Bat | H94: 1 | I94: =LEFT(K94,1) -> K | J94: K - Long Island8000J CC2022-2023 | K94: K - Long Island | L94: 8000J CC | M94: 2022-2023
B95: bat4 | C95: bat4_C_Yes_No_1 | D95: bat4_C_Yes_Yes_1 | E95: bat4_C_No_No_1 | F95: bat4_C_No_Yes_1 | G95: bat4_C_Bat_Bat_Yes_Bat | H95: 1 | I95: C | J95: C - CentralBESS 4h2022-2023 | K95: C - Central | L95: BESS 4h | M95: 2022-2023
B96: bat4 | C96: bat4_F_Yes_No_1 | D96: bat4_F_Yes_Yes_1 | E96: bat4_F_No_No_1 | F96: bat4_F_No_Yes_1 | G96: bat4_F_Bat_Bat_Yes_Bat | H96: 1 | I96: F | J96: F - CapitalBESS 4h2022-2023 | K96: F - Capital | L96: BESS 4h | M96: 2022-2023
B97: bat4 | C97: bat4_G1_Yes_No_1 | D97: bat4_G1_Yes_Yes_1 | E97: bat4_G1_No_No_1 | F97: bat4_G1_No_Yes_1 | G97: bat4_G1_Bat_Bat_Yes_Bat | H97: 1 | I97: G1 | J97: G - Hudson Valley (Dutchess)BESS 4h2022-2023 | K97: G - Hudson Valley (Dutchess) | L97: BESS 4h | M97: 2022-2023
B98: bat4 | C98: bat4_G2_Yes_No_1 | D98: bat4_G2_Yes_Yes_1 | E98: bat4_G2_No_No_1 | F98: bat4_G2_No_Yes_1 | G98: bat4_G2_Bat_Bat_Yes_Bat | H98: 1 | I98: G2 | J98: =K98&L98&M98 -> G - Hudson Valley (Rockland)BESS 4h2022-2023 | K98: G - Hudson Valley (Rockland) | L98: BESS 4h | M98: 2022-2023
B99: bat4 | C99: bat4_J_Yes_No_1 | D99: bat4_J_Yes_Yes_1 | E99: bat4_J_No_No_1 | F99: bat4_J_No_Yes_1 | G99: bat4_J_Bat_Bat_Yes_Bat | H99: 1 | I99: J | J99: =K99&L99&M99 -> J - New York CityBESS 4h2022-2023 | K99: J - New York City | L99: BESS 4h | M99: 2022-2023
B100: bat4 | C100: bat4_K_Yes_No_1 | D100: bat4_K_Yes_Yes_1 | E100: bat4_K_No_No_1 | F100: bat4_K_No_Yes_1 | G100: bat4_K_Bat_Bat_Yes_Bat | H100: 1 | I100: K | J100: K - Long IslandBESS 4h2022-2023 | K100: K - Long Island | L100: BESS 4h | M100: 2022-2023
B101: bat6 | C101: bat6_C_Yes_No_1 | D101: bat6_C_Yes_Yes_1 | E101: bat6_C_No_No_1 | F101: bat6_C_No_Yes_1 | G101: bat6_C_Bat_Bat_Yes_Bat | H101: 1 | I101: =LEFT(K101,1) -> C | J101: =K101&L101&M101 -> C - CentralBESS 6h2022-2023 | K101: C - Central | L101: BESS 6h | M101: 2022-2023
B102: bat6 | C102: bat6_F_Yes_No_1 | D102: bat6_F_Yes_Yes_1 | E102: bat6_F_No_No_1 | F102: bat6_F_No_Yes_1 | G102: bat6_F_Bat_Bat_Yes_Bat | H102: 1 | I102: =LEFT(K102,1) -> F | J102: F - CapitalBESS 6h2022-2023 | K102: F - Capital | L102: BESS 6h | M102: 2022-2023
B103: bat6 | C103: bat6_G1_Yes_No_1 | D103: bat6_G1_Yes_Yes_1 | E103: bat6_G1_No_No_1 | F103: bat6_G1_No_Yes_1 | G103: bat6_G1_Bat_Bat_Yes_Bat | H103: 1 | I103: G1 | J103: G - Hudson Valley (Dutchess)BESS 6h2022-2023 | K103: G - Hudson Valley (Dutchess) | L103: BESS 6h | M103: 2022-2023
B104: bat6 | C104: bat6_G2_Yes_No_1 | D104: bat6_G2_Yes_Yes_1 | E104: bat6_G2_No_No_1 | F104: bat6_G2_No_Yes_1 | G104: bat6_G2_Bat_Bat_Yes_Bat | H104: 1 | I104: G2 | J104: =K104&L104&M104 -> G - Hudson Valley (Rockland)BESS 6h2022-2023 | K104: G - Hudson Valley (Rockland) | L104: BESS 6h | M104: 2022-2023
B105: bat6 | C105: bat6_J_Yes_No_1 | D105: bat6_J_Yes_Yes_1 | E105: bat6_J_No_No_1 | F105: bat6_J_No_Yes_1 | G105: bat6_J_Bat_Bat_Yes_Bat | H105: 1 | I105: =LEFT(K105,1) -> J | J105: =K105&L105&M105 -> J - New York CityBESS 6h2022-2023 | K105: J - New York City | L105: BESS 6h | M105: 2022-2023
B106: bat6 | C106: bat6_K_Yes_No_1 | D106: bat6_K_Yes_Yes_1 | E106: bat6_K_No_No_1 | F106: bat6_K_No_Yes_1 | G106: bat6_K_Bat_Bat_Yes_Bat | H106: 1 | I106: =LEFT(K106,1) -> K | J106: K - Long IslandBESS 8h2022-2023 | K106: K - Long Island | L106: BESS 8h | M106: 2022-2023
B107: bat8 | C107: bat8_C_Yes_No_1 | D107: bat8_C_Yes_Yes_1 | E107: bat8_C_No_No_1 | F107: bat8_C_No_Yes_1 | G107: bat8_C_Bat_Bat_Yes_Bat | H107: 1 | I107: =LEFT(K107,1) -> C | J107: C - CentralBESS 8h2022-2023 | K107: C - Central | L107: BESS 8h | M107: 2022-2023
B108: bat8 | C108: bat8_F_Yes_No_1 | D108: bat8_F_Yes_Yes_1 | E108: bat8_F_No_No_1 | F108: bat8_F_No_Yes_1 | G108: bat8_F_Bat_Bat_Yes_Bat | H108: 1 | I108: =LEFT(K108,1) -> F | J108: F - CapitalBESS 8h2022-2023 | K108: F - Capital | L108: BESS 8h | M108: 2022-2023
B109: bat8 | C109: bat8_G1_Yes_No_1 | D109: bat8_G1_Yes_Yes_1 | E109: bat8_G1_No_No_1 | F109: bat8_G1_No_Yes_1 | G109: bat8_G1_Bat_Bat_Yes_Bat | H109: 1 | I109: G1 | J109: G - Hudson Valley (Dutchess)BESS 8h2022-2023 | K109: G - Hudson Valley (Dutchess) | L109: BESS 8h | M109: 2022-2023
B110: bat8 | C110: bat8_G2_Yes_No_1 | D110: bat8_G2_Yes_Yes_1 | E110: bat8_G2_No_No_1 | F110: bat8_G2_No_Yes_1 | G110: bat8_G2_Bat_Bat_Yes_Bat | H110: 1 | I110: G2 | J110: =K110&L110&M110 -> G - Hudson Valley (Rockland)BESS 8h2022-2023 | K110: G - Hudson Valley (Rockland) | L110: BESS 8h | M110: 2022-2023
B111: bat8 | C111: bat8_J_Yes_No_1 | D111: bat8_J_Yes_Yes_1 | E111: bat8_J_No_No_1 | F111: bat8_J_No_Yes_1 | G111: bat8_J_Bat_Bat_Yes_Bat | H111: 1 | I111: =LEFT(K111,1) -> J | J111: =K111&L111&M111 -> J - New York CityBESS 8h2022-2023 | K111: J - New York City | L111: BESS 8h | M111: 2022-2023
B112: bat8 | C112: bat8_K_Yes_No_1 | D112: bat8_K_Yes_Yes_1 | E112: bat8_K_No_No_1 | F112: bat8_K_No_Yes_1 | G112: bat8_K_Bat_Bat_Yes_Bat | H112: 1 | I112: =LEFT(K112,1) -> K | J112: K - Long IslandBESS 8h2022-2023 | K112: K - Long Island | L112: BESS 8h | M112: 2022-2023
B113: aero | C113: aero_C_Yes_No_1 | D113: aero_C_Yes_Yes_1 | E113: aero_C_No_No_1 | F113: aero_C_No_Yes_1 | G113: =$B113&"_"&$I113&"_"&"Bat_Bat_Yes_Bat" -> aero_C_Bat_Bat_Yes_Bat | H113: 1 | I113: =LEFT(K113,1) -> C | J113: C - CentralSGT-A65 WLE2023-2024 | K113: C - Central | L113: SGT-A65 WLE | M113: 2023-2024
B114: aero | C114: aero_F_Yes_No_1 | D114: aero_F_Yes_Yes_1 | E114: aero_F_No_No_1 | F114: aero_F_No_Yes_1 | G114: =$B114&"_"&$I114&"_"&"Bat_Bat_Yes_Bat" -> aero_F_Bat_Bat_Yes_Bat | H114: 1 | I114: =LEFT(K114,1) -> F | J114: F - CapitalSGT-A65 WLE2023-2024 | K114: F - Capital | L114: SGT-A65 WLE | M114: 2023-2024
B115: aero | C115: aero_G1_Yes_No_1 | D115: aero_G1_Yes_Yes_1 | E115: aero_G1_No_No_1 | F115: aero_G1_No_Yes_1 | G115: aero_G1_Bat_Bat_Yes_Bat | H115: 1 | I115: G1 | J115: G - Hudson Valley (Dutchess)SGT-A65 WLE2023-2024 | K115: G - Hudson Valley (Dutchess) | L115: SGT-A65 WLE | M115: 2023-2024
B116: aero | C116: aero_G2_Yes_No_1 | D116: aero_G2_Yes_Yes_1 | E116: aero_G2_No_No_1 | F116: aero_G2_No_Yes_1 | G116: aero_G2_Bat_Bat_Yes_Bat | H116: 1 | I116: G2 | J116: G - Hudson Valley (Rockland)SGT-A65 WLE2023-2024 | K116: G - Hudson Valley (Rockland) | L116: SGT-A65 WLE | M116: 2023-2024
B117: aero | C117: aero_J_Yes_No_1 | D117: aero_J_Yes_Yes_1 | E117: aero_J_No_No_1 | F117: aero_J_No_Yes_1 | G117: aero_J_Bat_Bat_Yes_Bat | H117: 1 | I117: =LEFT(K117,1) -> J | J117: J - New York CitySGT-A65 WLE2023-2024 | K117: J - New York City | L117: SGT-A65 WLE | M117: 2023-2024
B118: aero | C118: aero_K_Yes_No_1 | D118: aero_K_Yes_Yes_1 | E118: aero_K_No_No_1 | F118: aero_K_No_Yes_1 | G118: aero_K_Bat_Bat_Yes_Bat | H118: 1 | I118: =LEFT(K118,1) -> K | J118: K - Long IslandSGT-A65 WLE2023-2024 | K118: K - Long Island | L118: SGT-A65 WLE | M118: 2023-2024
B119: f | C119: f_C_Yes_No_1 | D119: f_C_Yes_Yes_1 | E119: f_C_No_No_1 | F119: f_C_No_Yes_1 | G119: f_C_Bat_Bat_Yes_Bat | H119: 1 | I119: =LEFT(K119,1) -> C | J119: C - CentralGE 7F.052023-2024 | K119: C - Central | L119: GE 7F.05 | M119: 2023-2024
B120: f | C120: f_F_Yes_No_1 | D120: f_F_Yes_Yes_1 | E120: f_F_No_No_1 | F120: f_F_No_Yes_1 | G120: f_F_Bat_Bat_Yes_Bat | H120: 1 | I120: =LEFT(K120,1) -> F | J120: F - CapitalGE 7F.052023-2024 | K120: F - Capital | L120: GE 7F.05 | M120: 2023-2024
B121: f | C121: f_G1_Yes_No_1 | D121: f_G1_Yes_Yes_1 | E121: f_G1_No_No_1 | F121: f_G1_No_Yes_1 | G121: f_G1_Bat_Bat_Yes_Bat | H121: 1 | I121: G1 | J121: G - Hudson Valley (Dutchess)GE 7F.052023-2024 | K121: G - Hudson Valley (Dutchess) | L121: GE 7F.05 | M121: 2023-2024
B122: f | C122: f_G2_Yes_No_1 | D122: f_G2_Yes_Yes_1 | E122: f_G2_No_No_1 | F122: f_G2_No_Yes_1 | G122: f_G2_Bat_Bat_Yes_Bat | H122: 1 | I122: G2 | J122: G - Hudson Valley (Rockland)GE 7F.052023-2024 | K122: G - Hudson Valley (Rockland) | L122: GE 7F.05 | M122: 2023-2024
B123: f | C123: f_J_Yes_No_1 | D123: f_J_Yes_Yes_1 | E123: f_J_No_No_1 | F123: f_J_No_Yes_1 | G123: f_J_Bat_Bat_Yes_Bat | H123: 1 | I123: =LEFT(K123,1) -> J | J123: J - New York CityGE 7F.052023-2024 | K123: J - New York City | L123: GE 7F.05 | M123: 2023-2024
B124: f | C124: f_K_Yes_No_1 | D124: f_K_Yes_Yes_1 | E124: f_K_No_No_1 | F124: f_K_No_Yes_1 | G124: f_K_Bat_Bat_Yes_Bat | H124: 1 | I124: =LEFT(K124,1) -> K | J124: K - Long IslandGE 7F.052023-2024 | K124: K - Long Island | L124: GE 7F.05 | M124: 2023-2024
B125: j25 | C125: j25_C_Yes_No_1 | D125: j25_C_Yes_Yes_1 | E125: j25_C_No_No_1 | F125: j25_C_No_Yes_1 | G125: j25_C_Bat_Bat_Yes_Bat | H125: 1 | I125: C | J125: C - Central1x0 GE 7HA.022023-2024 | K125: C - Central | L125: 1x0 GE 7HA.02 | M125: 2023-2024
B126: j25 | C126: j25_F_Yes_No_1 | D126: j25_F_Yes_Yes_1 | E126: j25_F_No_No_1 | F126: j25_F_No_Yes_1 | G126: j25_F_Bat_Bat_Yes_Bat | H126: 1 | I126: F | J126: F - Capital1x0 GE 7HA.022023-2024 | K126: F - Capital | L126: 1x0 GE 7HA.02 | M126: 2023-2024
B127: j25 | C127: j25_G1_Yes_No_1 | D127: j25_G1_Yes_Yes_1 | E127: j25_G1_No_No_1 | F127: j25_G1_No_Yes_1 | G127: j25_G1_Bat_Bat_Yes_Bat | H127: 1 | I127: G1 | J127: G - Hudson Valley (Dutchess)1x0 GE 7HA.022023-2024 | K127: G - Hudson Valley (Dutchess) | L127: 1x0 GE 7HA.02 | M127: 2023-2024
B128: j25 | C128: j25_G2_Yes_No_1 | D128: j25_G2_Yes_Yes_1 | E128: j25_G2_No_No_1 | F128: j25_G2_No_Yes_1 | G128: j25_G2_Bat_Bat_Yes_Bat | H128: 1 | I128: G2 | J128: G - Hudson Valley (Rockland)1x0 GE 7HA.022023-2024 | K128: G - Hudson Valley (Rockland) | L128: 1x0 GE 7HA.02 | M128: 2023-2024
B129: j25 | C129: j25_J_Yes_No_1 | D129: j25_J_Yes_Yes_1 | E129: j25_J_No_No_1 | F129: j25_J_No_Yes_1 | G129: j25_J_Bat_Bat_Yes_Bat | H129: 1 | I129: J | J129: J - New York City1x0 GE 7HA.022023-2024 | K129: J - New York City | L129: 1x0 GE 7HA.02 | M129: 2023-2024
B130: j25 | C130: j25_K_Yes_No_1 | D130: j25_K_Yes_Yes_1 | E130: j25_K_No_No_1 | F130: j25_K_No_Yes_1 | G130: j25_K_Bat_Bat_Yes_Bat | H130: 1 | I130: K | J130: K - Long Island1x0 GE 7HA.022023-2024 | K130: K - Long Island | L130: 1x0 GE 7HA.02 | M130: 2023-2024
B131: j15 | C131: j15_C_Yes_No_1 | D131: j15_C_Yes_Yes_1 | E131: j15_C_No_No_1 | F131: j15_C_No_Yes_1 | G131: j15_C_Bat_Bat_Yes_Bat | H131: 1 | I131: C | J131: C - Central1x0 GE 7HA.02 15ppm2023-2024 | K131: C - Central | L131: 1x0 GE 7HA.02 15ppm | M131: 2023-2024
B132: j15 | C132: j15_F_Yes_No_1 | D132: j15_F_Yes_Yes_1 | E132: j15_F_No_No_1 | F132: j15_F_No_Yes_1 | G132: j15_F_Bat_Bat_Yes_Bat | H132: 1 | I132: F | J132: F - Capital1x0 GE 7HA.02 15ppm2023-2024 | K132: F - Capital | L132: 1x0 GE 7HA.02 15ppm | M132: 2023-2024
B133: j15 | C133: j15_G1_Yes_No_1 | D133: j15_G1_Yes_Yes_1 | E133: j15_G1_No_No_1 | F133: j15_G1_No_Yes_1 | G133: j15_G1_Bat_Bat_Yes_Bat | H133: 1 | I133: G1 | J133: =K133&L133&M133 -> G - Hudson Valley (Dutchess)1x0 GE 7HA.02 15ppm2023-2024 | K133: G - Hudson Valley (Dutchess) | L133: 1x0 GE 7HA.02 15ppm | M133: 2023-2024
B134: j15 | C134: j15_G2_Yes_No_1 | D134: j15_G2_Yes_Yes_1 | E134: j15_G2_No_No_1 | F134: j15_G2_No_Yes_1 | G134: j15_G2_Bat_Bat_Yes_Bat | H134: 1 | I134: G2 | J134: =K134&L134&M134 -> G - Hudson Valley (Rockland)1x0 GE 7HA.02 15ppm2023-2024 | K134: G - Hudson Valley (Rockland) | L134: 1x0 GE 7HA.02 15ppm | M134: 2023-2024
B135: j15 | C135: j15_J_Yes_No_1 | D135: j15_J_Yes_Yes_1 | E135: j15_J_No_No_1 | F135: j15_J_No_Yes_1 | G135: j15_J_Bat_Bat_Yes_Bat | H135: 1 | I135: J | J135: =K135&L135&M135 -> J - New York City1x0 GE 7HA.02 15ppm2023-2024 | K135: J - New York City | L135: 1x0 GE 7HA.02 15ppm | M135: 2023-2024
B136: j15 | C136: j15_K_Yes_No_1 | D136: j15_K_Yes_Yes_1 | E136: j15_K_No_No_1 | F136: j15_K_No_Yes_1 | G136: j15_K_Bat_Bat_Yes_Bat | H136: 1 | I136: K | J136: K - Long Island1x0 GE 7HA.02 15ppm2023-2024 | K136: K - Long Island | L136: 1x0 GE 7HA.02 15ppm | M136: 2023-2024
B137: ccj | C137: ccj_C_Yes_No_1 | D137: ccj_C_Yes_Yes_1 | E137: ccj_C_No_No_1 | F137: ccj_C_No_Yes_1 | G137: ccj_C_Bat_Bat_Yes_Bat | H137: 1 | I137: =LEFT(K137,1) -> C | J137: C - Central8000J CC2023-2024 | K137: C - Central | L137: 8000J CC | M137: 2023-2024
B138: ccj | C138: ccj_F_Yes_No_1 | D138: ccj_F_Yes_Yes_1 | E138: ccj_F_No_No_1 | F138: ccj_F_No_Yes_1 | G138: ccj_F_Bat_Bat_Yes_Bat | H138: 1 | I138: =LEFT(K138,1) -> F | J138: F - Capital8000J CC2023-2024 | K138: F - Capital | L138: 8000J CC | M138: 2023-2024
B139: ccj | C139: ccj_G1_Yes_No_1 | D139: ccj_G1_Yes_Yes_1 | E139: ccj_G1_No_No_1 | F139: ccj_G1_No_Yes_1 | G139: ccj_G1_Bat_Bat_Yes_Bat | H139: 1 | I139: G1 | J139: G - Hudson Valley (Dutchess)8000J CC2023-2024 | K139: G - Hudson Valley (Dutchess) | L139: 8000J CC | M139: 2023-2024
B140: ccj | C140: ccj_G2_Yes_No_1 | D140: ccj_G2_Yes_Yes_1 | E140: ccj_G2_No_No_1 | F140: ccj_G2_No_Yes_1 | G140: ccj_G2_Bat_Bat_Yes_Bat | H140: 1 | I140: G2 | J140: =K140&L140&M140 -> G - Hudson Valley (Rockland)8000J CC2023-2024 | K140: G - Hudson Valley (Rockland) | L140: 8000J CC | M140: 2023-2024
B141: ccj | C141: ccj_J_Yes_No_1 | D141: ccj_J_Yes_Yes_1 | E141: ccj_J_No_No_1 | F141: ccj_J_No_Yes_1 | G141: ccj_J_Bat_Bat_Yes_Bat | H141: 1 | I141: =LEFT(K141,1) -> J | J141: =K141&L141&M141 -> J - New York City8000J CC2023-2024 | K141: J - New York City | L141: 8000J CC | M141: 2023-2024
B142: ccj | C142: ccj_K_Yes_No_1 | D142: ccj_K_Yes_Yes_1 | E142: ccj_K_No_No_1 | F142: ccj_K_No_Yes_1 | G142: ccj_K_Bat_Bat_Yes_Bat | H142: 1 | I142: =LEFT(K142,1) -> K | J142: K - Long Island8000J CC2023-2024 | K142: K - Long Island | L142: 8000J CC | M142: 2023-2024
B143: bat4 | C143: bat4_C_Yes_No_1 | D143: bat4_C_Yes_Yes_1 | E143: bat4_C_No_No_1 | F143: bat4_C_No_Yes_1 | G143: bat4_C_Bat_Bat_Yes_Bat | H143: 1 | I143: C | J143: C - CentralBESS 4h2023-2024 | K143: C - Central | L143: BESS 4h | M143: 2023-2024
B144: bat4 | C144: bat4_F_Yes_No_1 | D144: bat4_F_Yes_Yes_1 | E144: bat4_F_No_No_1 | F144: bat4_F_No_Yes_1 | G144: bat4_F_Bat_Bat_Yes_Bat | H144: 1 | I144: F | J144: F - CapitalBESS 4h2023-2024 | K144: F - Capital | L144: BESS 4h | M144: 2023-2024
B145: bat4 | C145: bat4_G1_Yes_No_1 | D145: bat4_G1_Yes_Yes_1 | E145: bat4_G1_No_No_1 | F145: bat4_G1_No_Yes_1 | G145: bat4_G1_Bat_Bat_Yes_Bat | H145: 1 | I145: G1 | J145: G - Hudson Valley (Dutchess)BESS 4h2023-2024 | K145: G - Hudson Valley (Dutchess) | L145: BESS 4h | M145: 2023-2024
B146: bat4 | C146: =$B146&"_"&$I146&"_"&"Yes_No_"&$H146 -> bat4_G2_Yes_No_1 | D146: =$B146&"_"&$I146&"_"&"Yes_Yes_"&$H146 -> bat4_G2_Yes_Yes_1 | E146: =$B146&"_"&$I146&"_"&"No_No_"&$H146 -> bat4_G2_No_No_1 | F146: =$B146&"_"&$I146&"_"&"No_Yes_"&$H146 -> bat4_G2_No_Yes_1 | G146: bat4_G2_Bat_Bat_Yes_Bat | H146: 1 | I146: G2 | J146: =K146&L146&M146 -> G - Hudson Valley (Rockland)BESS 4h2023-2024 | K146: G - Hudson Valley (Rockland) | L146: BESS 4h | M146: 2023-2024
B147: bat4 | C147: bat4_J_Yes_No_1 | D147: bat4_J_Yes_Yes_1 | E147: bat4_J_No_No_1 | F147: bat4_J_No_Yes_1 | G147: bat4_J_Bat_Bat_Yes_Bat | H147: 1 | I147: J | J147: =K147&L147&M147 -> J - New York CityBESS 4h2023-2024 | K147: J - New York City | L147: BESS 4h | M147: 2023-2024
B148: bat4 | C148: bat4_K_Yes_No_1 | D148: bat4_K_Yes_Yes_1 | E148: bat4_K_No_No_1 | F148: bat4_K_No_Yes_1 | G148: bat4_K_Bat_Bat_Yes_Bat | H148: 1 | I148: K | J148: K - Long IslandBESS 4h2023-2024 | K148: K - Long Island | L148: BESS 4h | M148: 2023-2024
B149: bat6 | C149: bat6_C_Yes_No_1 | D149: bat6_C_Yes_Yes_1 | E149: bat6_C_No_No_1 | F149: bat6_C_No_Yes_1 | G149: bat6_C_Bat_Bat_Yes_Bat | H149: 1 | I149: =LEFT(K149,1) -> C | J149: =K149&L149&M149 -> C - CentralBESS 6h2023-2024 | K149: C - Central | L149: BESS 6h | M149: 2023-2024
B150: bat6 | C150: bat6_F_Yes_No_1 | D150: bat6_F_Yes_Yes_1 | E150: bat6_F_No_No_1 | F150: bat6_F_No_Yes_1 | G150: bat6_F_Bat_Bat_Yes_Bat | H150: 1 | I150: =LEFT(K150,1) -> F | J150: F - CapitalBESS 6h2023-2024 | K150: F - Capital | L150: BESS 6h | M150: 2023-2024
B151: bat6 | C151: bat6_G1_Yes_No_1 | D151: bat6_G1_Yes_Yes_1 | E151: bat6_G1_No_No_1 | F151: bat6_G1_No_Yes_1 | G151: bat6_G1_Bat_Bat_Yes_Bat | H151: 1 | I151: G1 | J151: G - Hudson Valley (Dutchess)BESS 6h2023-2024 | K151: G - Hudson Valley (Dutchess) | L151: BESS 6h | M151: 2023-2024
B152: bat6 | C152: bat6_G2_Yes_No_1 | D152: bat6_G2_Yes_Yes_1 | E152: bat6_G2_No_No_1 | F152: bat6_G2_No_Yes_1 | G152: bat6_G2_Bat_Bat_Yes_Bat | H152: 1 | I152: G2 | J152: =K152&L152&M152 -> G - Hudson Valley (Rockland)BESS 6h2023-2024 | K152: G - Hudson Valley (Rockland) | L152: BESS 6h | M152: 2023-2024
B153: bat6 | C153: bat6_J_Yes_No_1 | D153: bat6_J_Yes_Yes_1 | E153: bat6_J_No_No_1 | F153: bat6_J_No_Yes_1 | G153: bat6_J_Bat_Bat_Yes_Bat | H153: 1 | I153: =LEFT(K153,1) -> J | J153: =K153&L153&M153 -> J - New York CityBESS 6h2023-2024 | K153: J - New York City | L153: BESS 6h | M153: 2023-2024
B154: bat6 | C154: bat6_K_Yes_No_1 | D154: bat6_K_Yes_Yes_1 | E154: bat6_K_No_No_1 | F154: bat6_K_No_Yes_1 | G154: bat6_K_Bat_Bat_Yes_Bat | H154: 1 | I154: =LEFT(K154,1) -> K | J154: K - Long IslandBESS 6h2023-2024 | K154: K - Long Island | L154: BESS 6h | M154: 2023-2024
B155: bat8 | C155: bat8_C_Yes_No_1 | D155: bat8_C_Yes_Yes_1 | E155: bat8_C_No_No_1 | F155: bat8_C_No_Yes_1 | G155: bat8_C_Bat_Bat_Yes_Bat | H155: 1 | I155: =LEFT(K155,1) -> C | J155: C - CentralBESS 8h2023-2024 | K155: C - Central | L155: BESS 8h | M155: 2023-2024
B156: bat8 | C156: bat8_F_Yes_No_1 | D156: bat8_F_Yes_Yes_1 | E156: bat8_F_No_No_1 | F156: bat8_F_No_Yes_1 | G156: bat8_F_Bat_Bat_Yes_Bat | H156: 1 | I156: =LEFT(K156,1) -> F | J156: F - CapitalBESS 8h2023-2024 | K156: F - Capital | L156: BESS 8h | M156: 2023-2024
B157: bat8 | C157: bat8_G1_Yes_No_1 | D157: bat8_G1_Yes_Yes_1 | E157: bat8_G1_No_No_1 | F157: bat8_G1_No_Yes_1 | G157: bat8_G1_Bat_Bat_Yes_Bat | H157: 1 | I157: G1 | J157: G - Hudson Valley (Dutchess)BESS 8h2023-2024 | K157: G - Hudson Valley (Dutchess) | L157: BESS 8h | M157: 2023-2024
B158: bat8 | C158: bat8_G2_Yes_No_1 | D158: bat8_G2_Yes_Yes_1 | E158: bat8_G2_No_No_1 | F158: bat8_G2_No_Yes_1 | G158: bat8_G2_Bat_Bat_Yes_Bat | H158: 1 | I158: G2 | J158: =K158&L158&M158 -> G - Hudson Valley (Rockland)BESS 8h2023-2024 | K158: G - Hudson Valley (Rockland) | L158: BESS 8h | M158: 2023-2024
B159: bat8 | C159: bat8_J_Yes_No_1 | D159: bat8_J_Yes_Yes_1 | E159: bat8_J_No_No_1 | F159: bat8_J_No_Yes_1 | G159: bat8_J_Bat_Bat_Yes_Bat | H159: 1 | I159: =LEFT(K159,1) -> J | J159: =K159&L159&M159 -> J - New York CityBESS 8h2023-2024 | K159: J - New York City | L159: BESS 8h | M159: 2023-2024
B160: bat8 | C160: bat8_K_Yes_No_1 | D160: bat8_K_Yes_Yes_1 | E160: bat8_K_No_No_1 | F160: bat8_K_No_Yes_1 | G160: bat8_K_Bat_Bat_Yes_Bat | H160: 1 | I160: =LEFT(K160,1) -> K | J160: K - Long IslandBESS 8h2023-2024 | K160: K - Long Island | L160: BESS 8h | M160: 2023-2024
B161: aero | C161: aero_C_Yes_No_1 | D161: aero_C_Yes_Yes_1 | E161: aero_C_No_No_1 | F161: aero_C_No_Yes_1 | G161: =$B161&"_"&$I161&"_"&"Bat_Bat_Yes_Bat" -> aero_C_Bat_Bat_Yes_Bat | H161: 1 | I161: =LEFT(K161,1) -> C | J161: =K161&L161&M161 -> C - CentralSGT-A65 WLE2024-2025 | K161: C - Central | L161: SGT-A65 WLE | M161: 2024-2025
B162: aero | C162: aero_F_Yes_No_1 | D162: aero_F_Yes_Yes_1 | E162: aero_F_No_No_1 | F162: aero_F_No_Yes_1 | G162: =$B162&"_"&$I162&"_"&"Bat_Bat_Yes_Bat" -> aero_F_Bat_Bat_Yes_Bat | H162: 1 | I162: =LEFT(K162,1) -> F | J162: =K162&L162&M162 -> F - CapitalSGT-A65 WLE2024-2025 | K162: F - Capital | L162: SGT-A65 WLE | M162: 2024-2025
B163: aero | C163: aero_G1_Yes_No_1 | D163: aero_G1_Yes_Yes_1 | E163: aero_G1_No_No_1 | F163: aero_G1_No_Yes_1 | G163: aero_G1_Bat_Bat_Yes_Bat | H163: 1 | I163: G1 | J163: =K163&L163&M163 -> G - Hudson Valley (Dutchess)SGT-A65 WLE2024-2025 | K163: G - Hudson Valley (Dutchess) | L163: SGT-A65 WLE | M163: 2024-2025
B164: aero | C164: aero_G2_Yes_No_1 | D164: aero_G2_Yes_Yes_1 | E164: aero_G2_No_No_1 | F164: aero_G2_No_Yes_1 | G164: aero_G2_Bat_Bat_Yes_Bat | H164: 1 | I164: G2 | J164: =K164&L164&M164 -> G - Hudson Valley (Rockland)SGT-A65 WLE2024-2025 | K164: G - Hudson Valley (Rockland) | L164: SGT-A65 WLE | M164: 2024-2025
B165: aero | C165: aero_J_Yes_No_1 | D165: aero_J_Yes_Yes_1 | E165: aero_J_No_No_1 | F165: aero_J_No_Yes_1 | G165: aero_J_Bat_Bat_Yes_Bat | H165: 1 | I165: =LEFT(K165,1) -> J | J165: =K165&L165&M165 -> J - New York CitySGT-A65 WLE2024-2025 | K165: J - New York City | L165: SGT-A65 WLE | M165: 2024-2025
B166: aero | C166: aero_K_Yes_No_1 | D166: aero_K_Yes_Yes_1 | E166: aero_K_No_No_1 | F166: aero_K_No_Yes_1 | G166: aero_K_Bat_Bat_Yes_Bat | H166: 1 | I166: =LEFT(K166,1) -> K | J166: K - Long IslandSGT-A65 WLE2024-2025 | K166: K - Long Island | L166: SGT-A65 WLE | M166: 2024-2025
B167: f | C167: f_C_Yes_No_1 | D167: f_C_Yes_Yes_1 | E167: f_C_No_No_1 | F167: f_C_No_Yes_1 | G167: f_C_Bat_Bat_Yes_Bat | H167: 1 | I167: =LEFT(K167,1) -> C | J167: C - CentralGE 7F.052024-2025 | K167: C - Central | L167: GE 7F.05 | M167: 2024-2025
B168: f | C168: f_F_Yes_No_1 | D168: f_F_Yes_Yes_1 | E168: f_F_No_No_1 | F168: f_F_No_Yes_1 | G168: f_F_Bat_Bat_Yes_Bat | H168: 1 | I168: =LEFT(K168,1) -> F | J168: F - CapitalGE 7F.052024-2025 | K168: F - Capital | L168: GE 7F.05 | M168: 2024-2025
B169: f | C169: f_G1_Yes_No_1 | D169: f_G1_Yes_Yes_1 | E169: f_G1_No_No_1 | F169: f_G1_No_Yes_1 | G169: f_G1_Bat_Bat_Yes_Bat | H169: 1 | I169: G1 | J169: G - Hudson Valley (Dutchess)GE 7F.052024-2025 | K169: G - Hudson Valley (Dutchess) | L169: GE 7F.05 | M169: 2024-2025
B170: f | C170: f_G2_Yes_No_1 | D170: f_G2_Yes_Yes_1 | E170: f_G2_No_No_1 | F170: f_G2_No_Yes_1 | G170: f_G2_Bat_Bat_Yes_Bat | H170: 1 | I170: G2 | J170: =K170&L170&M170 -> G - Hudson Valley (Rockland)GE 7F.052024-2025 | K170: G - Hudson Valley (Rockland) | L170: GE 7F.05 | M170: 2024-2025
B171: f | C171: f_J_Yes_No_1 | D171: f_J_Yes_Yes_1 | E171: f_J_No_No_1 | F171: f_J_No_Yes_1 | G171: f_J_Bat_Bat_Yes_Bat | H171: 1 | I171: =LEFT(K171,1) -> J | J171: =K171&L171&M171 -> J - New York CityGE 7F.052024-2025 | K171: J - New York City | L171: GE 7F.05 | M171: 2024-2025
B172: f | C172: f_K_Yes_No_1 | D172: f_K_Yes_Yes_1 | E172: f_K_No_No_1 | F172: f_K_No_Yes_1 | G172: f_K_Bat_Bat_Yes_Bat | H172: 1 | I172: =LEFT(K172,1) -> K | J172: K - Long IslandGE 7F.052024-2025 | K172: K - Long Island | L172: GE 7F.05 | M172: 2024-2025
B173: j25 | C173: j25_C_Yes_No_1 | D173: j25_C_Yes_Yes_1 | E173: j25_C_No_No_1 | F173: j25_C_No_Yes_1 | G173: j25_C_Bat_Bat_Yes_Bat | H173: 1 | I173: C | J173: C - Central1x0 GE 7HA.022024-2025 | K173: C - Central | L173: 1x0 GE 7HA.02 | M173: 2024-2025
B174: j25 | C174: j25_F_Yes_No_1 | D174: j25_F_Yes_Yes_1 | E174: j25_F_No_No_1 | F174: j25_F_No_Yes_1 | G174: j25_F_Bat_Bat_Yes_Bat | H174: 1 | I174: F | J174: F - Capital1x0 GE 7HA.022024-2025 | K174: F - Capital | L174: 1x0 GE 7HA.02 | M174: 2024-2025
B175: j25 | C175: j25_G1_Yes_No_1 | D175: j25_G1_Yes_Yes_1 | E175: j25_G1_No_No_1 | F175: j25_G1_No_Yes_1 | G175: j25_G1_Bat_Bat_Yes_Bat | H175: 1 | I175: G1 | J175: G - Hudson Valley (Dutchess)1x0 GE 7HA.022024-2025 | K175: G - Hudson Valley (Dutchess) | L175: 1x0 GE 7HA.02 | M175: 2024-2025
B176: j25 | C176: j25_G2_Yes_No_1 | D176: j25_G2_Yes_Yes_1 | E176: j25_G2_No_No_1 | F176: j25_G2_No_Yes_1 | G176: j25_G2_Bat_Bat_Yes_Bat | H176: 1 | I176: G2 | J176: =K176&L176&M176 -> G - Hudson Valley (Rockland)1x0 GE 7HA.022024-2025 | K176: G - Hudson Valley (Rockland) | L176: 1x0 GE 7HA.02 | M176: 2024-2025
B177: j25 | C177: j25_J_Yes_No_1 | D177: j25_J_Yes_Yes_1 | E177: j25_J_No_No_1 | F177: j25_J_No_Yes_1 | G177: j25_J_Bat_Bat_Yes_Bat | H177: 1 | I177: J | J177: =K177&L177&M177 -> J - New York City1x0 GE 7HA.022024-2025 | K177: J - New York City | L177: 1x0 GE 7HA.02 | M177: 2024-2025
B178: j25 | C178: j25_K_Yes_No_1 | D178: j25_K_Yes_Yes_1 | E178: j25_K_No_No_1 | F178: j25_K_No_Yes_1 | G178: j25_K_Bat_Bat_Yes_Bat | H178: 1 | I178: K | J178: K - Long Island1x0 GE 7HA.022024-2025 | K178: K - Long Island | L178: 1x0 GE 7HA.02 | M178: 2024-2025
B179: j15 | C179: j15_C_Yes_No_1 | D179: j15_C_Yes_Yes_1 | E179: j15_C_No_No_1 | F179: j15_C_No_Yes_1 | G179: j15_C_Bat_Bat_Yes_Bat | H179: 1 | I179: C | J179: C - Central1x0 GE 7HA.02 15ppm2024-2025 | K179: C - Central | L179: 1x0 GE 7HA.02 15ppm | M179: 2024-2025
B180: j15 | C180: j15_F_Yes_No_1 | D180: j15_F_Yes_Yes_1 | E180: j15_F_No_No_1 | F180: j15_F_No_Yes_1 | G180: j15_F_Bat_Bat_Yes_Bat | H180: 1 | I180: F | J180: F - Capital1x0 GE 7HA.02 15ppm2024-2025 | K180: F - Capital | L180: 1x0 GE 7HA.02 15ppm | M180: 2024-2025
B181: j15 | C181: j15_G1_Yes_No_1 | D181: j15_G1_Yes_Yes_1 | E181: j15_G1_No_No_1 | F181: j15_G1_No_Yes_1 | G181: j15_G1_Bat_Bat_Yes_Bat | H181: 1 | I181: G1 | J181: =K181&L181&M181 -> G - Hudson Valley (Dutchess)1x0 GE 7HA.02 15ppm2024-2025 | K181: G - Hudson Valley (Dutchess) | L181: 1x0 GE 7HA.02 15ppm | M181: 2024-2025
B182: j15 | C182: j15_G2_Yes_No_1 | D182: j15_G2_Yes_Yes_1 | E182: j15_G2_No_No_1 | F182: j15_G2_No_Yes_1 | G182: j15_G2_Bat_Bat_Yes_Bat | H182: 1 | I182: G2 | J182: =K182&L182&M182 -> G - Hudson Valley (Rockland)1x0 GE 7HA.02 15ppm2024-2025 | K182: G - Hudson Valley (Rockland) | L182: 1x0 GE 7HA.02 15ppm | M182: 2024-2025
B183: j15 | C183: j15_J_Yes_No_1 | D183: j15_J_Yes_Yes_1 | E183: j15_J_No_No_1 | F183: j15_J_No_Yes_1 | G183: j15_J_Bat_Bat_Yes_Bat | H183: 1 | I183: J | J183: =K183&L183&M183 -> J - New York City1x0 GE 7HA.02 15ppm2024-2025 | K183: J - New York City | L183: 1x0 GE 7HA.02 15ppm | M183: 2024-2025
B184: j15 | C184: j15_K_Yes_No_1 | D184: j15_K_Yes_Yes_1 | E184: j15_K_No_No_1 | F184: j15_K_No_Yes_1 | G184: j15_K_Bat_Bat_Yes_Bat | H184: 1 | I184: K | J184: K - Long Island1x0 GE 7HA.02 15ppm2024-2025 | K184: K - Long Island | L184: 1x0 GE 7HA.02 15ppm | M184: 2024-2025
B185: ccj | C185: ccj_C_Yes_No_1 | D185: ccj_C_Yes_Yes_1 | E185: ccj_C_No_No_1 | F185: ccj_C_No_Yes_1 | G185: ccj_C_Bat_Bat_Yes_Bat | H185: 1 | I185: =LEFT(K185,1) -> C | J185: C - Central8000J CC2024-2025 | K185: C - Central | L185: 8000J CC | M185: 2024-2025
B186: ccj | C186: ccj_F_Yes_No_1 | D186: ccj_F_Yes_Yes_1 | E186: ccj_F_No_No_1 | F186: ccj_F_No_Yes_1 | G186: ccj_F_Bat_Bat_Yes_Bat | H186: 1 | I186: =LEFT(K186,1) -> F | J186: F - Capital8000J CC2024-2025 | K186: F - Capital | L186: 8000J CC | M186: 2024-2025
B187: ccj | C187: ccj_G1_Yes_No_1 | D187: ccj_G1_Yes_Yes_1 | E187: ccj_G1_No_No_1 | F187: ccj_G1_No_Yes_1 | G187: ccj_G1_Bat_Bat_Yes_Bat | H187: 1 | I187: G1 | J187: G - Hudson Valley (Dutchess)8000J CC2024-2025 | K187: G - Hudson Valley (Dutchess) | L187: 8000J CC | M187: 2024-2025
B188: ccj | C188: ccj_G2_Yes_No_1 | D188: ccj_G2_Yes_Yes_1 | E188: ccj_G2_No_No_1 | F188: ccj_G2_No_Yes_1 | G188: ccj_G2_Bat_Bat_Yes_Bat | H188: 1 | I188: G2 | J188: =K188&L188&M188 -> G - Hudson Valley (Rockland)8000J CC2024-2025 | K188: G - Hudson Valley (Rockland) | L188: 8000J CC | M188: 2024-2025
B189: ccj | C189: ccj_J_Yes_No_1 | D189: ccj_J_Yes_Yes_1 | E189: ccj_J_No_No_1 | F189: ccj_J_No_Yes_1 | G189: ccj_J_Bat_Bat_Yes_Bat | H189: 1 | I189: =LEFT(K189,1) -> J | J189: =K189&L189&M189 -> J - New York City8000J CC2024-2025 | K189: J - New York City | L189: 8000J CC | M189: 2024-2025
B190: ccj | C190: ccj_K_Yes_No_1 | D190: ccj_K_Yes_Yes_1 | E190: ccj_K_No_No_1 | F190: ccj_K_No_Yes_1 | G190: ccj_K_Bat_Bat_Yes_Bat | H190: 1 | I190: =LEFT(K190,1) -> K | J190: K - Long Island8000J CC2024-2025 | K190: K - Long Island | L190: 8000J CC | M190: 2024-2025
B191: bat4 | C191: bat4_C_Yes_No_1 | D191: bat4_C_Yes_Yes_1 | E191: bat4_C_No_No_1 | F191: bat4_C_No_Yes_1 | G191: bat4_C_Bat_Bat_Yes_Bat | H191: 1 | I191: C | J191: C - CentralBESS 4h2024-2025 | K191: C - Central | L191: BESS 4h | M191: 2024-2025
B192: bat4 | C192: bat4_F_Yes_No_1 | D192: bat4_F_Yes_Yes_1 | E192: bat4_F_No_No_1 | F192: bat4_F_No_Yes_1 | G192: bat4_F_Bat_Bat_Yes_Bat | H192: 1 | I192: F | J192: F - CapitalBESS 4h2024-2025 | K192: F - Capital | L192: BESS 4h | M192: 2024-2025
B193: bat4 | C193: bat4_G1_Yes_No_1 | D193: bat4_G1_Yes_Yes_1 | E193: bat4_G1_No_No_1 | F193: bat4_G1_No_Yes_1 | G193: bat4_G1_Bat_Bat_Yes_Bat | H193: 1 | I193: G1 | J193: G - Hudson Valley (Dutchess)BESS 4h2024-2025 | K193: G - Hudson Valley (Dutchess) | L193: BESS 4h | M193: 2024-2025
B194: bat4 | C194: bat4_G2_Yes_No_1 | D194: bat4_G2_Yes_Yes_1 | E194: bat4_G2_No_No_1 | F194: bat4_G2_No_Yes_1 | G194: bat4_G2_Bat_Bat_Yes_Bat | H194: 1 | I194: G2 | J194: =K194&L194&M194 -> G - Hudson Valley (Rockland)BESS 4h2024-2025 | K194: G - Hudson Valley (Rockland) | L194: BESS 4h | M194: 2024-2025
B195: bat4 | C195: bat4_J_Yes_No_1 | D195: bat4_J_Yes_Yes_1 | E195: bat4_J_No_No_1 | F195: bat4_J_No_Yes_1 | G195: bat4_J_Bat_Bat_Yes_Bat | H195: 1 | I195: J | J195: =K195&L195&M195 -> J - New York CityBESS 4h2024-2025 | K195: J - New York City | L195: BESS 4h | M195: 2024-2025
B196: bat4 | C196: bat4_K_Yes_No_1 | D196: bat4_K_Yes_Yes_1 | E196: bat4_K_No_No_1 | F196: bat4_K_No_Yes_1 | G196: bat4_K_Bat_Bat_Yes_Bat | H196: 1 | I196: K | J196: K - Long IslandBESS 4h2024-2025 | K196: K - Long Island | L196: BESS 4h | M196: 2024-2025
B197: bat6 | C197: bat6_C_Yes_No_1 | D197: bat6_C_Yes_Yes_1 | E197: bat6_C_No_No_1 | F197: bat6_C_No_Yes_1 | G197: bat6_C_Bat_Bat_Yes_Bat | H197: 1 | I197: =LEFT(K197,1) -> C | J197: =K197&L197&M197 -> C - CentralBESS 6h2024-2025 | K197: C - Central | L197: BESS 6h | M197: 2024-2025
B198: bat6 | C198: bat6_F_Yes_No_1 | D198: bat6_F_Yes_Yes_1 | E198: bat6_F_No_No_1 | F198: bat6_F_No_Yes_1 | G198: bat6_F_Bat_Bat_Yes_Bat | H198: 1 | I198: =LEFT(K198,1) -> F | J198: F - CapitalBESS 6h2024-2025 | K198: F - Capital | L198: BESS 6h | M198: 2024-2025
B199: bat6 | C199: bat6_G1_Yes_No_1 | D199: bat6_G1_Yes_Yes_1 | E199: bat6_G1_No_No_1 | F199: bat6_G1_No_Yes_1 | G199: bat6_G1_Bat_Bat_Yes_Bat | H199: 1 | I199: G1 | J199: G - Hudson Valley (Dutchess)BESS 6h2024-2025 | K199: G - Hudson Valley (Dutchess) | L199: BESS 6h | M199: 2024-2025
B200: bat6 | C200: bat6_G2_Yes_No_1 | D200: bat6_G2_Yes_Yes_1 | E200: bat6_G2_No_No_1 | F200: bat6_G2_No_Yes_1 | G200: bat6_G2_Bat_Bat_Yes_Bat | H200: 1 | I200: G2 | J200: =K200&L200&M200 -> G - Hudson Valley (Rockland)BESS 6h2024-2025 | K200: G - Hudson Valley (Rockland) | L200: BESS 6h | M200: 2024-2025
B201: bat6 | C201: bat6_J_Yes_No_1 | D201: bat6_J_Yes_Yes_1 | E201: bat6_J_No_No_1 | F201: bat6_J_No_Yes_1 | G201: bat6_J_Bat_Bat_Yes_Bat | H201: 1 | I201: =LEFT(K201,1) -> J | J201: =K201&L201&M201 -> J - New York CityBESS 6h2024-2025 | K201: J - New York City | L201: BESS 6h | M201: 2024-2025
B202: bat6 | C202: bat6_K_Yes_No_1 | D202: bat6_K_Yes_Yes_1 | E202: bat6_K_No_No_1 | F202: bat6_K_No_Yes_1 | G202: bat6_K_Bat_Bat_Yes_Bat | H202: 1 | I202: =LEFT(K202,1) -> K | J202: K - Long IslandBESS 6h2024-2025 | K202: K - Long Island | L202: BESS 6h | M202: 2024-2025
B203: bat8 | C203: bat8_C_Yes_No_1 | D203: bat8_C_Yes_Yes_1 | E203: bat8_C_No_No_1 | F203: bat8_C_No_Yes_1 | G203: bat8_C_Bat_Bat_Yes_Bat | H203: 1 | I203: =LEFT(K203,1) -> C | J203: C - CentralBESS 8h2024-2025 | K203: C - Central | L203: BESS 8h | M203: 2024-2025
B204: bat8 | C204: bat8_F_Yes_No_1 | D204: bat8_F_Yes_Yes_1 | E204: bat8_F_No_No_1 | F204: bat8_F_No_Yes_1 | G204: bat8_F_Bat_Bat_Yes_Bat | H204: 1 | I204: =LEFT(K204,1) -> F | J204: F - CapitalBESS 8h2024-2025 | K204: F - Capital | L204: BESS 8h | M204: 2024-2025
B205: bat8 | C205: bat8_G1_Yes_No_1 | D205: bat8_G1_Yes_Yes_1 | E205: bat8_G1_No_No_1 | F205: bat8_G1_No_Yes_1 | G205: bat8_G1_Bat_Bat_Yes_Bat | H205: 1 | I205: G1 | J205: G - Hudson Valley (Dutchess)BESS 8h2024-2025 | K205: G - Hudson Valley (Dutchess) | L205: BESS 8h | M205: 2024-2025
... 3 more rows

Sheet Fixed Inputs-->

Sheet Levelized Factor
B1: Project: | C1: NYISO ICAP Demand Curve | E1: Preliminary - Values subject to change
B2: Date: | C2: 2020-06-01
B3: Worksheet: | C3: Levelized Factor
B5: Calculation of Levelized Factor
B8: Input
B10: Property Tax Rate | C10: =Property_Tax_Rate -> 0.009 | D10: Linked to "Model"
B11: Total Project Capitalized Cost | C11: =Capital_Costs*DMNC_ICAP*1000 -> 262313248.5
B13: Calendar
B14: Operating Year | C14: 1 | D14: 2 | E14: 3 | F14: 4 | G14: 5 | H14: 6 | I14: 7 | J14: 8 | K14: 9 | L14: 10 | M14: 11 | N14: 12 | O14: 13 | P14: 14 | Q14: 15 | R14: 16 | S14: 17 | T14: 18 | U14: 19 | V14: 20 | W14: 21 | X14: 22 | Y14: 23 | Z14: 24 | AA14: 25 | AB14: 26 | AC14: 27 | AD14: 28 | AE14: 29 | AF14: 30
B15: Discount Rate Adjustment | C15: =IF(C14<=Plant_Life,1/(1+ATWACC_Real)^(C14), 0) -> 0.9373820096 | D15: 0.8786850319 | E15: 0.8236635409 | F15: 0.7720873852 | G15: 0.7237408247 | H15: 0.6784216287 | I15: 0.6359402296 | J15: 0.5961189304 | K15: 0.5587911609 | L15: 0.5238007813 | M15: 0.491001429 | N15: 0.4602559062 | O15: 0.4314356063 | P15: 0.4044199756 | Q15: 0.3790960095 | R15: 0.3553577792 | S15: 0.3331059892 | T15: 0 | U15: 0 | V15: 0 | W15: 0 | X15: 0 | Y15: 0 | Z15: 0 | AA15: 0 | AB15: 0 | AC15: 0 | AD15: 0 | AE15: 0 | AF15: 0
B17: Parameters and Exemptions
B18: Loan Period Parameter | C18: 1 | D18: 1 | E18: 1 | F18: 1 | G18: 1 | H18: 1 | I18: 1 | J18: 1 | K18: 1 | L18: 1 | M18: 1 | N18: 1 | O18: 1 | P18: 1 | Q18: 1 | R18: 1 | S18: 1 | T18: 1 | U18: 1 | V18: 1 | W18: 1 | X18: 1 | Y18: 1 | Z18: 1 | AA18: 1 | AB18: 1 | AC18: 1 | AD18: 1 | AE18: 1 | AF18: 1
B19: NYC Property Tax Exemption and Battery Exemption active for 15 years | C19: =IF(OR(AND(Region="J - New York City",PropTax_Abate),AND(LEFT(Unit,4)="BESS",PropTax_Abate)), 1, 0) -> 0 | D19: 0 | E19: 0 | F19: 0 | G19: 0 | H19: 0 | I19: 0 | J19: 0 | K19: 0 | L19: 0 | M19: 0 | N19: 0 | O19: 0 | P19: 0 | Q19: 0 | R19: 0 | S19: 0 | T19: 0 | U19: 0 | V19: 0 | W19: 0 | X19: 0 | Y19: 0 | Z19: 0 | AA19: 0 | AB19: 0 | AC19: 0 | AD19: 0 | AE19: 0 | AF19: 0
B21: Depreciation
B22: Effective Tax Depreciation | C22: =IF(LEFT(Unit,4)="BESS",C23,IF(CC_Flag=TRUE, C25, C24)) -> 0.05 | D22: 0.095 | E22: 0.0855 | F22: 0.077 | G22: 0.0693 | H22: 0.0623 | I22: 0.059 | J22: 0.059 | K22: 0.0591 | L22: 0.059 | M22: 0.0591 | N22: 0.059 | O22: 0.0591 | P22: 0.059 | Q22: 0.0591 | R22: 0.0295 | S22: 0 | T22: 0 | U22: 0 | V22: 0 | W22: 0 | X22: 0 | Y22: 0 | Z22: 0 | AA22: 0 | AB22: 0 | AC22: 0 | AD22: 0 | AE22: 0 | AF22: 0
B23: Tax Depreciation (7 year Bat) | C23: 0.1429 | D23: 0.2449 | E23: 0.1749 | F23: 0.1249 | G23: 0.0893 | H23: 0.0892 | I23: 0.0893 | J23: 0.0446 | K23: 0 | L23: 0 | M23: 0 | N23: 0 | O23: 0 | P23: 0 | Q23: 0 | R23: 0 | S23: 0 | T23: 0 | U23: 0 | V23: 0 | W23: 0 | X23: 0 | Y23: 0 | Z23: 0 | AA23: 0 | AB23: 0 | AC23: 0 | AD23: 0 | AE23: 0 | AF23: 0
B24: Tax Depreciation (15 year SC) | C24: 0.05 | D24: 0.095 | E24: 0.0855 | F24: 0.077 | G24: 0.0693 | H24: 0.0623 | I24: 0.059 | J24: 0.059 | K24: 0.0591 | L24: 0.059 | M24: 0.0591 | N24: 0.059 | O24: 0.0591 | P24: 0.059 | Q24: 0.0591 | R24: 0.0295 | S24: 0 | T24: 0 | U24: 0 | V24: 0 | W24: 0 | X24: 0 | Y24: 0 | Z24: 0 | AA24: 0 | AB24: 0 | AC24: 0 | AD24: 0 | AE24: 0 | AF24: 0
B25: Tax Depreciation (20 year CC) | C25: 0.0375 | D25: 0.07219 | E25: 0.06677 | F25: 0.06177 | G25: 0.05713 | H25: 0.05285 | I25: 0.04888 | J25: 0.04522 | K25: 0.04462 | L25: 0.04461 | M25: 0.04462 | N25: 0.04461 | O25: 0.04462 | P25: 0.04461 | Q25: 0.04462 | R25: 0.04461 | S25: 0.04462 | T25: 0.04461 | U25: 0.04462 | V25: 0.04461 | W25: 0.02231 | X25: 0 | Y25: 0 | Z25: 0 | AA25: 0 | AB25: 0 | AC25: 0 | AD25: 0 | AE25: 0 | AF25: 0
B28: Financing
B29: Equity | C29: =C11*(1-Debt_Fraction) -> 118040961.8
B30: Target Cash Flow to Equity | C30: =IF(C14<=Plant_Life,PMT(Equity_Rate_Real,Plant_Life,(-1*$C$29),,0),0) -> 15335924.18 | D30: 15335924.18 | E30: 15335924.18 | F30: 15335924.18 | G30: 15335924.18 | H30: 15335924.18 | I30: 15335924.18 | J30: 15335924.18 | K30: 15335924.18 | L30: 15335924.18 | M30: 15335924.18 | N30: 15335924.18 | O30: 15335924.18 | P30: 15335924.18 | Q30: 15335924.18 | R30: 15335924.18 | S30: 15335924.18 | T30: 0 | U30: 0 | V30: 0 | W30: 0 | X30: 0 | Y30: 0 | Z30: 0 | AA30: 0 | AB30: 0 | AC30: 0 | AD30: 0 | AE30: 0 | AF30: 0
B32: Debt Service | C32: =C11*Debt_Fraction -> 144272286.7
B33: Principal | C33: =IF(C14<=Plant_Life,PPMT(Debt_Rate_Real,C14,Plant_Life,-1*$C$32,,0),0) -> 5351260.825 | D33: 5644767.785 | E33: 5954373.07 | F33: 6280959.643 | G33: 6625458.899 | H33: 6988853.315 | I33: 7372179.256 | J33: 7776529.93 | K33: 8203058.506 | L33: 8652981.401 | M33: 9127581.752 | N33: 9628213.073 | O33: 10156303.11 | P33: 10713357.94 | Q33: 11300966.21 | R33: 11920803.73 | S33: 12574638.21 | T33: 0 | U33: 0 | V33: 0 | W33: 0 | X33: 0 | Y33: 0 | Z33: 0 | AA33: 0 | AB33: 0 | AC33: 0 | AD33: 0 | AE33: 0 | AF33: 0
B34: Loan Balance Start of Year | C34: =C32 -> 144272286.7 | D34: =C34-C33 -> 138921025.8 | E34: 133276258 | F34: 127321885 | G34: 121040925.3 | H34: 114415466.4 | I34: 107426613.1 | J34: 100054433.9 | K34: 92277903.93 | L34: 84074845.42 | M34: 75421864.02 | N34: 66294282.27 | O34: 56666069.2 | P34: 46509766.08 | Q34: 35796408.15 | R34: 24495441.94 | S34: 12574638.21 | T34: -4.656612873e-08 | U34: -4.656612873e-08 | V34: -4.656612873e-08 | W34: -4.656612873e-08 | X34: -4.656612873e-08 | Y34: -4.656612873e-08 | Z34: -4.656612873e-08 | AA34: -4.656612873e-08 | AB34: -4.656612873e-08 | AC34: -4.656612873e-08 | AD34: -4.656612873e-08 | AE34: -4.656612873e-08 | AF34: -4.656612873e-08
B35: Interest | C35: =IF(C14<=Plant_Life,IPMT(Debt_Rate_Real,C18,Plant_Life,-1*C34,,0),0) -> 7913073.509 | D35: 7619566.549 | E35: 7309961.264 | F35: 6983374.69 | G35: 6638875.434 | H35: 6275481.019 | I35: 5892155.078 | J35: 5487804.404 | K35: 5061275.828 | L35: 4611352.932 | M35: 4136752.581 | N35: 3636121.261 | O35: 3108031.219 | P35: 2550976.396 | Q35: 1963368.126 | R35: 1343530.606 | S35: 689696.1213 | T35: 0 | U35: 0 | V35: 0 | W35: 0 | X35: 0 | Y35: 0 | Z35: 0 | AA35: 0 | AB35: 0 | AC35: 0 | AD35: 0 | AE35: 0 | AF35: 0
B37: Yearly Debt Service (Principal + Interest) | C37: =SUM(C33,C35) -> 13264334.33 | D37: 13264334.33 | E37: 13264334.33 | F37: 13264334.33 | G37: 13264334.33 | H37: 13264334.33 | I37: 13264334.33 | J37: 13264334.33 | K37: 13264334.33 | L37: 13264334.33 | M37: 13264334.33 | N37: 13264334.33 | O37: 13264334.33 | P37: 13264334.33 | Q37: 13264334.33 | R37: 13264334.33 | S37: 13264334.33 | T37: 0 | U37: 0 | V37: 0 | W37: 0 | X37: 0 | Y37: 0 | Z37: 0 | AA37: 0 | AB37: 0 | AC37: 0 | AD37: 0 | AE37: 0 | AF37: 0
B39: Capital Related Expenses
B40: Property Taxes | C40: =IF(C19,0,IF(C14<=Plant_Life,$C$10*$C$11,0)) -> 2360819.236 | D40: 2360819.236 | E40: 2360819.236 | F40: 2360819.236 | G40: 2360819.236 | H40: 2360819.236 | I40: 2360819.236 | J40: 2360819.236 | K40: 2360819.236 | L40: 2360819.236 | M40: 2360819.236 | N40: 2360819.236 | O40: 2360819.236 | P40: 2360819.236 | Q40: 2360819.236 | R40: 2360819.236 | S40: 2360819.236 | T40: 0 | U40: 0 | V40: 0 | W40: 0 | X40: 0 | Y40: 0 | Z40: 0 | AA40: 0 | AB40: 0 | AC40: 0 | AD40: 0 | AE40: 0 | AF40: 0
B41: Tax Depreciation | C41: =$C$11*C22 -> 13115662.42 | D41: 24919758.6 | E41: 22427782.74 | F41: 20198120.13 | G41: 18178308.12 | H41: 16342115.38 | I41: 15476481.66 | J41: 15476481.66 | K41: 15502712.98 | L41: 15476481.66 | M41: 15502712.98 | N41: 15476481.66 | O41: 15502712.98 | P41: 15476481.66 | Q41: 15502712.98 | R41: 7738240.829 | S41: 0 | T41: 0 | U41: 0 | V41: 0 | W41: 0 | X41: 0 | Y41: 0 | Z41: 0 | AA41: 0 | AB41: 0 | AC41: 0 | AD41: 0 | AE41: 0 | AF41: 0
B43: Derivation of Carrying Charges
B44: Target Equity IRR | C44: =Equity_Rate_Real -> 0.1067580803
B45: Principal | C45: =C33 -> 5351260.825 | D45: 5644767.785 | E45: 5954373.07 | F45: 6280959.643 | G45: 6625458.899 | H45: 6988853.315 | I45: 7372179.256 | J45: 7776529.93 | K45: 8203058.506 | L45: 8652981.401 | M45: 9127581.752 | N45: 9628213.073 | O45: 10156303.11 | P45: 10713357.94 | Q45: 11300966.21 | R45: 11920803.73 | S45: 12574638.21 | T45: 0 | U45: 0 | V45: 0 | W45: 0 | X45: 0 | Y45: 0 | Z45: 0 | AA45: 0 | AB45: 0 | AC45: 0 | AD45: 0 | AE45: 0 | AF45: 0
B46: Interest | C46: =C35 -> 7913073.509 | D46: 7619566.549 | E46: 7309961.264 | F46: 6983374.69 | G46: 6638875.434 | H46: 6275481.019 | I46: 5892155.078 | J46: 5487804.404 | K46: 5061275.828 | L46: 4611352.932 | M46: 4136752.581 | N46: 3636121.261 | O46: 3108031.219 | P46: 2550976.396 | Q46: 1963368.126 | R46: 1343530.606 | S46: 689696.1213 | T46: 0 | U46: 0 | V46: 0 | W46: 0 | X46: 0 | Y46: 0 | Z46: 0 | AA46: 0 | AB46: 0 | AC46: 0 | AD46: 0 | AE46: 0 | AF46: 0
B47: Target Cash Flow to Equity | C47: =C30 -> 15335924.18 | D47: 15335924.18 | E47: 15335924.18 | F47: 15335924.18 | G47: 15335924.18 | H47: 15335924.18 | I47: 15335924.18 | J47: 15335924.18 | K47: 15335924.18 | L47: 15335924.18 | M47: 15335924.18 | N47: 15335924.18 | O47: 15335924.18 | P47: 15335924.18 | Q47: 15335924.18 | R47: 15335924.18 | S47: 15335924.18 | T47: 0 | U47: 0 | V47: 0 | W47: 0 | X47: 0 | Y47: 0 | Z47: 0 | AA47: 0 | AB47: 0 | AC47: 0 | AD47: 0 | AE47: 0 | AF47: 0
B48: Income Taxes | C48: =(Effective_Tax_Rate/(1-Effective_Tax_Rate))*(C47+C45-C41) -> 2871956.84 | D48: =(Effective_Tax_Rate/(1-Effective_Tax_Rate))*(D47+D45-D41) -> -1494128.726 | E48: -431460.016 | F48: 538151.7441 | G48: 1434959.467 | H48: 2269285.629 | I48: 2743028.948 | J48: 2896403.342 | K48: 3048240.231 | L48: 3228850.452 | M48: 3398921.462 | N48: 3598765.914 | O48: 3789126.116 | P48: 4010372.586 | Q48: 4223308.669 | R48: 7403564.063 | S48: 10586765.04 | T48: 0 | U48: 0 | V48: 0 | W48: 0 | X48: 0 | Y48: 0 | Z48: 0 | AA48: 0 | AB48: =(Effective_Tax_Rate/(1-Effective_Tax_Rate))*(AB47+AB45-AB41) -> 0 | AC48: =(Effective_Tax_Rate/(1-Effective_Tax_Rate))*(AC47+AC45-AC41) -> 0 | AD48: =(Effective_Tax_Rate/(1-Effective_Tax_Rate))*(AD47+AD45-AD41) -> 0 | AE48: =(Effective_Tax_Rate/(1-Effective_Tax_Rate))*(AE47+AE45-AE41) -> 0 | AF48: =(Effective_Tax_Rate/(1-Effective_Tax_Rate))*(AF47+AF45-AF41) -> 0
B49: Property Taxes | C49: =C40 -> 2360819.236 | D49: =D40 -> 2360819.236 | E49: 2360819.236 | F49: 2360819.236 | G49: 2360819.236 | H49: 2360819.236 | I49: 2360819.236 | J49: 2360819.236 | K49: 2360819.236 | L49: =L40 -> 2360819.236 | M49: 2360819.236 | N49: 2360819.236 | O49: 2360819.236 | P49: 2360819.236 | Q49: 2360819.236 | R49: 2360819.236 | S49: 2360819.236 | T49: 0 | U49: 0 | V49: 0 | W49: 0 | X49: 0 | Y49: 0 | Z49: 0 | AA49: 0 | AB49: 0 | AC49: 0 | AD49: 0 | AE49: 0 | AF49: 0
B51: Total Carrying Charges | C51: =SUM(C45:C49) -> 33833034.59 | D51: =SUM(D45:D49) -> 29466949.02 | E51: =SUM(E45:E49) -> 30529617.73 | F51: 31499229.49 | G51: 32396037.21 | H51: 33230363.38 | I51: 33704106.69 | J51: 33857481.09 | K51: 34009317.98 | L51: 34189928.2 | M51: 34359999.21 | N51: 34559843.66 | O51: 34750203.86 | P51: 34971450.33 | Q51: 35184386.42 | R51: 38364641.81 | S51: 41547842.79 | T51: 0 | U51: 0 | V51: 0 | W51: 0 | X51: 0 | Y51: 0 | Z51: 0 | AA51: 0 | AB51: =SUM(AB45:AB49) -> 0 | AC51: =SUM(AC45:AC49) -> 0 | AD51: =SUM(AD45:AD49) -> 0 | AE51: =SUM(AE45:AE49) -> 0 | AF51: =SUM(AF45:AF49) -> 0
B53: Cumulative Present Value | C53: =SUMPRODUCT(C51:AF51, C15:AF15) -> 334317246.7
B54: Levelized Carrying Charges (Real) | C54: =-1*PMT(ATWACC_Real,Plant_Life,$C$53,,0) -> 33487634.9
B55: Levelized Carrying Charge Rate (Real) | C55: =C54/C11 -> 0.1276627662

Sheet Peak Load and IRM
C1: Project: | D1: NYISO ICAP Demand Curve | F1: Preliminary - Values subject to change
C2: Date: | D2: 2020-06-01
C3: Worksheet: | D3: Peak Load and IRM
C5: Peak Load and IRM
B8: Lookup | C8: Zone | D8: Peak Load (2020) | E8: Installed Reserve Margin / Locational Capacity Requirement
B10: K | C10: K - Long Island | D10: 5227 | E10: 1.034
B11: J | C11: J - New York City | D11: 11477 | E11: 0.866
B12: NYCA | C12: NYCA | D12: 32296 | E12: 1.189
B13: G | C13: G-J | D13: 15695 | E13: 0.9
C17: Sources:
C18: 2020 Gold Book, Tables I-3a, I-4a, and I-5.
C19: 2020 - 2021 Locational Minimum Installed Capacity Requirement Study. NYISO.

Sheet AS Adders
B1: Project: | C1: NYISO ICAP Demand Curve | E1: Preliminary - Values subject to change
B2: Date: | C2: 2020-06-01
B3: Worksheet: | C3: AS Adders
B5: AS Adders
B7: Adder Type | C7: Adder ($/kW-Year)
B8: VSS Adder | C8: 2.04
B9: CC Adder | C9: 5.53

Sheet Performance and O&M
D1: Project: | F1: NYISO ICAP Demand Curve | I1: Preliminary - Values subject to change
D2: Date: | F2: 2020-06-01
D3: Worksheet: | F3: Performance and O&M
D5: Performance and O&M Data
F8: SGT-A65 WLE | G8: SGT-A65 WLE | H8: SGT-A65 WLE | I8: SGT-A65 WLE | J8: SGT-A65 WLE | K8: SGT-A65 WLE | M8: GE 7F.05 | N8: GE 7F.05 | O8: GE 7F.05 | P8: GE 7F.05 | Q8: GE 7F.05 | R8: GE 7F.05 | T8: 1x0 GE 7HA.02 25ppm | U8: 1x0 GE 7HA.02 25ppm | V8: 1x0 GE 7HA.02 25ppm | W8: 1x0 GE 7HA.02 25ppm | X8: 1x0 GE 7HA.02 25ppm | Y8: 1x0 GE 7HA.02 25ppm | AA8: 1x0 GE 7HA.02 15ppm | AB8: 1x0 GE 7HA.02 15ppm | AC8: 1x0 GE 7HA.02 15ppm | AE8: 8000J CC | AF8: 8000J CC | AG8: 8000J CC | AH8: 8000J CC | AI8: 8000J CC | AJ8: 8000J CC | AL8: BESS 4h | AM8: BESS 4h | AN8: BESS 4h | AO8: BESS 4h | AP8: BESS 4h | AQ8: BESS 4h | AS8: BESS 6h | AT8: BESS 6h | AU8: BESS 6h | AV8: BESS 6h | AW8: BESS 6h | AX8: BESS 6h | AZ8: BESS 8h | BA8: BESS 8h | BB8: BESS 8h | BC8: BESS 8h | BD8: BESS 8h | BE8: BESS 8h
D9: Technology | F9: Siemens SGT-A65 WLE | M9: GE 7F.05 | T9: 1x0 GE 7HA.02 25ppm dual fuel with SCR | AA9: 1x0 GE 7HA.02 15ppm dual fuel without SCR | AE9: 1x1 GE 7HA.02 CC dual fuel with SCR | AL9: BESS 4h | AS9: BESS 6h | AZ9: BESS 8h
D10: Plant Capacity (MW) | F10: =AVERAGE(F21:K21) -> 158.6666667 | M10: =AVERAGE(M21:R21) -> 208.9833333 | T10: =AVERAGE(T21:Y21) -> 346.8166667 | AA10: =AVERAGE(AA21:AC21) -> 328.3666667 | AE10: =AVERAGE(AE21:AJ21) -> 499.9166667 | AL10: =AVERAGE(AL21:AQ21) -> 200 | AS10: =AVERAGE(AS21:AX21) -> 200 | AZ10: =AVERAGE(AZ21:BE21) -> 200
D12: Lookup | F12: =F13&F8 -> C - CentralSGT-A65 WLE | G12: =G13&F8 -> F - CapitalSGT-A65 WLE | H12: =H13&F8 -> G - Hudson Valley (Dutchess)SGT-A65 WLE | I12: =I13&F8 -> G - Hudson Valley (Rockland)SGT-A65 WLE | J12: =J13&F8 -> J - New York CitySGT-A65 WLE | K12: =K13&F8 -> K - Long IslandSGT-A65 WLE | L12: =L13&L8 ->  | M12: =M13&M8 -> C - CentralGE 7F.05 | N12: =N13&M8 -> F - CapitalGE 7F.05 | O12: =O13&M8 -> G - Hudson Valley (Dutchess)GE 7F.05 | P12: =P13&M8 -> G - Hudson Valley (Rockland)GE 7F.05 | Q12: =Q13&M8 -> J - New York CityGE 7F.05 | R12: =R13&M8 -> K - Long IslandGE 7F.05 | T12: =T13&T8 -> C - Central1x0 GE 7HA.02 25ppm | U12: =U13&T8 -> F - Capital1x0 GE 7HA.02 25ppm | V12: =V13&T8 -> G - Hudson Valley (Dutchess)1x0 GE 7HA.02 25ppm | W12: =W13&T8 -> G - Hudson Valley (Rockland)1x0 GE 7HA.02 25ppm | X12: =X13&T8 -> J - New York City1x0 GE 7HA.02 25ppm | Y12: =Y13&T8 -> K - Long Island1x0 GE 7HA.02 25ppm | AA12: =AA13&AA8 -> C - Central1x0 GE 7HA.02 15ppm | AB12: =AB13&AA8 -> F - Capital1x0 GE 7HA.02 15ppm | AC12: =AC13&AA8 -> G - Hudson Valley (Dutchess)1x0 GE 7HA.02 15ppm | AD12: =AD13&AD8 ->  | AE12: =AE13&AE8 -> C - Central8000J CC | AF12: =AF13&AE8 -> F - Capital8000J CC | AG12: =AG13&AE8 -> G - Hudson Valley (Dutchess)8000J CC | AH12: =AH13&AE8 -> G - Hudson Valley (Rockland)8000J CC | AI12: =AI13&AE8 -> J - New York City8000J CC | AJ12: =AJ13&AE8 -> K - Long Island8000J CC | AL12: =AL13&AL8 -> C - CentralBESS 4h | AM12: =AM13&AL8 -> F - CapitalBESS 4h | AN12: =AN13&AL8 -> G - Hudson Valley (Dutchess)BESS 4h | AO12: =AO13&AL8 -> G - Hudson Valley (Rockland)BESS 4h | AP12: =AP13&AL8 -> J - New York CityBESS 4h | AQ12: =AQ13&AL8 -> K - Long IslandBESS 4h | AS12: =AS13&AS8 -> C - CentralBESS 6h | AT12: =AT13&AS8 -> F - CapitalBESS 6h | AU12: =AU13&AS8 -> G - Hudson Valley (Dutchess)BESS 6h | AV12: =AV13&AS8 -> G - Hudson Valley (Rockland)BESS 6h | AW12: =AW13&AS8 -> J - New York CityBESS 6h | AX12: =AX13&AS8 -> K - Long IslandBESS 6h | AZ12: =AZ13&AZ8 -> C - CentralBESS 8h | BA12: =BA13&AZ8 -> F - CapitalBESS 8h | BB12: =BB13&AZ8 -> G - Hudson Valley (Dutchess)BESS 8h | BC12: =BC13&AZ8 -> G - Hudson Valley (Rockland)BESS 8h | BD12: =BD13&AZ8 -> J - New York CityBESS 8h | BE12: =BE13&AZ8 -> K - Long IslandBESS 8h
D13: Zone | E13: Units | F13: C - Central | G13: F - Capital | H13: G - Hudson Valley (Dutchess) | I13: G - Hudson Valley (Rockland) | J13: J - New York City | K13: K - Long Island | M13: C - Central | N13: F - Capital | O13: G - Hudson Valley (Dutchess) | P13: G - Hudson Valley (Rockland) | Q13: J - New York City | R13: K - Long Island | T13: C - Central | U13: F - Capital | V13: G - Hudson Valley (Dutchess) | W13: G - Hudson Valley (Rockland) | X13: J - New York City | Y13: K - Long Island | AA13: C - Central | AB13: F - Capital | AC13: G - Hudson Valley (Dutchess) | AE13: C - Central | AF13: F - Capital | AG13: G - Hudson Valley (Dutchess) | AH13: G - Hudson Valley (Rockland) | AI13: J - New York City | AJ13: K - Long Island | AL13: C - Central | AM13: F - Capital | AN13: G - Hudson Valley (Dutchess) | AO13: G - Hudson Valley (Rockland) | AP13: J - New York City | AQ13: K - Long Island | AS13: C - Central | AT13: F - Capital | AU13: G - Hudson Valley (Dutchess) | AV13: G - Hudson Valley (Rockland) | AW13: J - New York City | AX13: K - Long Island | AZ13: C - Central | BA13: F - Capital | BB13: G - Hudson Valley (Dutchess) | BC13: G - Hudson Valley (Rockland) | BD13: J - New York City | BE13: K - Long Island
D15: Plant Capacities
C17: Capacity- based on average temp (Summer, MW) | D17: Net Plant Capacity - Summer | E17: MW | F17: 166.3 | G17: 166.3 | H17: 165.9 | I17: 165.9 | J17: 166.4 | K17: 166.1 | M17: 214.3 | N17: 215.2 | O17: 215.5 | P17: 215.4 | Q17: 216.9 | R17: 216.7 | T17: 352.8 | U17: 354.3 | V17: 355.1 | W17: 355 | X17: 357.4 | Y17: 357.2 | AA17: 335.3 | AB17: 336.7 | AC17: 337.4 | AE17: 509.9 | AF17: 513.3 | AG17: 514.7 | AH17: 514.7 | AI17: 512.3 | AJ17: 517.9 | AL17: 200 | AM17: 200 | AN17: 200 | AO17: 200 | AP17: 200 | AQ17: 200 | AS17: 200 | AT17: 200 | AU17: 200 | AV17: 200 | AW17: 200 | AX17: 200 | AZ17: 200 | BA17: 200 | BB17: 200 | BC17: 200 | BD17: 200 | BE17: 200
C18: Capacity- based on average temp (Winter, MW) | D18: Net Plant Capacity - Winter | E18: MW | F18: 188.2 | G18: 188.2 | H18: 188.2 | I18: 188.2 | J18: 188.2 | K18: 188.2 | M18: 225.4 | N18: 226.5 | O18: 226.9 | P18: 226.8 | Q18: 227.3 | R18: 227.7 | T18: 368.1 | U18: 369.9 | V18: 370.8 | W18: 370.7 | X18: 371.6 | Y18: 372.2 | AA18: 346.7 | AB18: 348.4 | AC18: 349.2 | AE18: 539.2 | AF18: 542.1 | AG18: 544.8 | AH18: 544.8 | AI18: 546.7 | AJ18: 547.8 | AL18: 200 | AM18: 200 | AN18: 200 | AO18: 200 | AP18: 200 | AQ18: 200 | AS18: 200 | AT18: 200 | AU18: 200 | AV18: 200 | AW18: 200 | AX18: 200 | AZ18: 200 | BA18: 200 | BB18: 200 | BC18: 200 | BD18: 200 | BE18: 200
C19: DMNC Summer (MW) | D19: DMNC Summer | E19: MW | F19: 163.6 | G19: 163.1 | H19: 163.5 | I19: 163.9 | J19: 164.2 | K19: 162.3 | M19: 211.3 | N19: 211.9 | O19: 213.1 | P19: 211.9 | Q19: 214.7 | R19: 213 | T19: 348.9 | U19: 350.2 | V19: 352 | W19: 350.2 | X19: 354.5 | Y19: 352.6 | AA19: 332 | AB19: 333.2 | AC19: 334.9 | AE19: 486 | AF19: 488.3 | AG19: 486.5 | AH19: 486.5 | AI19: 484.7 | AJ19: 501.6 | AL19: 200 | AM19: 200 | AN19: 200 | AO19: 200 | AP19: 200 | AQ19: 200 | AS19: 200 | AT19: 200 | AU19: 200 | AV19: 200 | AW19: 200 | AX19: 200 | AZ19: 200 | BA19: 200 | BB19: 200 | BC19: 200 | BD19: 200 | BE19: 200
C20: DMNC Winter (MW) | D20: DMNC Winter | E20: MW | F20: 188.2 | G20: 188.2 | H20: 188.2 | I20: 188.2 | J20: 188.2 | K20: 188.2 | M20: 225.9 | N20: 227.1 | O20: 228 | P20: 228 | Q20: 229.2 | R20: 229.2 | T20: 366 | U20: 367.9 | V20: 370.1 | W20: 370.5 | X20: 374.3 | Y20: 373.3 | AA20: 344.8 | AB20: 346.6 | AC20: 348.6 | AE20: 530 | AF20: 532.5 | AG20: 536.3 | AH20: 536.3 | AI20: 544.9 | AJ20: 542.6 | AL20: 200 | AM20: 200 | AN20: 200 | AO20: 200 | AP20: 200 | AQ20: 200 | AS20: 200 | AT20: 200 | AU20: 200 | AV20: 200 | AW20: 200 | AX20: 200 | AZ20: 200 | BA20: 200 | BB20: 200 | BC20: 200 | BD20: 200 | BE20: 200
C21: DMNC ICAP (MW) | D21: DMNC ICAP | E21: MW | F21: 158.6 | G21: 158.6 | H21: 158.7 | I21: 158.7 | J21: 158.7 | K21: 158.7 | M21: 207.1 | N21: 208.2 | O21: 209.1 | P21: 209.1 | Q21: 210.2 | R21: 210.2 | T21: 343.7 | U21: 345.6 | V21: 347 | W21: 347 | X21: 348.8 | Y21: 348.8 | AA21: 326.7 | AB21: 328.5 | AC21: 329.9 | AE21: 495.1 | AF21: 498.5 | AG21: 500.6 | AH21: 500.6 | AI21: 502.2 | AJ21: 502.5 | AL21: 200 | AM21: 200 | AN21: 200 | AO21: 200 | AP21: 200 | AQ21: 200 | AS21: 200 | AT21: 200 | AU21: 200 | AV21: 200 | AW21: 200 | AX21: 200 | AZ21: 200 | BA21: 200 | BB21: 200 | BC21: 200 | BD21: 200 | BE21: 200
D23: Fixed O&M Costs
D25: Fixed O&M and Site Leasing Costs, Excluding Insurance and Property Taxes (2020) | E25: $/kW-Year | F25: 14.69104666 | G25: 15.32156368 | H25: 17.20226843 | I25: 17.20226843 | J25: 43.16320101 | K25: 18.84057971 | M25: 11.25060357 | N25: 11.67146974 | O25: 13.05595409 | P25: 13.05595409 | Q25: 32.58801142 | R25: 14.22454805 | T25: 7.942973523 | U25: 8.188657407 | V25: 9.020172911 | W25: 9.020172911 | X25: 20.78555046 | Y25: 9.719036697 | AA25: 8.356290174 | AB25: 8.614916286 | AC25: 9.487723553 | AE25: 11.36855469 | AF25: 11.92147872 | AG25: 13.75492266 | AH25: 13.75492266 | AI25: 31.02918587 | AJ25: 15.19260839 | AL25: 6 | AM25: 6 | AN25: 6 | AO25: 6 | AP25: 17.15 | AQ25: 6.15 | AS25: 7.5 | AT25: 7.5 | AU25: 7.5 | AV25: 7.5 | AW25: 22.4 | AX25: 7.75 | AZ25: 9.1 | BA25: 9.1 | BB25: 9.1 | BC25: 9.1 | BD25: 27.7 | BE25: 9.4
B27: 2020-2021 | C27: ="FO&M Costs "&B27 -> FO&M Costs 2020-2021 | D27: ="Fixed O&M and Site Leasing Costs, Excluding Insurance and Property Taxes ("&B27&")" -> Fixed O&M and Site Leasing Costs, Excluding Insurance and Property Taxes (2020-2021) | E27: $/kW-Year | F27: =IFERROR(F25*(1+INDEX(Escalation_Factor_Table, MATCH($B27, 'Escalation Factor'!$C$34:$C$39, 0), MATCH(F$8, 'Escalation Factor'!$C$34:$K$34, 0))), "-") -> 14.80386543 | G27: =IFERROR(G25*(1+INDEX(Escalation_Factor_Table, MATCH($B27, 'Escalation Factor'!$C$34:$C$39, 0), MATCH(G$8, 'Escalation Factor'!$C$34:$K$34, 0))), "-") -> 15.43922447 | H27: =IFERROR(H25*(1+INDEX(Escalation_Factor_Table, MATCH($B27, 'Escalation Factor'!$C$34:$C$39, 0), MATCH(H$8, 'Escalation Factor'!$C$34:$K$34, 0))), "-") -> 17.33437194 | I27: =IFERROR(I25*(1+INDEX(Escalation_Factor_Table, MATCH($B27, 'Escalation Factor'!$C$34:$C$39, 0), MATCH(I$8, 'Escalation Factor'!$C$34:$K$34, 0))), "-") -> 17.33437194 | J27: =IFERROR(J25*(1+INDEX(Escalation_Factor_Table, MATCH($B27, 'Escalation Factor'!$C$34:$C$39, 0), MATCH(J$8, 'Escalation Factor'!$C$34:$K$34, 0))), "-") -> 43.49466953 | K27: =IFERROR(K25*(1+INDEX(Escalation_Factor_Table, MATCH($B27, 'Escalation Factor'!$C$34:$C$39, 0), MATCH(K$8, 'Escalation Factor'!$C$34:$K$34, 0))), "-") -> 18.98526451 | M27: =IFERROR(M25*(1+INDEX(Escalation_Factor_Table, MATCH($B27, 'Escalation Factor'!$C$34:$C$39, 0), MATCH(M$8, 'Escalation Factor'!$C$34:$K$34, 0))), "-") -> 11.30797594 | N27: =IFERROR(N25*(1+INDEX(Escalation_Factor_Table, MATCH($B27, 'Escalation Factor'!$C$34:$C$39, 0), MATCH(N$8, 'Escalation Factor'!$C$34:$K$34, 0))), "-") -> 11.73098831 | O27: =IFERROR(O25*(1+INDEX(Escalation_Factor_Table, MATCH($B27, 'Escalation Factor'!$C$34:$C$39, 0), MATCH(O$8, 'Escalation Factor'!$C$34:$K$34, 0))), "-") -> 13.12253282 | P27: =IFERROR(P25*(1+INDEX(Escalation_Factor_Table, MATCH($B27, 'Escalation Factor'!$C$34:$C$39, 0), MATCH(P$8, 'Escalation Factor'!$C$34:$K$34, 0))), "-") -> 13.12253282 | Q27: =IFERROR(Q25*(1+INDEX(Escalation_Factor_Table, MATCH($B27, 'Escalation Factor'!$C$34:$C$39, 0), MATCH(Q$8, 'Escalation Factor'!$C$34:$K$34, 0))), "-") -> 32.75419373 | R27: =IFERROR(R25*(1+INDEX(Escalation_Factor_Table, MATCH($B27, 'Escalation Factor'!$C$34:$C$39, 0), MATCH(R$8, 'Escalation Factor'!$C$34:$K$34, 0))), "-") -> 14.29708602 | T27: =IFERROR(T25*(1+INDEX(Escalation_Factor_Table, MATCH($B27, 'Escalation Factor'!$C$34:$C$39, 0), MATCH(T$8, 'Escalation Factor'!$C$34:$K$34, 0))), "-") -> 7.955640876 | U27: =IFERROR(U25*(1+INDEX(Escalation_Factor_Table, MATCH($B27, 'Escalation Factor'!$C$34:$C$39, 0), MATCH(U$8, 'Escalation Factor'!$C$34:$K$34, 0))), "-") -> 8.201716574 | V27: =IFERROR(V25*(1+INDEX(Escalation_Factor_Table, MATCH($B27, 'Escalation Factor'!$C$34:$C$39, 0), MATCH(V$8, 'Escalation Factor'!$C$34:$K$34, 0))), "-") -> 9.034558167 | W27: =IFERROR(W25*(1+INDEX(Escalation_Factor_Table, MATCH($B27, 'Escalation Factor'!$C$34:$C$39, 0), MATCH(W$8, 'Escalation Factor'!$C$34:$K$34, 0))), "-") -> 9.034558167 | X27: =IFERROR(X25*(1+INDEX(Escalation_Factor_Table, MATCH($B27, 'Escalation Factor'!$C$34:$C$39, 0), MATCH(X$8, 'Escalation Factor'!$C$34:$K$34, 0))), "-") -> 20.81869899 | Y27: =IFERROR(Y25*(1+INDEX(Escalation_Factor_Table, MATCH($B27, 'Escalation Factor'!$C$34:$C$39, 0), MATCH(Y$8, 'Escalation Factor'!$C$34:$K$34, 0))), "-") -> 9.734536493 | AA27: =IFERROR(AA25*(1+INDEX(Escalation_Factor_Table, MATCH($B27, 'Escalation Factor'!$C$34:$C$39, 0), MATCH(AA$8, 'Escalation Factor'!$C$34:$K$34, 0))), "-") -> 8.36961668 | AB27: =IFERROR(AB25*(1+INDEX(Escalation_Factor_Table, MATCH($B27, 'Escalation Factor'!$C$34:$C$39, 0), MATCH(AB$8, 'Escalation Factor'!$C$34:$K$34, 0))), "-") -> 8.628655245 | AC27: =IFERROR(AC25*(1+INDEX(Escalation_Factor_Table, MATCH($B27, 'Escalation Factor'!$C$34:$C$39, 0), MATCH(AC$8, 'Escalation Factor'!$C$34:$K$34, 0))), "-") -> 9.502854453 | AE27: =IFERROR(AE25*(1+INDEX(Escalation_Factor_Table, MATCH($B27, 'Escalation Factor'!$C$34:$C$39, 0), MATCH(AE$8, 'Escalation Factor'!$C$34:$K$34, 0))), "-") -> 11.43566045 | AF27: =IFERROR(AF25*(1+INDEX(Escalation_Factor_Table, MATCH($B27, 'Escalation Factor'!$C$34:$C$39, 0), MATCH(AF$8, 'Escalation Factor'!$C$34:$K$34, 0))), "-") -> 11.99184825 | AG27: =IFERROR(AG25*(1+INDEX(Escalation_Factor_Table, MATCH($B27, 'Escalation Factor'!$C$34:$C$39, 0), MATCH(AG$8, 'Escalation Factor'!$C$34:$K$34, 0))), "-") -> 13.83611456 | AH27: =IFERROR(AH25*(1+INDEX(Escalation_Factor_Table, MATCH($B27, 'Escalation Factor'!$C$34:$C$39, 0), MATCH(AH$8, 'Escalation Factor'!$C$34:$K$34, 0))), "-") -> 13.83611456 | AI27: =IFERROR(AI25*(1+INDEX(Escalation_Factor_Table, MATCH($B27, 'Escalation Factor'!$C$34:$C$39, 0), MATCH(AI$8, 'Escalation Factor'!$C$34:$K$34, 0))), "-") -> 31.21234345 | AJ27: =IFERROR(AJ25*(1+INDEX(Escalation_Factor_Table, MATCH($B27, 'Escalation Factor'!$C$34:$C$39, 0), MATCH(AJ$8, 'Escalation Factor'!$C$34:$K$34, 0))), "-") -> 15.28228658 | AL27: =IFERROR(AL25*(1+INDEX(Escalation_Factor_Table, MATCH($B27, 'Escalation Factor'!$C$34:$C$39, 0), MATCH(AL$8, 'Escalation Factor'!$C$34:$K$34, 0))), "-") -> 6.295686154 | AM27: =IFERROR(AM25*(1+INDEX(Escalation_Factor_Table, MATCH($B27, 'Escalation Factor'!$C$34:$C$39, 0), MATCH(AM$8, 'Escalation Factor'!$C$34:$K$34, 0))), "-") -> 6.295686154 | AN27: =IFERROR(AN25*(1+INDEX(Escalation_Factor_Table, MATCH($B27, 'Escalation Factor'!$C$34:$C$39, 0), MATCH(AN$8, 'Escalation Factor'!$C$34:$K$34, 0))), "-") -> 6.295686154 | AO27: =IFERROR(AO25*(1+INDEX(Escalation_Factor_Table, MATCH($B27, 'Escalation Factor'!$C$34:$C$39, 0), MATCH(AO$8, 'Escalation Factor'!$C$34:$K$34, 0))), "-") -> 6.295686154 | AP27: =IFERROR(AP25*(1+INDEX(Escalation_Factor_Table, MATCH($B27, 'Escalation Factor'!$C$34:$C$39, 0), MATCH(AP$8, 'Escalation Factor'!$C$34:$K$34, 0))), "-") -> 17.99516959 | AQ27: =IFERROR(AQ25*(1+INDEX(Escalation_Factor_Table, MATCH($B27, 'Escalation Factor'!$C$34:$C$39, 0), MATCH(AQ$8, 'Escalation Factor'!$C$34:$K$34, 0))), "-") -> 6.453078308 | AS27: =IFERROR(AS25*(1+INDEX(Escalation_Factor_Table, MATCH($B27, 'Escalation Factor'!$C$34:$C$39, 0), MATCH(AS$8, 'Escalation Factor'!$C$34:$K$34, 0))), "-") -> 7.875830179 | AT27: =IFERROR(AT25*(1+INDEX(Escalation_Factor_Table, MATCH($B27, 'Escalation Factor'!$C$34:$C$39, 0), MATCH(AT$8, 'Escalation Factor'!$C$34:$K$34, 0))), "-") -> 7.875830179 | AU27: =IFERROR(AU25*(1+INDEX(Escalation_Factor_Table, MATCH($B27, 'Escalation Factor'!$C$34:$C$39, 0), MATCH(AU$8, 'Escalation Factor'!$C$34:$K$34, 0))), "-") -> 7.875830179 | AV27: =IFERROR(AV25*(1+INDEX(Escalation_Factor_Table, MATCH($B27, 'Escalation Factor'!$C$34:$C$39, 0), MATCH(AV$8, 'Escalation Factor'!$C$34:$K$34, 0))), "-") -> 7.875830179 | AW27: =IFERROR(AW25*(1+INDEX(Escalation_Factor_Table, MATCH($B27, 'Escalation Factor'!$C$34:$C$39, 0), MATCH(AW$8, 'Escalation Factor'!$C$34:$K$34, 0))), "-") -> 23.52247947 | AX27: =IFERROR(AX25*(1+INDEX(Escalation_Factor_Table, MATCH($B27, 'Escalation Factor'!$C$34:$C$39, 0), MATCH(AX$8, 'Escalation Factor'!$C$34:$K$34, 0))), "-") -> 8.138357852 | AZ27: =IFERROR(AZ25*(1+INDEX(Escalation_Factor_Table, MATCH($B27, 'Escalation Factor'!$C$34:$C$39, 0), MATCH(AZ$8, 'Escalation Factor'!$C$34:$K$34, 0))), "-") -> 9.560100757 | BA27: =IFERROR(BA25*(1+INDEX(Escalation_Factor_Table, MATCH($B27, 'Escalation Factor'!$C$34:$C$39, 0), MATCH(BA$8, 'Escalation Factor'!$C$34:$K$34, 0))), "-") -> 9.560100757 | BB27: =IFERROR(BB25*(1+INDEX(Escalation_Factor_Table, MATCH($B27, 'Escalation Factor'!$C$34:$C$39, 0), MATCH(BB$8, 'Escalation Factor'!$C$34:$K$34, 0))), "-") -> 9.560100757 | BC27: =IFERROR(BC25*(1+INDEX(Escalation_Factor_Table, MATCH($B27, 'Escalation Factor'!$C$34:$C$39, 0), MATCH(BC$8, 'Escalation Factor'!$C$34:$K$34, 0))), "-") -> 9.560100757 | BD27: =IFERROR(BD25*(1+INDEX(Escalation_Factor_Table, MATCH($B27, 'Escalation Factor'!$C$34:$C$39, 0), MATCH(BD$8, 'Escalation Factor'!$C$34:$K$34, 0))), "-") -> 29.10052648 | BE27: =IFERROR(BE25*(1+INDEX(Escalation_Factor_Table, MATCH($B27, 'Escalation Factor'!$C$34:$C$39, 0), MATCH(BE$8, 'Escalation Factor'!$C$34:$K$34, 0))), "-") -> 9.875268913
B29: 2021-2022 | C29: ="FO&M Costs "&B29 -> FO&M Costs 2021-2022 | D29: ="Fixed O&M and Site Leasing Costs, Excluding Insurance and Property Taxes ("&B29&")" -> Fixed O&M and Site Leasing Costs, Excluding Insurance and Property Taxes (2021-2022) | E29: $/kW-Year | F29: =IFERROR(F$27*(1+INDEX(Escalation_Factor_Table, MATCH($B29, 'Escalation Factor'!$C$34:$C$39, 0), MATCH(F$8, 'Escalation Factor'!$C$34:$K$34, 0))), "-") -> 15.35853696 | G29: =IFERROR(G$27*(1+INDEX(Escalation_Factor_Table, MATCH($B29, 'Escalation Factor'!$C$34:$C$39, 0), MATCH(G$8, 'Escalation Factor'!$C$34:$K$34, 0))), "-") -> 16.01770163 | H29: =IFERROR(H$27*(1+INDEX(Escalation_Factor_Table, MATCH($B29, 'Escalation Factor'!$C$34:$C$39, 0), MATCH(H$8, 'Escalation Factor'!$C$34:$K$34, 0))), "-") -> 17.98385653 | I29: =IFERROR(I$27*(1+INDEX(Escalation_Factor_Table, MATCH($B29, 'Escalation Factor'!$C$34:$C$39, 0), MATCH(I$8, 'Escalation Factor'!$C$34:$K$34, 0))), "-") -> 17.98385653 | J29: =IFERROR(J$27*(1+INDEX(Escalation_Factor_Table, MATCH($B29, 'Escalation Factor'!$C$34:$C$39, 0), MATCH(J$8, 'Escalation Factor'!$C$34:$K$34, 0))), "-") -> 45.12432867 | K29: =IFERROR(K$27*(1+INDEX(Escalation_Factor_Table, MATCH($B29, 'Escalation Factor'!$C$34:$C$39, 0), MATCH(K$8, 'Escalation Factor'!$C$34:$K$34, 0))), "-") -> 19.69660478 | M29: =IFERROR(M$27*(1+INDEX(Escalation_Factor_Table, MATCH($B29, 'Escalation Factor'!$C$34:$C$39, 0), MATCH(M$8, 'Escalation Factor'!$C$34:$K$34, 0))), "-") -> 11.71447182 | N29: =IFERROR(N$27*(1+INDEX(Escalation_Factor_Table, MATCH($B29, 'Escalation Factor'!$C$34:$C$39, 0), MATCH(N$8, 'Escalation Factor'!$C$34:$K$34, 0))), "-") -> 12.15269052 | O29: =IFERROR(O$27*(1+INDEX(Escalation_Factor_Table, MATCH($B29, 'Escalation Factor'!$C$34:$C$39, 0), MATCH(O$8, 'Escalation Factor'!$C$34:$K$34, 0))), "-") -> 13.59425788 | P29: =IFERROR(P$27*(1+INDEX(Escalation_Factor_Table, MATCH($B29, 'Escalation Factor'!$C$34:$C$39, 0), MATCH(P$8, 'Escalation Factor'!$C$34:$K$34, 0))), "-") -> 13.59425788 | Q29: =IFERROR(Q$27*(1+INDEX(Escalation_Factor_Table, MATCH($B29, 'Escalation Factor'!$C$34:$C$39, 0), MATCH(Q$8, 'Escalation Factor'!$C$34:$K$34, 0))), "-") -> 33.9316321 | R29: =IFERROR(R$27*(1+INDEX(Escalation_Factor_Table, MATCH($B29, 'Escalation Factor'!$C$34:$C$39, 0), MATCH(R$8, 'Escalation Factor'!$C$34:$K$34, 0))), "-") -> 14.81103358 | T29: =IFERROR(T$27*(1+INDEX(Escalation_Factor_Table, MATCH($B29, 'Escalation Factor'!$C$34:$C$39, 0), MATCH(T$8, 'Escalation Factor'!$C$34:$K$34, 0))), "-") -> 8.263911757 | U29: =IFERROR(U$27*(1+INDEX(Escalation_Factor_Table, MATCH($B29, 'Escalation Factor'!$C$34:$C$39, 0), MATCH(U$8, 'Escalation Factor'!$C$34:$K$34, 0))), "-") -> 8.519522572 | V29: =IFERROR(V$27*(1+INDEX(Escalation_Factor_Table, MATCH($B29, 'Escalation Factor'!$C$34:$C$39, 0), MATCH(V$8, 'Escalation Factor'!$C$34:$K$34, 0))), "-") -> 9.38463571 | W29: =IFERROR(W$27*(1+INDEX(Escalation_Factor_Table, MATCH($B29, 'Escalation Factor'!$C$34:$C$39, 0), MATCH(W$8, 'Escalation Factor'!$C$34:$K$34, 0))), "-") -> 9.38463571 | X29: =IFERROR(X$27*(1+INDEX(Escalation_Factor_Table, MATCH($B29, 'Escalation Factor'!$C$34:$C$39, 0), MATCH(X$8, 'Escalation Factor'!$C$34:$K$34, 0))), "-") -> 21.62539688 | Y29: =IFERROR(Y$27*(1+INDEX(Escalation_Factor_Table, MATCH($B29, 'Escalation Factor'!$C$34:$C$39, 0), MATCH(Y$8, 'Escalation Factor'!$C$34:$K$34, 0))), "-") -> 10.1117373 | AA29: =IFERROR(AA$27*(1+INDEX(Escalation_Factor_Table, MATCH($B29, 'Escalation Factor'!$C$34:$C$39, 0), MATCH(AA$8, 'Escalation Factor'!$C$34:$K$34, 0))), "-") -> 8.693928592 | AB29: =IFERROR(AB$27*(1+INDEX(Escalation_Factor_Table, MATCH($B29, 'Escalation Factor'!$C$34:$C$39, 0), MATCH(AB$8, 'Escalation Factor'!$C$34:$K$34, 0))), "-") -> 8.963004569 | AC29: =IFERROR(AC$27*(1+INDEX(Escalation_Factor_Table, MATCH($B29, 'Escalation Factor'!$C$34:$C$39, 0), MATCH(AC$8, 'Escalation Factor'!$C$34:$K$34, 0))), "-") -> 9.871077876 | AE29: =IFERROR(AE$27*(1+INDEX(Escalation_Factor_Table, MATCH($B29, 'Escalation Factor'!$C$34:$C$39, 0), MATCH(AE$8, 'Escalation Factor'!$C$34:$K$34, 0))), "-") -> 11.84086039 | AF29: =IFERROR(AF$27*(1+INDEX(Escalation_Factor_Table, MATCH($B29, 'Escalation Factor'!$C$34:$C$39, 0), MATCH(AF$8, 'Escalation Factor'!$C$34:$K$34, 0))), "-") -> 12.41675561 | AG29: =IFERROR(AG$27*(1+INDEX(Escalation_Factor_Table, MATCH($B29, 'Escalation Factor'!$C$34:$C$39, 0), MATCH(AG$8, 'Escalation Factor'!$C$34:$K$34, 0))), "-") -> 14.32636983 | AH29: =IFERROR(AH$27*(1+INDEX(Escalation_Factor_Table, MATCH($B29, 'Escalation Factor'!$C$34:$C$39, 0), MATCH(AH$8, 'Escalation Factor'!$C$34:$K$34, 0))), "-") -> 14.32636983 | AI29: =IFERROR(AI$27*(1+INDEX(Escalation_Factor_Table, MATCH($B29, 'Escalation Factor'!$C$34:$C$39, 0), MATCH(AI$8, 'Escalation Factor'!$C$34:$K$34, 0))), "-") -> 32.31829093 | AJ29: =IFERROR(AJ$27*(1+INDEX(Escalation_Factor_Table, MATCH($B29, 'Escalation Factor'!$C$34:$C$39, 0), MATCH(AJ$8, 'Escalation Factor'!$C$34:$K$34, 0))), "-") -> 15.82378409 | AL29: =IFERROR(AL$27*(1+INDEX(Escalation_Factor_Table, MATCH($B29, 'Escalation Factor'!$C$34:$C$39, 0), MATCH(AL$8, 'Escalation Factor'!$C$34:$K$34, 0))), "-") -> 6.371041236 | AM29: =IFERROR(AM$27*(1+INDEX(Escalation_Factor_Table, MATCH($B29, 'Escalation Factor'!$C$34:$C$39, 0), MATCH(AM$8, 'Escalation Factor'!$C$34:$K$34, 0))), "-") -> 6.371041236 | AN29: =IFERROR(AN$27*(1+INDEX(Escalation_Factor_Table, MATCH($B29, 'Escalation Factor'!$C$34:$C$39, 0), MATCH(AN$8, 'Escalation Factor'!$C$34:$K$34, 0))), "-") -> 6.371041236 | AO29: =IFERROR(AO$27*(1+INDEX(Escalation_Factor_Table, MATCH($B29, 'Escalation Factor'!$C$34:$C$39, 0), MATCH(AO$8, 'Escalation Factor'!$C$34:$K$34, 0))), "-") -> 6.371041236 | AP29: =IFERROR(AP$27*(1+INDEX(Escalation_Factor_Table, MATCH($B29, 'Escalation Factor'!$C$34:$C$39, 0), MATCH(AP$8, 'Escalation Factor'!$C$34:$K$34, 0))), "-") -> 18.21055953 | AQ29: =IFERROR(AQ$27*(1+INDEX(Escalation_Factor_Table, MATCH($B29, 'Escalation Factor'!$C$34:$C$39, 0), MATCH(AQ$8, 'Escalation Factor'!$C$34:$K$34, 0))), "-") -> 6.530317267 | AS29: =IFERROR(AS$27*(1+INDEX(Escalation_Factor_Table, MATCH($B29, 'Escalation Factor'!$C$34:$C$39, 0), MATCH(AS$8, 'Escalation Factor'!$C$34:$K$34, 0))), "-") -> 7.963340837 | AT29: =IFERROR(AT$27*(1+INDEX(Escalation_Factor_Table, MATCH($B29, 'Escalation Factor'!$C$34:$C$39, 0), MATCH(AT$8, 'Escalation Factor'!$C$34:$K$34, 0))), "-") -> 7.963340837 | AU29: =IFERROR(AU$27*(1+INDEX(Escalation_Factor_Table, MATCH($B29, 'Escalation Factor'!$C$34:$C$39, 0), MATCH(AU$8, 'Escalation Factor'!$C$34:$K$34, 0))), "-") -> 7.963340837 | AV29: =IFERROR(AV$27*(1+INDEX(Escalation_Factor_Table, MATCH($B29, 'Escalation Factor'!$C$34:$C$39, 0), MATCH(AV$8, 'Escalation Factor'!$C$34:$K$34, 0))), "-") -> 7.963340837 | AW29: =IFERROR(AW$27*(1+INDEX(Escalation_Factor_Table, MATCH($B29, 'Escalation Factor'!$C$34:$C$39, 0), MATCH(AW$8, 'Escalation Factor'!$C$34:$K$34, 0))), "-") -> 23.78384463 | AX29: =IFERROR(AX$27*(1+INDEX(Escalation_Factor_Table, MATCH($B29, 'Escalation Factor'!$C$34:$C$39, 0), MATCH(AX$8, 'Escalation Factor'!$C$34:$K$34, 0))), "-") -> 8.228785531 | AZ29: =IFERROR(AZ$27*(1+INDEX(Escalation_Factor_Table, MATCH($B29, 'Escalation Factor'!$C$34:$C$39, 0), MATCH(AZ$8, 'Escalation Factor'!$C$34:$K$34, 0))), "-") -> 9.661894115 | BA29: =IFERROR(BA$27*(1+INDEX(Escalation_Factor_Table, MATCH($B29, 'Escalation Factor'!$C$34:$C$39, 0), MATCH(BA$8, 'Escalation Factor'!$C$34:$K$34, 0))), "-") -> 9.661894115 | BB29: =IFERROR(BB$27*(1+INDEX(Escalation_Factor_Table, MATCH($B29, 'Escalation Factor'!$C$34:$C$39, 0), MATCH(BB$8, 'Escalation Factor'!$C$34:$K$34, 0))), "-") -> 9.661894115 | BC29: =IFERROR(BC$27*(1+INDEX(Escalation_Factor_Table, MATCH($B29, 'Escalation Factor'!$C$34:$C$39, 0), MATCH(BC$8, 'Escalation Factor'!$C$34:$K$34, 0))), "-") -> 9.661894115 | BD29: =IFERROR(BD$27*(1+INDEX(Escalation_Factor_Table, MATCH($B29, 'Escalation Factor'!$C$34:$C$39, 0), MATCH(BD$8, 'Escalation Factor'!$C$34:$K$34, 0))), "-") -> 29.41038099 | BE29: =IFERROR(BE$27*(1+INDEX(Escalation_Factor_Table, MATCH($B29, 'Escalation Factor'!$C$34:$C$39, 0), MATCH(BE$8, 'Escalation Factor'!$C$34:$K$34, 0))), "-") -> 9.980418097
B31: 2022-2023 | C31: ="FO&M Costs "&B31 -> FO&M Costs 2022-2023 | D31: ="Fixed O&M and Site Leasing Costs, Excluding Insurance and Property Taxes ("&B31&")" -> Fixed O&M and Site Leasing Costs, Excluding Insurance and Property Taxes (2022-2023) | E31: $/kW-Year | F31: =IFERROR(F$27*(1+INDEX(Escalation_Factor_Table, MATCH($B31, 'Escalation Factor'!$C$34:$C$39, 0), MATCH(F$8, 'Escalation Factor'!$C$34:$K$34, 0))), "-") -> - | G31: =IFERROR(G$27*(1+INDEX(Escalation_Factor_Table, MATCH($B31, 'Escalation Factor'!$C$34:$C$39, 0), MATCH(G$8, 'Escalation Factor'!$C$34:$K$34, 0))), "-") -> - | H31: =IFERROR(H$27*(1+INDEX(Escalation_Factor_Table, MATCH($B31, 'Escalation Factor'!$C$34:$C$39, 0), MATCH(H$8, 'Escalation Factor'!$C$34:$K$34, 0))), "-") -> - | I31: =IFERROR(I$27*(1+INDEX(Escalation_Factor_Table, MATCH($B31, 'Escalation Factor'!$C$34:$C$39, 0), MATCH(I$8, 'Escalation Factor'!$C$34:$K$34, 0))), "-") -> - | J31: =IFERROR(J$27*(1+INDEX(Escalation_Factor_Table, MATCH($B31, 'Escalation Factor'!$C$34:$C$39, 0), MATCH(J$8, 'Escalation Factor'!$C$34:$K$34, 0))), "-") -> - | K31: =IFERROR(K$27*(1+INDEX(Escalation_Factor_Table, MATCH($B31, 'Escalation Factor'!$C$34:$C$39, 0), MATCH(K$8, 'Escalation Factor'!$C$34:$K$34, 0))), "-") -> - | M31: =IFERROR(M$27*(1+INDEX(Escalation_Factor_Table, MATCH($B31, 'Escalation Factor'!$C$34:$C$39, 0), MATCH(M$8, 'Escalation Factor'!$C$34:$K$34, 0))), "-") -> - | N31: =IFERROR(N$27*(1+INDEX(Escalation_Factor_Table, MATCH($B31, 'Escalation Factor'!$C$34:$C$39, 0), MATCH(N$8, 'Escalation Factor'!$C$34:$K$34, 0))), "-") -> - | O31: =IFERROR(O$27*(1+INDEX(Escalation_Factor_Table, MATCH($B31, 'Escalation Factor'!$C$34:$C$39, 0), MATCH(O$8, 'Escalation Factor'!$C$34:$K$34, 0))), "-") -> - | P31: =IFERROR(P$27*(1+INDEX(Escalation_Factor_Table, MATCH($B31, 'Escalation Factor'!$C$34:$C$39, 0), MATCH(P$8, 'Escalation Factor'!$C$34:$K$34, 0))), "-") -> - | Q31: =IFERROR(Q$27*(1+INDEX(Escalation_Factor_Table, MATCH($B31, 'Escalation Factor'!$C$34:$C$39, 0), MATCH(Q$8, 'Escalation Factor'!$C$34:$K$34, 0))), "-") -> - | R31: =IFERROR(R$27*(1+INDEX(Escalation_Factor_Table, MATCH($B31, 'Escalation Factor'!$C$34:$C$39, 0), MATCH(R$8, 'Escalation Factor'!$C$34:$K$34, 0))), "-") -> - | T31: =IFERROR(T$27*(1+INDEX(Escalation_Factor_Table, MATCH($B31, 'Escalation Factor'!$C$34:$C$39, 0), MATCH(T$8, 'Escalation Factor'!$C$34:$K$34, 0))), "-") -> - | U31: =IFERROR(U$27*(1+INDEX(Escalation_Factor_Table, MATCH($B31, 'Escalation Factor'!$C$34:$C$39, 0), MATCH(U$8, 'Escalation Factor'!$C$34:$K$34, 0))), "-") -> - | V31: =IFERROR(V$27*(1+INDEX(Escalation_Factor_Table, MATCH($B31, 'Escalation Factor'!$C$34:$C$39, 0), MATCH(V$8, 'Escalation Factor'!$C$34:$K$34, 0))), "-") -> - | W31: =IFERROR(W$27*(1+INDEX(Escalation_Factor_Table, MATCH($B31, 'Escalation Factor'!$C$34:$C$39, 0), MATCH(W$8, 'Escalation Factor'!$C$34:$K$34, 0))), "-") -> - | X31: =IFERROR(X$27*(1+INDEX(Escalation_Factor_Table, MATCH($B31, 'Escalation Factor'!$C$34:$C$39, 0), MATCH(X$8, 'Escalation Factor'!$C$34:$K$34, 0))), "-") -> - | Y31: =IFERROR(Y$27*(1+INDEX(Escalation_Factor_Table, MATCH($B31, 'Escalation Factor'!$C$34:$C$39, 0), MATCH(Y$8, 'Escalation Factor'!$C$34:$K$34, 0))), "-") -> - | AA31: =IFERROR(AA$27*(1+INDEX(Escalation_Factor_Table, MATCH($B31, 'Escalation Factor'!$C$34:$C$39, 0), MATCH(AA$8, 'Escalation Factor'!$C$34:$K$34, 0))), "-") -> - | AB31: =IFERROR(AB$27*(1+INDEX(Escalation_Factor_Table, MATCH($B31, 'Escalation Factor'!$C$34:$C$39, 0), MATCH(AB$8, 'Escalation Factor'!$C$34:$K$34, 0))), "-") -> - | AC31: =IFERROR(AC$27*(1+INDEX(Escalation_Factor_Table, MATCH($B31, 'Escalation Factor'!$C$34:$C$39, 0), MATCH(AC$8, 'Escalation Factor'!$C$34:$K$34, 0))), "-") -> - | AE31: =IFERROR(AE$27*(1+INDEX(Escalation_Factor_Table, MATCH($B31, 'Escalation Factor'!$C$34:$C$39, 0), MATCH(AE$8, 'Escalation Factor'!$C$34:$K$34, 0))), "-") -> - | AF31: =IFERROR(AF$27*(1+INDEX(Escalation_Factor_Table, MATCH($B31, 'Escalation Factor'!$C$34:$C$39, 0), MATCH(AF$8, 'Escalation Factor'!$C$34:$K$34, 0))), "-") -> - | AG31: =IFERROR(AG$27*(1+INDEX(Escalation_Factor_Table, MATCH($B31, 'Escalation Factor'!$C$34:$C$39, 0), MATCH(AG$8, 'Escalation Factor'!$C$34:$K$34, 0))), "-") -> - | AH31: =IFERROR(AH$27*(1+INDEX(Escalation_Factor_Table, MATCH($B31, 'Escalation Factor'!$C$34:$C$39, 0), MATCH(AH$8, 'Escalation Factor'!$C$34:$K$34, 0))), "-") -> - | AI31: =IFERROR(AI$27*(1+INDEX(Escalation_Factor_Table, MATCH($B31, 'Escalation Factor'!$C$34:$C$39, 0), MATCH(AI$8, 'Escalation Factor'!$C$34:$K$34, 0))), "-") -> - | AJ31: =IFERROR(AJ$27*(1+INDEX(Escalation_Factor_Table, MATCH($B31, 'Escalation Factor'!$C$34:$C$39, 0), MATCH(AJ$8, 'Escalation Factor'!$C$34:$K$34, 0))), "-") -> - | AL31: =IFERROR(AL$27*(1+INDEX(Escalation_Factor_Table, MATCH($B31, 'Escalation Factor'!$C$34:$C$39, 0), MATCH(AL$8, 'Escalation Factor'!$C$34:$K$34, 0))), "-") -> - | AM31: =IFERROR(AM$27*(1+INDEX(Escalation_Factor_Table, MATCH($B31, 'Escalation Factor'!$C$34:$C$39, 0), MATCH(AM$8, 'Escalation Factor'!$C$34:$K$34, 0))), "-") -> - | AN31: =IFERROR(AN$27*(1+INDEX(Escalation_Factor_Table, MATCH($B31, 'Escalation Factor'!$C$34:$C$39, 0), MATCH(AN$8, 'Escalation Factor'!$C$34:$K$34, 0))), "-") -> - | AO31: =IFERROR(AO$27*(1+INDEX(Escalation_Factor_Table, MATCH($B31, 'Escalation Factor'!$C$34:$C$39, 0), MATCH(AO$8, 'Escalation Factor'!$C$34:$K$34, 0))), "-") -> - | AP31: =IFERROR(AP$27*(1+INDEX(Escalation_Factor_Table, MATCH($B31, 'Escalation Factor'!$C$34:$C$39, 0), MATCH(AP$8, 'Escalation Factor'!$C$34:$K$34, 0))), "-") -> - | AQ31: =IFERROR(AQ$27*(1+INDEX(Escalation_Factor_Table, MATCH($B31, 'Escalation Factor'!$C$34:$C$39, 0), MATCH(AQ$8, 'Escalation Factor'!$C$34:$K$34, 0))), "-") -> - | AS31: =IFERROR(AS$27*(1+INDEX(Escalation_Factor_Table, MATCH($B31, 'Escalation Factor'!$C$34:$C$39, 0), MATCH(AS$8, 'Escalation Factor'!$C$34:$K$34, 0))), "-") -> - | AT31: =IFERROR(AT$27*(1+INDEX(Escalation_Factor_Table, MATCH($B31, 'Escalation Factor'!$C$34:$C$39, 0), MATCH(AT$8, 'Escalation Factor'!$C$34:$K$34, 0))), "-") -> - | AU31: =IFERROR(AU$27*(1+INDEX(Escalation_Factor_Table, MATCH($B31, 'Escalation Factor'!$C$34:$C$39, 0), MATCH(AU$8, 'Escalation Factor'!$C$34:$K$34, 0))), "-") -> - | AV31: =IFERROR(AV$27*(1+INDEX(Escalation_Factor_Table, MATCH($B31, 'Escalation Factor'!$C$34:$C$39, 0), MATCH(AV$8, 'Escalation Factor'!$C$34:$K$34, 0))), "-") -> - | AW31: =IFERROR(AW$27*(1+INDEX(Escalation_Factor_Table, MATCH($B31, 'Escalation Factor'!$C$34:$C$39, 0), MATCH(AW$8, 'Escalation Factor'!$C$34:$K$34, 0))), "-") -> - | AX31: =IFERROR(AX$27*(1+INDEX(Escalation_Factor_Table, MATCH($B31, 'Escalation Factor'!$C$34:$C$39, 0), MATCH(AX$8, 'Escalation Factor'!$C$34:$K$34, 0))), "-") -> - | AZ31: =IFERROR(AZ$27*(1+INDEX(Escalation_Factor_Table, MATCH($B31, 'Escalation Factor'!$C$34:$C$39, 0), MATCH(AZ$8, 'Escalation Factor'!$C$34:$K$34, 0))), "-") -> - | BA31: =IFERROR(BA$27*(1+INDEX(Escalation_Factor_Table, MATCH($B31, 'Escalation Factor'!$C$34:$C$39, 0), MATCH(BA$8, 'Escalation Factor'!$C$34:$K$34, 0))), "-") -> - | BB31: =IFERROR(BB$27*(1+INDEX(Escalation_Factor_Table, MATCH($B31, 'Escalation Factor'!$C$34:$C$39, 0), MATCH(BB$8, 'Escalation Factor'!$C$34:$K$34, 0))), "-") -> - | BC31: =IFERROR(BC$27*(1+INDEX(Escalation_Factor_Table, MATCH($B31, 'Escalation Factor'!$C$34:$C$39, 0), MATCH(BC$8, 'Escalation Factor'!$C$34:$K$34, 0))), "-") -> - | BD31: =IFERROR(BD$27*(1+INDEX(Escalation_Factor_Table, MATCH($B31, 'Escalation Factor'!$C$34:$C$39, 0), MATCH(BD$8, 'Escalation Factor'!$C$34:$K$34, 0))), "-") -> - | BE31: =IFERROR(BE$27*(1+INDEX(Escalation_Factor_Table, MATCH($B31, 'Escalation Factor'!$C$34:$C$39, 0), MATCH(BE$8, 'Escalation Factor'!$C$34:$K$34, 0))), "-") -> -
B33: 2023-2024 | C33: ="FO&M Costs "&B33 -> FO&M Costs 2023-2024 | D33: ="Fixed O&M and Site Leasing Costs, Excluding Insurance and Property Taxes ("&B33&")" -> Fixed O&M and Site Leasing Costs, Excluding Insurance and Property Taxes (2023-2024) | E33: $/kW-Year | F33: =IFERROR(F$27*(1+INDEX(Escalation_Factor_Table, MATCH($B33, 'Escalation Factor'!$C$34:$C$39, 0), MATCH(F$8, 'Escalation Factor'!$C$34:$K$34, 0))), "-") -> - | G33: =IFERROR(G$27*(1+INDEX(Escalation_Factor_Table, MATCH($B33, 'Escalation Factor'!$C$34:$C$39, 0), MATCH(G$8, 'Escalation Factor'!$C$34:$K$34, 0))), "-") -> - | H33: =IFERROR(H$27*(1+INDEX(Escalation_Factor_Table, MATCH($B33, 'Escalation Factor'!$C$34:$C$39, 0), MATCH(H$8, 'Escalation Factor'!$C$34:$K$34, 0))), "-") -> - | I33: =IFERROR(I$27*(1+INDEX(Escalation_Factor_Table, MATCH($B33, 'Escalation Factor'!$C$34:$C$39, 0), MATCH(I$8, 'Escalation Factor'!$C$34:$K$34, 0))), "-") -> - | J33: =IFERROR(J$27*(1+INDEX(Escalation_Factor_Table, MATCH($B33, 'Escalation Factor'!$C$34:$C$39, 0), MATCH(J$8, 'Escalation Factor'!$C$34:$K$34, 0))), "-") -> - | K33: =IFERROR(K$27*(1+INDEX(Escalation_Factor_Table, MATCH($B33, 'Escalation Factor'!$C$34:$C$39, 0), MATCH(K$8, 'Escalation Factor'!$C$34:$K$34, 0))), "-") -> - | M33: =IFERROR(M$27*(1+INDEX(Escalation_Factor_Table, MATCH($B33, 'Escalation Factor'!$C$34:$C$39, 0), MATCH(M$8, 'Escalation Factor'!$C$34:$K$34, 0))), "-") -> - | N33: =IFERROR(N$27*(1+INDEX(Escalation_Factor_Table, MATCH($B33, 'Escalation Factor'!$C$34:$C$39, 0), MATCH(N$8, 'Escalation Factor'!$C$34:$K$34, 0))), "-") -> - | O33: =IFERROR(O$27*(1+INDEX(Escalation_Factor_Table, MATCH($B33, 'Escalation Factor'!$C$34:$C$39, 0), MATCH(O$8, 'Escalation Factor'!$C$34:$K$34, 0))), "-") -> - | P33: =IFERROR(P$27*(1+INDEX(Escalation_Factor_Table, MATCH($B33, 'Escalation Factor'!$C$34:$C$39, 0), MATCH(P$8, 'Escalation Factor'!$C$34:$K$34, 0))), "-") -> - | Q33: =IFERROR(Q$27*(1+INDEX(Escalation_Factor_Table, MATCH($B33, 'Escalation Factor'!$C$34:$C$39, 0), MATCH(Q$8, 'Escalation Factor'!$C$34:$K$34, 0))), "-") -> - | R33: =IFERROR(R$27*(1+INDEX(Escalation_Factor_Table, MATCH($B33, 'Escalation Factor'!$C$34:$C$39, 0), MATCH(R$8, 'Escalation Factor'!$C$34:$K$34, 0))), "-") -> - | T33: =IFERROR(T$27*(1+INDEX(Escalation_Factor_Table, MATCH($B33, 'Escalation Factor'!$C$34:$C$39, 0), MATCH(T$8, 'Escalation Factor'!$C$34:$K$34, 0))), "-") -> - | U33: =IFERROR(U$27*(1+INDEX(Escalation_Factor_Table, MATCH($B33, 'Escalation Factor'!$C$34:$C$39, 0), MATCH(U$8, 'Escalation Factor'!$C$34:$K$34, 0))), "-") -> - | V33: =IFERROR(V$27*(1+INDEX(Escalation_Factor_Table, MATCH($B33, 'Escalation Factor'!$C$34:$C$39, 0), MATCH(V$8, 'Escalation Factor'!$C$34:$K$34, 0))), "-") -> - | W33: =IFERROR(W$27*(1+INDEX(Escalation_Factor_Table, MATCH($B33, 'Escalation Factor'!$C$34:$C$39, 0), MATCH(W$8, 'Escalation Factor'!$C$34:$K$34, 0))), "-") -> - | X33: =IFERROR(X$27*(1+INDEX(Escalation_Factor_Table, MATCH($B33, 'Escalation Factor'!$C$34:$C$39, 0), MATCH(X$8, 'Escalation Factor'!$C$34:$K$34, 0))), "-") -> - | Y33: =IFERROR(Y$27*(1+INDEX(Escalation_Factor_Table, MATCH($B33, 'Escalation Factor'!$C$34:$C$39, 0), MATCH(Y$8, 'Escalation Factor'!$C$34:$K$34, 0))), "-") -> - | AA33: =IFERROR(AA$27*(1+INDEX(Escalation_Factor_Table, MATCH($B33, 'Escalation Factor'!$C$34:$C$39, 0), MATCH(AA$8, 'Escalation Factor'!$C$34:$K$34, 0))), "-") -> - | AB33: =IFERROR(AB$27*(1+INDEX(Escalation_Factor_Table, MATCH($B33, 'Escalation Factor'!$C$34:$C$39, 0), MATCH(AB$8, 'Escalation Factor'!$C$34:$K$34, 0))), "-") -> - | AC33: =IFERROR(AC$27*(1+INDEX(Escalation_Factor_Table, MATCH($B33, 'Escalation Factor'!$C$34:$C$39, 0), MATCH(AC$8, 'Escalation Factor'!$C$34:$K$34, 0))), "-") -> - | AE33: =IFERROR(AE$27*(1+INDEX(Escalation_Factor_Table, MATCH($B33, 'Escalation Factor'!$C$34:$C$39, 0), MATCH(AE$8, 'Escalation Factor'!$C$34:$K$34, 0))), "-") -> - | AF33: =IFERROR(AF$27*(1+INDEX(Escalation_Factor_Table, MATCH($B33, 'Escalation Factor'!$C$34:$C$39, 0), MATCH(AF$8, 'Escalation Factor'!$C$34:$K$34, 0))), "-") -> - | AG33: =IFERROR(AG$27*(1+INDEX(Escalation_Factor_Table, MATCH($B33, 'Escalation Factor'!$C$34:$C$39, 0), MATCH(AG$8, 'Escalation Factor'!$C$34:$K$34, 0))), "-") -> - | AH33: =IFERROR(AH$27*(1+INDEX(Escalation_Factor_Table, MATCH($B33, 'Escalation Factor'!$C$34:$C$39, 0), MATCH(AH$8, 'Escalation Factor'!$C$34:$K$34, 0))), "-") -> - | AI33: =IFERROR(AI$27*(1+INDEX(Escalation_Factor_Table, MATCH($B33, 'Escalation Factor'!$C$34:$C$39, 0), MATCH(AI$8, 'Escalation Factor'!$C$34:$K$34, 0))), "-") -> - | AJ33: =IFERROR(AJ$27*(1+INDEX(Escalation_Factor_Table, MATCH($B33, 'Escalation Factor'!$C$34:$C$39, 0), MATCH(AJ$8, 'Escalation Factor'!$C$34:$K$34, 0))), "-") -> - | AL33: =IFERROR(AL$27*(1+INDEX(Escalation_Factor_Table, MATCH($B33, 'Escalation Factor'!$C$34:$C$39, 0), MATCH(AL$8, 'Escalation Factor'!$C$34:$K$34, 0))), "-") -> - | AM33: =IFERROR(AM$27*(1+INDEX(Escalation_Factor_Table, MATCH($B33, 'Escalation Factor'!$C$34:$C$39, 0), MATCH(AM$8, 'Escalation Factor'!$C$34:$K$34, 0))), "-") -> - | AN33: =IFERROR(AN$27*(1+INDEX(Escalation_Factor_Table, MATCH($B33, 'Escalation Factor'!$C$34:$C$39, 0), MATCH(AN$8, 'Escalation Factor'!$C$34:$K$34, 0))), "-") -> - | AO33: =IFERROR(AO$27*(1+INDEX(Escalation_Factor_Table, MATCH($B33, 'Escalation Factor'!$C$34:$C$39, 0), MATCH(AO$8, 'Escalation Factor'!$C$34:$K$34, 0))), "-") -> - | AP33: =IFERROR(AP$27*(1+INDEX(Escalation_Factor_Table, MATCH($B33, 'Escalation Factor'!$C$34:$C$39, 0), MATCH(AP$8, 'Escalation Factor'!$C$34:$K$34, 0))), "-") -> - | AQ33: =IFERROR(AQ$27*(1+INDEX(Escalation_Factor_Table, MATCH($B33, 'Escalation Factor'!$C$34:$C$39, 0), MATCH(AQ$8, 'Escalation Factor'!$C$34:$K$34, 0))), "-") -> - | AS33: =IFERROR(AS$27*(1+INDEX(Escalation_Factor_Table, MATCH($B33, 'Escalation Factor'!$C$34:$C$39, 0), MATCH(AS$8, 'Escalation Factor'!$C$34:$K$34, 0))), "-") -> - | AT33: =IFERROR(AT$27*(1+INDEX(Escalation_Factor_Table, MATCH($B33, 'Escalation Factor'!$C$34:$C$39, 0), MATCH(AT$8, 'Escalation Factor'!$C$34:$K$34, 0))), "-") -> - | AU33: =IFERROR(AU$27*(1+INDEX(Escalation_Factor_Table, MATCH($B33, 'Escalation Factor'!$C$34:$C$39, 0), MATCH(AU$8, 'Escalation Factor'!$C$34:$K$34, 0))), "-") -> - | AV33: =IFERROR(AV$27*(1+INDEX(Escalation_Factor_Table, MATCH($B33, 'Escalation Factor'!$C$34:$C$39, 0), MATCH(AV$8, 'Escalation Factor'!$C$34:$K$34, 0))), "-") -> - | AW33: =IFERROR(AW$27*(1+INDEX(Escalation_Factor_Table, MATCH($B33, 'Escalation Factor'!$C$34:$C$39, 0), MATCH(AW$8, 'Escalation Factor'!$C$34:$K$34, 0))), "-") -> - | AX33: =IFERROR(AX$27*(1+INDEX(Escalation_Factor_Table, MATCH($B33, 'Escalation Factor'!$C$34:$C$39, 0), MATCH(AX$8, 'Escalation Factor'!$C$34:$K$34, 0))), "-") -> - | AZ33: =IFERROR(AZ$27*(1+INDEX(Escalation_Factor_Table, MATCH($B33, 'Escalation Factor'!$C$34:$C$39, 0), MATCH(AZ$8, 'Escalation Factor'!$C$34:$K$34, 0))), "-") -> - | BA33: =IFERROR(BA$27*(1+INDEX(Escalation_Factor_Table, MATCH($B33, 'Escalation Factor'!$C$34:$C$39, 0), MATCH(BA$8, 'Escalation Factor'!$C$34:$K$34, 0))), "-") -> - | BB33: =IFERROR(BB$27*(1+INDEX(Escalation_Factor_Table, MATCH($B33, 'Escalation Factor'!$C$34:$C$39, 0), MATCH(BB$8, 'Escalation Factor'!$C$34:$K$34, 0))), "-") -> - | BC33: =IFERROR(BC$27*(1+INDEX(Escalation_Factor_Table, MATCH($B33, 'Escalation Factor'!$C$34:$C$39, 0), MATCH(BC$8, 'Escalation Factor'!$C$34:$K$34, 0))), "-") -> - | BD33: =IFERROR(BD$27*(1+INDEX(Escalation_Factor_Table, MATCH($B33, 'Escalation Factor'!$C$34:$C$39, 0), MATCH(BD$8, 'Escalation Factor'!$C$34:$K$34, 0))), "-") -> - | BE33: =IFERROR(BE$27*(1+INDEX(Escalation_Factor_Table, MATCH($B33, 'Escalation Factor'!$C$34:$C$39, 0), MATCH(BE$8, 'Escalation Factor'!$C$34:$K$34, 0))), "-") -> -
B35: 2024-2025 | C35: ="FO&M Costs "&B35 -> FO&M Costs 2024-2025 | D35: ="Fixed O&M and Site Leasing Costs, Excluding Insurance and Property Taxes ("&B35&")" -> Fixed O&M and Site Leasing Costs, Excluding Insurance and Property Taxes (2024-2025) | E35: $/kW-Year | F35: =IFERROR(F$27*(1+INDEX(Escalation_Factor_Table, MATCH($B35, 'Escalation Factor'!$C$34:$C$39, 0), MATCH(F$8, 'Escalation Factor'!$C$34:$K$34, 0))), "-") -> - | G35: =IFERROR(G$27*(1+INDEX(Escalation_Factor_Table, MATCH($B35, 'Escalation Factor'!$C$34:$C$39, 0), MATCH(G$8, 'Escalation Factor'!$C$34:$K$34, 0))), "-") -> - | H35: =IFERROR(H$27*(1+INDEX(Escalation_Factor_Table, MATCH($B35, 'Escalation Factor'!$C$34:$C$39, 0), MATCH(H$8, 'Escalation Factor'!$C$34:$K$34, 0))), "-") -> - | I35: =IFERROR(I$27*(1+INDEX(Escalation_Factor_Table, MATCH($B35, 'Escalation Factor'!$C$34:$C$39, 0), MATCH(I$8, 'Escalation Factor'!$C$34:$K$34, 0))), "-") -> - | J35: =IFERROR(J$27*(1+INDEX(Escalation_Factor_Table, MATCH($B35, 'Escalation Factor'!$C$34:$C$39, 0), MATCH(J$8, 'Escalation Factor'!$C$34:$K$34, 0))), "-") -> - | K35: =IFERROR(K$27*(1+INDEX(Escalation_Factor_Table, MATCH($B35, 'Escalation Factor'!$C$34:$C$39, 0), MATCH(K$8, 'Escalation Factor'!$C$34:$K$34, 0))), "-") -> - | M35: =IFERROR(M$27*(1+INDEX(Escalation_Factor_Table, MATCH($B35, 'Escalation Factor'!$C$34:$C$39, 0), MATCH(M$8, 'Escalation Factor'!$C$34:$K$34, 0))), "-") -> - | N35: =IFERROR(N$27*(1+INDEX(Escalation_Factor_Table, MATCH($B35, 'Escalation Factor'!$C$34:$C$39, 0), MATCH(N$8, 'Escalation Factor'!$C$34:$K$34, 0))), "-") -> - | O35: =IFERROR(O$27*(1+INDEX(Escalation_Factor_Table, MATCH($B35, 'Escalation Factor'!$C$34:$C$39, 0), MATCH(O$8, 'Escalation Factor'!$C$34:$K$34, 0))), "-") -> - | P35: =IFERROR(P$27*(1+INDEX(Escalation_Factor_Table, MATCH($B35, 'Escalation Factor'!$C$34:$C$39, 0), MATCH(P$8, 'Escalation Factor'!$C$34:$K$34, 0))), "-") -> - | Q35: =IFERROR(Q$27*(1+INDEX(Escalation_Factor_Table, MATCH($B35, 'Escalation Factor'!$C$34:$C$39, 0), MATCH(Q$8, 'Escalation Factor'!$C$34:$K$34, 0))), "-") -> - | R35: =IFERROR(R$27*(1+INDEX(Escalation_Factor_Table, MATCH($B35, 'Escalation Factor'!$C$34:$C$39, 0), MATCH(R$8, 'Escalation Factor'!$C$34:$K$34, 0))), "-") -> - | T35: =IFERROR(T$27*(1+INDEX(Escalation_Factor_Table, MATCH($B35, 'Escalation Factor'!$C$34:$C$39, 0), MATCH(T$8, 'Escalation Factor'!$C$34:$K$34, 0))), "-") -> - | U35: =IFERROR(U$27*(1+INDEX(Escalation_Factor_Table, MATCH($B35, 'Escalation Factor'!$C$34:$C$39, 0), MATCH(U$8, 'Escalation Factor'!$C$34:$K$34, 0))), "-") -> - | V35: =IFERROR(V$27*(1+INDEX(Escalation_Factor_Table, MATCH($B35, 'Escalation Factor'!$C$34:$C$39, 0), MATCH(V$8, 'Escalation Factor'!$C$34:$K$34, 0))), "-") -> - | W35: =IFERROR(W$27*(1+INDEX(Escalation_Factor_Table, MATCH($B35, 'Escalation Factor'!$C$34:$C$39, 0), MATCH(W$8, 'Escalation Factor'!$C$34:$K$34, 0))), "-") -> - | X35: =IFERROR(X$27*(1+INDEX(Escalation_Factor_Table, MATCH($B35, 'Escalation Factor'!$C$34:$C$39, 0), MATCH(X$8, 'Escalation Factor'!$C$34:$K$34, 0))), "-") -> - | Y35: =IFERROR(Y$27*(1+INDEX(Escalation_Factor_Table, MATCH($B35, 'Escalation Factor'!$C$34:$C$39, 0), MATCH(Y$8, 'Escalation Factor'!$C$34:$K$34, 0))), "-") -> - | AA35: =IFERROR(AA$27*(1+INDEX(Escalation_Factor_Table, MATCH($B35, 'Escalation Factor'!$C$34:$C$39, 0), MATCH(AA$8, 'Escalation Factor'!$C$34:$K$34, 0))), "-") -> - | AB35: =IFERROR(AB$27*(1+INDEX(Escalation_Factor_Table, MATCH($B35, 'Escalation Factor'!$C$34:$C$39, 0), MATCH(AB$8, 'Escalation Factor'!$C$34:$K$34, 0))), "-") -> - | AC35: =IFERROR(AC$27*(1+INDEX(Escalation_Factor_Table, MATCH($B35, 'Escalation Factor'!$C$34:$C$39, 0), MATCH(AC$8, 'Escalation Factor'!$C$34:$K$34, 0))), "-") -> - | AE35: =IFERROR(AE$27*(1+INDEX(Escalation_Factor_Table, MATCH($B35, 'Escalation Factor'!$C$34:$C$39, 0), MATCH(AE$8, 'Escalation Factor'!$C$34:$K$34, 0))), "-") -> - | AF35: =IFERROR(AF$27*(1+INDEX(Escalation_Factor_Table, MATCH($B35, 'Escalation Factor'!$C$34:$C$39, 0), MATCH(AF$8, 'Escalation Factor'!$C$34:$K$34, 0))), "-") -> - | AG35: =IFERROR(AG$27*(1+INDEX(Escalation_Factor_Table, MATCH($B35, 'Escalation Factor'!$C$34:$C$39, 0), MATCH(AG$8, 'Escalation Factor'!$C$34:$K$34, 0))), "-") -> - | AH35: =IFERROR(AH$27*(1+INDEX(Escalation_Factor_Table, MATCH($B35, 'Escalation Factor'!$C$34:$C$39, 0), MATCH(AH$8, 'Escalation Factor'!$C$34:$K$34, 0))), "-") -> - | AI35: =IFERROR(AI$27*(1+INDEX(Escalation_Factor_Table, MATCH($B35, 'Escalation Factor'!$C$34:$C$39, 0), MATCH(AI$8, 'Escalation Factor'!$C$34:$K$34, 0))), "-") -> - | AJ35: =IFERROR(AJ$27*(1+INDEX(Escalation_Factor_Table, MATCH($B35, 'Escalation Factor'!$C$34:$C$39, 0), MATCH(AJ$8, 'Escalation Factor'!$C$34:$K$34, 0))), "-") -> - | AL35: =IFERROR(AL$27*(1+INDEX(Escalation_Factor_Table, MATCH($B35, 'Escalation Factor'!$C$34:$C$39, 0), MATCH(AL$8, 'Escalation Factor'!$C$34:$K$34, 0))), "-") -> - | AM35: =IFERROR(AM$27*(1+INDEX(Escalation_Factor_Table, MATCH($B35, 'Escalation Factor'!$C$34:$C$39, 0), MATCH(AM$8, 'Escalation Factor'!$C$34:$K$34, 0))), "-") -> - | AN35: =IFERROR(AN$27*(1+INDEX(Escalation_Factor_Table, MATCH($B35, 'Escalation Factor'!$C$34:$C$39, 0), MATCH(AN$8, 'Escalation Factor'!$C$34:$K$34, 0))), "-") -> - | AO35: =IFERROR(AO$27*(1+INDEX(Escalation_Factor_Table, MATCH($B35, 'Escalation Factor'!$C$34:$C$39, 0), MATCH(AO$8, 'Escalation Factor'!$C$34:$K$34, 0))), "-") -> - | AP35: =IFERROR(AP$27*(1+INDEX(Escalation_Factor_Table, MATCH($B35, 'Escalation Factor'!$C$34:$C$39, 0), MATCH(AP$8, 'Escalation Factor'!$C$34:$K$34, 0))), "-") -> - | AQ35: =IFERROR(AQ$27*(1+INDEX(Escalation_Factor_Table, MATCH($B35, 'Escalation Factor'!$C$34:$C$39, 0), MATCH(AQ$8, 'Escalation Factor'!$C$34:$K$34, 0))), "-") -> - | AS35: =IFERROR(AS$27*(1+INDEX(Escalation_Factor_Table, MATCH($B35, 'Escalation Factor'!$C$34:$C$39, 0), MATCH(AS$8, 'Escalation Factor'!$C$34:$K$34, 0))), "-") -> - | AT35: =IFERROR(AT$27*(1+INDEX(Escalation_Factor_Table, MATCH($B35, 'Escalation Factor'!$C$34:$C$39, 0), MATCH(AT$8, 'Escalation Factor'!$C$34:$K$34, 0))), "-") -> - | AU35: =IFERROR(AU$27*(1+INDEX(Escalation_Factor_Table, MATCH($B35, 'Escalation Factor'!$C$34:$C$39, 0), MATCH(AU$8, 'Escalation Factor'!$C$34:$K$34, 0))), "-") -> - | AV35: =IFERROR(AV$27*(1+INDEX(Escalation_Factor_Table, MATCH($B35, 'Escalation Factor'!$C$34:$C$39, 0), MATCH(AV$8, 'Escalation Factor'!$C$34:$K$34, 0))), "-") -> - | AW35: =IFERROR(AW$27*(1+INDEX(Escalation_Factor_Table, MATCH($B35, 'Escalation Factor'!$C$34:$C$39, 0), MATCH(AW$8, 'Escalation Factor'!$C$34:$K$34, 0))), "-") -> - | AX35: =IFERROR(AX$27*(1+INDEX(Escalation_Factor_Table, MATCH($B35, 'Escalation Factor'!$C$34:$C$39, 0), MATCH(AX$8, 'Escalation Factor'!$C$34:$K$34, 0))), "-") -> - | AZ35: =IFERROR(AZ$27*(1+INDEX(Escalation_Factor_Table, MATCH($B35, 'Escalation Factor'!$C$34:$C$39, 0), MATCH(AZ$8, 'Escalation Factor'!$C$34:$K$34, 0))), "-") -> - | BA35: =IFERROR(BA$27*(1+INDEX(Escalation_Factor_Table, MATCH($B35, 'Escalation Factor'!$C$34:$C$39, 0), MATCH(BA$8, 'Escalation Factor'!$C$34:$K$34, 0))), "-") -> - | BB35: =IFERROR(BB$27*(1+INDEX(Escalation_Factor_Table, MATCH($B35, 'Escalation Factor'!$C$34:$C$39, 0), MATCH(BB$8, 'Escalation Factor'!$C$34:$K$34, 0))), "-") -> - | BC35: =IFERROR(BC$27*(1+INDEX(Escalation_Factor_Table, MATCH($B35, 'Escalation Factor'!$C$34:$C$39, 0), MATCH(BC$8, 'Escalation Factor'!$C$34:$K$34, 0))), "-") -> - | BD35: =IFERROR(BD$27*(1+INDEX(Escalation_Factor_Table, MATCH($B35, 'Escalation Factor'!$C$34:$C$39, 0), MATCH(BD$8, 'Escalation Factor'!$C$34:$K$34, 0))), "-") -> - | BE35: =IFERROR(BE$27*(1+INDEX(Escalation_Factor_Table, MATCH($B35, 'Escalation Factor'!$C$34:$C$39, 0), MATCH(BE$8, 'Escalation Factor'!$C$34:$K$34, 0))), "-") -> -
D38: Updated 4/01/2020

Sheet Capital Costs
D1: Project: | E1: NYISO ICAP Demand Curve | G1: Preliminary - Values subject to change
D2: Date: | E2: 2020-06-01
D3: Worksheet: | E3: Capital Costs
D5: Capital Costs
E8: SGT-A65 WLE | F8: SGT-A65 WLE | G8: SGT-A65 WLE | H8: SGT-A65 WLE | I8: SGT-A65 WLE | J8: SGT-A65 WLE | L8: SGT-A65 WLE | M8: SGT-A65 WLE | N8: SGT-A65 WLE | O8: SGT-A65 WLE | Q8: GE 7F.05 | R8: GE 7F.05 | S8: GE 7F.05 | T8: GE 7F.05 | U8: GE 7F.05 | V8: GE 7F.05 | X8: GE 7F.05 | Y8: GE 7F.05 | Z8: GE 7F.05 | AA8: GE 7F.05 | AC8: GE 7F.05 | AD8: GE 7F.05 | AE8: GE 7F.05 | AG8: GE 7F.05 | AH8: GE 7F.05 | AI8: GE 7F.05 | AK8: 1x0 GE 7HA.02 25ppm | AL8: 1x0 GE 7HA.02 25ppm | AM8: 1x0 GE 7HA.02 25ppm | AN8: 1x0 GE 7HA.02 25ppm | AO8: 1x0 GE 7HA.02 25ppm | AP8: 1x0 GE 7HA.02 25ppm | AR8: 1x0 GE 7HA.02 25ppm | AS8: 1x0 GE 7HA.02 25ppm | AT8: 1x0 GE 7HA.02 25ppm | AU8: 1x0 GE 7HA.02 25ppm | AW8: 1x0 GE 7HA.02 15ppm | AX8: 1x0 GE 7HA.02 15ppm | AY8: 1x0 GE 7HA.02 15ppm | BA8: 1x0 GE 7HA.02 15ppm | BB8: 1x0 GE 7HA.02 15ppm | BC8: 1x0 GE 7HA.02 15ppm | BE8: 8000J CC | BF8: 8000J CC | BG8: 8000J CC | BH8: 8000J CC | BI8: 8000J CC | BJ8: 8000J CC | BL8: 8000J CC | BM8: 8000J CC | BN8: 8000J CC | BO8: 8000J CC | BQ8: BESS 4h | BR8: BESS 4h | BS8: BESS 4h | BT8: BESS 4h | BU8: BESS 4h | BV8: BESS 4h | BX8: BESS 6h | BY8: BESS 6h | BZ8: BESS 6h | CA8: BESS 6h | CB8: BESS 6h | CC8: BESS 6h | CE8: BESS 8h | CF8: BESS 8h | CG8: BESS 8h | CH8: BESS 8h | CI8: BESS 8h | CJ8: BESS 8h
E9: Dual with SCR | F9: Dual with SCR | G9: Dual with SCR | H9: Dual with SCR | I9: Dual with SCR | J9: Dual with SCR | L9: Gas only with SCR | M9: Gas only with SCR | N9: Gas only with SCR | O9: Gas only with SCR | Q9: Dual with SCR | R9: Dual with SCR | S9: Dual with SCR | T9: Dual with SCR | U9: Dual with SCR | V9: Dual with SCR | X9: Gas only with SCR | Y9: Gas only with SCR | Z9: Gas only with SCR | AA9: Gas only with SCR | AC9: Gas only without SCR | AD9: Gas only without SCR | AE9: Gas only without SCR | AG9: Dual without SCR | AH9: Dual without SCR | AI9: Dual without SCR | AK9: Dual with SCR | AL9: Dual with SCR | AM9: Dual with SCR | AN9: Dual with SCR | AO9: Dual with SCR | AP9: Dual with SCR | AR9: Gas only with SCR | AS9: Gas only with SCR | AT9: Gas only with SCR | AU9: Gas only with SCR | AW9: Dual without SCR | AX9: Dual without SCR | AY9: Dual without SCR | BA9: Gas only without SCR | BB9: Gas only without SCR | BC9: Gas only without SCR | BE9: Dual with SCR | BF9: Dual with SCR | BG9: Dual with SCR | BH9: Dual with SCR | BI9: Dual with SCR | BJ9: Dual with SCR | BL9: Gas only with SCR | BM9: Gas only with SCR | BN9: Gas only with SCR | BO9: Gas only with SCR | BQ9: Battery | BR9: Battery | BS9: Battery | BT9: Battery | BU9: Battery | BV9: Battery | BX9: Battery | BY9: Battery | BZ9: Battery | CA9: Battery | CB9: Battery | CC9: Battery | CE9: Battery | CF9: Battery | CG9: Battery | CH9: Battery | CI9: Battery | CJ9: Battery
D10: Technology | E10: Siemens SGT-A65 WLE dual fuel with SCR | L10: Siemens SGT-A65 WLE gas only with SCR | Q10: GE 7F.05 dual fuel with SCR | X10: GE 7F.05 gas only with SCR | AC10: GE 7F.05 gas only without SCR | AG10: GE 7F.05 dual fuel without SCR | AK10: 1x0 GE 7HA.02 25ppm dual fuel with SCR | AR10: 1x0 GE 7HA.02 25ppm gas only with SCR | AW10: 1x0 GE 7HA.02 15ppm dual fuel without SCR | BA10: 1x0 GE 7HA.02 15ppm gas only without SCR | BE10: 1x1 GE 7HA.02 CC dual fuel with SCR | BL10: 1x1 GE 7HA.02 CC gas only with SCR | BQ10: BESS 4h | BX10: BESS 6h | CE10: BESS 8h
D11: Plant Capacity (MW) average of zone-specific DMNC ICAP | E11: =AVERAGE(E13:J13) -> 158.6666667 | L11: =AVERAGE(L13:O13) -> 158.65 | Q11: =AVERAGE(Q13:V13) -> 208.9833333 | X11: =AVERAGE(X13:AA13) -> 208.375 | AC11: =AVERAGE(AC13:AE13) -> 208.1333333 | AG11: =AVERAGE(AG13:AI13) -> 208.1333333 | AK11: =AVERAGE(AK13:AP13) -> 346.8166667 | AR11: =AVERAGE(AR13:BE13) -> 349.8727273 | AW11: =AVERAGE(AW13:AY13) -> 328.3666667 | BA11: =AVERAGE(BA13:BC13) -> 328.3666667 | BE11: =AVERAGE(BE13:BO13) -> 499.43 | BL11: =AVERAGE(BL13:BQ13) -> 438.96 | BQ11: =AVERAGE(BQ13:BV13) -> 200 | BX11: =AVERAGE(BX13:CC13) -> 200 | CE11: =AVERAGE(CE13:CJ13) -> 200
D13: DMNC ICAP (MW) | E13: =INDEX('Performance and O&M'!$C$12:$BE$21, MATCH("DMNC ICAP (MW)", 'Performance and O&M'!$C$12:$C$21, 0), MATCH(E15&E8, 'Performance and O&M'!$C$12:$BE$12, 0)) -> 158.6 | F13: =INDEX('Performance and O&M'!$C$12:$BE$21, MATCH("DMNC ICAP (MW)", 'Performance and O&M'!$C$12:$C$21, 0), MATCH(F15&F8, 'Performance and O&M'!$C$12:$BE$12, 0)) -> 158.6 | G13: =INDEX('Performance and O&M'!$C$12:$BE$21, MATCH("DMNC ICAP (MW)", 'Performance and O&M'!$C$12:$C$21, 0), MATCH(G15&G8, 'Performance and O&M'!$C$12:$BE$12, 0)) -> 158.7 | H13: =INDEX('Performance and O&M'!$C$12:$BE$21, MATCH("DMNC ICAP (MW)", 'Performance and O&M'!$C$12:$C$21, 0), MATCH(H15&H8, 'Performance and O&M'!$C$12:$BE$12, 0)) -> 158.7 | I13: =INDEX('Performance and O&M'!$C$12:$BE$21, MATCH("DMNC ICAP (MW)", 'Performance and O&M'!$C$12:$C$21, 0), MATCH(I15&I8, 'Performance and O&M'!$C$12:$BE$12, 0)) -> 158.7 | J13: =INDEX('Performance and O&M'!$C$12:$BE$21, MATCH("DMNC ICAP (MW)", 'Performance and O&M'!$C$12:$C$21, 0), MATCH(J15&J8, 'Performance and O&M'!$C$12:$BE$12, 0)) -> 158.7 | L13: =INDEX('Performance and O&M'!$C$12:$BE$21, MATCH("DMNC ICAP (MW)", 'Performance and O&M'!$C$12:$C$21, 0), MATCH(L15&L8, 'Performance and O&M'!$C$12:$BE$12, 0)) -> 158.6 | M13: =INDEX('Performance and O&M'!$C$12:$BE$21, MATCH("DMNC ICAP (MW)", 'Performance and O&M'!$C$12:$C$21, 0), MATCH(M15&M8, 'Performance and O&M'!$C$12:$BE$12, 0)) -> 158.6 | N13: =INDEX('Performance and O&M'!$C$12:$BE$21, MATCH("DMNC ICAP (MW)", 'Performance and O&M'!$C$12:$C$21, 0), MATCH(N15&N8, 'Performance and O&M'!$C$12:$BE$12, 0)) -> 158.7 | O13: =INDEX('Performance and O&M'!$C$12:$BE$21, MATCH("DMNC ICAP (MW)", 'Performance and O&M'!$C$12:$C$21, 0), MATCH(O15&O8, 'Performance and O&M'!$C$12:$BE$12, 0)) -> 158.7 | Q13: =INDEX('Performance and O&M'!$C$12:$BE$21, MATCH("DMNC ICAP (MW)", 'Performance and O&M'!$C$12:$C$21, 0), MATCH(Q15&Q8, 'Performance and O&M'!$C$12:$BE$12, 0)) -> 207.1 | R13: =INDEX('Performance and O&M'!$C$12:$BE$21, MATCH("DMNC ICAP (MW)", 'Performance and O&M'!$C$12:$C$21, 0), MATCH(R15&R8, 'Performance and O&M'!$C$12:$BE$12, 0)) -> 208.2 | S13: =INDEX('Performance and O&M'!$C$12:$BE$21, MATCH("DMNC ICAP (MW)", 'Performance and O&M'!$C$12:$C$21, 0), MATCH(S15&S8, 'Performance and O&M'!$C$12:$BE$12, 0)) -> 209.1 | T13: =INDEX('Performance and O&M'!$C$12:$BE$21, MATCH("DMNC ICAP (MW)", 'Performance and O&M'!$C$12:$C$21, 0), MATCH(T15&T8, 'Performance and O&M'!$C$12:$BE$12, 0)) -> 209.1 | U13: =INDEX('Performance and O&M'!$C$12:$BE$21, MATCH("DMNC ICAP (MW)", 'Performance and O&M'!$C$12:$C$21, 0), MATCH(U15&U8, 'Performance and O&M'!$C$12:$BE$12, 0)) -> 210.2 | V13: =INDEX('Performance and O&M'!$C$12:$BE$21, MATCH("DMNC ICAP (MW)", 'Performance and O&M'!$C$12:$C$21, 0), MATCH(V15&V8, 'Performance and O&M'!$C$12:$BE$12, 0)) -> 210.2 | X13: =INDEX('Performance and O&M'!$C$12:$BE$21, MATCH("DMNC ICAP (MW)", 'Performance and O&M'!$C$12:$C$21, 0), MATCH(X15&X8, 'Performance and O&M'!$C$12:$BE$12, 0)) -> 207.1 | Y13: =INDEX('Performance and O&M'!$C$12:$BE$21, MATCH("DMNC ICAP (MW)", 'Performance and O&M'!$C$12:$C$21, 0), MATCH(Y15&Y8, 'Performance and O&M'!$C$12:$BE$12, 0)) -> 208.2 | Z13: =INDEX('Performance and O&M'!$C$12:$BE$21, MATCH("DMNC ICAP (MW)", 'Performance and O&M'!$C$12:$C$21, 0), MATCH(Z15&Z8, 'Performance and O&M'!$C$12:$BE$12, 0)) -> 209.1 | AA13: =INDEX('Performance and O&M'!$C$12:$BE$21, MATCH("DMNC ICAP (MW)", 'Performance and O&M'!$C$12:$C$21, 0), MATCH(AA15&AA8, 'Performance and O&M'!$C$12:$BE$12, 0)) -> 209.1 | AB13: =INDEX('Performance and O&M'!$C$12:$BE$21, MATCH("DMNC ICAP (MW)", 'Performance and O&M'!$C$12:$C$21, 0), MATCH(AB15&AB8, 'Performance and O&M'!$C$12:$BE$12, 0)) -> 0 | AC13: =INDEX('Performance and O&M'!$C$12:$BE$21, MATCH("DMNC ICAP (MW)", 'Performance and O&M'!$C$12:$C$21, 0), MATCH(AC15&AC8, 'Performance and O&M'!$C$12:$BE$12, 0)) -> 207.1 | AD13: =INDEX('Performance and O&M'!$C$12:$BE$21, MATCH("DMNC ICAP (MW)", 'Performance and O&M'!$C$12:$C$21, 0), MATCH(AD15&AD8, 'Performance and O&M'!$C$12:$BE$12, 0)) -> 208.2 | AE13: =INDEX('Performance and O&M'!$C$12:$BE$21, MATCH("DMNC ICAP (MW)", 'Performance and O&M'!$C$12:$C$21, 0), MATCH(AE15&AE8, 'Performance and O&M'!$C$12:$BE$12, 0)) -> 209.1 | AG13: =INDEX('Performance and O&M'!$C$12:$BE$21, MATCH("DMNC ICAP (MW)", 'Performance and O&M'!$C$12:$C$21, 0), MATCH(AG15&AG8, 'Performance and O&M'!$C$12:$BE$12, 0)) -> 207.1 | AH13: =INDEX('Performance and O&M'!$C$12:$BE$21, MATCH("DMNC ICAP (MW)", 'Performance and O&M'!$C$12:$C$21, 0), MATCH(AH15&AH8, 'Performance and O&M'!$C$12:$BE$12, 0)) -> 208.2 | AI13: =INDEX('Performance and O&M'!$C$12:$BE$21, MATCH("DMNC ICAP (MW)", 'Performance and O&M'!$C$12:$C$21, 0), MATCH(AI15&AI8, 'Performance and O&M'!$C$12:$BE$12, 0)) -> 209.1 | AJ13: =INDEX('Performance and O&M'!$C$12:$BE$21, MATCH("DMNC ICAP (MW)", 'Performance and O&M'!$C$12:$C$21, 0), MATCH(AJ15&AJ8, 'Performance and O&M'!$C$12:$BE$12, 0)) -> 0 | AK13: =INDEX('Performance and O&M'!$C$12:$BE$21, MATCH("DMNC ICAP (MW)", 'Performance and O&M'!$C$12:$C$21, 0), MATCH(AK15&AK8, 'Performance and O&M'!$C$12:$BE$12, 0)) -> 343.7 | AL13: =INDEX('Performance and O&M'!$C$12:$BE$21, MATCH("DMNC ICAP (MW)", 'Performance and O&M'!$C$12:$C$21, 0), MATCH(AL15&AL8, 'Performance and O&M'!$C$12:$BE$12, 0)) -> 345.6 | AM13: =INDEX('Performance and O&M'!$C$12:$BE$21, MATCH("DMNC ICAP (MW)", 'Performance and O&M'!$C$12:$C$21, 0), MATCH(AM15&AM8, 'Performance and O&M'!$C$12:$BE$12, 0)) -> 347 | AN13: =INDEX('Performance and O&M'!$C$12:$BE$21, MATCH("DMNC ICAP (MW)", 'Performance and O&M'!$C$12:$C$21, 0), MATCH(AN15&AN8, 'Performance and O&M'!$C$12:$BE$12, 0)) -> 347 | AO13: =INDEX('Performance and O&M'!$C$12:$BE$21, MATCH("DMNC ICAP (MW)", 'Performance and O&M'!$C$12:$C$21, 0), MATCH(AO15&AO8, 'Performance and O&M'!$C$12:$BE$12, 0)) -> 348.8 | AP13: =INDEX('Performance and O&M'!$C$12:$BE$21, MATCH("DMNC ICAP (MW)", 'Performance and O&M'!$C$12:$C$21, 0), MATCH(AP15&AP8, 'Performance and O&M'!$C$12:$BE$12, 0)) -> 348.8 | AR13: =INDEX('Performance and O&M'!$C$12:$BE$21, MATCH("DMNC ICAP (MW)", 'Performance and O&M'!$C$12:$C$21, 0), MATCH(AR15&AR8, 'Performance and O&M'!$C$12:$BE$12, 0)) -> 343.7 | AS13: =INDEX('Performance and O&M'!$C$12:$BE$21, MATCH("DMNC ICAP (MW)", 'Performance and O&M'!$C$12:$C$21, 0), MATCH(AS15&AS8, 'Performance and O&M'!$C$12:$BE$12, 0)) -> 345.6 | AT13: =INDEX('Performance and O&M'!$C$12:$BE$21, MATCH("DMNC ICAP (MW)", 'Performance and O&M'!$C$12:$C$21, 0), MATCH(AT15&AT8, 'Performance and O&M'!$C$12:$BE$12, 0)) -> 347 | AU13: =INDEX('Performance and O&M'!$C$12:$BE$21, MATCH("DMNC ICAP (MW)", 'Performance and O&M'!$C$12:$C$21, 0), MATCH(AU15&AU8, 'Performance and O&M'!$C$12:$BE$12, 0)) -> 347 | AW13: =INDEX('Performance and O&M'!$C$12:$BE$21, MATCH("DMNC ICAP (MW)", 'Performance and O&M'!$C$12:$C$21, 0), MATCH(AW15&AW8, 'Performance and O&M'!$C$12:$BE$12, 0)) -> 326.7 | AX13: =INDEX('Performance and O&M'!$C$12:$BE$21, MATCH("DMNC ICAP (MW)", 'Performance and O&M'!$C$12:$C$21, 0), MATCH(AX15&AX8, 'Performance and O&M'!$C$12:$BE$12, 0)) -> 328.5 | AY13: =INDEX('Performance and O&M'!$C$12:$BE$21, MATCH("DMNC ICAP (MW)", 'Performance and O&M'!$C$12:$C$21, 0), MATCH(AY15&AY8, 'Performance and O&M'!$C$12:$BE$12, 0)) -> 329.9 | BA13: =INDEX('Performance and O&M'!$C$12:$BE$21, MATCH("DMNC ICAP (MW)", 'Performance and O&M'!$C$12:$C$21, 0), MATCH(BA15&BA8, 'Performance and O&M'!$C$12:$BE$12, 0)) -> 326.7 | BB13: =INDEX('Performance and O&M'!$C$12:$BE$21, MATCH("DMNC ICAP (MW)", 'Performance and O&M'!$C$12:$C$21, 0), MATCH(BB15&BB8, 'Performance and O&M'!$C$12:$BE$12, 0)) -> 328.5 | BC13: =INDEX('Performance and O&M'!$C$12:$BE$21, MATCH("DMNC ICAP (MW)", 'Performance and O&M'!$C$12:$C$21, 0), MATCH(BC15&BC8, 'Performance and O&M'!$C$12:$BE$12, 0)) -> 329.9 | BE13: =INDEX('Performance and O&M'!$C$12:$BE$21, MATCH("DMNC ICAP (MW)", 'Performance and O&M'!$C$12:$C$21, 0), MATCH(BE15&BE8, 'Performance and O&M'!$C$12:$BE$12, 0)) -> 495.1 | BF13: =INDEX('Performance and O&M'!$C$12:$BE$21, MATCH("DMNC ICAP (MW)", 'Performance and O&M'!$C$12:$C$21, 0), MATCH(BF15&BF8, 'Performance and O&M'!$C$12:$BE$12, 0)) -> 498.5 | BG13: =INDEX('Performance and O&M'!$C$12:$BE$21, MATCH("DMNC ICAP (MW)", 'Performance and O&M'!$C$12:$C$21, 0), MATCH(BG15&BG8, 'Performance and O&M'!$C$12:$BE$12, 0)) -> 500.6 | BH13: =INDEX('Performance and O&M'!$C$12:$BE$21, MATCH("DMNC ICAP (MW)", 'Performance and O&M'!$C$12:$C$21, 0), MATCH(BH15&BH8, 'Performance and O&M'!$C$12:$BE$12, 0)) -> 500.6 | BI13: =INDEX('Performance and O&M'!$C$12:$BE$21, MATCH("DMNC ICAP (MW)", 'Performance and O&M'!$C$12:$C$21, 0), MATCH(BI15&BI8, 'Performance and O&M'!$C$12:$BE$12, 0)) -> 502.2 | BJ13: =INDEX('Performance and O&M'!$C$12:$BE$21, MATCH("DMNC ICAP (MW)", 'Performance and O&M'!$C$12:$C$21, 0), MATCH(BJ15&BJ8, 'Performance and O&M'!$C$12:$BE$12, 0)) -> 502.5 | BL13: =INDEX('Performance and O&M'!$C$12:$BE$21, MATCH("DMNC ICAP (MW)", 'Performance and O&M'!$C$12:$C$21, 0), MATCH(BL15&BL8, 'Performance and O&M'!$C$12:$BE$12, 0)) -> 495.1 | BM13: =INDEX('Performance and O&M'!$C$12:$BE$21, MATCH("DMNC ICAP (MW)", 'Performance and O&M'!$C$12:$C$21, 0), MATCH(BM15&BM8, 'Performance and O&M'!$C$12:$BE$12, 0)) -> 498.5 | BN13: =INDEX('Performance and O&M'!$C$12:$BE$21, MATCH("DMNC ICAP (MW)", 'Performance and O&M'!$C$12:$C$21, 0), MATCH(BN15&BN8, 'Performance and O&M'!$C$12:$BE$12, 0)) -> 500.6 | BO13: =INDEX('Performance and O&M'!$C$12:$BE$21, MATCH("DMNC ICAP (MW)", 'Performance and O&M'!$C$12:$C$21, 0), MATCH(BO15&BO8, 'Performance and O&M'!$C$12:$BE$12, 0)) -> 500.6 | BQ13: =INDEX('Performance and O&M'!$C$12:$BE$21, MATCH("DMNC ICAP (MW)", 'Performance and O&M'!$C$12:$C$21, 0), MATCH(BQ15&BQ8, 'Performance and O&M'!$C$12:$BE$12, 0)) -> 200 | BR13: =INDEX('Performance and O&M'!$C$12:$BE$21, MATCH("DMNC ICAP (MW)", 'Performance and O&M'!$C$12:$C$21, 0), MATCH(BR15&BR8, 'Performance and O&M'!$C$12:$BE$12, 0)) -> 200 | BS13: =INDEX('Performance and O&M'!$C$12:$BE$21, MATCH("DMNC ICAP (MW)", 'Performance and O&M'!$C$12:$C$21, 0), MATCH(BS15&BS8, 'Performance and O&M'!$C$12:$BE$12, 0)) -> 200 | BT13: =INDEX('Performance and O&M'!$C$12:$BE$21, MATCH("DMNC ICAP (MW)", 'Performance and O&M'!$C$12:$C$21, 0), MATCH(BT15&BT8, 'Performance and O&M'!$C$12:$BE$12, 0)) -> 200 | BU13: =INDEX('Performance and O&M'!$C$12:$BE$21, MATCH("DMNC ICAP (MW)", 'Performance and O&M'!$C$12:$C$21, 0), MATCH(BU15&BU8, 'Performance and O&M'!$C$12:$BE$12, 0)) -> 200 | BV13: =INDEX('Performance and O&M'!$C$12:$BE$21, MATCH("DMNC ICAP (MW)", 'Performance and O&M'!$C$12:$C$21, 0), MATCH(BV15&BV8, 'Performance and O&M'!$C$12:$BE$12, 0)) -> 200 | BX13: =INDEX('Performance and O&M'!$C$12:$BE$21, MATCH("DMNC ICAP (MW)", 'Performance and O&M'!$C$12:$C$21, 0), MATCH(BX15&BX8, 'Performance and O&M'!$C$12:$BE$12, 0)) -> 200 | BY13: =INDEX('Performance and O&M'!$C$12:$BE$21, MATCH("DMNC ICAP (MW)", 'Performance and O&M'!$C$12:$C$21, 0), MATCH(BY15&BY8, 'Performance and O&M'!$C$12:$BE$12, 0)) -> 200 | BZ13: =INDEX('Performance and O&M'!$C$12:$BE$21, MATCH("DMNC ICAP (MW)", 'Performance and O&M'!$C$12:$C$21, 0), MATCH(BZ15&BZ8, 'Performance and O&M'!$C$12:$BE$12, 0)) -> 200 | CA13: =INDEX('Performance and O&M'!$C$12:$BE$21, MATCH("DMNC ICAP (MW)", 'Performance and O&M'!$C$12:$C$21, 0), MATCH(CA15&CA8, 'Performance and O&M'!$C$12:$BE$12, 0)) -> 200 | CB13: =INDEX('Performance and O&M'!$C$12:$BE$21, MATCH("DMNC ICAP (MW)", 'Performance and O&M'!$C$12:$C$21, 0), MATCH(CB15&CB8, 'Performance and O&M'!$C$12:$BE$12, 0)) -> 200 | CC13: =INDEX('Performance and O&M'!$C$12:$BE$21, MATCH("DMNC ICAP (MW)", 'Performance and O&M'!$C$12:$C$21, 0), MATCH(CC15&CC8, 'Performance and O&M'!$C$12:$BE$12, 0)) -> 200 | CE13: =INDEX('Performance and O&M'!$C$12:$BE$21, MATCH("DMNC ICAP (MW)", 'Performance and O&M'!$C$12:$C$21, 0), MATCH(CE15&CE8, 'Performance and O&M'!$C$12:$BE$12, 0)) -> 200 | CF13: =INDEX('Performance and O&M'!$C$12:$BE$21, MATCH("DMNC ICAP (MW)", 'Performance and O&M'!$C$12:$C$21, 0), MATCH(CF15&CF8, 'Performance and O&M'!$C$12:$BE$12, 0)) -> 200 | CG13: =INDEX('Performance and O&M'!$C$12:$BE$21, MATCH("DMNC ICAP (MW)", 'Performance and O&M'!$C$12:$C$21, 0), MATCH(CG15&CG8, 'Performance and O&M'!$C$12:$BE$12, 0)) -> 200 | CH13: =INDEX('Performance and O&M'!$C$12:$BE$21, MATCH("DMNC ICAP (MW)", 'Performance and O&M'!$C$12:$C$21, 0), MATCH(CH15&CH8, 'Performance and O&M'!$C$12:$BE$12, 0)) -> 200 | CI13: =INDEX('Performance and O&M'!$C$12:$BE$21, MATCH("DMNC ICAP (MW)", 'Performance and O&M'!$C$12:$C$21, 0), MATCH(CI15&CI8, 'Performance and O&M'!$C$12:$BE$12, 0)) -> 200 | CJ13: =INDEX('Performance and O&M'!$C$12:$BE$21, MATCH("DMNC ICAP (MW)", 'Performance and O&M'!$C$12:$C$21, 0), MATCH(CJ15&CJ8, 'Performance and O&M'!$C$12:$BE$12, 0)) -> 200
D14: Lookup | E14: =E15&E8&E9 -> C - CentralSGT-A65 WLEDual with SCR | F14: =F15&F8&F9 -> F - CapitalSGT-A65 WLEDual with SCR | G14: G - Hudson Valley (Dutchess)SGT-A65 WLEDual with SCR | H14: G - Hudson Valley (Rockland)SGT-A65 WLEDual with SCR | I14: J - New York CitySGT-A65 WLEDual with SCR | J14: =J15&J8&J9 -> K - Long IslandSGT-A65 WLEDual with SCR | L14: C - CentralSGT-A65 WLEGas only with SCR | M14: F - CapitalSGT-A65 WLEGas only with SCR | N14: G - Hudson Valley (Dutchess)SGT-A65 WLEGas only with SCR | O14: G - Hudson Valley (Rockland)SGT-A65 WLEGas only with SCR | Q14: =Q15&Q8&Q9 -> C - CentralGE 7F.05Dual with SCR | R14: =R15&R8&R9 -> F - CapitalGE 7F.05Dual with SCR | S14: =S15&S8&S9 -> G - Hudson Valley (Dutchess)GE 7F.05Dual with SCR | T14: =T15&T8&T9 -> G - Hudson Valley (Rockland)GE 7F.05Dual with SCR | U14: =U15&U8&U9 -> J - New York CityGE 7F.05Dual with SCR | V14: =V15&V8&V9 -> K - Long IslandGE 7F.05Dual with SCR | X14: =X15&X8&X9 -> C - CentralGE 7F.05Gas only with SCR | Y14: =Y15&Y8&Y9 -> F - CapitalGE 7F.05Gas only with SCR | Z14: =Z15&Z8&Z9 -> G - Hudson Valley (Dutchess)GE 7F.05Gas only with SCR | AA14: =AA15&AA8&AA9 -> G - Hudson Valley (Rockland)GE 7F.05Gas only with SCR | AC14: =AC15&AC8&AC9 -> C - CentralGE 7F.05Gas only without SCR | AD14: =AD15&AD8&AD9 -> F - CapitalGE 7F.05Gas only without SCR | AE14: =AE15&AE8&AE9 -> G - Hudson Valley (Dutchess)GE 7F.05Gas only without SCR | AG14: =AG15&AG8&AG9 -> C - CentralGE 7F.05Dual without SCR | AH14: F - CapitalGE 7F.05Dual without SCR | AI14: G - Hudson Valley (Dutchess)GE 7F.05Dual without SCR | AK14: =AK15&AK8&AK9 -> C - Central1x0 GE 7HA.02 25ppmDual with SCR | AL14: =AL15&AL8&AL9 -> F - Capital1x0 GE 7HA.02 25ppmDual with SCR | AM14: =AM15&AM8&AM9 -> G - Hudson Valley (Dutchess)1x0 GE 7HA.02 25ppmDual with SCR | AN14: =AN15&AN8&AN9 -> G - Hudson Valley (Rockland)1x0 GE 7HA.02 25ppmDual with SCR | AO14: =AO15&AO8&AO9 -> J - New York City1x0 GE 7HA.02 25ppmDual with SCR | AP14: =AP15&AP8&AP9 -> K - Long Island1x0 GE 7HA.02 25ppmDual with SCR | AR14: =AR15&AR8&AR9 -> C - Central1x0 GE 7HA.02 25ppmGas only with SCR | AS14: =AS15&AS8&AS9 -> F - Capital1x0 GE 7HA.02 25ppmGas only with SCR | AT14: =AT15&AT8&AT9 -> G - Hudson Valley (Dutchess)1x0 GE 7HA.02 25ppmGas only with SCR | AU14: =AU15&AU8&AU9 -> G - Hudson Valley (Rockland)1x0 GE 7HA.02 25ppmGas only with SCR | AW14: =AW15&AW8&AW9 -> C - Central1x0 GE 7HA.02 15ppmDual without SCR | AX14: =AX15&AX8&AX9 -> F - Capital1x0 GE 7HA.02 15ppmDual without SCR | AY14: G - Hudson Valley (Dutchess)1x0 GE 7HA.02 15ppmDual without SCR | BA14: =BA15&BA8&BA9 -> C - Central1x0 GE 7HA.02 15ppmGas only without SCR | BB14: =BB15&BB8&BB9 -> F - Capital1x0 GE 7HA.02 15ppmGas only without SCR | BC14: G - Hudson Valley (Dutchess)1x0 GE 7HA.02 15ppmGas only without SCR | BE14: =BE15&BE8&BE9 -> C - Central8000J CCDual with SCR | BF14: =BF15&BF8&BF9 -> F - Capital8000J CCDual with SCR | BG14: =BG15&BG8&BG9 -> G - Hudson Valley (Dutchess)8000J CCDual with SCR | BH14: =BH15&BH8&BH9 -> G - Hudson Valley (Rockland)8000J CCDual with SCR | BI14: J - New York City8000J CCDual with SCR | BJ14: K - Long Island8000J CCDual with SCR | BL14: =BL15&BL8&BL9 -> C - Central8000J CCGas only with SCR | BM14: =BM15&BM8&BM9 -> F - Capital8000J CCGas only with SCR | BN14: =BN15&BN8&BN9 -> G - Hudson Valley (Dutchess)8000J CCGas only with SCR | BO14: G - Hudson Valley (Rockland)8000J CCGas only with SCR | BQ14: =BQ15&BQ8&BQ9 -> C - CentralBESS 4hBattery | BR14: =BR15&BR8&BR9 -> F - CapitalBESS 4hBattery | BS14: =BS15&BS8&BS9 -> G - Hudson Valley (Dutchess)BESS 4hBattery | BT14: =BT15&BT8&BT9 -> G - Hudson Valley (Rockland)BESS 4hBattery | BU14: =BU15&BU8&BU9 -> J - New York CityBESS 4hBattery | BV14: =BV15&BV8&BV9 -> K - Long IslandBESS 4hBattery | BX14: =BX15&BX8&BX9 -> C - CentralBESS 6hBattery | BY14: =BY15&BY8&BY9 -> F - CapitalBESS 6hBattery | BZ14: =BZ15&BZ8&BZ9 -> G - Hudson Valley (Dutchess)BESS 6hBattery | CA14: G - Hudson Valley (Rockland)BESS 6hBattery | CB14: J - New York CityBESS 6hBattery | CC14: K - Long IslandBESS 6hBattery | CE14: =CE15&CE8&CE9 -> C - CentralBESS 8hBattery | CF14: =CF15&CF8&CF9 -> F - CapitalBESS 8hBattery | CG14: =CG15&CG8&CG9 -> G - Hudson Valley (Dutchess)BESS 8hBattery | CH14: G - Hudson Valley (Rockland)BESS 8hBattery | CI14: J - New York CityBESS 8hBattery | CJ14: K - Long IslandBESS 8hBattery
D15: Zone | E15: C - Central | F15: F - Capital | G15: G - Hudson Valley (Dutchess) | H15: G - Hudson Valley (Rockland) | I15: J - New York City | J15: K - Long Island | L15: C - Central | M15: F - Capital | N15: G - Hudson Valley (Dutchess) | O15: G - Hudson Valley (Rockland) | Q15: C - Central | R15: F - Capital | S15: G - Hudson Valley (Dutchess) | T15: G - Hudson Valley (Rockland) | U15: J - New York City | V15: K - Long Island | X15: C - Central | Y15: F - Capital | Z15: G - Hudson Valley (Dutchess) | AA15: G - Hudson Valley (Rockland) | AC15: C - Central | AD15: F - Capital | AE15: G - Hudson Valley (Dutchess) | AG15: C - Central | AH15: F - Capital | AI15: G - Hudson Valley (Dutchess) | AK15: C - Central | AL15: F - Capital | AM15: G - Hudson Valley (Dutchess) | AN15: G - Hudson Valley (Rockland) | AO15: J - New York City | AP15: K - Long Island | AR15: C - Central | AS15: F - Capital | AT15: G - Hudson Valley (Dutchess) | AU15: G - Hudson Valley (Rockland) | AW15: C - Central | AX15: F - Capital | AY15: G - Hudson Valley (Dutchess) | BA15: C - Central | BB15: F - Capital | BC15: G - Hudson Valley (Dutchess) | BE15: C - Central | BF15: F - Capital | BG15: G - Hudson Valley (Dutchess) | BH15: G - Hudson Valley (Rockland) | BI15: J - New York City | BJ15: K - Long Island | BL15: C - Central | BM15: F - Capital | BN15: G - Hudson Valley (Dutchess) | BO15: G - Hudson Valley (Rockland) | BQ15: C - Central | BR15: F - Capital | BS15: G - Hudson Valley (Dutchess) | BT15: G - Hudson Valley (Rockland) | BU15: J - New York City | BV15: K - Long Island | BX15: C - Central | BY15: F - Capital | BZ15: G - Hudson Valley (Dutchess) | CA15: G - Hudson Valley (Rockland) | CB15: J - New York City | CC15: K - Long Island | CE15: C - Central | CF15: F - Capital | CG15: G - Hudson Valley (Dutchess) | CH15: G - Hudson Valley (Rockland) | CI15: J - New York City | CJ15: K - Long Island
D18: Total EPC Costs | E18: 224620000 | F18: 226970000 | G18: 230830000 | H18: 239160000 | I18: 259570000 | J18: 256570000 | L18: 213320000 | M18: 215670000 | N18: 219530000 | O18: 227860000 | Q18: 180960000 | R18: 183900000 | S18: 187650000 | T18: 198840000 | U18: 226420000 | V18: 223420000 | X18: 164060000 | Y18: 167000000 | Z18: 170750000 | AA18: 181940000 | AC18: 143460000 | AD18: 146400000 | AE18: 150150000 | AG18: 160360000 | AH18: 163300000 | AI18: 167050000 | AK18: 249580000 | AL18: 252640000 | AM18: 256490000 | AN18: 266810000 | AO18: 300580000 | AP18: 297580000 | AR18: 224180000 | AS18: 227240000 | AT18: 231090000 | AU18: 241410000 | AW18: 206141577.7 | AX18: 209207822.7 | AY18: 213058318.5 | BA18: 180741577.7 | BB18: 183807822.7 | BC18: 187658318.5 | BE18: 537010000 | BF18: 549560000 | BG18: 567610000 | BH18: 610140000 | BI18: 692830000 | BJ18: 686830000 | BL18: 511610000 | BM18: 524160000 | BN18: 542210000 | BO18: 584740000 | BQ18: 250840000 | BR18: 253270000 | BS18: 255560000 | BT18: 265420000 | BU18: 281180000 | BV18: 279380000 | BX18: 358860000 | BY18: 362370000 | BZ18: 365600000 | CA18: 379830000 | CB18: 402380000 | CC18: 399980000 | CE18: 466810000 | CF18: 471420000 | CG18: 475590000 | CH18: 494190000 | CI18: 523510000 | CJ18: 520510000
D19: Labor | E19: 45853195.44 | F19: 46332916.78 | G19: 47120884.62 | H19: 48821343.69 | I19: 52987774.64 | J19: 52375364.41 | L19: 45853195.44 | M19: 46332916.78 | N19: 47120884.62 | O19: 48821343.69 | Q19: 54160593.6 | R19: 55040523.67 | S19: 56162883.45 | T19: 59512005.03 | U19: 67766587.1 | V19: 66868699.28 | X19: 54160593.6 | Y19: 55040523.67 | Z19: 56162883.45 | AA19: 59512005.03 | AC19: 54160593.6 | AD19: 55040523.67 | AE19: 56162883.45 | AG19: 54160593.6 | AH19: 55040523.67 | AI19: 56162883.45 | AK19: 62442644.21 | AL19: 63208228.36 | AM19: 64171463.32 | AN19: 66753433.38 | AO19: 75202379.99 | AP19: 74451807.3 | AR19: 62442644.21 | AS19: 63208228.36 | AT19: 64171463.32 | AU19: 66753433.38 | AW19: 51574746.36 | AX19: 52341892.94 | AY19: 53305251.95 | BA19: 51574746.36 | BB19: 52341892.94 | BC19: 53305251.95 | BE19: 201088029.7 | BF19: 205787485.5 | BG19: 212546463.8 | BH19: 228472189.4 | BI19: 259436173.6 | BJ19: 257189421.8 | BL19: 201088029.7 | BM19: 205787485.5 | BN19: 212546463.8 | BO19: 228472189.4 | BQ19: 36974467.36 | BR19: 37332655.67 | BS19: 37670207.62 | BT19: 39123597.22 | BU19: 41446662.14 | BV19: 41181337.47 | BX19: 53195436.4 | BY19: 53715739.53 | BZ19: 54194537 | CA19: 56303914.09 | CB19: 59646602.29 | CC19: 59290839.47 | CE19: 69390045.37 | CF19: 70075309.42 | CG19: 70695168.65 | CH19: 73460008.4 | CI19: 77818347.19 | CJ19: 77372405.3
D20: Materials | E20: 59299217.91 | F20: 59919613.08 | G20: 60938645.14 | H20: 63137748 | I20: 68525946.01 | J20: 67733952.19 | L20: 59299217.91 | M20: 59919613.08 | N20: 60938645.14 | O20: 63137748 | Q20: 32930524.67 | R20: 33465536.51 | S20: 34147949.57 | T20: 36184270.15 | U20: 41203190.74 | V20: 40657260.29 | X20: 32930524.67 | Y20: 33465536.51 | Z20: 34147949.57 | AA20: 36184270.15 | AC20: 32930524.67 | AD20: 33465536.51 | AE20: 34147949.57 | AG20: 32930524.67 | AH20: 33465536.51 | AI20: 34147949.57 | AK20: 40174537.41 | AL20: 40667101.25 | AM20: 41286830.27 | AN20: 42948025.99 | AO20: 48383934.82 | AP20: 47901029.09 | AR20: 40174537.41 | AS20: 40667101.25 | AT20: 41286830.27 | AU20: 42948025.99 | AW20: 33182316.39 | AX20: 33675885.48 | AY20: 34295694.32 | BA20: 33182316.39 | BB20: 33675885.48 | BC20: 34295694.32 | BE20: 117715736.2 | BF20: 120466769.7 | BG20: 124423435.4 | BH20: 133746260.4 | BI20: 151872392.6 | BJ20: 150557157.4 | BL20: 117715736.2 | BM20: 120466769.7 | BN20: 124423435.4 | BO20: 133746260.4 | BQ20: 41125320.94 | BR20: 41523720.43 | BS20: 41899166.87 | BT20: 43515717.92 | BU20: 46099576.39 | BV20: 45804465.65 | BX20: 50646975.51 | BY20: 51142352.22 | BZ20: 51598211.69 | CA20: 53606533.77 | CB20: 56789082.11 | CC20: 56450363 | CE20: 60144251.04 | CF20: 60738207.89 | CG20: 61275474.72 | CH20: 63671916.68 | CI20: 67449533.78 | CJ20: 67063010.88
D21: Turbines or Batteries | E21: 68858392.88 | F21: 69578797.22 | G21: 70762099.67 | H21: 73315703.14 | I21: 79572491.49 | J21: 78652826.37 | L21: 68858392.88 | M21: 69578797.22 | N21: 70762099.67 | O21: 73315703.14 | Q21: 44480853.68 | R21: 45203520.07 | S21: 46125288.42 | T21: 48875845.19 | U21: 55655144.18 | V21: 54917729.49 | X21: 44480853.68 | Y21: 45203520.07 | Z21: 46125288.42 | AA21: 48875845.19 | AC21: 44480853.68 | AD21: 45203520.07 | AE21: 46125288.42 | AG21: 44480853.68 | AH21: 45203520.07 | AI21: 46125288.42 | AK21: 88504069.4 | AL21: 89589182.2 | AM21: 90954438.5 | AN21: 94614034.61 | AO21: 106589282.7 | AP21: 105525446.6 | AR21: 88504069.4 | AS21: 89589182.2 | AT21: 90954438.5 | AU21: 94614034.61 | AW21: 73100282.49 | AX21: 74187609.82 | AY21: 75553041.95 | BA21: 73100282.49 | BB21: 74187609.82 | BC21: 75553041.95 | BE21: 94239125.08 | BF21: 96441506.82 | BG21: 99609075.78 | BH21: 107072605.3 | BI21: 121583756.4 | BJ21: 120530824.9 | BL21: 94239125.08 | BM21: 96441506.82 | BN21: 99609075.78 | BO21: 107072605.3 | BQ21: 133043925 | BR21: 134332781.4 | BS21: 135547382.7 | BT21: 140777063.4 | BU21: 149136066.2 | BV21: 148181357.7 | BX21: 199531206.5 | BY21: 201482815.9 | BZ21: 203278741.3 | CA21: 211190821.4 | CB21: 223728938.5 | CC21: 222394504.8 | CE21: 266008757.7 | CF21: 268635737.3 | CG21: 271011985.7 | CH21: 281611079.3 | CI21: 298318897.9 | CJ21: 296609366.6
D22: Other | E22: 50609193.77 | F22: 51138672.92 | G22: 52008370.58 | H22: 53885205.16 | I22: 58483787.86 | J22: 57807857.03 | L22: 50609193.77 | M22: 51138672.92 | N22: 52008370.58 | O22: 53885205.16 | Q22: 49388028.05 | R22: 50190419.75 | S22: 51213878.56 | T22: 54267879.63 | U22: 61795077.98 | V22: 60976310.93 | X22: 49388028.05 | Y22: 50190419.75 | Z22: 51213878.56 | AA22: 54267879.63 | AC22: 49388028.05 | AD22: 50190419.75 | AE22: 51213878.56 | AG22: 49388028.05 | AH22: 50190419.75 | AI22: 51213878.56 | AK22: 58458748.98 | AL22: 59175488.18 | AM22: 60077267.91 | AN22: 62494506.03 | AO22: 70404402.46 | AP22: 69701716.96 | AR22: 58458748.98 | AS22: 59175488.18 | AT22: 60077267.91 | AU22: 62494506.03 | AW22: 48284232.49 | AX22: 49002434.45 | AY22: 49904330.32 | BA22: 48284232.49 | BB22: 49002434.45 | BC22: 49904330.32 | BE22: 123967109 | BF22: 126864238 | BG22: 131031025 | BH22: 140848944.9 | BI22: 159937677.4 | BJ22: 158552595.8 | BL22: 123967109 | BM22: 126864238 | BN22: 131031025 | BO22: 140848944.9 | BQ22: 39696286.69 | BR22: 40080842.49 | BS22: 40443242.81 | BT22: 42003621.49 | BU22: 44497695.31 | BV22: 44212839.16 | BX22: 55486381.56 | BY22: 56029092.36 | BZ22: 56528510 | CA22: 58728730.72 | CB22: 62215377.06 | CC22: 61844292.75 | CE22: 71266945.93 | CF22: 71970745.38 | CG22: 72607370.91 | CH22: 75446995.59 | CI22: 79923221.15 | CJ22: 79465217.17
D23: DEDUCT FOR GAS ONLY | L23: -11300000 | M23: -11300000 | N23: -11300000 | O23: -11300000 | X23: -16900000 | Y23: -16900000 | Z23: -16900000 | AA23: -16900000 | AC23: -16900000 | AD23: -16900000 | AE23: -16900000 | AR23: -25400000 | AS23: -25400000 | AT23: -25400000 | AU23: -25400000 | BA23: -25400000 | BB23: -25400000 | BC23: -25400000 | BL23: -25400000 | BM23: -25400000 | BN23: -25400000 | BO23: -25400000
D24: DEDUCT TO REMOVE SCR/CO | AC24: -20600000 | AD24: -20600000 | AE24: -20600000 | AG24: -20600000 | AH24: -20600000 | AI24: -20600000
D26: Non-EPC Cost Components
D28: Owner's Costs
D29: Owner's Project Development | E29: 370000 | F29: 370000 | G29: 370000 | H29: 370000 | I29: 480000 | J29: 410000 | L29: 370000 | M29: 370000 | N29: 370000 | O29: 370000 | Q29: 370000 | R29: 370000 | S29: 370000 | T29: 370000 | U29: 480000 | V29: 410000 | X29: 370000 | Y29: 370000 | Z29: 370000 | AA29: 370000 | AC29: 370000 | AD29: 370000 | AE29: 370000 | AG29: 370000 | AH29: 370000 | AI29: 370000 | AK29: 370000 | AL29: 370000 | AM29: 370000 | AN29: 370000 | AO29: 480000 | AP29: 410000 | AR29: 370000 | AS29: 370000 | AT29: 370000 | AU29: 370000 | AW29: 370000 | AX29: 370000 | AY29: 370000 | BA29: 370000 | BB29: 370000 | BC29: 370000 | BE29: 3500000 | BF29: 3500000 | BG29: 3500000 | BH29: 3500000 | BI29: 4550000 | BJ29: 3850000 | BL29: 3500000 | BM29: 3500000 | BN29: 3500000 | BO29: 3500000 | BQ29: 170000 | BR29: 170000 | BS29: 170000 | BT29: 170000 | BU29: 220000 | BV29: 190000 | BX29: 170000 | BY29: 170000 | BZ29: 170000 | CA29: 170000 | CB29: 220000 | CC29: 190000 | CE29: 170000 | CF29: 170000 | CG29: 170000 | CH29: 170000 | CI29: 220000 | CJ29: 190000
D30: Owner's Operational Personnel Prior to COD | E30: 440000 | F30: 440000 | G30: 440000 | H30: 440000 | I30: 570000 | J30: 480000 | L30: 440000 | M30: 440000 | N30: 440000 | O30: 440000 | Q30: 440000 | R30: 440000 | S30: 440000 | T30: 440000 | U30: 570000 | V30: 480000 | X30: 440000 | Y30: 440000 | Z30: 440000 | AA30: 440000 | AC30: 440000 | AD30: 440000 | AE30: 440000 | AG30: 440000 | AH30: 440000 | AI30: 440000 | AK30: 440000 | AL30: 440000 | AM30: 440000 | AN30: 440000 | AO30: 570000 | AP30: 480000 | AR30: 440000 | AS30: 440000 | AT30: 440000 | AU30: 440000 | AW30: 440000 | AX30: 440000 | AY30: 440000 | BA30: 440000 | BB30: 440000 | BC30: 440000 | BE30: 2400000 | BF30: 2400000 | BG30: 2400000 | BH30: 2400000 | BI30: 3120000 | BJ30: 2640000 | BL30: 2400000 | BM30: 2400000 | BN30: 2400000 | BO30: 2400000 | BQ30: 110000 | BR30: 110000 | BS30: 110000 | BT30: 110000 | BU30: 140000 | BV30: 120000 | BX30: 110000 | BY30: 110000 | BZ30: 110000 | CA30: 110000 | CB30: 140000 | CC30: 120000 | CE30: 110000 | CF30: 110000 | CG30: 110000 | CH30: 110000 | CI30: 140000 | CJ30: 120000
D31: Owner's Engineer | E31: 1020000 | F31: 1020000 | G31: 1020000 | H31: 1020000 | I31: 1330000 | J31: 1120000 | L31: 1020000 | M31: 1020000 | N31: 1020000 | O31: 1020000 | Q31: 1020000 | R31: 1020000 | S31: 1020000 | T31: 1020000 | U31: 1330000 | V31: 1120000 | X31: 1020000 | Y31: 1020000 | Z31: 1020000 | AA31: 1020000 | AC31: 1020000 | AD31: 1020000 | AE31: 1020000 | AG31: 1020000 | AH31: 1020000 | AI31: 1020000 | AK31: 1020000 | AL31: 1020000 | AM31: 1020000 | AN31: 1020000 | AO31: 1330000 | AP31: 1120000 | AR31: 1020000 | AS31: 1020000 | AT31: 1020000 | AU31: 1020000 | AW31: 1020000 | AX31: 1020000 | AY31: 1020000 | BA31: 1020000 | BB31: 1020000 | BC31: 1020000 | BE31: 2600000 | BF31: 2600000 | BG31: 2600000 | BH31: 2600000 | BI31: 3380000 | BJ31: 2860000 | BL31: 2600000 | BM31: 2600000 | BN31: 2600000 | BO31: 2600000 | BQ31: 190000 | BR31: 190000 | BS31: 190000 | BT31: 190000 | BU31: 250000 | BV31: 210000 | BX31: 230000 | BY31: 230000 | BZ31: 230000 | CA31: 230000 | CB31: 300000 | CC31: 250000 | CE31: 260000 | CF31: 260000 | CG31: 260000 | CH31: 260000 | CI31: 340000 | CJ31: 290000
D32: Owner's Project Management | E32: 1130000 | F32: 1130000 | G32: 1130000 | H32: 1130000 | I32: 1470000 | J32: 1240000 | L32: 1130000 | M32: 1130000 | N32: 1130000 | O32: 1130000 | Q32: 1130000 | R32: 1130000 | S32: 1130000 | T32: 1130000 | U32: 1470000 | V32: 1240000 | X32: 1130000 | Y32: 1130000 | Z32: 1130000 | AA32: 1130000 | AC32: 1130000 | AD32: 1130000 | AE32: 1130000 | AG32: 1130000 | AH32: 1130000 | AI32: 1130000 | AK32: 1130000 | AL32: 1130000 | AM32: 1130000 | AN32: 1130000 | AO32: 1470000 | AP32: 1240000 | AR32: 1130000 | AS32: 1130000 | AT32: 1130000 | AU32: 1130000 | AW32: 1130000 | AX32: 1130000 | AY32: 1130000 | BA32: 1130000 | BB32: 1130000 | BC32: 1130000 | BE32: 4800000 | BF32: 4800000 | BG32: 4800000 | BH32: 4800000 | BI32: 6240000 | BJ32: 5280000 | BL32: 4800000 | BM32: 4800000 | BN32: 4800000 | BO32: 4800000 | BQ32: 350000 | BR32: 350000 | BS32: 350000 | BT32: 350000 | BU32: 460000 | BV32: 390000 | BX32: 410000 | BY32: 410000 | BZ32: 410000 | CA32: 410000 | CB32: 530000 | CC32: 450000 | CE32: 480000 | CF32: 480000 | CG32: 480000 | CH32: 480000 | CI32: 620000 | CJ32: 530000
D33: Owner's Legal Costs | E33: 1000000 | F33: 1000000 | G33: 1000000 | H33: 1000000 | I33: 1300000 | J33: 1100000 | L33: 1000000 | M33: 1000000 | N33: 1000000 | O33: 1000000 | Q33: 1000000 | R33: 1000000 | S33: 1000000 | T33: 1000000 | U33: 1300000 | V33: 1100000 | X33: 1000000 | Y33: 1000000 | Z33: 1000000 | AA33: 1000000 | AC33: 1000000 | AD33: 1000000 | AE33: 1000000 | AG33: 1000000 | AH33: 1000000 | AI33: 1000000 | AK33: 1000000 | AL33: 1000000 | AM33: 1000000 | AN33: 1000000 | AO33: 1300000 | AP33: 1100000 | AR33: 1000000 | AS33: 1000000 | AT33: 1000000 | AU33: 1000000 | AW33: 1000000 | AX33: 1000000 | AY33: 1000000 | BA33: 1000000 | BB33: 1000000 | BC33: 1000000 | BE33: 1000000 | BF33: 1000000 | BG33: 1000000 | BH33: 1000000 | BI33: 1300000 | BJ33: 1100000 | BL33: 1000000 | BM33: 1000000 | BN33: 1000000 | BO33: 1000000 | BQ33: 500000 | BR33: 500000 | BS33: 500000 | BT33: 500000 | BU33: 650000 | BV33: 550000 | BX33: 500000 | BY33: 500000 | BZ33: 500000 | CA33: 500000 | CB33: 650000 | CC33: 550000 | CE33: 500000 | CF33: 500000 | CG33: 500000 | CH33: 500000 | CI33: 650000 | CJ33: 550000
D34: Owner's Start-up Engineering and Commissioning | E34: 270000 | F34: 270000 | G34: 270000 | H34: 270000 | I34: 350000 | J34: 300000 | L34: 270000 | M34: 270000 | N34: 270000 | O34: 270000 | Q34: 270000 | R34: 270000 | S34: 270000 | T34: 270000 | U34: 350000 | V34: 300000 | X34: 270000 | Y34: 270000 | Z34: 270000 | AA34: 270000 | AC34: 270000 | AD34: 270000 | AE34: 270000 | AG34: 270000 | AH34: 270000 | AI34: 270000 | AK34: 270000 | AL34: 270000 | AM34: 270000 | AN34: 270000 | AO34: 350000 | AP34: 300000 | AR34: 270000 | AS34: 270000 | AT34: 270000 | AU34: 270000 | AW34: 270000 | AX34: 270000 | AY34: 270000 | BA34: 270000 | BB34: 270000 | BC34: 270000 | BE34: 540000 | BF34: 540000 | BG34: 540000 | BH34: 540000 | BI34: 700000 | BJ34: 590000 | BL34: 540000 | BM34: 540000 | BN34: 540000 | BO34: 540000 | BQ34: 70000 | BR34: 70000 | BS34: 70000 | BT34: 70000 | BU34: 90000 | BV34: 80000 | BX34: 140000 | BY34: 140000 | BZ34: 140000 | CA34: 140000 | CB34: 180000 | CC34: 150000 | CE34: 180000 | CF34: 180000 | CG34: 180000 | CH34: 180000 | CI34: 230000 | CJ34: 200000
D35: Sales Tax | E35: 0 | F35: 0 | G35: 0 | H35: 0 | I35: 0 | J35: 0 | L35: 0 | M35: 0 | N35: 0 | O35: 0 | Q35: 0 | R35: 0 | S35: 0 | T35: 0 | U35: 0 | V35: 0 | X35: 0 | Y35: 0 | Z35: 0 | AA35: 0 | AC35: 0 | AD35: 0 | AE35: 0 | AG35: 0 | AH35: 0 | AI35: 0 | AK35: 0 | AL35: 0 | AM35: 0 | AN35: 0 | AO35: 0 | AP35: 0 | AR35: 0 | AS35: 0 | AT35: 0 | AU35: 0 | AW35: 0 | AX35: 0 | AY35: 0 | BA35: 0 | BB35: 0 | BC35: 0 | BE35: 0 | BF35: 0 | BG35: 0 | BH35: 0 | BI35: 0 | BJ35: 0 | BL35: 0 | BM35: 0 | BN35: 0 | BO35: 0 | BQ35: 0 | BR35: 0 | BS35: 0 | BT35: 0 | BU35: 0 | BV35: 0 | BX35: 0 | BY35: 0 | BZ35: 0 | CA35: 0 | CB35: 0 | CC35: 0 | CE35: 0 | CF35: 0 | CG35: 0 | CH35: 0 | CI35: 0 | CJ35: 0
D36: Construction Power and Water | E36: 510000 | F36: 510000 | G36: 510000 | H36: 510000 | I36: 660000 | J36: 560000 | L36: 510000 | M36: 510000 | N36: 510000 | O36: 510000 | Q36: 510000 | R36: 510000 | S36: 510000 | T36: 510000 | U36: 660000 | V36: 560000 | X36: 510000 | Y36: 510000 | Z36: 510000 | AA36: 510000 | AC36: 510000 | AD36: 510000 | AE36: 510000 | AG36: 510000 | AH36: 510000 | AI36: 510000 | AK36: 550000 | AL36: 550000 | AM36: 550000 | AN36: 550000 | AO36: 720000 | AP36: 610000 | AR36: 550000 | AS36: 550000 | AT36: 550000 | AU36: 550000 | AW36: 550000 | AX36: 550000 | AY36: 550000 | BA36: 550000 | BB36: 550000 | BC36: 550000 | BE36: 1540000 | BF36: 1540000 | BG36: 1540000 | BH36: 1540000 | BI36: 2000000 | BJ36: 1690000 | BL36: 1540000 | BM36: 1540000 | BN36: 1540000 | BO36: 1540000 | BQ36: 450000 | BR36: 450000 | BS36: 450000 | BT36: 450000 | BU36: 590000 | BV36: 500000 | BX36: 510000 | BY36: 510000 | BZ36: 510000 | CA36: 510000 | CB36: 660000 | CC36: 560000 | CE36: 550000 | CF36: 550000 | CG36: 550000 | CH36: 550000 | CI36: 720000 | CJ36: 610000
D37: Permitting and Licensing Fees | E37: 1000000 | F37: 1000000 | G37: 1000000 | H37: 1000000 | I37: 1300000 | J37: 1100000 | L37: 1000000 | M37: 1000000 | N37: 1000000 | O37: 1000000 | Q37: 1000000 | R37: 1000000 | S37: 1000000 | T37: 1000000 | U37: 1300000 | V37: 1100000 | X37: 1000000 | Y37: 1000000 | Z37: 1000000 | AA37: 1000000 | AC37: 1000000 | AD37: 1000000 | AE37: 1000000 | AG37: 1000000 | AH37: 1000000 | AI37: 1000000 | AK37: 1000000 | AL37: 1000000 | AM37: 1000000 | AN37: 1000000 | AO37: 1300000 | AP37: 1100000 | AR37: 1000000 | AS37: 1000000 | AT37: 1000000 | AU37: 1000000 | AW37: 1000000 | AX37: 1000000 | AY37: 1000000 | BA37: 1000000 | BB37: 1000000 | BC37: 1000000 | BE37: 1000000 | BF37: 1000000 | BG37: 1000000 | BH37: 1000000 | BI37: 1300000 | BJ37: 1100000 | BL37: 1000000 | BM37: 1000000 | BN37: 1000000 | BO37: 1000000 | BQ37: 250000 | BR37: 250000 | BS37: 250000 | BT37: 250000 | BU37: 330000 | BV37: 280000 | BX37: 250000 | BY37: 250000 | BZ37: 250000 | CA37: 250000 | CB37: 330000 | CC37: 280000 | CE37: 250000 | CF37: 250000 | CG37: 250000 | CH37: 250000 | CI37: 330000 | CJ37: 280000
D38: Switchyard | E38: 17080000 | F38: 17080000 | G38: 17080000 | H38: 17080000 | I38: 53070000 | J38: 9320000 | L38: 17080000 | M38: 17080000 | N38: 17080000 | O38: 17080000 | Q38: 10250000 | R38: 10250000 | S38: 10250000 | T38: 10250000 | U38: 50750000 | V38: 5590000 | X38: 10250000 | Y38: 10250000 | Z38: 10250000 | AA38: 10250000 | AC38: 10250000 | AD38: 10250000 | AE38: 10250000 | AG38: 10250000 | AH38: 10250000 | AI38: 10250000 | AK38: 10250000 | AL38: 10250000 | AM38: 10250000 | AN38: 10250000 | AO38: 50750000 | AP38: 5590000 | AR38: 10250000 | AS38: 10250000 | AT38: 10250000 | AU38: 10250000 | AW38: 10250000 | AX38: 10250000 | AY38: 10250000 | BA38: 10250000 | BB38: 10250000 | BC38: 10250000 | BE38: 18940000 | BF38: 18940000 | BG38: 18940000 | BH38: 18940000 | BI38: 61590000 | BJ38: 18940000 | BL38: 18940000 | BM38: 18940000 | BN38: 18940000 | BO38: 18940000 | BQ38: 10250000 | BR38: 10250000 | BS38: 10250000 | BT38: 10250000 | BU38: 50750000 | BV38: 5590000 | BX38: 10250000 | BY38: 10250000 | BZ38: 10250000 | CA38: 10250000 | CB38: 50750000 | CC38: 5590000 | CE38: 10250000 | CF38: 10250000 | CG38: 10250000 | CH38: 10250000 | CI38: 50750000 | CJ38: 5590000
D39: Electrical Interconnection and Deliverability | E39: 11000000 | F39: 11000000 | G39: 11000000 | H39: 11000000 | I39: 11000000 | J39: 6500000 | L39: 11000000 | M39: 11000000 | N39: 11000000 | O39: 11000000 | Q39: 11000000 | R39: 11000000 | S39: 11000000 | T39: 11000000 | U39: 11000000 | V39: 6500000 | X39: 11000000 | Y39: 11000000 | Z39: 11000000 | AA39: 11000000 | AC39: 11000000 | AD39: 11000000 | AE39: 11000000 | AG39: 11000000 | AH39: 11000000 | AI39: 11000000 | AK39: 11000000 | AL39: 11000000 | AM39: 11000000 | AN39: 11000000 | AO39: 11000000 | AP39: 6500000 | AR39: 11000000 | AS39: 11000000 | AT39: 11000000 | AU39: 11000000 | AW39: 11000000 | AX39: 11000000 | AY39: 11000000 | BA39: 11000000 | BB39: 11000000 | BC39: 11000000 | BE39: 11000000 | BF39: 11000000 | BG39: 11000000 | BH39: 11000000 | BI39: 11000000 | BJ39: 11000000 | BL39: 11000000 | BM39: 11000000 | BN39: 11000000 | BO39: 11000000 | BQ39: 11000000 | BR39: 11000000 | BS39: 11000000 | BT39: 11000000 | BU39: 13010000 | BV39: 6500000 | BX39: 11000000 | BY39: 11000000 | BZ39: 11000000 | CA39: 11000000 | CB39: 13010000 | CC39: 6500000 | CE39: 11000000 | CF39: 11000000 | CG39: 11000000 | CH39: 11000000 | CI39: 13010000 | CJ39: 6500000
D40: Gas Interconnection and Reinforcement | E40: 14300000 | F40: 14300000 | G40: 14300000 | H40: 14300000 | I40: 14300000 | J40: 14300000 | L40: 14300000 | M40: 14300000 | N40: 14300000 | O40: 14300000 | Q40: 14300000 | R40: 14300000 | S40: 14300000 | T40: 14300000 | U40: 14300000 | V40: 14300000 | X40: 14300000 | Y40: 14300000 | Z40: 14300000 | AA40: 14300000 | AC40: 14300000 | AD40: 14300000 | AE40: 14300000 | AG40: 14300000 | AH40: 14300000 | AI40: 14300000 | AK40: 17900000 | AL40: 17900000 | AM40: 17900000 | AN40: 17900000 | AO40: 17900000 | AP40: 17900000 | AR40: 17900000 | AS40: 17900000 | AT40: 17900000 | AU40: 17900000 | AW40: 17900000 | AX40: 17900000 | AY40: 17900000 | BA40: 17900000 | BB40: 17900000 | BC40: 17900000 | BE40: 17900000 | BF40: 17900000 | BG40: 17900000 | BH40: 17900000 | BI40: 17900000 | BJ40: 17900000 | BL40: 17900000 | BM40: 17900000 | BN40: 17900000 | BO40: 17900000 | BQ40: 0 | BR40: 0 | BS40: 0 | BT40: 0 | BU40: 0 | BV40: 0 | BX40: 0 | BY40: 0 | BZ40: 0 | CA40: 0 | CB40: 0 | CC40: 0 | CE40: 0 | CF40: 0 | CG40: 0 | CH40: 0 | CI40: 0 | CJ40: 0
D41: System Deliverability Upgrade Costs | E41: 0 | F41: 0 | G41: 0 | H41: 0 | I41: 0 | J41: 0 | L41: 0 | M41: 0 | N41: 0 | O41: 0 | Q41: 0 | R41: 0 | S41: 0 | T41: 0 | U41: 0 | V41: 0 | X41: 0 | Y41: 0 | Z41: 0 | AA41: 0 | AC41: 0 | AD41: 0 | AE41: 0 | AG41: 0 | AH41: 0 | AI41: 0 | AK41: 0 | AL41: 0 | AM41: 0 | AN41: 0 | AO41: 0 | AP41: 0 | AR41: 0 | AS41: 0 | AT41: 0 | AU41: 0 | AW41: 0 | AX41: 0 | AY41: 0 | BA41: 0 | BB41: 0 | BC41: 0 | BE41: 0 | BF41: 0 | BG41: 0 | BH41: 0 | BI41: 0 | BJ41: 0 | BL41: 0 | BM41: 0 | BN41: 0 | BO41: 0 | BQ41: 0 | BR41: 0 | BS41: 0 | BT41: 0 | BU41: 0 | BV41: 0 | BX41: 0 | BY41: 0 | BZ41: 0 | CA41: 0 | CB41: 0 | CC41: 0 | CE41: 0 | CF41: 0 | CG41: 0 | CH41: 0 | CI41: 0 | CJ41: 0
D42: Emission Reduction Credits | E42: 400000 | F42: 400000 | G42: 400000 | H42: 2500000 | I42: 2500000 | J42: 2500000 | L42: 400000 | M42: 400000 | N42: 400000 | O42: 2500000 | Q42: 100000 | R42: 100000 | S42: 100000 | T42: 300000 | U42: 300000 | V42: 300000 | X42: 100000 | Y42: 100000 | Z42: 100000 | AA42: 300000 | AC42: 100000 | AD42: 100000 | AE42: 100000 | AG42: 100000 | AH42: 100000 | AI42: 100000 | AK42: 100000 | AL42: 100000 | AM42: 100000 | AN42: 400000 | AO42: 400000 | AP42: 400000 | AR42: 100000 | AS42: 100000 | AT42: 100000 | AU42: 400000 | AW42: 100000 | AX42: 100000 | AY42: 100000 | BA42: 100000 | BB42: 100000 | BC42: 100000 | BE42: 200000 | BF42: 200000 | BG42: 200000 | BH42: 1100000 | BI42: 1100000 | BJ42: 1100000 | BL42: 200000 | BM42: 200000 | BN42: 200000 | BO42: 1100000 | BQ42: 0 | BR42: 0 | BS42: 0 | BT42: 0 | BU42: 0 | BV42: 0 | BX42: 0 | BY42: 0 | BZ42: 0 | CA42: 0 | CB42: 0 | CC42: 0 | CE42: 0 | CF42: 0 | CG42: 0 | CH42: 0 | CI42: 0 | CJ42: 0
D43: Political Concessions & Area Development Fees | E43: 500000 | F43: 500000 | G43: 500000 | H43: 500000 | I43: 650000 | J43: 550000 | L43: 500000 | M43: 500000 | N43: 500000 | O43: 500000 | Q43: 500000 | R43: 500000 | S43: 500000 | T43: 500000 | U43: 650000 | V43: 550000 | X43: 500000 | Y43: 500000 | Z43: 500000 | AA43: 500000 | AC43: 500000 | AD43: 500000 | AE43: 500000 | AG43: 500000 | AH43: 500000 | AI43: 500000 | AK43: 500000 | AL43: 500000 | AM43: 500000 | AN43: 500000 | AO43: 650000 | AP43: 550000 | AR43: 500000 | AS43: 500000 | AT43: 500000 | AU43: 500000 | AW43: 500000 | AX43: 500000 | AY43: 500000 | BA43: 500000 | BB43: 500000 | BC43: 500000 | BE43: 500000 | BF43: 500000 | BG43: 500000 | BH43: 500000 | BI43: 650000 | BJ43: 550000 | BL43: 500000 | BM43: 500000 | BN43: 500000 | BO43: 500000 | BQ43: 100000 | BR43: 100000 | BS43: 100000 | BT43: 100000 | BU43: 130000 | BV43: 110000 | BX43: 100000 | BY43: 100000 | BZ43: 100000 | CA43: 100000 | CB43: 130000 | CC43: 110000 | CE43: 100000 | CF43: 100000 | CG43: 100000 | CH43: 100000 | CI43: 130000 | CJ43: 110000
D44: Startup/Testing (Fuel & Consumables) | E44: 2640000 | F44: 2640000 | G44: 2640000 | H44: 2640000 | I44: 2640000 | J44: 2640000 | L44: 2640000 | M44: 2640000 | N44: 2640000 | O44: 2640000 | Q44: 3100000 | R44: 3100000 | S44: 3100000 | T44: 3100000 | U44: 3100000 | V44: 3100000 | X44: 3100000 | Y44: 3100000 | Z44: 3100000 | AA44: 3100000 | AC44: 3100000 | AD44: 3100000 | AE44: 3100000 | AG44: 3100000 | AH44: 3100000 | AI44: 3100000 | AK44: 4500000 | AL44: 4500000 | AM44: 4500000 | AN44: 4500000 | AO44: 4500000 | AP44: 4500000 | AR44: 4500000 | AS44: 4500000 | AT44: 4500000 | AU44: 4500000 | AW44: 4500000 | AX44: 4500000 | AY44: 4500000 | BA44: 4500000 | BB44: 4500000 | BC44: 4500000 | BE44: 5450000 | BF44: 5450000 | BG44: 5450000 | BH44: 5450000 | BI44: 5450000 | BJ44: 5450000 | BL44: 5450000 | BM44: 5450000 | BN44: 5450000 | BO44: 5450000 | BQ44: 0 | BR44: 0 | BS44: 0 | BT44: 0 | BU44: 0 | BV44: 0 | BX44: 0 | BY44: 0 | BZ44: 0 | CA44: 0 | CB44: 0 | CC44: 0 | CE44: 0 | CF44: 0 | CG44: 0 | CH44: 0 | CI44: 0 | CJ44: 0
D45: Initial Fuel Inventory | E45: 4180000 | F45: 4180000 | G45: 4180000 | H45: 4180000 | I45: 4180000 | J45: 4180000 | L45: 4180000 | M45: 4180000 | N45: 4180000 | O45: 4180000 | Q45: 4880000 | R45: 4880000 | S45: 4880000 | T45: 4880000 | U45: 4880000 | V45: 4880000 | X45: 4880000 | Y45: 4880000 | Z45: 4880000 | AA45: 4880000 | AC45: 4880000 | AD45: 4880000 | AE45: 4880000 | AG45: 4880000 | AH45: 4880000 | AI45: 4880000 | AK45: 7240000 | AL45: 7240000 | AM45: 7240000 | AN45: 7240000 | AO45: 7240000 | AP45: 7240000 | AR45: 7240000 | AS45: 7240000 | AT45: 7240000 | AU45: 7240000 | AW45: 7240000 | AX45: 7240000 | AY45: 7240000 | BA45: 7240000 | BB45: 7240000 | BC45: 7240000 | BE45: 7240000 | BF45: 7240000 | BG45: 7240000 | BH45: 7240000 | BI45: 7240000 | BJ45: 7240000 | BL45: 7240000 | BM45: 7240000 | BN45: 7240000 | BO45: 7240000 | BQ45: 0 | BR45: 0 | BS45: 0 | BT45: 0 | BU45: 0 | BV45: 0 | BX45: 0 | BY45: 0 | BZ45: 0 | CA45: 0 | CB45: 0 | CC45: 0 | CE45: 0 | CF45: 0 | CG45: 0 | CH45: 0 | CI45: 0 | CJ45: 0
D46: Site Security | E46: 580000 | F46: 580000 | G46: 580000 | H46: 580000 | I46: 750000 | J46: 640000 | L46: 580000 | M46: 580000 | N46: 580000 | O46: 580000 | Q46: 580000 | R46: 580000 | S46: 580000 | T46: 580000 | U46: 750000 | V46: 640000 | X46: 580000 | Y46: 580000 | Z46: 580000 | AA46: 580000 | AC46: 580000 | AD46: 580000 | AE46: 580000 | AG46: 580000 | AH46: 580000 | AI46: 580000 | AK46: 580000 | AL46: 580000 | AM46: 580000 | AN46: 580000 | AO46: 750000 | AP46: 640000 | AR46: 580000 | AS46: 580000 | AT46: 580000 | AU46: 580000 | AW46: 580000 | AX46: 580000 | AY46: 580000 | BA46: 580000 | BB46: 580000 | BC46: 580000 | BE46: 1100000 | BF46: 1100000 | BG46: 1100000 | BH46: 1100000 | BI46: 1430000 | BJ46: 1210000 | BL46: 1100000 | BM46: 1100000 | BN46: 1100000 | BO46: 1100000 | BQ46: 370000 | BR46: 370000 | BS46: 370000 | BT46: 370000 | BU46: 480000 | BV46: 410000 | BX46: 440000 | BY46: 440000 | BZ46: 440000 | CA46: 440000 | CB46: 570000 | CC46: 480000 | CE46: 510000 | CF46: 510000 | CG46: 510000 | CH46: 510000 | CI46: 660000 | CJ46: 560000
D47: Operating Spare Parts | E47: 3110000 | F47: 3110000 | G47: 3110000 | H47: 3110000 | I47: 3110000 | J47: 3110000 | L47: 3110000 | M47: 3110000 | N47: 3110000 | O47: 3110000 | Q47: 5500000 | R47: 5500000 | S47: 5500000 | T47: 5500000 | U47: 5500000 | V47: 5500000 | X47: 5500000 | Y47: 5500000 | Z47: 5500000 | AA47: 5500000 | AC47: 5500000 | AD47: 5500000 | AE47: 5500000 | AG47: 5500000 | AH47: 5500000 | AI47: 5500000 | AK47: 6500000 | AL47: 6500000 | AM47: 6500000 | AN47: 6500000 | AO47: 6500000 | AP47: 6500000 | AR47: 6500000 | AS47: 6500000 | AT47: 6500000 | AU47: 6500000 | AW47: 6500000 | AX47: 6500000 | AY47: 6500000 | BA47: 6500000 | BB47: 6500000 | BC47: 6500000 | BE47: 6500000 | BF47: 6500000 | BG47: 6500000 | BH47: 6500000 | BI47: 6500000 | BJ47: 6500000 | BL47: 6500000 | BM47: 6500000 | BN47: 6500000 | BO47: 6500000 | BQ47: 770000 | BR47: 770000 | BS47: 770000 | BT47: 770000 | BU47: 770000 | BV47: 770000 | BX47: 1120000 | BY47: 1120000 | BZ47: 1120000 | CA47: 1120000 | CB47: 1120000 | CC47: 1120000 | CE47: 1470000 | CF47: 1470000 | CG47: 1470000 | CH47: 1470000 | CI47: 1470000 | CJ47: 1470000
D49: Builders Risk Insurance (0.45% of Construction Costs) | E49: 1010000 | F49: 1020000 | G49: 1040000 | H49: 1080000 | I49: 1170000 | J49: 1150000 | L49: 1010000 | M49: 1020000 | N49: 1040000 | O49: 1080000 | Q49: 810000 | R49: 830000 | S49: 840000 | T49: 890000 | U49: 1020000 | V49: 1010000 | X49: 810000 | Y49: 830000 | Z49: 840000 | AA49: 890000 | AC49: 810000 | AD49: 830000 | AE49: 840000 | AG49: 810000 | AH49: 830000 | AI49: 840000 | AK49: 1120000 | AL49: 1140000 | AM49: 1150000 | AN49: 1200000 | AO49: 1350000 | AP49: 1340000 | AR49: 1120000 | AS49: 1140000 | AT49: 1150000 | AU49: 1200000 | AW49: 927637.0998 | AX49: 941435.2021 | AY49: 958762.4334 | BA49: 927637.0998 | BB49: 941435.2021 | BC49: 958762.4334 | BE49: 2420000 | BF49: 2470000 | BG49: 2550000 | BH49: 2750000 | BI49: 3120000 | BJ49: 3090000 | BL49: 2420000 | BM49: 2470000 | BN49: 2550000 | BO49: 2750000 | BQ49: 1130000 | BR49: 1140000 | BS49: 1150000 | BT49: 1190000 | BU49: 1270000 | BV49: 1260000 | BX49: 1610000 | BY49: 1630000 | BZ49: 1650000 | CA49: 1710000 | CB49: 1810000 | CC49: 1800000 | CE49: 2100000 | CF49: 2120000 | CG49: 2140000 | CH49: 2220000 | CI49: 2360000 | CJ49: 2340000
D50: Owner's Contingency (5% for Screening Purposes) | E50: 14260000 | F50: 14380000 | G50: 14570000 | H50: 15090000 | I50: 18020000 | J50: 15390000 | L50: 14260000 | M50: 14380000 | N50: 14570000 | O50: 15090000 | Q50: 11890000 | R50: 12030000 | S50: 12220000 | T50: 12790000 | U50: 16310000 | V50: 13610000 | X50: 11890000 | Y50: 12030000 | Z50: 12220000 | AA50: 12790000 | AC50: 11890000 | AD50: 12030000 | AE50: 12220000 | AG50: 11890000 | AH50: 12030000 | AI50: 12220000 | AK50: 15750000 | AL50: 15910000 | AM50: 16100000 | AN50: 16630000 | AO50: 20460000 | AP50: 17750000 | AR50: 15750000 | AS50: 15910000 | AT50: 16100000 | AU50: 16630000 | AW50: 13570960.74 | AX50: 13724962.89 | AY50: 13918354.05 | BA50: 13570960.74 | BB50: 13724962.89 | BC50: 13918354.05 | BE50: 31280000 | BF50: 31910000 | BG50: 32820000 | BH50: 35000000 | BI50: 41570000 | BJ50: 38950000 | BL50: 31280000 | BM50: 31910000 | BN50: 32820000 | BO50: 35000000 | BQ50: 13830000 | BR50: 13950000 | BS50: 14060000 | BT50: 14560000 | BU50: 17520000 | BV50: 14820000 | BX50: 19290000 | BY50: 19460000 | BZ50: 19620000 | CA50: 20340000 | CB50: 23640000 | CC50: 20910000 | CE50: 24740000 | CF50: 24970000 | CG50: 25180000 | CH50: 26110000 | CI50: 29760000 | CJ50: 26990000
D51: DEDUCT FOR GAS ONLY | L51: -4800000 | M51: -4800000 | N51: -4800000 | O51: -4800000 | X51: -5800000 | Y51: -5800000 | Z51: -5800000 | AA51: -5800000 | AC51: -5800000 | AD51: -5800000 | AE51: -5800000 | AR51: -8600000 | AS51: -8600000 | AT51: -8600000 | AU51: -8600000 | BA51: -8600000 | BB51: -8600000 | BC51: -8600000 | BL51: -3800000 | BM51: -3900000 | BN51: -3900000 | BO51: -4100000
D52: DEDUCT TO REMOVE SCR/CO | AC52: -1100000 | AD52: -1100000 | AE52: -1100000 | AG52: -1100000 | AH52: -1100000 | AI52: -1100000
D53: Owner's Costs Subtotal | E53: 74800000 | F53: 74930000 | G53: 75140000 | H53: 77800000 | I53: 118850000 | J53: 66590000 | L53: 70000000 | M53: 70130000 | N53: 70340000 | O53: 73000000 | Q53: 68650000 | R53: 68810000 | S53: 69010000 | T53: 69830000 | U53: 116020000 | V53: 62290000 | X53: 62850000 | Y53: 63010000 | Z53: 63210000 | AA53: 64030000 | AC53: 61750000 | AD53: 61910000 | AE53: 62110000 | AG53: 67550000 | AH53: 67710000 | AI53: 67910000 | AK53: 81220000 | AL53: 81400000 | AM53: 81600000 | AN53: 82480000 | AO53: 129020000 | AP53: 75270000 | AR53: 72620000 | AS53: 72800000 | AT53: 73000000 | AU53: 73880000 | AW53: 78848597.84 | AX53: 79016398.1 | AY53: 79227116.48 | BA53: 70248597.84 | BB53: 70416398.1 | BC53: 70627116.48 | BE53: 119910000 | BF53: 120590000 | BG53: 121580000 | BH53: 124860000 | BI53: 180140000 | BJ53: 131040000 | BL53: 116110000 | BM53: 116690000 | BN53: 117680000 | BO53: 120760000 | BQ53: 39540000 | BR53: 39670000 | BS53: 39790000 | BT53: 40330000 | BU53: 86660000 | BV53: 31780000 | BX53: 46130000 | BY53: 46320000 | BZ53: 46500000 | CA53: 47280000 | CB53: 94040000 | CC53: 39060000 | CE53: 52670000 | CF53: 52920000 | CG53: 53150000 | CH53: 54160000 | CI53: 101390000 | CJ53: 46330000
D55: Financing (incl. AFUDC, IDC)
D56: EPC Portion | E56: 15723400 | F56: 15887900 | G56: 16158100 | H56: 16741200 | I56: 18169900 | J56: 17959900 | L56: 15723400 | M56: 15887900 | N56: 16158100 | O56: 16741200 | Q56: 12667200 | R56: 12873000 | S56: 13135500 | T56: 13918800 | U56: 15849400 | V56: 15639400 | X56: 12667200 | Y56: 12873000 | Z56: 13135500 | AA56: 13918800 | AC56: 12667200 | AD56: 12873000 | AE56: 13135500 | AG56: 12667200 | AH56: 12873000 | AI56: 13135500 | AK56: 17470600 | AL56: 17684800 | AM56: 17954300 | AN56: 18676700 | AO56: 21040600 | AP56: 20830600 | AR56: 17470600 | AS56: 17684800 | AT56: 17954300 | AU56: 18676700 | AW56: 14429910.44 | AX56: 14644547.59 | AY56: 14914082.3 | BA56: 14429910.44 | BB56: 14644547.59 | BC56: 14914082.3 | BE56: 37590700 | BF56: 38469200 | BG56: 39732700 | BH56: 42709800 | BI56: 48498100 | BJ56: 48078100 | BL56: 37590700 | BM56: 38469200 | BN56: 39732700 | BO56: 42709800 | BQ56: 17558800 | BR56: 17728900 | BS56: 17889200 | BT56: 18579400 | BU56: 19682600 | BV56: 19556600 | BX56: 25120200 | BY56: 25365900 | BZ56: 25592000 | CA56: 26588100 | CB56: 28166600 | CC56: 27998600 | CE56: 32676700 | CF56: 32999400 | CG56: 33291300 | CH56: 34593300 | CI56: 36645700 | CJ56: 36435700
D57: Non-EPC Portion | E57: 5208000 | F57: 5217100 | G57: 5231800 | H57: 5271000 | I57: 8144500 | J57: 4486300 | L57: 5208000 | M57: 5217100 | N57: 5231800 | O57: 5271000 | Q57: 4805500 | R57: 4816700 | S57: 4830700 | T57: 4888100 | U57: 8121400 | V57: 4360300 | X57: 4805500 | Y57: 4816700 | Z57: 4830700 | AA57: 4888100 | AC57: 4805500 | AD57: 4816700 | AE57: 4830700 | AG57: 4805500 | AH57: 4816700 | AI57: 4830700 | AK57: 5685400 | AL57: 5698000 | AM57: 5712000 | AN57: 5773600 | AO57: 9031400 | AP57: 5268900 | AR57: 5685400 | AS57: 5698000 | AT57: 5712000 | AU57: 5773600 | AW57: 5519401.849 | AX57: 5531147.867 | AY57: 5545898.154 | BA57: 5519401.849 | BB57: 5531147.867 | BC57: 5545898.154 | BE57: 8393700 | BF57: 8441300 | BG57: 8510600 | BH57: 8740200 | BI57: 12609800 | BJ57: 9172800 | BL57: 8393700 | BM57: 8441300 | BN57: 8510600 | BO57: 8740200 | BQ57: 2767800 | BR57: 2776900 | BS57: 2785300 | BT57: 2823100 | BU57: 6066200 | BV57: 2224600 | BX57: 3229100 | BY57: 3242400 | BZ57: 3255000 | CA57: 3309600 | CB57: 6582800 | CC57: 2734200 | CE57: 3686900 | CF57: 3704400 | CG57: 3720500 | CH57: 3791200 | CI57: 7097300 | CJ57: 3243100
D59: Total Non-EPC Costs | E59: 95731400 | F59: 96035000 | G59: 96529900 | H59: 99812200 | I59: 145164400 | J59: 89036200 | L59: 90931400 | M59: 91235000 | N59: 91729900 | O59: 95012200 | Q59: 86122700 | R59: 86499700 | S59: 86976200 | T59: 88636900 | U59: 139990800 | V59: 82289700 | X59: 80322700 | Y59: 80699700 | Z59: 81176200 | AA59: 82836900 | AC59: 79222700 | AD59: 79599700 | AE59: 80076200 | AG59: 85022700 | AH59: 85399700 | AI59: 85876200 | AK59: 104376000 | AL59: 104782800 | AM59: 105266300 | AN59: 106930300 | AO59: 159092000 | AP59: 101369500 | AR59: 95776000 | AS59: 96182800 | AT59: 96666300 | AU59: 98330300 | AW59: 98797910.13 | AX59: 99192093.55 | AY59: 99687096.93 | BA59: 90197910.13 | BB59: 90592093.55 | BC59: 91087096.93 | BE59: 165894400 | BF59: 167500500 | BG59: 169823300 | BH59: 176310000 | BI59: 241247900 | BJ59: 188290900 | BL59: 162094400 | BM59: 163600500 | BN59: 165923300 | BO59: 172210000 | BQ59: 59866600 | BR59: 60175800 | BS59: 60464500 | BT59: 61732500 | BU59: 112408800 | BV59: 53561200 | BX59: 74479300 | BY59: 74928300 | BZ59: 75347000 | CA59: 77177700 | CB59: 128789400 | CC59: 69792800 | CE59: 89033600 | CF59: 89623800 | CG59: 90161800 | CH59: 92544500 | CI59: 145133000 | CJ59: 86008800
D62: Overnight Capital Costs ($2020) | E62: 320351400 | F62: 323005000 | G62: 327359900 | H62: 338972200 | I62: 404734400 | J62: 345606200 | L62: 304251400 | M62: 306905000 | N62: 311259900 | O62: 322872200 | Q62: 267082700 | R62: 270399700 | S62: 274626200 | T62: 287476900 | U62: 366410800 | V62: 305709700 | X62: 244382700 | Y62: 247699700 | Z62: 251926200 | AA62: 264776900 | AC62: 222682700 | AD62: 225999700 | AE62: 230226200 | AG62: 245382700 | AH62: 248699700 | AI62: 252926200 | AK62: 353956000 | AL62: 357422800 | AM62: 361756300 | AN62: 373740300 | AO62: 459672000 | AP62: 398949500 | AR62: 319956000 | AS62: 323422800 | AT62: 327756300 | AU62: 339740300 | AW62: 304939487.9 | AX62: 308399916.2 | AY62: 312745415.5 | BA62: 270939487.9 | BB62: 274399916.2 | BC62: 278745415.5 | BE62: 702904400 | BF62: 717060500 | BG62: 737433300 | BH62: 786450000 | BI62: 786450000 | BJ62: 875120900 | BL62: 673704400 | BM62: 687760500 | BN62: 708133300 | BO62: 756950000 | BQ62: 310706600 | BR62: 313445800 | BS62: 316024500 | BT62: 327152500 | BU62: 393588800 | BV62: 332941200 | BX62: 433339300 | BY62: 437298300 | BZ62: 440947000 | CA62: 457007700 | CB62: 531169400 | CC62: 469772800 | CE62: 555843600 | CF62: 561043800 | CG62: 565751800 | CH62: 586734500 | CI62: 668643000 | CJ62: 606518800
D63: Overnight Capital Costs ($2020/ICAP kW) | E63: =E62/(E13*1000) -> 2019.870113 | F63: 2036.601513 | G63: 2062.759294 | H63: 2135.930687 | I63: 2550.311279 | J63: 2177.732829 | L63: =L62/(L13*1000) -> 1918.356873 | M63: =M62/(M13*1000) -> 1935.088272 | N63: =N62/(N13*1000) -> 1961.310019 | O63: =O62/(O13*1000) -> 2034.481411 | Q63: =Q62/(Q13*1000) -> 1289.631579 | R63: 1298.74976 | S63: 1313.372549 | T63: 1374.829747 | U63: 1743.153187 | V63: 1454.375357 | X63: =X62/(X13*1000) -> 1180.022694 | Y63: =Y62/(Y13*1000) -> 1189.719981 | Z63: =Z62/(Z13*1000) -> 1204.812052 | AA63: =AA62/(AA13*1000) -> 1266.269249 | AC63: =AC62/(AC13*1000) -> 1075.242395 | AD63: =AD62/(AD13*1000) -> 1085.493276 | AE63: =AE62/(AE13*1000) -> 1101.033955 | AG63: =AG62/(AG13*1000) -> 1184.85128 | AH63: =AH62/(AH13*1000) -> 1194.523055 | AI63: =AI62/(AI13*1000) -> 1209.594452 | AK63: =AK62/(AK13*1000) -> 1029.839977 | AL63: 1034.209491 | AM63: 1042.52536 | AN63: 1077.061383 | AO63: 1317.866972 | AP63: 1143.777236 | AR63: =AR62/(AR13*1000) -> 930.9164969 | AS63: 935.8298611 | AT63: 944.5426513 | AU63: 979.0786744 | AW63: =AW62/(AW13*1000) -> 933.392984 | AX63: 938.8125304 | AY63: 948.0006531 | BA63: =BA62/(BA13*1000) -> 829.3219708 | BB63: 835.3117694 | BC63: 844.9391193 | BE63: =BE62/(BE13*1000) -> 1419.722076 | BF63: 1438.436309 | BG63: 1473.098881 | BH63: 1571.014782 | BI63: =BI62/(BI13*1000) -> 1566.009558 | BJ63: =BJ62/(BJ13*1000) -> 1741.534129 | BL63: =BL62/(BL13*1000) -> 1360.744092 | BM63: =BM62/(BM13*1000) -> 1379.65998 | BN63: =BN62/(BN13*1000) -> 1414.569117 | BO63: =BO62/(BO13*1000) -> 1512.085497 | BQ63: =BQ62/(BQ13*1000) -> 1553.533 | BR63: 1567.229 | BS63: 1580.1225 | BT63: 1635.7625 | BU63: 1967.944 | BV63: 1664.706 | BX63: =BX62/(BX13*1000) -> 2166.6965 | BY63: 2186.4915 | BZ63: 2204.735 | CA63: 2285.0385 | CB63: 2655.847 | CC63: 2348.864 | CE63: =CE62/(CE13*1000) -> 2779.218 | CF63: =CF62/(CF13*1000) -> 2805.219 | CG63: =CG62/(CG13*1000) -> 2828.759 | CH63: =CH62/(CH13*1000) -> 2933.6725 | CI63: =CI62/(CI13*1000) -> 3343.215 | CJ63: 3032.594
